Workbook

Sheet Summary
B2: LP | C2: HP | F2: VMY536H (DP<20 b) | Q2: air molar mass | R2: 28.95860066
F3: 3550 | Q3: air density | R3: 1.275816215
A4: mass flow | B4: 428.6 | C4: 1038 | D4: g/s total
A5: nb comp | B5: 2 | C5: 1 | D5: units | R5: S | S5: M | T5: L
A6: flow | B6: =B4/B5 -> 214.3 | C6: =C4/C5 -> 1038 | D6: g/s per unit | R6: MYCOM internal Volume ratio | AA6: BVR | AB6: 2.2 | AC6: 2.6 | AE6: BVR | AF6: 2.6 | AG6: 2.6
A7: Gamma | B7: 1.66 | R7: BEST MP Pressure | U7: BEST HP Pressure | AA7: Pinlet | AB7: 1.05 | AC7: =AB8 -> 3.886967857 | AE7: Pinlet | AF7: 1.01 | AG7: =AF8 -> 4.933749909
A8: Pin | B8: 1.05 | C8: =B11 -> 4 | R8: Vi | S8: Vi | T8: Vi | U8: Vi | V8: Vi | W8: Vi | AA8: Ideal Poutlet | AB8: =$AB$7*$AB$6^($B$7) -> 3.886967857 | AC8: =$AC$7*$AC$6^($B$7) -> 18.98745278 | AE8: Ideal Poutlet | AF8: =$AF$7*$AF$6^($B$7) -> 4.933749909 | AG8: =$AC$7*$AC$6^($B$7) -> 18.98745278
A9: Tin | B9: 313 | C9: =B9 -> 313 | R9: 2.63 | S9: 3.65 | T9: 5.8 | U9: 2.63 | V9: 3.65 | W9: 5.8 | AA9: Pr | AB9: =AB8/AB7 -> 3.701874149 | AC9: =AC8/AC7 -> 4.8849009 | AE9: Pr | AF9: =AF8/AF7 -> 4.8849009 | AG9: =AG8/AG7 -> 3.848483026
A10: rho | B10: =1.27581621531631*B8*273.15/(B9)*4/28.958600656 -> 0.1614792425 | C10: =1.27581621531631*C8*273.15/(C9)*4/28.958600656 -> 0.6151590189 | R10: =$B$8*$R$9^($B$7) -> 5.227762409 | S10: =$B$8*$S$9^($B$7) -> 9.007317138 | T10: =$B$8*$T$9^($B$7) -> 19.43031174 | U10: =$C$8*$U$9^($B$7) -> 19.91528537 | V10: =$C$8*$V$9^($B$7) -> 34.3135891 | W10: =$C$8*$W$9^($B$7) -> 74.02023518
A11: Pout | B11: 4 | C11: 16 | R11: =R10/B8 -> 4.978821342 | AB11: 3.5 | AC11: 3.5 | AF11: 3.5 | AG11: 3.5
A12: Ratio | B12: =B11/B8 -> 3.80952381 | C12: =C11/C8 -> 4
A13: Volumetric eff. | B13: =extrapol_(B12,Vol_ratio,Vol_LPL_MP)/100 -> 0.8705238095 | C13: =extrapol_(C12,Vol_ratio,Vol_MP_HP)/100 -> 0.787 | AB13: =AB7*AB11 -> 3.675 | AC13: =AB13*AC11 -> 12.8625 | AF13: =AF7*AF11 -> 3.535 | AG13: =AF13*AG11 -> 12.3725
A14: Isotherm eff. | B14: =extrapol_(B12,IsoT_ratio,IsoT_LPL_MP)/100 ->  | C14: =extrapol_(C12,IsoT_ratio,IsoT_MP_HP)/100 -> 
A15: Ideal Vi | B15: =(B11/B8)^(1/B7) -> 2.238319632 | F15: Ideal Vi | G15: =(C11/C8)^(1/1.66) -> 2.305083923 | R15: 1.05 | S15: =R15*3.5 -> 3.675 | T15: =S15*3.5 -> 12.8625 | Y15: L | Z15: 2.63
O16: =C11/C8 -> 4 | R16: 2 | S16: =R16*3.5 -> 7 | T16: =S16*3.5 -> 24.5 | Y16: M | Z16: 3.65 | AD16: 1.1 | AE16: =AD16*3.5 -> 3.85 | AF16: =AE16*3.5 -> 13.475
E17: =E18/60 -> 59.16666667 | F17: =F18/60 -> 49 | G17: 60 | I17: 50 | Y17: H | Z17: 5.8 | AD17: 1.05
C18: MANUFACTURER | D18: MODEL | E18: 3550 | F18: 2940 | G18: 3550 | I18: 2950 | J18: LP Flow | K18: excess | L18: LP Power | N18: 2950 | O18: HP Flow | P18: excess | Q18: HP Power | AD18: 7
A19: MYCOM
A20: =C20&"-"&D20&" "&I20&" m3/h" -> MYCOM-125SUD 172.167539906103 m3/h | C20: MYCOM | D20: 125SUD | E20: 140 | F20: =G20*$F$18/$G$18 -> 197.1042254 | G20: 238 | I20: =F20*$I$18/$F$18*$B$13 -> 172.1675399 | J20: =I20*$B$10*1000/3600 -> 7.722634423 | K20: =(J20-$B$6)/$B$6 -> -0.9639634418 | L20: =J20*8.314*$B$9/4*LN($B$11/$B$8)/$B$14/1000 ->  | N20: =F20*$N$18/$F$18*$C$13 -> 155.6486479 | O20: =N20*$C$10*1000/3600 -> 26.59685265 | P20: =(O20-$C$6)/$C$6 -> -0.9743768279 | Q20: =O20*8.314*$C$9/4*LN($C$11/$C$8)/$C$14/1000 ->  | AD20: =AD18/AD17 -> 6.666666667
A21: MYCOM-200 VSD 706.031592219987 m3/h | C21: MYCOM | D21: 200 VSD | E21: 574 | F21: =G21*$F$18/$G$18 -> 808.2929577 | G21: 976 | I21: 706.0315922 | J21: 31.66929074 | K21: -0.8522198286 | N21: 638.2902535 | O21: 109.0694462 | P21: -0.8949234623
A22: MYCOM-200 VMD 883.262883299799 m3/h | C22: MYCOM | D22: 200 VMD | E22: 718 | F22: 1011.194366 | G22: 1221 | I22: 883.2628833 | J22: 39.61906147 | K22: -0.8151233716 | N22: 798.5168028 | O22: 136.4485592 | P22: -0.8685466675
A23: MYCOM-200 VLD 1056.87720925553 m3/h | C23: MYCOM | D23: 200 VLD | E23: 859 | F23: 1209.95493 | G23: 1461 | I23: 1056.877209 | J23: 47.40659198 | K23: -0.7787839852 | N23: 955.4734225 | O23: 163.2689148 | P23: -0.8427081746
A24: MYCOM-250 VSD 1377.34031924883 m3/h | C24: MYCOM | D24: 250 VSD | E24: 1120 | F24: 1576.833803 | G24: 1904 | I24: 1377.340319 | J24: 61.78107538 | K24: -0.7117075344 | N24: 1245.189183 | O24: 212.7748212 | P24: -0.7950146231
A25: MYCOM-250 VMD 1721.67539906103 m3/h | C25: MYCOM | D25: 250 VMD | E25: 1400 | F25: 1971.042254 | G25: 2380 | I25: 1721.675399 | J25: 77.22634423 | K25: -0.639634418 | N25: 1556.486479 | O25: 265.9685265 | P25: -0.7437682789
A26: MYCOM-250 VLD 2054.43619047619 m3/h | C26: MYCOM | D26: 250 VLD | E26: 1670 | F26: 2352 | G26: 2840 | I26: 2054.43619 | J26: 92.15244437 | K26: -0.5699839273 | N26: 1857.32 | O26: 317.3742081 | P26: -0.6942445009
A27: MYCOM-250 VLLD 2435.66431455399 m3/h | C27: MYCOM | D27: 250 VLLD | E27: 1980 | F27: 2788.44507 | G27: 3367 | I27: 2435.664315 | J27: 109.2525634 | K27: -0.4901886913 | N27: 2201.970577 | O27: 376.2672389 | P27: -0.637507477
A28: MYCOM-320 SUD 2768.94673631357 m3/h | C28: MYCOM | D28: 320 SUD | E28: =F28/1.699011*$E$18/$F$18 -> 2252.911305 | F28: 3170 | G28: =E28*$G$18/$F$18*$B$13 -> 2368.131261 | I28: 2768.946736 | J28: 124.2020615 | K28: -0.4204290177 | N28: 2503.27568 | O28: 427.7535032 | P28: -0.5879060663
A29: MYCOM-320 VMD 3444.07419114688 m3/h | C29: MYCOM | D29: 320 VMD | E29: 2800 | F29: 3942.912676 | G29: 4761 | I29: 3444.074191 | J29: 154.4851365 | K29: -0.2791174219 | N29: 3113.626944 | O29: 532.0488044 | P29: -0.4874288975
A30: MYCOM-320 MUD 3458.99970845481 m3/h | C30: MYCOM | D30: 320 MUD | E30: 2814.362387 | F30: 3960 | G30: =E30*$G$18/$F$18*$B$13 -> 2958.296464 | I30: 3458.999708 | J30: 155.1546257 | K30: -0.2759933471 | N30: 3127.120408 | O30: 534.354534 | P30: -0.4852075781 | R30: JT60Offer
A31: =C31&"-"&D31&" "&I31&" m3/h" -> MYCOM-320 L 4140.31783284743 m3/h | C31: MYCOM | D31: 320 L | E31: =F31/1.699011*$E$18/$F$18 -> 3368.706493 | F31: 4740 | G31: =E31*$G$18/$F$18*$B$13 -> 3540.991223 | I31: =F31*$I$18/$F$18*$B$13 -> 4140.317833 | J31: =I31*$B$10*1000/3600 -> 185.7153853 | K31: =(J31-$B$6)/$B$6 -> -0.133385976 | L31: =J31*8.314*$B$9/4*LN($B$11/$B$8)/$B$14/1000 ->  | N31: =F31*$N$18/$F$18*$C$13 -> 3743.068367 | O31: =N31*$C$10*1000/3600 -> 639.6061846 | P31: =(O31-$C$6)/$C$6 -> -0.3838090707 | Q31: =O31*8.314*$C$9/4*LN($C$11/$C$8)/$C$14/1000 ->  | R31: JT60Offer
A32: MYCOM-320 VLD 4120.44666934943 m3/h | C32: MYCOM | D32: 320 VLD | E32: 3352.538624 | F32: 4717.250704 | G32: 5696 | I32: 4120.446669 | J32: 184.8240574 | K32: -0.1375452289 | N32: 3725.103775 | O32: 636.5364398 | P32: -0.3867664356
A33: MYCOM-320 LLUD 4891.51473922903 m3/h | C33: MYCOM | D33: 320 LLUD | E33: 3979.906405 | F33: 5600 | G33: =E33*$G$18/$F$18*$B$13 -> 4183.449546 | I33: 4891.514739 | J33: 219.4105818 | K33: 0.02384779204 | N33: 4422.190476 | O33: 755.6528763 | P33: -0.2720107164 | R33: JT60Offer
A34: MYCOM-400SUD 5660.18134110787 m3/h | C34: MYCOM | D34: 400SUD | E34: 4605.320269 | F34: 6480 | G34: =E34*$G$18/$F$18*$B$13 -> 4840.84876 | I34: 5660.181341 | J34: 253.8893876 | K34: 0.1847381594 | N34: 5117.106122 | O34: 874.3983283 | P34: -0.1576124005
A35: MYCOM-400MUD 7011.12519651241 m3/h | C35: MYCOM | D35: 400MUD | E35: 5704.495145 | F35: 8026.614085 | G35: 9692 | I35: 7011.125197 | J35: 314.4864404 | K35: 0.467505555 | N35: 6338.431493 | O35: 1083.095361 | P35: 0.04344447085
A36: MYCOM-400LUD 8474.54928571429 m3/h | C36: MYCOM | D36: 400LUD | E36: 6895.187848 | F36: 9702 | G36: 11715 | I36: 8474.549286 | J36: 380.128833 | K36: 0.7738162997 | N36: 7661.445 | O36: 1309.168608 | P36: 0.2612414338
A37: MYCOM-400LLUD 9987.88749362844 m3/h | C37: MYCOM | D37: 400LLUD | E37: 8126.492412 | F37: 11434.52958 | G37: 13807 | I37: 9987.887494 | J37: 448.0101406 | K37: 1.090574618 | N37: 9029.583535 | O37: 1542.952708 | P37: 0.4864669634
A38: HOWDEN
A39: Howden-WRV 163/1.45 480.416626174279 m3/h | C39: Howden | D39: WRV 163/1.45 | E39: =F39/1.699011*$E$18/$F$18 -> 390.8836648 | F39: 550 | G39: =$G$18/$F$18*F39 -> 664.1156463 | I39: 480.4166262 | J39: 21.54925357 | K39: -0.8994435204 | N39: 434.3222789 | O39: 74.2159075 | P39: -0.9285010525
A40: Howden-WRV 163/1.80 593.969646906382 m3/h | C40: Howden | D40: WRV 163/1.80 | E40: =F40/1.699011*$E$18/$F$18 -> 483.2743492 | F40: 680 | G40: =$G$18/$F$18*F40 -> 821.0884354 | I40: 593.9696469 | J40: 26.64271351 | K40: -0.8756756253 | N40: 536.9802721 | O40: 91.75784927 | P40: -0.9116013013
A41: Howden-WRV 204/1.10 711.890091512796 m3/h | C41: Howden | D41: WRV 204/1.10 | E41: 579.2185215 | F41: 815 | G41: 984.0986395 | I41: 711.8900915 | J41: 31.93207575 | K41: -0.8509935803 | N41: 643.5866497 | O41: 109.9744811 | P41: -0.8940515596
A42: Howden-WRV 204/1.45 956.465828474247 m3/h | C42: Howden | D42: WRV 204/1.45 | E42: 778.2138418 | F42: 1095 | G42: 1322.193878 | I42: 956.4658285 | J42: 42.90260484 | K42: -0.7998011907 | N42: 864.6961735 | O42: 147.7571249 | P42: -0.8576520954
A43: Howden-WRV 204/1.65 1065.65142533204 m3/h | C43: Howden | D43: WRV 204/1.65 | E43: 867.0510383 | F43: 1220 | G43: 1473.129252 | I43: 1065.651425 | J43: 47.80016247 | K43: -0.7769474453 | N43: 963.4057823 | O43: 164.6243766 | P43: -0.8414023347
A44: Howden-WRV 204/1.93 1170.46959831552 m3/h | C44: Howden | D44: WRV 204/1.93 | E44: 952.334747 | F44: 1340 | G44: 1618.027211 | I44: 1170.469598 | J44: 52.5018178 | K44: -0.7550078498 | N44: 1058.167007 | O44: 180.8169383 | P44: -0.8258025643
A45: Howden-WRVi 255/1.10 1388.8407920311 m3/h | C45: Howden | D45: WRVi 255/1.10 | E45: 1130.00914 | F45: 1590 | G45: 1919.897959 | I45: 1388.840792 | J45: 62.29693306 | K45: -0.709300359 | N45: 1255.586224 | O45: 214.5514417 | P45: -0.7933030427
A46: Howden-WRVi 255/1.30 1532.96577988338 m3/h | C46: Howden | D46: WRVi 255/1.30 | E46: 1247.27424 | F46: 1755 | G46: 2119.132653 | I46: 1532.96578 | J46: 68.76170913 | K46: -0.6791334152 | N46: 1385.882908 | O46: 236.8162139 | P46: -0.7718533585
A47: Howden-WRVi 255/1.45 1877.992265954 m3/h | C47: Howden | D47: WRVi 255/1.45 | E47: 1527.999781 | F47: 2150 | G47: 2596.088435 | I47: 1877.992266 | J47: 84.23799124 | K47: -0.6069155798 | N47: 1697.805272 | O47: 290.1167293 | P47: -0.7205041143
A48: Howden-WRVi 255/1.65 2091.99603579527 m3/h | C48: Howden | D48: WRVi 255/1.65 | E48: 1702.120686 | F48: 2395 | G48: 2891.921769 | I48: 2091.996036 | J48: 93.83720419 | K48: -0.5621222389 | N48: 1891.276105 | O48: 323.1765426 | P48: -0.6886545832
A49: Howden-WRVi 255/1.93 2297.26495788792 m3/h | C49: Howden | D49: WRVi 255/1.93 | E49: 1869.134615 | F49: 2630 | G49: 3175.680272 | I49: 2297.264958 | J49: 103.0446125 | K49: -0.5191571977 | N49: 2076.85017 | O49: 354.8869758 | P49: -0.6581050329
A50: Howden-WRV 255/2.20 2786.41643181082 m3/h | C50: Howden | D50: WRV 255/2.20 | E50: 2267.125256 | F50: 3190 | G50: 3851.870748 | I50: 2786.416432 | J50: 124.9856707 | K50: -0.4167724185 | N50: 2519.069218 | O50: 430.4522635 | P50: -0.5853061045
A51: Howden-WRVi 321/1.32 3345.44668772271 m3/h | C51: Howden | D51: WRVi 321/1.32 | E51: 2721.971702 | F51: 3830 | G51: 4624.659864 | I51: 3345.446688 | J51: 150.0611658 | K51: -0.2997612422 | N51: 3024.462415 | O51: 516.8125922 | P51: -0.5021073293 | S51: =19*L52 ->  | T51: =+Q52*4 ->  | U51: =S51+T51 -> 
A52: Howden-WRVi 321/1.65 4183.99207159054 m3/h | C52: Howden | D52: WRVi 321/1.65 | E52: 3404.241372 | F52: 4790 | G52: 5783.843537 | I52: 4183.992072 | J52: 187.6744084 | K52: -0.1242444779 | N52: 3782.552211 | O52: 646.3530853 | P52: -0.3773091664 | S52: =19*J52 -> 3565.813759 | T52: =4*O52 -> 2585.412341
A53: Howden-WRVi 321/1.93 4594.52991577583 m3/h | C53: Howden | D53: WRVi 321/1.93 | E53: 3738.269231 | F53: 5260 | G53: 6351.360544 | I53: 4594.529916 | J53: 206.0892251 | K53: -0.03831439534 | N53: 4153.70034 | O53: 709.7739517 | P53: -0.3162100658
A54: Howden-WRV 321/2.20 5577.20028749595 m3/h | C54: Howden | D54: WRV 321/2.20 | E54: 4537.804 | F54: 6385 | G54: 7709.778912 | I54: =F54*$I$18/$F$18*$B$13 -> 5577.200287 | J54: =I54*$B$10*1000/3600 -> 250.1672438 | K54: =(J54-$B$6)/$B$6 -> 0.1673693129 | L54: =J54*8.314*$B$9/4*LN($B$11/$B$8)/$B$14/1000 ->  | N54: =F54*$N$18/$F$18*$C$13 -> 5042.08682 | O54: =N54*$C$10*1000/3600 -> 861.579217 | P54: =(O54-$C$6)/$C$6 -> -0.1699622187 | Q54: =O54*8.314*$C$9/4*LN($C$11/$C$8)/$C$14/1000 -> 
A55: Howden-WRVi 365/165 5914.36541059281 m3/h | C55: Howden | D55: WRVi 365/165 | E55: 4812.133263 | F55: 6771 | G55: 8175.867347 | I55: 5914.365411 | J55: 265.2909017 | K55: 0.2379416785 | N55: 5346.902092 | O55: 913.6652903 | P55: -0.1197829573
A56: Howden-WRVi 365/193 6917.99941690962 m3/h | C56: Howden | D56: WRVi 365/193 | E56: 5628.724773 | F56: 7920 | G56: 9563.265306 | I56: 6917.999417 | J56: 310.3092515 | K56: 0.4480133059 | N56: 6254.240816 | O56: 1068.709068 | P56: 0.02958484389
A57: Howden-WRV 510/1.32** 6690.89337544542 m3/h | C57: Howden | D57: WRV 510/1.32** | E57: 5443.943405 | F57: 7660 | G57: 9249.319728 | I57: 6690.893375 | J57: 300.1223316 | K57: 0.4004775155 | N57: 6048.92483 | O57: 1033.625184 | P57: -0.004214658563 | R57: *Swept volume at 3000 rpm except WRV510 range which is measured at 1500rpm **Swept volume at 3600 rpm except WRV510 which is measured at 1800 rpm.
A58: Howden-WRV 510/1.65** 8363.61671930677 m3/h | C58: Howden | D58: WRV 510/1.65** | E58: 6804.929256 | F58: 9575 | G58: 11561.64966 | I58: 8363.616719 | J58: 375.1529145 | K58: 0.7505968944 | N58: 7561.156037 | O58: 1292.031481 | P58: 0.2447316768 | R58: *Swept volume at 3000 rpm except WRV510 range which is measured at 1500rpm **Swept volume at 3600 rpm except WRV510 which is measured at 1800 rpm.
A59: Howden-WRV 510/1.93** 9180.32498380305 m3/h | C59: Howden | D59: WRV 510/1.93** | E59: 7469.431486 | F59: 10510 | G59: 12690.64626 | I59: 9180.324984 | J59: 411.7866455 | K59: 0.9215429097 | N59: 8299.503912 | O59: 1418.198523 | P59: 0.3662798875 | R59: *Swept volume at 3000 rpm except WRV510 range which is measured at 1500rpm **Swept volume at 3600 rpm except WRV510 which is measured at 1800 rpm.
A60: Howden-XRV 127-R1 255.931039034661 m3/h | C60: Howden | D60: XRV 127-R1 | E60: =F60/1.699011*$E$18/$F$18 -> 208.2343887 | F60: 293 | G60: 353.792517 | I60: 255.931039 | J60: 11.47987509 | K60: -0.9464308209 | N60: 231.3753231 | O60: 39.53683799 | P60: -0.9619105607
A61: Howden-XRV 127-R3 346.773455620343 m3/h | C61: Howden | D61: XRV 127-R3 | E61: 282.1469362 | F61: 397 | G61: 479.3707483 | I61: 346.7734556 | J61: 15.55464303 | K61: -0.9274165047 | N61: 313.5017177 | O61: 53.57039141 | P61: -0.9483907597
A62: Howden-XRV 127-R4 427.134054907677 m3/h | C62: Howden | D62: XRV 127-R4 | E62: 347.5311129 | F62: 489 | G62: 590.4591837 | I62: 427.1340549 | J62: 19.15924545 | K62: -0.9105961482 | N62: 386.1519898 | O62: 65.98468867 | P62: -0.9364309358
A63: Howden-XRV 127-R5 503.1272303207 m3/h | C63: Howden | D63: XRV 127-R5 | E63: 409.3618017 | F63: 576 | G63: 695.5102041 | I63: 503.1272303 | J63: 22.56794556 | K63: -0.8946899414 | N63: 454.8538776 | O63: 77.72429585 | P63: -0.9251211023
A64: Howden-XRV 163/1.65 517.976471493359 m3/h | C64: Howden | D64: XRV 163/1.65 | E64: 421.4436604 | F64: 593 | G64: 716.037415 | I64: 517.9764715 | J64: 23.2340134 | K64: -0.891581832 | N64: 468.2783844 | O64: 80.01824208 | P64: -0.9229111348
A65: Howden-XRV 163/1.93 620.174190152251 m3/h | C65: Howden | D65: XRV 163/1.93 | E65: 504.5952764 | F65: 710 | G65: 857.3129252 | I65: 620.1741902 | J65: 27.81812734 | K65: -0.8701907264 | N65: 560.6705782 | O65: 95.80598968 | P65: -0.9077013587
A66: Howden-XRV 204/1.10 709.269637188209 m3/h | C66: Howden | D66: XRV 204/1.10 | E66: 577.0864288 | F66: 812 | G66: 980.4761905 | I66: 709.2696372 | J66: 31.81453437 | K66: -0.8515420702 | N66: 641.217619 | O66: 109.5696671 | P66: -0.8944415539
A67: Howden-XRV 204/1.45 934.628709102689 m3/h | C67: Howden | D67: XRV 204/1.45 | E67: 760.4464025 | F67: 1070 | G67: 1292.006803 | I67: 934.6287091 | J67: 41.92309331 | K67: -0.8043719397 | N67: 844.9542517 | O67: 144.3836746 | P67: -0.8609020476
A68: Howden-XRV 204/1.65 1064.77794055718 m3/h | C68: Howden | D68: XRV 204/1.65 | E68: 866.3403408 | F68: 1219 | G68: 1471.921769 | I68: 1064.777941 | J68: 47.76098201 | K68: -0.7771302753 | N68: 962.6161054 | O68: 164.4894386 | P68: -0.8415323327
A69: Howden-XRV 204/1.93 1177.45747651442 m3/h | C69: Howden | D69: XRV 204/1.93 | E69: 958.0203276 | F69: 1348 | G69: 1627.687075 | I69: 1177.457477 | J69: 52.81526148 | K69: -0.7535452101 | N69: 1064.484422 | O69: 181.8964424 | P69: -0.8247625796
A70: GEA GRASSO
B71: 2940 | C71: GEA GRASSO | D71: LT-P | E71: 572.1115458 | F71: 805 | G71: =F71*$G$18/$F$18 -> 972.0238095 | I71: 703.1552438 | J71: 31.54027114 | K71: -0.8528218799 | N71: 635.689881 | O71: 108.625101 | P71: -0.8953515405 | R71: API 619 standard and ISO 10440, respectively
C72: GEA GRASSO | D72: LT-R | E72: 739.1254753 | F72: 1040 | G72: =F72*$G$18/$F$18 -> 1255.782313 | I72: 908.4241659 | J72: 40.74767948 | K72: -0.8098568386 | N72: 821.2639456 | O72: 140.3355342 | P72: -0.8648019902 | R72: API 619 standard and ISO 10440, respectively
C73: GEA GRASSO | D73: LT-S | E73: 916.7998684 | F73: 1290 | G73: 1557.653061 | I73: 1126.79536 | J73: 50.54279474 | K73: -0.7641493479 | N73: 1018.683163 | O73: 174.0700376 | P73: -0.8323024686 | R73: API 619 standard and ISO 10440, respectively
C74: GEA GRASSO | D74: LT-T | E74: 1037.618456 | F74: 1460 | G74: 1762.92517 | I74: 1275.287771 | J74: 57.20347312 | K74: -0.7330682542 | N74: 1152.928231 | O74: 197.0094999 | P74: -0.8102027939 | R74: API 619 standard and ISO 10440, respectively
C75: GEA GRASSO | D75: LT-V | E75: 1236.613776 | F75: 1740 | G75: 2101.020408 | I75: 1519.863508 | J75: 68.17400221 | K75: -0.6818758646 | N75: 1374.037755 | O75: 234.7921437 | P75: -0.7738033298 | R75: API 619 standard and ISO 10440, respectively
C76: GEA GRASSO | D76: LT-W | E76: 1414.288169 | F76: 1990 | G76: 2402.891156 | I76: 1738.234702 | J76: 77.96911747 | K76: -0.6361683739 | N76: 1571.456973 | O76: 268.5266471 | P76: -0.7413038082 | R76: API 619 standard and ISO 10440, respectively
C77: GEA GRASSO | D77: LT-Y | E77: 1698.567198 | F77: 2390 | G77: 2885.884354 | I77: 2087.628612 | J77: 93.64130189 | K77: -0.5630363888 | N77: 1887.327721 | O77: 322.5018526 | P77: -0.6893045736 | R77: API 619 standard and ISO 10440, respectively
C78: GEA GRASSO | D78: LT-Z | E78: 1952.996929 | F78: 2748 | G78: 3318.163265 | I78: 2400.336161 | J78: 107.6679069 | K78: -0.4975832621 | N78: 2170.032041 | O78: 370.8096615 | P78: -0.6427652587 | R78: API 619 standard and ISO 10440, respectively
C79: GEA GRASSO | D79: LT-XA | E79: 2309.76711 | F79: 3250 | G79: 3924.319728 | I79: 2838.825518 | J79: 127.3364984 | K79: -0.4058026207 | N79: 2566.44983 | O79: 438.5485443 | P79: -0.5775062194 | R79: API 619 standard and ISO 10440, respectively
C80: GEA GRASSO | D80: LT-XB | E80: 2949.394926 | F80: 4150 | G80: 5011.054422 | I80: 3624.961816 | J80: 162.5989133 | K80: -0.2412556541 | N80: 3277.159014 | O80: 559.9927566 | P80: -0.4605079416 | R80: API 619 standard and ISO 10440, respectively
C81: GEA GRASSO | D81: LT-XC | E81: 3482.418105 | F81: 4900 | G81: 5916.666667 | I81: 4280.075397 | J81: 191.9842591 | K81: -0.104133182 | N81: 3869.416667 | O81: 661.1962668 | P81: -0.3630093769 | R81: API 619 standard and ISO 10440, respectively
C82: GEA GRASSO | D82: LT-XD | E82: 4122.04592 | F82: 5800 | G82: 7003.401361 | I82: 5066.211694 | J82: 227.246674 | K82: 0.06041378461 | N82: 4580.12585 | O82: 782.6404791 | P82: -0.2460110992 | R82: API 619 standard and ISO 10440, respectively
C83: GEA GRASSO | D83: LT-XE | E83: 5053.05974 | F83: 7110 | G83: 8585.204082 | I83: 6210.476749 | J83: 278.573078 | K83: 0.299921036 | N83: 5614.602551 | O83: 959.4092769 | P83: -0.07571360606 | R83: API 619 standard and ISO 10440, respectively
C84: GEA GRASSO | D84: LT-XF | E84: 6083.57122 | F84: 8560 | G84: 10336.05442 | I84: 7477.029673 | J84: 335.3847465 | K84: 0.5650244821 | N84: 6759.634014 | O84: 1155.069397 | P84: 0.1127836192 | R84: API 619 standard and ISO 10440, respectively
A85: FRICK JOHNSON CONTROL
B86: 2950 | C86: Frick | D86: SGC1913 | E86: 592.7217754 | F86: 834 | G86: 1007.040816 | I86: 728.4863022 | J86: 32.67650451 | K86: -0.847519811 | N86: 658.5905102 | O86: 112.5383034 | P86: -0.891581596
C87: Frick | D87: SGC.1918 | E87: 790.2957005 | F87: 1112 | G87: 1342.721088 | I87: 971.3150696 | J87: 43.56867268 | K87: -0.7966930813 | N87: 878.1206803 | O87: 150.0510712 | P87: -0.855442128
C88: Frick | D88: SGC.2313 | E88: 1043.304036 | F88: 1468 | G88: 1772.585034 | I88: =F88*$I$18/$F$18*$B$13 -> 1282.275649 | J88: =I88*$B$10*1000/3600 -> 57.51691681 | K88: =(J88-$B$6)/$B$6 -> -0.7316056145 | L88: =J88*8.314*$B$9/4*LN($B$11/$B$8)/$B$14/1000 ->  | N88: =F88*$N$18/$F$18*$C$13 -> 1159.245646 | O88: =N88*$C$10*1000/3600 -> 198.089004 | P88: =(O88-$C$6)/$C$6 -> -0.8091628092 | Q88: =O88*8.314*$C$9/4*LN($C$11/$C$8)/$C$14/1000 -> 
C89: Frick | D89: SGC.2317 | E89: 1313.369114 | F89: 1848 | G89: 2231.428571 | I89: 1614.199864 | J89: 72.40549201 | K89: -0.6621302286 | N89: 1459.322857 | O89: 249.3654492 | P89: -0.7597635364
C90: Frick | D90: SGC.2321 | E90: 1622.522558 | F90: 2283 | G90: 2756.683673 | I90: 1994.165741 | J90: 89.44899256 | K90: -0.5825991948 | N90: 1802.832296 | O90: 308.0634851 | P90: -0.7032143689
C91: Frick | D91: SGC.2813 | E91: 1869.134615 | F91: 2630 | G91: 3175.680272 | I91: 2297.264958 | J91: 103.0446125 | K91: -0.5191571977 | N91: 2076.85017 | O91: 354.8869758 | P91: -0.6581050329
C92: Frick | D92: SGC.2817 | E92: 2353.83036 | F92: 3312 | G92: 3999.183673 | I92: 2892.981574 | J92: 129.765687 | K92: -0.394467163 | N92: 2615.409796 | O92: 446.9147011 | P92: -0.569446338
C93: Frick | D93: SGC.2821 | E93: 2832.129826 | F93: 3985 | G93: 4811.819728 | I93: 3480.836828 | J93: 156.1341373 | K93: -0.271422598 | N93: 3146.86233 | O93: 537.7279843 | P93: -0.4819576259
C94: Frick | D94: SGC.2824 | E94: 3198.849773 | F94: 4501 | G94: 5434.880952 | I94: 3931.554972 | J94: 176.3512551 | K94: -0.1770823372 | N94: 3554.335595 | O94: 607.3559994 | P94: -0.4148786133
C95: Frick | D95: SGCH/B.3511 | E95: 2928.073998 | F95: 4120 | G95: 4974.829932 | I95: 3598.757272 | J95: 161.4234995 | K95: -0.246740553 | N95: 3253.468707 | O95: 555.9446162 | P95: -0.4644078842
C96: Frick | D96: SGCH/B.3515 | E96: 3992.698962 | F96: 5618 | G96: 6783.639456 | I96: 4907.237465 | J96: 220.1158301 | K96: 0.02713873137 | N96: 4436.40466 | O96: 758.0817606 | P96: -0.2696707509
C97: Frick | D97: SGCH/B.3519 | E97: 5081.487643 | F97: 7150 | G97: 8633.503401 | I97: 6245.41614 | J97: 280.1402964 | K97: 0.3072342345 | N97: 5646.189626 | O97: 964.8067975 | P97: -0.0705136826
C98: Frick | D98: SGCB.3524 | E98: 6419.731172 | F98: 9033 | G98: 10907.19388 | I98: 7890.187971 | J98: 353.9171046 | K98: 0.6515030545 | N98: 7133.151173 | O98: 1218.895077 | P98: 0.174272714
A99: AERZEN
C100: Aerzen | D100: VMY236H (DP<20 b) | E100: 496.7776031 | F100: 699 | G100: 844.0306122 | I100: 610.5658576 | J100: 27.38714227 | K100: -0.872201856 | N100: 551.9841327 | O100: 94.32167153 | P100: -0.9091313376 | R100: Attention , Delta P max spécifié !
C101: Aerzen | D101: VMY236M (DP<16 b) | E101: 653.8417666 | F101: 920 | G101: 1110.884354 | I101: 803.6059929 | J101: 36.04602416 | K101: -0.8317964342 | N101: 726.5027211 | O101: 124.1429725 | P101: -0.8804017606 | R101: Attention , Delta P max spécifié !
C102: Aerzen | D102: VMY236B (DP<8 b) | E102: 867.7617359 | F102: 1221 | G102: 1474.336735 | I102: 1066.52491 | J102: 47.83934293 | K102: -0.7767646153 | N102: 964.1954592 | O102: 164.7593146 | P102: -0.8412723366 | R102: Attention , Delta P max spécifié !
C103: Aerzen | D103: VMY336H (DP<20 b) | E103: 981.4733475 | F103: 1381 | G103: 1667.534014 | I103: 1206.282474 | J103: 54.1082167 | K103: -0.7475118213 | N103: 1090.543759 | O103: 186.3493968 | P103: -0.8204726428 | R103: Attention , Delta P max spécifié !
C104: Aerzen | D104: VMY336M (DP<16 b) | E104: 1285.651908 | F104: 1809 | G104: 2184.336735 | I104: 1580.133958 | J104: 70.87745402 | K104: -0.6692605972 | N104: 1428.525459 | O104: 244.1028667 | P104: -0.7648334618 | R104: Attention , Delta P max spécifié !
C105: Aerzen | D105: VMY336B (DP<8 b) | E105: 1713.491847 | F105: 2411 | G105: 2911.241497 | I105: 2105.971792 | J105: 94.46409157 | K105: -0.5591969595 | N105: 1903.910935 | O105: 325.3355509 | P105: -0.6865746138 | R105: Attention , Delta P max spécifié !
C106: Aerzen | D106: VMY436H (DP<20 b) | E106: 1924.569026 | F106: 2708 | G106: 3269.863946 | I106: 2365.39677 | J106: 106.1006885 | K106: -0.5048964606 | N106: 2138.444966 | O106: 365.4121409 | P106: -0.6479651822 | R106: Attention , Delta P max spécifié !
C107: Aerzen | D107: VMY436M (DP<16 b) | E107: 2528.661963 | F107: 3558 | G107: 4296.22449 | I107: 3107.858829 | J107: 139.4040804 | K107: -0.3494909921 | N107: 2809.670306 | O107: 480.1094525 | P107: -0.5374668088 | R107: Attention , Delta P max spécifié !
C108: Aerzen | D108: VMY436B (DP<8 b) | E108: 3363.73161 | F108: 4733 | G108: 5715.017007 | I108: 4134.203439 | J108: 185.4411221 | K108: -0.1346657858 | N108: 3737.540629 | O108: 638.6616185 | P108: -0.3847190573 | R108: Attention , Delta P max spécifié !
C109: Aerzen | D109: VMY536H (DP<20 b) | E109: 4050.265465 | F109: 5699 | G109: 6881.445578 | I109: 4977.989732 | J109: 223.2894475 | K109: 0.04194795836 | N109: 4500.368486 | O109: 769.0117397 | P109: -0.2591409059 | R109: Attention , Delta P max spécifié !
C110: Aerzen | D110: VMY536M (DP<16 b) | E110: 5301.093193 | F110: 7459 | G110: 9006.615646 | I110: 6515.322936 | J110: 292.2470589 | K110: 0.363728693 | N110: 5890.199779 | O110: 1006.502644 | P110: -0.03034427392 | R110: Attention , Delta P max spécifié !
C111: Aerzen | D111: VMY536B (DP<8 b) | E111: 7062.201777 | F111: 9937 | G111: 11998.7585 | I111: 8679.818208 | J111: 389.3362414 | K111: 0.816781341 | N111: 7847.019065 | O111: 1340.879041 | P111: 0.2917909841 | R111: Attention , Delta P max spécifié !

Sheet TMCP
B2: LP | C2: HP | Q2: air molar mass | R2: 28.95860066
Q3: air density | R3: 1.275816215
A4: mass flow | B4: 1158 | C4: =B4 -> 1158 | D4: g/s total | I4: =C16/35/19 -> 
A5: nb comp | B5: 1 | C5: 2 | D5: units | R5: S | S5: M | T5: L
A6: flow | B6: =B4/B5 -> 1158 | C6: =C4/C5 -> 579 | D6: g/s per unit | I6: 300 | J6: 300 | R6: MYCOM internal Volume ratio | AA6: BVR | AB6: 2.2 | AC6: 2.6 | AE6: BVR | AF6: 2.6 | AG6: 2.6
A7: Gamma | B7: 1.66 | I7: 4.5 | J7: 15 | R7: BEST MP Pressure | U7: BEST HP Pressure | AA7: Pinlet | AB7: 1.05 | AC7: =AB8 -> 3.886967857 | AE7: Pinlet | AF7: 1.01 | AG7: =AF8 -> 4.933749909
A8: Pin | B8: 1.05 | C8: =B11 -> 4.5 | I8: =(I6-I7)/I7 -> 65.66666667 | J8: =(J6-J7)/J7 -> 19 | R8: Vi | S8: Vi | T8: Vi | U8: Vi | V8: Vi | W8: Vi | AA8: Ideal Poutlet | AB8: =$AB$7*$AB$6^($B$7) -> 3.886967857 | AC8: =$AC$7*$AC$6^($B$7) -> 18.98745278 | AE8: Ideal Poutlet | AF8: =$AF$7*$AF$6^($B$7) -> 4.933749909 | AG8: =$AC$7*$AC$6^($B$7) -> 18.98745278
A9: Tin | B9: =273+50 -> 323 | C9: 298 | I9: =J9*J8/I8 -> 10.63324873 | J9: =35*1.05 -> 36.75 | K9: kW | R9: 2.63 | S9: 3.65 | T9: 5.8 | U9: 2.63 | V9: 3.65 | W9: 5.8 | AA9: Pr | AB9: =AB8/AB7 -> 3.701874149 | AC9: =AC8/AC7 -> 4.8849009 | AE9: Pr | AF9: =AF8/AF7 -> 4.8849009 | AG9: =AG8/AG7 -> 3.848483026
A10: rho | B10: =1.27581621531631*B8*273.15/(B9)*4/28.958600656 -> 0.1564798851 | C10: =1.27581621531631*C8*273.15/(C9)*4/28.958600656 -> 0.7268888239 | I10: =15.5*(I9)^0.23/100 -> 0.2669714818 | J10: =C16/J9 ->  | K10: W/W | R10: =$B$8*$R$9^($B$7) -> 5.227762409 | S10: =$B$8*$S$9^($B$7) -> 9.007317138 | T10: =$B$8*$T$9^($B$7) -> 19.43031174 | U10: =$C$8*$U$9^($B$7) -> 22.40469604 | V10: =$C$8*$V$9^($B$7) -> 38.60278774 | W10: =$C$8*$W$9^($B$7) -> 83.27276458
A11: Pout | B11: 4.5 | C11: 20 | I11: =I8*I9/I10 -> 2615.447895 | J11: =J8/J10 ->  | K11: Eff. | R11: =R10/B8 -> 4.978821342 | AB11: 3.5 | AC11: 3.5 | AF11: 3.5 | AG11: 3.5
A12: Ratio | B12: =B11/B8 -> 4.285714286 | C12: =C11/C8 -> 4.444444444 | E12: =B11-B8 -> 3.45
A13: Volumetric eff. | B13: =extrapol_(B12,Vol_ratio,Vol_LPL_MP)/100 -> 0.8661428571 | C13: =extrapol_(C12,Vol_ratio,Vol_MP_HP)/100 -> 0.7834444444 | AB13: =AB7*AB11 -> 3.675 | AC13: =AB13*AC11 -> 12.8625 | AF13: =AF7*AF11 -> 3.535 | AG13: =AF13*AG11 -> 12.3725
A14: Isotherm eff. | B14: =extrapol_(B12,IsoT_ratio,IsoT_LPL_MP)/100 ->  | C14: =extrapol_(C12,IsoT_ratio,IsoT_MP_HP)/100 -> 
A15: Ideal Vi | B15: =(B11/B8)^(1/B7) -> 2.402906523 | F15: Ideal Vi | G15: =(C11/C8)^(1/1.66) -> 2.456130822 | R15: 1.05 | S15: =R15*3.5 -> 3.675 | T15: =S15*3.5 -> 12.8625 | Y15: L | Z15: 2.63
C16: =C4*8.314*$C$9/4*LN($C$11/$C$8)/$C$14/1000 ->  | O16: =C11/C8 -> 4.444444444 | R16: 2 | S16: =R16*3.5 -> 7 | T16: =S16*3.5 -> 24.5 | Y16: M | Z16: 3.65 | AD16: 1.1 | AE16: =AD16*3.5 -> 3.85 | AF16: =AE16*3.5 -> 13.475
C17: =C11-C8 -> 15.5 | E17: =E18/60 -> 59.16666667 | F17: =F18/60 -> 49 | G17: 60 | I17: 50 | Y17: H | Z17: 5.8 | AD17: 1.05
C18: MANUFACTURER | D18: MODEL | E18: 3550 | F18: 2940 | G18: 3550 | I18: 2950 | J18: LP Flow | K18: excess | L18: LP Power | N18: 2950 | O18: HP Flow | P18: excess | Q18: HP Power | AD18: 7
A19: =C19&"-"&D19&" "&I19&" m3/h" -> MYCOM-125SUD 171.301098591549 m3/h | C19: MYCOM | D19: 125SUD | E19: 140 | F19: =G19*$F$18/$G$18 -> 197.1042254 | G19: 238 | I19: =F19*$I$18/$F$18*$B$13 -> 171.3010986 | J19: =I19*$B$10*1000/3600 -> 7.445882285 | K19: =(J19-$B$6)/$B$6 -> -0.9935700498 | L19: =J19*8.314*$B$9/4*LN($B$11/$B$8)/$B$14/1000 ->  | N19: =F19*$N$18/$F$18*$C$13 -> 154.9454491 | O19: =N19*$C$10*1000/3600 -> 31.28558758 | P19: =(O19-$C$6)/$C$6 -> -0.94596617 | Q19: =O19*8.314*$C$9/4*LN($C$11/$C$8)/$C$14/1000 ->  | AD19: =AD18/AD17 -> 6.666666667
A20: MYCOM-200 VSD 702.47845472837 m3/h | C20: MYCOM | D20: 200 VSD | E20: 574 | F20: =G20*$F$18/$G$18 -> 808.2929577 | G20: 976 | I20: 702.4784547 | J20: 30.53437441 | K20: -0.973631801 | N20: 635.4065477 | O20: 128.2971995 | P20: -0.7784158903
A21: MYCOM-200 VMD 878.817820925553 m3/h | C21: MYCOM | D21: 200 VMD | E21: 718 | F21: 1011.194366 | G21: 1221 | I21: 878.8178209 | J21: 38.19925324 | K21: -0.9670127347 | N21: 794.909216 | O21: 160.5029514 | P21: -0.72279283
A22: MYCOM-200 VLD 1051.55842454728 m3/h | C22: MYCOM | D22: 200 VLD | E22: 859 | F22: 1209.95493 | G22: 1461 | I22: 1051.558425 | J22: 45.70770596 | K22: -0.9605287513 | N22: 951.1567277 | O22: 192.0514431 | P22: -0.6683049342
A23: MYCOM-250 VSD 1370.40878873239 m3/h | C23: MYCOM | D23: 250 VSD | E23: 1120 | F23: 1576.833803 | G23: 1904 | I23: 1370.408789 | J23: 59.56705828 | K23: -0.9485603987 | N23: 1239.563593 | O23: 250.2847007 | P23: -0.5677293598
A24: MYCOM-250 VMD 1713.01098591549 m3/h | C24: MYCOM | D24: 250 VMD | E24: 1400 | F24: 1971.042254 | G24: 2380 | I24: 1713.010986 | J24: 74.45882285 | K24: -0.9357004984 | N24: 1549.454491 | O24: 312.8558758 | P24: -0.4596616998
A25: MYCOM-250 VLD 2044.09714285714 m3/h | C25: MYCOM | D25: 250 VLD | E25: 1670 | F25: 2352 | G25: 2840 | I25: 2044.097143 | J25: 88.85002391 | K25: -0.9232728636 | N25: 1848.928889 | O25: 373.3238182 | P25: -0.3552265661
A26: MYCOM-250 VLLD 2423.40671830986 m3/h | C26: MYCOM | D26: 250 VLLD | E26: 1980 | F26: 2788.44507 | G26: 3367 | I26: 2423.406718 | J26: 105.3373347 | K26: -0.9090351169 | N26: 2192.022383 | O26: 442.5990479 | P26: -0.2355802282
A27: MYCOM-320 VSD 2753.77312273642 m3/h | C27: MYCOM | D27: 320 VSD | E27: 2250 | F27: 3168.574648 | G27: 3826 | I27: 2753.773123 | J27: 119.6972505 | K27: -0.8966344987 | N27: 2490.84575 | O27: 502.9355382 | P27: -0.1313721274
A28: MYCOM-320 VMD 3426.74172434608 m3/h | C28: MYCOM | D28: 320 VMD | E28: 2800 | F28: 3942.912676 | G28: 4761 | I28: 3426.741724 | J28: 148.9489309 | K28: -0.8713739802 | N28: 3099.560014 | O28: 625.8432037 | P28: 0.08090363337
A29: MYCOM-320 MUD 3476.3556851312 m3/h | C29: MYCOM | D29: 320 MUD | E29: =F29/1.699011*$E$18/$F$18 -> 2842.79029 | F29: 4000 | G29: 5696 | I29: 3476.355685 | J29: 151.1054828 | K29: -0.8695116728 | N29: 3144.436886 | O29: 634.9044528 | P29: 0.096553459 | R29: JT60Offer
A30: MYCOM-320 VLD 4099.71032595573 m3/h | C30: MYCOM | D30: 320 VLD | E30: 3350 | F30: 4717.250704 | G30: 5696 | I30: 4099.710326 | J30: 178.2006113 | K30: -0.8461134617 | N30: 3708.274279 | O30: 748.7508692 | P30: 0.2931793942
A31: MYCOM-320 LLUD 4866.89795918367 m3/h | C31: MYCOM | D31: 320 LLUD | E31: 3979.906405 | F31: 5600 | G31: 5696 | I31: 4866.897959 | J31: 211.547676 | K31: -0.817316342 | N31: 4402.21164 | O31: 888.8662339 | P31: 0.5351748426 | R31: JT60Offer
A32: MYCOM-400SUD 5616.9486277666 m3/h | C32: MYCOM | D32: 400SUD | E32: 4590 | F32: 6463.030986 | G32: 7804 | I32: 5616.948628 | J32: 244.1498544 | K32: -0.7891624746 | N32: 5080.648257 | O32: 1025.851788 | P32: 0.7717647458
A33: MYCOM-400MUD 6975.84137625755 m3/h | C33: MYCOM | D33: 400MUD | E33: 5760 | F33: 8026.614085 | G33: 9692 | I33: 6975.841376 | J33: 303.2163492 | K33: -0.7381551389 | N33: 6309.795349 | O33: 1274.033256 | P33: 1.20040286
A34: MYCOM-400LUD 8431.90071428571 m3/h | C34: MYCOM | D34: 400LUD | E34: 5760 | F34: 9702 | G34: 11715 | I34: 8431.900714 | J34: 366.5063486 | K34: -0.6835005625 | N34: 7626.831667 | O34: 1539.96075 | P34: 1.659690415
A35: MYCOM-400LLUD 9937.62297585513 m3/h | C35: MYCOM | D35: 400LLUD | E35: 5760 | F35: 11434.52958 | G35: 13807 | I35: 9937.622976 | J35: 431.9550282 | K35: -0.6269818409 | N35: 8988.789144 | O35: 1814.958436 | P35: 2.13464324
A36: Howden-WRV 163/1.45 477.998906705539 m3/h | C36: Howden | D36: WRV 163/1.45 | E36: =F36/1.699011*$E$18/$F$18 -> 390.8836648 | F36: 550 | G36: =$G$18/$F$18*F36 -> 664.1156463 | I36: 477.9989067 | J36: 20.77700389 | K36: -0.982057855 | N36: 432.3600718 | O36: 87.29936225 | P36: -0.8492238994
A37: Howden-WRV 163/1.80 590.980466472303 m3/h | C37: Howden | D37: WRV 163/1.80 | E37: =F37/1.699011*$E$18/$F$18 -> 483.2743492 | F37: 680 | G37: =$G$18/$F$18*F37 -> 821.0884354 | I37: 590.9804665 | J37: 25.68793208 | K37: -0.9778169844 | N37: 534.5542706 | O37: 107.933757 | P37: -0.813585912
A38: Howden-WRV 204/1.10 708.307470845481 m3/h | C38: Howden | D38: WRV 204/1.10 | E38: 579.2185215 | F38: 815 | G38: 984.0986395 | I38: 708.3074708 | J38: 30.78774213 | K38: -0.9734130033 | N38: 640.6790155 | O38: 129.3617823 | P38: -0.7765772327
A39: Howden-WRV 204/1.45 951.652368804665 m3/h | C39: Howden | D39: WRV 204/1.45 | E39: 778.2138418 | F39: 1095 | G39: 1322.193878 | I39: 951.6523688 | J39: 41.36512593 | K39: -0.9642788204 | N39: 860.7895975 | O39: 173.8050939 | P39: -0.6998184906
A40: Howden-WRV 204/1.65 1060.28848396501 m3/h | C40: Howden | D40: WRV 204/1.65 | E40: 867.0510383 | F40: 1220 | G40: 1473.129252 | I40: 1060.288484 | J40: 46.08717227 | K40: -0.9602010602 | N40: 959.0532502 | O40: 193.6458581 | P40: -0.665551195
A41: Howden-WRV 204/1.93 1164.57915451895 m3/h | C41: Howden | D41: WRV 204/1.93 | E41: 952.334747 | F41: 1340 | G41: 1618.027211 | I41: 1164.579155 | J41: 50.62033675 | K41: -0.9562864104 | N41: 1053.386357 | O41: 212.6929917 | P41: -0.6326545912
A42: Howden-WRVi 255/1.10 1381.85138483965 m3/h | C42: Howden | D42: WRVi 255/1.10 | E42: 1130.00914 | F42: 1590 | G42: 1919.897959 | I42: 1381.851385 | J42: 60.06442943 | K42: -0.94813089 | N42: 1249.913662 | O42: 252.37452 | P42: -0.56412
A43: Howden-WRVi 255/1.30 1525.25105685131 m3/h | C43: Howden | D43: WRVi 255/1.30 | E43: 1247.27424 | F43: 1755 | G43: 2119.132653 | I43: 1525.251057 | J43: 66.2975306 | K43: -0.9427482465 | N43: 1379.621684 | O43: 278.5643286 | P43: -0.5188871699
A44: Howden-WRVi 255/1.45 1868.54118075802 m3/h | C44: Howden | D44: WRVi 255/1.45 | E44: 1527.999781 | F44: 2150 | G44: 2596.088435 | I44: 1868.541181 | J44: 81.21919703 | K44: -0.9298625242 | N44: 1690.134826 | O44: 341.2611434 | P44: -0.4106025158
A45: Howden-WRVi 255/1.65 2081.4679664723 m3/h | C45: Howden | D45: WRVi 255/1.65 | E45: 1702.120686 | F45: 2395 | G45: 2891.921769 | I45: 2081.467966 | J45: 90.47440785 | K45: -0.9218701141 | N45: 1882.731585 | O45: 380.1490411 | P45: -0.3434386164
A46: Howden-WRVi 255/1.93 2285.70386297376 m3/h | C46: Howden | D46: WRVi 255/1.93 | E46: 1869.134615 | F46: 2630 | G46: 3175.680272 | I46: 2285.703863 | J46: 99.35185497 | K46: -0.9142039249 | N46: 2067.467252 | O46: 417.4496777 | P46: -0.2790161007
A47: Howden-WRV 255/2.20 2772.39365889213 m3/h | C47: Howden | D47: WRV 255/2.20 | E47: 2267.125256 | F47: 3190 | G47: 3851.870748 | I47: 2772.393659 | J47: 120.5066226 | K47: -0.8959355591 | N47: 2507.688416 | O47: 506.3363011 | P47: -0.1254986164
A48: Howden-WRVi 321/1.32 3328.61056851312 m3/h | C48: Howden | D48: WRVi 321/1.32 | E48: 2721.971702 | F48: 3830 | G48: 4624.659864 | I48: 3328.610569 | J48: 144.6834998 | K48: -0.8750574268 | N48: 3010.798318 | O48: 607.9210135 | P48: 0.04994993699 | S48: =19*L49 ->  | T48: =+Q49*4 ->  | U48: =S48+T48 -> 
A49: Howden-WRVi 321/1.65 4162.93593294461 m3/h | C49: Howden | D49: WRVi 321/1.65 | E49: 3404.241372 | F49: 4790 | G49: 5783.843537 | I49: 4162.935933 | J49: 180.9488157 | K49: -0.8437402282 | N49: 3765.463171 | O49: 760.2980822 | P49: 0.3131227672 | S49: =19*J49 -> 3438.027498 | T49: =4*O49 -> 3041.192329
A50: Howden-WRVi 321/1.93 4571.40772594752 m3/h | C50: Howden | D50: WRVi 321/1.93 | E50: 3738.269231 | F50: 5260 | G50: 6351.360544 | I50: 4571.407726 | J50: 198.7037099 | K50: -0.8284078498 | N50: 4134.934505 | O50: 834.8993554 | P50: 0.4419677986
A51: Howden-WRV 321/2.20 5549.13276239067 m3/h | C51: Howden | D51: WRV 321/2.20 | E51: 4537.804 | F51: 6385 | G51: 7709.778912 | I51: =F51*$I$18/$F$18*$B$13 -> 5549.132762 | J51: =I51*$B$10*1000/3600 -> 241.202127 | K51: =(J51-$B$6)/$B$6 -> -0.7917080078 | L51: =J51*8.314*$B$9/4*LN($B$11/$B$8)/$B$14/1000 ->  | N51: =F51*$N$18/$F$18*$C$13 -> 5019.307379 | O51: =N51*$C$10*1000/3600 -> 1013.466233 | P51: =(O51-$C$6)/$C$6 -> 0.7503734589 | Q51: =O51*8.314*$C$9/4*LN($C$11/$C$8)/$C$14/1000 -> 
A52: Howden-WRVi 365/165 5884.60108600583 m3/h | C52: Howden | D52: WRVi 365/165 | E52: 4812.133263 | F52: 6771 | G52: 8175.867347 | I52: 5884.601086 | J52: 255.7838061 | K52: -0.7791158842 | N52: 5322.745539 | O52: 1074.734512 | P52: 0.8561908677
A53: Howden-WRVi 365/193 6883.18425655977 m3/h | C53: Howden | D53: WRVi 365/193 | E53: 5628.724773 | F53: 7920 | G53: 9563.265306 | I53: 6883.184257 | J53: 299.188856 | K53: -0.7416331122 | N53: 6225.985034 | O53: 1257.110816 | P53: 1.171175849
A54: Howden-WRV 510/1.32** 6657.22113702624 m3/h | C54: Howden | D54: WRV 510/1.32** | E54: 5443.943405 | F54: 7660 | G54: 9249.319728 | I54: 6657.221137 | J54: 289.3669996 | K54: -0.7501148535 | N54: 6021.596636 | O54: 1215.842027 | P54: 1.099899874 | R54: *Swept volume at 3000 rpm except WRV510 range which is measured at 1500rpm **Swept volume at 3600 rpm except WRV510 which is measured at 1800 rpm.
A55: Howden-WRV 510/1.65** 8321.5264212828 m3/h | C55: Howden | D55: WRV 510/1.65** | E55: 6804.929256 | F55: 9575 | G55: 11561.64966 | I55: 8321.526421 | J55: 361.7087495 | K55: -0.6876435669 | N55: 7526.995796 | O55: 1519.802534 | P55: 1.624874842 | R55: *Swept volume at 3000 rpm except WRV510 range which is measured at 1500rpm **Swept volume at 3600 rpm except WRV510 which is measured at 1800 rpm.
A56: Howden-WRV 510/1.93** 9134.12456268221 m3/h | C56: Howden | D56: WRV 510/1.93** | E56: 7469.431486 | F56: 10510 | G56: 12690.64626 | I56: 9134.124563 | J56: 397.0296562 | K56: -0.6571419204 | N56: 8262.007918 | O56: 1668.21145 | P56: 1.881194214 | R56: *Swept volume at 3000 rpm except WRV510 range which is measured at 1500rpm **Swept volume at 3600 rpm except WRV510 which is measured at 1800 rpm.
A57: Howden-XRV 127-R1 254.64305393586 m3/h | C57: Howden | D57: XRV 127-R1 | E57: 208.2343887 | F57: 293 | G57: 353.792517 | I57: 254.6430539 | J57: 11.06847662 | K57: -0.99044173 | N57: 230.3300019 | O57: 46.50675116 | P57: -0.9196774591
A58: Howden-XRV 127-R3 345.028301749271 m3/h | C58: Howden | D58: XRV 127-R3 | E58: 282.1469362 | F58: 397 | G58: 479.3707483 | I58: 345.0283017 | J58: 14.99721917 | K58: -0.9870490335 | N58: 312.0853609 | O58: 63.01426694 | P58: -0.8911670692
A59: Howden-XRV 127-R4 424.984482507289 m3/h | C59: Howden | D59: XRV 127-R4 | E59: 347.5311129 | F59: 489 | G59: 590.4591837 | I59: 424.9844825 | J59: 18.47264528 | K59: -0.984047802 | N59: 384.4074093 | O59: 77.61706935 | P59: -0.8659463396
A60: Howden-XRV 127-R5 500.595218658892 m3/h | C60: Howden | D60: XRV 127-R5 | E60: 409.3618017 | F60: 576 | G60: 695.5102041 | I60: 500.5952187 | J60: 21.75918953 | K60: -0.9812096809 | N60: 452.7989116 | O60: 91.4262412 | P60: -0.8420963019
A61: Howden-XRV 163/1.65 515.3697303207 m3/h | C61: Howden | D61: XRV 163/1.65 | E61: 421.4436604 | F61: 593 | G61: 716.037415 | I61: 515.3697303 | J61: 22.40138783 | K61: -0.9806551055 | N61: 466.1627683 | O61: 94.12458512 | P61: -0.8374359497
A62: Howden-XRV 163/1.93 617.053134110787 m3/h | C62: Howden | D62: XRV 163/1.93 | E62: 504.5952764 | F62: 710 | G62: 857.3129252 | I62: 617.0531341 | J62: 26.8212232 | K62: -0.9768383219 | N62: 558.1375472 | O62: 112.6955404 | P62: -0.805361761
A63: Howden-XRV 204/1.10 705.700204081633 m3/h | C63: Howden | D63: XRV 204/1.10 | E63: 577.0864288 | F63: 812 | G63: 980.4761905 | I63: 705.7002041 | J63: 30.67441302 | K63: -0.9735108696 | N63: 638.3206878 | O63: 128.8856039 | P63: -0.7773996478
A64: Howden-XRV 204/1.45 929.925145772595 m3/h | C64: Howden | D64: XRV 204/1.45 | E64: 760.4464025 | F64: 1070 | G64: 1292.006803 | I64: 929.9251458 | J64: 40.42071666 | K64: -0.9650943725 | N64: 841.136867 | O64: 169.8369411 | P64: -0.7066719497
A65: Howden-XRV 204/1.65 1059.41939504373 m3/h | C65: Howden | D65: XRV 204/1.65 | E65: 866.3403408 | F65: 1219 | G65: 1471.921769 | I65: 1059.419395 | J65: 46.0493959 | K65: -0.9602336823 | N65: 958.267141 | O65: 193.487132 | P65: -0.6658253334
A66: Howden-XRV 204/1.93 1171.53186588921 m3/h | C66: Howden | D66: XRV 204/1.93 | E66: 958.0203276 | F66: 1348 | G66: 1627.687075 | I66: 1171.531866 | J66: 50.92254772 | K66: -0.9560254338 | N66: 1059.675231 | O66: 213.9628006 | P66: -0.6304614843
B67: 2940 | C67: GEA GRASSO | D67: LT-P | E67: 572.1115458 | F67: 805 | G67: =F67*$G$18/$F$18 -> 972.0238095 | I67: 699.6165816 | J67: 30.40997842 | K67: -0.9737392242 | N67: 632.8179233 | O67: 127.7745211 | P67: -0.7793186164 | R67: API 619 standard and ISO 10440, respectively
C68: GEA GRASSO | D68: LT-R | E68: 739.1254753 | F68: 1040 | G68: =F68*$G$18/$F$18 -> 1255.782313 | I68: 903.8524781 | J68: 39.28742554 | K68: -0.9660730349 | N68: 817.5535903 | O68: 165.0751577 | P68: -0.7148961007 | R68: API 619 standard and ISO 10440, respectively
C69: GEA GRASSO | D69: LT-S | E69: 916.7998684 | F69: 1290 | G69: 1557.653061 | I69: 1121.124708 | J69: 48.73151822 | K69: -0.9579175145 | N69: 1014.080896 | O69: 204.756686 | P69: -0.6463615095 | R69: API 619 standard and ISO 10440, respectively
C70: GEA GRASSO | D70: LT-T | E70: 1037.618456 | F70: 1460 | G70: 1762.92517 | I70: 1268.869825 | J70: 55.15350124 | K70: -0.9523717606 | N70: 1147.719463 | O70: 231.7401253 | P70: -0.5997579875 | R70: API 619 standard and ISO 10440, respectively
C71: GEA GRASSO | D71: LT-V | E71: 1236.613776 | F71: 1740 | G71: 2101.020408 | I71: 1512.214723 | J71: 65.73088504 | K71: -0.9432375777 | N71: 1367.830045 | O71: 276.183437 | P71: -0.5229992453 | R71: API 619 standard and ISO 10440, respectively
C72: GEA GRASSO | D72: LT-W | E72: 1414.288169 | F72: 1990 | G72: 2402.891156 | I72: 1729.486953 | J72: 75.17497771 | K72: -0.9350820572 | N72: 1564.357351 | O72: 315.8649652 | P72: -0.4544646541 | R72: API 619 standard and ISO 10440, respectively
C73: GEA GRASSO | D73: LT-Y | E73: 1698.567198 | F73: 2390 | G73: 2885.884354 | I73: 2077.122522 | J73: 90.285526 | K73: -0.9220332245 | N73: 1878.801039 | O73: 379.3554105 | P73: -0.3448093082 | R73: API 619 standard and ISO 10440, respectively
C74: GEA GRASSO | D74: LT-Z | E74: 1952.996929 | F74: 2748 | G74: 3318.163265 | I74: 2388.256356 | J74: 103.8094667 | K74: -0.9103545192 | N74: 2160.228141 | O74: 436.179359 | P74: -0.2466677737 | R74: API 619 standard and ISO 10440, respectively
C75: GEA GRASSO | D75: LT-XA | E75: 2309.76711 | F75: 3250 | G75: 3924.319728 | I75: 2824.538994 | J75: 122.7732048 | K75: -0.8939782342 | N75: 2554.85497 | O75: 515.8598679 | P75: -0.1090503146 | R75: API 619 standard and ISO 10440, respectively
C76: GEA GRASSO | D76: LT-XB | E76: 2949.394926 | F76: 4150 | G76: 5011.054422 | I76: 3606.719023 | J76: 156.7719384 | K76: -0.8646183606 | N76: 3262.353269 | O76: 658.7133697 | P76: 0.1376742137 | R76: API 619 standard and ISO 10440, respectively
C77: GEA GRASSO | D77: LT-XC | E77: 3482.418105 | F77: 4900 | G77: 5916.666667 | I77: 4258.535714 | J77: 185.1042165 | K77: -0.8401517992 | N77: 3851.935185 | O77: 777.7579546 | P77: 0.3432779873 | R77: API 619 standard and ISO 10440, respectively
C78: GEA GRASSO | D78: LT-XD | E78: 4122.04592 | F78: 5800 | G78: 7003.401361 | I78: 5040.715743 | J78: 219.1029501 | K78: -0.8107919256 | N78: 4559.433485 | O78: 920.6114565 | P78: 0.5900025156 | R78: API 619 standard and ISO 10440, respectively
C79: GEA GRASSO | D79: LT-XE | E79: 5053.05974 | F79: 7110 | G79: 8585.204082 | I79: 6179.22223 | J79: 268.5899957 | K79: -0.7680569985 | N79: 5589.236565 | O79: 1128.542665 | P79: 0.9491237734 | R79: API 619 standard and ISO 10440, respectively
C80: GEA GRASSO | D80: LT-XF | E80: 6083.57122 | F80: 8560 | G80: 10336.05442 | I80: 7439.401166 | J80: 323.3657333 | K80: -0.7207549799 | N80: 6729.094936 | O80: 1358.695529 | P80: 1.346624402 | R80: API 619 standard and ISO 10440, respectively
B81: 2950 | C81: Frick | D81: SGC1913 | E81: 592.7217754 | F81: 834 | G81: 1007.040816 | I81: 724.8201603 | J81: 31.50549317 | K81: -0.9727931838 | N81: 655.6150907 | O81: 132.3775784 | P81: -0.7713686038
C82: Frick | D82: SGC.1918 | E82: 790.2957005 | F82: 1112 | G82: 1342.721088 | I82: 966.4268805 | J82: 42.00732423 | K82: -0.9637242451 | N82: 874.1534543 | O82: 176.5034379 | P82: -0.6951581384
C83: Frick | D83: SGC.2313 | E83: 1043.304036 | F83: 1468 | G83: 1772.585034 | I83: =F83*$I$18/$F$18*$B$13 -> 1275.822536 | J83: =I83*$B$10*1000/3600 -> 55.4557122 | K83: =(J83-$B$6)/$B$6 -> -0.9521107839 | L83: =J83*8.314*$B$9/4*LN($B$11/$B$8)/$B$14/1000 ->  | N83: =F83*$N$18/$F$18*$C$13 -> 1154.008337 | O83: =N83*$C$10*1000/3600 -> 233.0099342 | P83: =(O83-$C$6)/$C$6 -> -0.5975648805 | Q83: =O83*8.314*$C$9/4*LN($C$11/$C$8)/$C$14/1000 -> 
C84: Frick | D84: SGC.2317 | E84: 1313.369114 | F84: 1848 | G84: 2231.428571 | I84: 1606.076327 | J84: 69.81073307 | K84: -0.9397143929 | N84: 1452.729841 | O84: 293.3258572 | P84: -0.4933923019
C85: Frick | D85: SGC.2321 | E85: 1622.522558 | F85: 2283 | G85: 2756.683673 | I85: 1984.130007 | J85: 86.24345433 | K85: -0.9255237873 | N85: 1794.687353 | O85: 362.3717164 | P85: -0.3741421133
C86: Frick | D86: SGC.2813 | E86: 1869.134615 | F86: 2630 | G86: 3175.680272 | I86: 2285.703863 | J86: 99.35185497 | K86: -0.9142039249 | N86: 2067.467252 | O86: 417.4496777 | P86: -0.2790161007
C87: Frick | D87: SGC.2817 | E87: 2353.83036 | F87: 3312 | G87: 3999.183673 | I87: 2878.422507 | J87: 125.1153398 | K87: -0.8919556651 | N87: 2603.593741 | O87: 525.7008869 | P87: -0.09205373595
C88: Frick | D88: SGC.2821 | E88: 2832.129826 | F88: 3985 | G88: 4811.819728 | I88: 3463.319351 | J88: 150.5388373 | K88: -0.8700010041 | N88: 3132.645248 | O88: 632.5235611 | P88: 0.09244138353
C89: Frick | D89: SGC.2824 | E89: 3198.849773 | F89: 4501 | G89: 5434.880952 | I89: 3911.769235 | J89: 170.0314446 | K89: -0.8531680099 | N89: 3538.277606 | O89: 714.4262355 | P89: 0.2338967797
C90: Frick | D90: SGCH/B.3511 | E90: 2928.073998 | F90: 4120 | G90: 4974.829932 | I90: 3580.646356 | J90: 155.6386473 | K90: -0.865597023 | N90: 3238.769992 | O90: 653.9515863 | P90: 0.1294500628
C91: Frick | D91: SGCH/B.3515 | E91: 3992.698962 | F91: 5618 | G91: 6783.639456 | I91: 4882.54156 | J91: 212.2276506 | K91: -0.8167291445 | N91: 4416.361606 | O91: 891.7233039 | P91: 0.5401093332
C92: Frick | D92: SGCH/B.3519 | E92: 5081.487643 | F92: 7150 | G92: 8633.503401 | I92: 6213.985787 | J92: 270.1010506 | K92: -0.7667521152 | N92: 5620.680933 | O92: 1134.891709 | P92: 0.960089308
C93: Frick | D93: SGCB.3524 | E93: 6419.731172 | F93: 9033 | G93: 10907.19388 | I93: 7850.480226 | J93: 341.2339566 | K93: -0.7053247352 | N93: 7100.924598 | O93: 1433.77298 | P93: 1.476291849 | U93: =O93*3.6 -> 5161.58273
C94: Aerzen | D94: VMY236H (DP<20 b) | E94: 496.7776031 | F94: 699 | G94: 844.0306122 | I94: 607.493156 | J94: 26.40568313 | K94: -0.9771971648 | N94: 549.4903458 | O94: 110.9495531 | P94: -0.808377283 | R94: Attention , Delta P max spécifié ! | U94: =O94*3.6 -> 399.4183912
C95: Aerzen | D95: VMY236M (DP<16 b) | E95: 653.8417666 | F95: 920 | G95: 1110.884354 | I95: 799.5618076 | J95: 34.75426105 | K95: -0.9699876848 | N95: 723.2204837 | O95: 146.0280241 | P95: -0.7477927044 | R95: Attention , Delta P max spécifié ! | U95: 525.7008869
C96: Aerzen | D96: VMY236B (DP<8 b) | E96: 867.7617359 | F96: 1221 | G96: 1474.336735 | I96: 1061.157573 | J96: 46.12494864 | K96: -0.9601684381 | N96: 959.8393594 | O96: 193.8045842 | P96: -0.6652770566 | R96: Attention , Delta P max spécifié ! | U96: 697.6965031
C97: Aerzen | D97: VMY336H (DP<20 b) | E97: 981.4733475 | F97: 1381 | G97: 1667.534014 | I97: 1200.2118 | J97: 52.16916795 | K97: -0.9549489051 | N97: 1085.616835 | O97: 219.2007623 | P97: -0.6214149183 | R97: Attention , Delta P max spécifié ! | U97: 789.1227443
C98: Aerzen | D98: VMY336M (DP<16 b) | E98: 1285.651908 | F98: 1809 | G98: 2184.336735 | I98: 1572.181859 | J98: 68.33745461 | K98: -0.940986654 | N98: 1422.071582 | O98: 287.1355388 | P98: -0.5040836982 | R98: Attention , Delta P max spécifié ! | U98: 1033.68794
C99: Aerzen | D99: VMY336B (DP<8 b) | E99: 1713.491847 | F99: 2411 | G99: 2911.241497 | I99: 2095.373389 | J99: 91.07882978 | K99: -0.9213481608 | N99: 1895.309333 | O99: 382.6886589 | P99: -0.3390524026 | R99: Attention , Delta P max spécifié ! | U99: 1377.679172
C100: Aerzen | D100: VMY436H (DP<20 b) | E100: 1924.569026 | F100: 2708 | G100: 3269.863946 | I100: 2353.492799 | J100: 102.2984119 | K100: -0.9116594025 | N100: 2128.783772 | O100: 429.8303145 | P100: -0.2576333083 | R100: Attention , Delta P max spécifié ! | U100: 1547.389132
C101: Aerzen | D101: VMY436M (DP<16 b) | E101: =F101/1.699011*$E$18/$F$18 -> 2528.661963 | F101: 3558 | G101: 4296.22449 | I101: 3092.218382 | J101: 134.408327 | K101: -0.883930633 | N101: 2796.97661 | O101: 564.7475107 | P101: -0.02461569822 | R101: Attention , Delta P max spécifié ! | U101: 2033.091039 | Y101: DATA AERZEN
C102: Aerzen | D102: VMY436B (DP<8 b) | E102: 3363.73161 | F102: 4733 | G102: 5715.017007 | I102: 4113.397864 | J102: 178.7955626 | K102: -0.8455996869 | N102: 3720.654945 | O102: 751.2506937 | P102: 0.2974968804 | R102: Attention , Delta P max spécifié ! | U102: 2704.502497 | Y102: 298 | Z102: kg/h | AA102: =Y102/3.6 -> 82.77777778 | AB102: =AA102*2 -> 165.5555556
C103: Aerzen | D103: VMY536H (DP<20 b) | E103: 4050.265465 | F103: 5699 | G103: 6881.445578 | I103: 4952.937762 | J103: 215.2875367 | K103: -0.8140867559 | N103: 4480.036453 | O103: 904.5801191 | P103: 0.5623145407 | R103: Attention , Delta P max spécifié ! | U103: 3256.488429 | Y103: 614 | Z103: kg/h | AA103: =Y103/3.6 -> 170.5555556 | AB103: 341.1111111
C104: Aerzen | D104: VMY536M (DP<16 b) | E104: 5301.093193 | F104: 7459 | G104: 9006.615646 | I104: 6482.534264 | J104: 281.7739491 | K104: -0.7566718919 | N104: 5863.588683 | O104: 1183.938078 | P104: 1.044798063 | R104: Attention , Delta P max spécifié ! | U104: 4262.177082 | X104: 436H | Y104: 1303 | Z104: kg/h | AA104: 361.9444444 | AB104: 723.8888889
C105: Aerzen | D105: VMY536B (DP<8 b) | E105: 7062.201777 | F105: 9937 | G105: 11998.7585 | I105: 8636.136611 | J105: 375.3837957 | K105: -0.6758343733 | N105: 7811.567334 | O105: 1577.261387 | P105: 1.724112931 | R105: Attention , Delta P max spécifié ! | U105: 5678.140992 | X105: 536H | Y105: 2742 | Z105: kg/h | AA105: 761.6666667 | AB105: =AA105*2 -> 1523.333333
B106: 1637 | C106: Kobelco | D106: KS50LVS | F106: 10360
U108: =1180*3.6 -> 4248
O110: =300*3.6 -> 1080

Sheet Howden
D7: FRIB
L8: 1.06688
B10: From LCLSII | F10: Displ @ 3600rpm | G10: Rotation | H10: Tin | I10: Pin | J10: Pout | K10: Rho_in | L10: gamma | M10: Pr | N10: Vi | O10: Vi ideal | P10: Abs(Vi-Vi_ideal) | Q10: Vol_% | R10: Iso_% | S10: Nm3/h | T10: A_m3/h | U10: kg/h | V10: g/s
B11: =-0.0017159531619*M11^5 + 0.046038451003*M11^4 - 0.48381286272*M11^3 + 2.4923280657*M11^2 - 6.3235716851*M11 + 7.4591200978 -> 1.168548253 | C11: 1 | D11: 321/220 22 | E11: CASE A | F11: 7662 | G11: 3550 | H11: =34.85+273 -> 307.85 | I11: 1.013 | J11: =3*1.013 -> 3.039 | K11: =1.27581621531631*I11*273.15/(H11)*4/28.958600656 -> 0.1583952046 | L11: =B11 -> 1.168548253 | M11: =J11/I11 -> 3 | N11: 2.2 | O11: =M11^1/(L11) -> 2.567288079 | P11: =ABS(N11-O11) -> 0.3672880787 | Q11: =T11/(C11*G11/3600*F11) -> 0.9024304195 | R11: =(V11*8.314*H11/4*LN(J11/I11)/1000)/X11 -> 0.503316156 | S11: =V11*3600/1000/0.17625 -> 6127.659574 | T11: =V11/K11*3.6 -> 6818.388237 | U11: 1080 | V11: =U11/3.6 -> 300 | W11: =V11*8.314*H11/4*LN(J11/I11)/1000 -> 210.8894694 | X11: =Y11*C11 -> 419 | Y11: 419 | Z11: each | AA11: =J11-I11 -> 2.026
B12: =-0.0017159531619*M12^5 + 0.046038451003*M12^4 - 0.48381286272*M12^3 + 2.4923280657*M12^2 - 6.3235716851*M12 + 7.4591200978 -> 1.143253356 | C12: 1 | D12: 321/220 22 | E12: CASE D | F12: 7662 | G12: 3550 | H12: =34.85+273 -> 307.85 | I12: =1.5*1.013 -> 1.5195 | J12: =4.8*1.013 -> 4.8624 | K12: 0.2375928069 | L12: 1.453918563 | M12: 3.2 | N12: 2.2 | O12: =M12^1/(L12) -> 2.200948582 | P12: =ABS(N12-O12) -> 0.000948581619 | Q12: 0.9018733637 | R12: 0.5849539914 | S12: 9185.815603 | T12: 6814.179356 | U12: 1619 | V12: 449.7222222 | W12: 334.7106739 | X12: 572.2 | Y12: 572.2 | Z12: each | AA12: 3.3429
B13: 1.106499789 | C13: 1 | D13: 321/220 28 | E13: CASE C | F13: 7662 | G13: 3550 | H13: 307.85 | I13: =1.5*1.013 -> 1.5195 | J13: 6.1 | K13: 0.2375928069 | L13: =$L$8 -> 1.06688 | M13: 4.014478447 | N13: 2.8 | O13: =M13^1/(L13) -> 3.76282098 | P13: 0.9628209797 | Q13: 0.597720889 | R13: 0.3861283999 | S13: 6087.943262 | T13: 4516.129987 | U13: 1073 | V13: 298.0555556 | W13: 265.0771465 | X13: 686.5 | Y13: 686.5 | Z13: each | AA13: 4.5805
B14: 1.090190776 | C14: 1 | D14: 321/220 26 | E14: CASE B | F14: 7662 | G14: 3550 | H14: 307.85 | I14: 1.013 | J14: =4.8*1.013 -> 4.8624 | K14: 0.1583952046 | L14: 1.06688 | M14: 4.8 | N14: 2.6 | O14: =M14^1/(L14) -> 4.49910018 | P14: 1.89910018 | Q14: 0.8673359032 | R14: 0.5149491454 | S14: 5889.361702 | T14: 6553.228695 | U14: 1038 | V14: 288.3333333 | W14: 289.4014197 | X14: 562 | Y14: 562 | Z14: each | AA14: 3.8494
B15: 1.092993314 | C15: 1 | D15: 321/220 26 | E15: CASE E | F15: 7662 | G15: 3550 | H15: 307.85 | I15: 1.3 | J15: 6.1 | K15: 0.2032712399 | L15: 1.06688 | M15: 4.692307692 | N15: 2.6 | O15: =M15^1/(L15) -> 4.39815883 | P15: 1.79815883 | Q15: 0.8659796865 | R15: 0.5167546066 | S15: 7546.099291 | T15: 6542.981687 | U15: 1330 | V15: 369.4444444 | W15: 365.4488578 | X15: 707.2 | Y15: 707.2 | Z15: each | AA15: 4.8
B16: 1.134254896 | C16: 1 | D16: 321/193 22 | E16: CASE A | F16: 6312 | G16: 3550 | H16: 307.85 | I16: 1 | J16: 3.3 | K16: 0.1563624922 | L16: 1.06688 | M16: 3.3 | N16: 2.2 | O16: =M16^1/(L16) -> 3.093131374 | P16: 0.8931313737 | Q16: 0.9072673396 | R16: 0.5010163661 | S16: 5009.929078 | T16: 5647.134344 | U16: 883 | V16: 245.2777778 | W16: 187.3801209 | X16: 374 | Y16: 374 | Z16: each | AA16: 2.3
B17: 1.090190776 | C17: 1 | D17: 321/193 26 | E17: CASE B | F17: 6312 | G17: 3550 | H17: 307.85 | I17: 1 | J17: 4.8 | K17: 0.1563624922 | L17: 1.06688 | M17: 4.8 | N17: 2.6 | O17: =M17^1/(L17) -> 4.49910018 | P17: 1.89910018 | Q17: 0.8939100628 | R17: 0.4990985259 | S17: 4936.170213 | T17: 5563.994201 | U17: 870 | V17: 241.6666667 | W17: 242.5618836 | X17: 486 | Y17: 486 | Z17: each | AA17: 3.8
B18: 1.176320248 | C18: 1 | D18: 321/193 34 | E18: CASE C | F18: 6312 | G18: 3550 | H18: 307.85 | I18: 1.05 | J18: 3.1 | K18: 0.1641806168 | L18: 1.06688 | M18: 2.952380952 | N18: 3.4 | O18: =M18^1/(L18) -> 2.767303682 | P18: 0.6326963179 | Q18: 0.8758067939 | R18: 0.2915516919 | S18: 5078.014184 | T18: 5451.313421 | U18: 895 | V18: 248.6111111 | W18: 172.2195844 | X18: 590.7 | Y18: 590.7 | Z18: each | AA18: 2.05
B19: 1.143253356 | C19: 1 | D19: 321/193 22 | E19: CASE D | F19: 6312 | G19: 3550 | H19: 307.85 | I19: 1.5 | J19: 4.8 | K19: 0.2345437383 | L19: 1.453918563 | M19: 3.2 | N19: 2.2 | O19: =M19^1/(L19) -> 2.200948582 | P19: 0.000948581619 | Q19: 0.9069248454 | R19: 0.5464616219 | S19: 7512.056738 | T19: 5645.002546 | U19: 1324 | V19: 367.7777778 | W19: 273.7226264 | X19: 500.9 | Y19: 500.9 | Z19: each | AA19: 3.3
B20: 1.092993314 | C20: 1 | D20: 321/193 26 | E20: CASE E | F20: 6312 | G20: 3550 | H20: 307.85 | I20: 1.3 | J20: 6.1 | K20: 0.2032712399 | L20: 1.06688 | M20: 4.692307692 | N20: 2.6 | O20: =M20^1/(L20) -> 4.39815883 | P20: 1.79815883 | Q20: 0.8836352345 | R20: 0.5014640212 | S20: 6343.262411 | T20: 5500.040245 | U20: 1118 | V20: 310.5555556 | W20: 307.1968594 | X20: 612.6 | Y20: 612.6 | Z20: each | AA20: 4.8
B21: 1 | C21: 1 | D21: 321/193 50 | E21: CASE A | F21: 6312 | G21: 3550 | H21: 307.85 | I21: 1.05 | J21: 20 | K21: 0.1641806168 | L21: 1.06688 | M21: 19.04761905 | N21: 5 | O21: =M21^1/(L21) -> 17.85357214 | P21: 12.85357214 | Q21: 0.7759941761 | R21: 0.3378062055 | S21: 4499.29078 | T21: 4830.046417 | U21: 793 | V21: 220.2777778 | W21: 415.3665103 | X21: 1229.6 | Y21: 1229.6 | Z21: each | AA21: 18.95
B22: 1 | C22: 1 | D22: 321/193 50 | E22: CASE B | F22: 6312 | G22: 3550 | H22: 307.85 | I22: 1.3 | J22: 20 | K22: 0.2032712399 | L22: 1.06688 | M22: 15.38461538 | N22: 5 | O22: =M22^1/(L22) -> 14.42019288 | P22: 9.420192885 | Q22: 0.7793062086 | R22: 0.3653919848 | S22: 5594.326241 | T22: 4850.661611 | U22: 986 | V22: 273.8888889 | W22: 479.028892 | X22: 1311 | Y22: 1311 | Z22: each | AA22: 18.7
B23: 1.012499208 | C23: 1 | D23: 321/193 34 | E23: CASE C | F23: 6312 | G23: 3550 | H23: 307.85 | I23: 2.5 | J23: 20 | K23: 0.3909062306 | L23: 1.06688 | M23: 8 | N23: 3.4 | O23: =M23^1/(L23) -> 7.4985003 | P23: 4.0985003 | Q23: 0.7874628416 | R23: 0.4384866543 | S23: 10870.92199 | T23: 4901.431214 | U23: 1916 | V23: 532.2222222 | W23: 708.1559468 | X23: 1615 | Y23: 1615 | Z23: each | AA23: 17.5
B24: 1.063388523 | C24: 1 | D24: 321/193 32 | E24: CASE D | F24: 6312 | G24: 3550 | H24: 307.85 | I24: 3 | J24: 20 | K24: 0.4690874767 | L24: 1.06688 | M24: 6.666666667 | N24: 3.2 | O24: =M24^1/(L24) -> 6.24875025 | P24: 3.04875025 | Q24: 0.7935592397 | R24: 0.4602812894 | S24: 13146.09929 | T24: 4939.377228 | U24: 2317 | V24: 643.6111111 | W24: 781.2814606 | X24: 1697.4 | Y24: 1697.4 | Z24: each | AA24: 17
B25: 1.136239939 | C25: 1 | D25: 321/193 22 | E25: CASE E | F25: 6312 | G25: 3550 | H25: 307.85 | I25: 5.8 | J25: 19 | K25: 0.9069024549 | L25: 1.06688 | M25: 3.275862069 | N25: 3.2 | O25: =M25^1/(L25) -> 3.070506588 | P25: 0.1294934117 | Q25: 0.8184432204 | R25: 0.5293501759 | S25: 26212.76596 | T25: 5094.263418 | U25: 4620 | V25: 1283.333333 | W25: 974.3748688 | X25: 1840.7 | Y25: 1840.7 | Z25: each | AA25: 13.2
B26: 1.168548253 | C26: 1 | D26: 321/165 22 | E26: CASE A | F26: 5748 | G26: 3550 | H26: 307.85 | I26: 1.1 | J26: 3.3 | K26: 0.1719987414 | L26: 1.06688 | M26: 3 | N26: 2.2 | O26: 2.811937612 | P26: 0.6119376125 | Q26: 0.8882802604 | R26: 0.5091903389 | S26: 4913.475177 | T26: 5034.920562 | U26: 866 | V26: 240.5555556 | W26: 169.1021115 | X26: 332.1 | Y26: 332.1 | Z26: each | AA26: 2.2
B27: 1.340939111 | C27: 1 | D27: 321/165 22 | E27: CASE B | F27: 5748 | G27: 3550 | H27: 307.85 | I27: 2 | J27: 4.8 | K27: 0.3127249844 | L27: 1.06688 | M27: 2.4 | N27: 2.2 | O27: =M27^1/(L27) -> 2.24955009 | P27: 0.04955008998 | Q27: 0.8913574437 | R27: 0.5587682729 | S27: 8964.539007 | T27: 5052.36255 | U27: 1580 | V27: 438.8888889 | W27: 245.8580401 | X27: 440 | Y27: 440 | Z27: each | AA27: 2.8
B28: 1.344566177 | C28: 1 | D28: 321/165 22 | E28: CASE C | F28: 5748 | G28: 3550 | H28: 307.85 | I28: 2.55 | J28: 6.1 | K28: 0.3987243552 | L28: 1.06688 | M28: 2.392156863 | N28: 2.2 | O28: =M28^1/(L28) -> 2.242198619 | P28: 0.0421986191 | Q28: 0.8814018505 | R28: 0.5572156384 | S28: 11302.12766 | T28: 4995.932589 | U28: 1992 | V28: 553.3333333 | W28: 308.8089068 | X28: 554.2 | Y28: 554.2 | Z28: each | AA28: 3.55
B29: 1.487309242 | C29: 1 | D29: 321/165 22 | E29: CASE D | F29: 5748 | G29: 3550 | H29: 307.85 | I29: 2.85 | J29: 6.1 | K29: 0.4456331028 | L29: 1.06688 | M29: 2.140350877 | N29: 2.2 | O29: =M29^1/(L29) -> 2.006177712 | P29: 0.1938222882 | Q29: 0.8824498077 | R29: 0.5484517492 | S29: 12646.80851 | T29: 5001.872585 | U29: 2229 | V29: 619.1666667 | W29: 301.4839265 | X29: 549.7 | Y29: 549.7 | Z29: each | AA29: 3.25
B30: 1.674796728 | C30: 1 | D30: 321/165 22 | E30: CASE E | F30: 5748 | G30: 3550 | H30: 307.85 | I30: 3.2 | J30: 6.1 | K30: 0.5003599751 | L30: 1.06688 | M30: 1.90625 | N30: 2.2 | O30: =M30^1/(L30) -> 1.786752025 | P30: 0.4132479754 | Q30: 0.8836003773 | R30: 0.528033909 | S30: 14218.43972 | T30: 5008.394206 | U30: 2506 | V30: 696.1111111 | W30: 287.3560533 | X30: 544.2 | Y30: 544.2 | Z30: each | AA30: 2.9
P31: =P12+P19+P27+P28+P29+P30+P25 -> 0.8302095476
B37: 1.134254896 | C37: 1 | D37: 321/193 22 | E37: CASE A | F37: 6312 | G37: 3550 | H37: =34.85+273 -> 307.85 | I37: 1 | J37: 3.3 | K37: =1.27581621531631*I37*273.15/(H37)*4/28.958600656 -> 0.1563624922 | L37: 1.667 | M37: =J37/I37 -> 3.3 | N37: 2.2 | O37: =M37^1/(L37) -> 1.979604079 | P37: =N37-O37 -> 0.2203959208 | Q37: =T37/(C37*G37/3600*F37) -> 0.9072673396 | R37: =(V37*8.314*H37/4*LN(J37/I37)/1000)/X37 -> 0.5010163661 | S37: =V37*3600/1000/0.17625 -> 5009.929078 | T37: =V37/K37*3.6 -> 5647.134344 | U37: 883 | V37: =U37/3.6 -> 245.2777778 | W37: =V37*8.314*H37/4*LN(J37/I37)/1000 -> 187.3801209 | X37: =Y37*C37 -> 374 | Y37: 374 | Z37: each | AA37: =J37-I37 -> 2.3
B38: 1.168548253 | C38: 1 | D38: 321/220 22 | E38: CASE A | F38: 7662 | G38: 3550 | H38: 307.85 | I38: 1.013 | J38: =3*1.013 -> 3.039 | K38: 0.1583952046 | L38: 1.667 | M38: 3 | N38: 2.2 | O38: 1.799640072 | P38: 0.400359928 | Q38: 0.9024304195 | R38: 0.503316156 | S38: 6127.659574 | T38: 6818.388237 | U38: 1080 | V38: 300 | W38: 210.8894694 | X38: 419 | Y38: 419 | Z38: each | AA38: 2.026
B39: 1.168548253 | C39: 1 | D39: 321/165 22 | E39: CASE A | F39: 5748 | G39: 3550 | H39: 307.85 | I39: 1.1 | J39: 3.3 | K39: 0.1719987414 | L39: 1.667 | M39: 3 | N39: 2.2 | O39: 1.799640072 | P39: 0.400359928 | Q39: 0.8882802604 | R39: 0.5091903389 | S39: 4913.475177 | T39: 5034.920562 | U39: 866 | V39: 240.5555556 | W39: 169.1021115 | X39: 332.1 | Y39: 332.1 | Z39: each | AA39: 2.2
B40: 1.143253356 | C40: 1 | D40: 321/193 22 | E40: CASE D | F40: 6312 | G40: 3550 | H40: 307.85 | I40: 1.5 | J40: 4.8 | K40: 0.2345437383 | L40: 1.667 | M40: 3.2 | N40: 2.2 | O40: 1.919616077 | P40: 0.2803839232 | Q40: 0.9069248454 | R40: 0.5464616219 | S40: 7512.056738 | T40: 5645.002546 | U40: 1324 | V40: 367.7777778 | W40: 273.7226264 | X40: 500.9 | Y40: 500.9 | Z40: each | AA40: 3.3
B41: 1.143253356 | C41: 1 | D41: 321/220 22 | E41: CASE D | F41: 7662 | G41: 3550 | H41: 307.85 | I41: =1.5*1.013 -> 1.5195 | J41: =4.8*1.013 -> 4.8624 | K41: 0.2375928069 | L41: 1.667 | M41: 3.2 | N41: 2.2 | O41: 1.919616077 | P41: 0.2803839232 | Q41: 0.9018733637 | R41: 0.5849539914 | S41: 9185.815603 | T41: 6814.179356 | U41: 1619 | V41: 449.7222222 | W41: 334.7106739 | X41: 572.2 | Y41: 572.2 | Z41: each | AA41: 3.3429
B42: 1.340939111 | C42: 1 | D42: 321/165 22 | E42: CASE B | F42: 5748 | G42: 3550 | H42: 307.85 | I42: 2 | J42: 4.8 | K42: 0.3127249844 | L42: 1.667 | M42: 2.4 | N42: 2.2 | O42: 1.439712058 | P42: 0.7602879424 | Q42: 0.8913574437 | R42: 0.5587682729 | S42: 8964.539007 | T42: 5052.36255 | U42: 1580 | V42: 438.8888889 | W42: 245.8580401 | X42: 440 | Y42: 440 | Z42: each | AA42: 2.8
B43: 1.344566177 | C43: 1 | D43: 321/165 22 | E43: CASE C | F43: 5748 | G43: 3550 | H43: 307.85 | I43: 2.55 | J43: 6.1 | K43: 0.3987243552 | L43: 1.667 | M43: 2.392156863 | N43: 2.2 | O43: 1.435007116 | P43: 0.7649928838 | Q43: 0.8814018505 | R43: 0.5572156384 | S43: 11302.12766 | T43: 4995.932589 | U43: 1992 | V43: 553.3333333 | W43: 308.8089068 | X43: 554.2 | Y43: 554.2 | Z43: each | AA43: 3.55
B44: 1.487309242 | C44: 1 | D44: 321/165 22 | E44: CASE D | F44: 5748 | G44: 3550 | H44: 307.85 | I44: 2.85 | J44: 6.1 | K44: 0.4456331028 | L44: 1.667 | M44: 2.140350877 | N44: 2.2 | O44: 1.283953736 | P44: 0.9160462644 | Q44: 0.8824498077 | R44: 0.5484517492 | S44: 12646.80851 | T44: 5001.872585 | U44: 2229 | V44: 619.1666667 | W44: 301.4839265 | X44: 549.7 | Y44: 549.7 | Z44: each | AA44: 3.25
B45: 1.674796728 | C45: 1 | D45: 321/165 22 | E45: CASE E | F45: 5748 | G45: 3550 | H45: 307.85 | I45: 3.2 | J45: 6.1 | K45: 0.5003599751 | L45: 1.667 | M45: 1.90625 | N45: 2.2 | O45: 1.143521296 | P45: 1.056478704 | Q45: 0.8836003773 | R45: 0.528033909 | S45: 14218.43972 | T45: 5008.394206 | U45: 2506 | V45: 696.1111111 | W45: 287.3560533 | X45: 544.2 | Y45: 544.2 | Z45: each | AA45: 2.9
B73: HOWDEN COMPRESSOR SPECIFICATION | C73: *SWEPT VOLUME 50Hz | D73: *SWEPT VOLUME 60Hz | F73: SUCTION PORT Ø | G73: DISCHARGE PORT Ø | H73: A | I73: B | J73: C | K73: D | L73: WEIGHT APPROX.
C74: m3/hr | D74: m3/hr | F74: mm | G74: mm | H74: mm | I74: mm | J74: mm | K74: mm | L74: kg | M74: =660/390 -> 1.692307692
B75: WRV 163/1.45 | C75: 550 | D75: =C75*60/50 -> 660 | F75: 125 | G75: 75 | H75: 1063 | I75: 490 | J75: 248 | K75: 250 | L75: 470
B76: WRV 163/1.80 | C76: 680 | D76: 820 | F76: 125 | G76: 75 | H76: 1120 | I76: 490 | J76: 248 | K76: 250 | L76: 495
B77: WRV 204/1.10 | C77: 815 | D77: 975 | F77: 150 | G77: 100 | H77: 1201 | I77: 640 | J77: 310 | K77: 315 | L77: 760
B78: WRV 204/1.45 | C78: 1095 | D78: 1315 | F78: 200 | G78: 125 | H78: 1273 | I78: 640 | J78: 310 | K78: 315 | L78: 850
B79: WRV 204/1.65 | C79: 1220 | D79: 1464 | F79: 200 | G79: 125 | H79: 1314 | I79: 640 | J79: 310 | K79: 315 | L79: 887
B80: WRV 204/1.93 | C80: 1340 | D80: 1608 | F80: 200 | G80: 125 | H80: 1370 | I80: 640 | J80: 310 | K80: 315 | L80: 925
B81: WRVi 255/1.10 | C81: 1590 | D81: 1908 | F81: 200 | G81: 150 | H81: 1493 | I81: 692 | J81: 349 | K81: 362 | L81: 1200
B82: WRVi 255/1.30 | C82: 1755 | D82: 2106 | F82: 200 | G82: 150 | H82: 1544 | I82: 692 | J82: 349 | K82: 362 | L82: 1270
B83: WRVi 255/1.45 | C83: 2150 | D83: 2580 | F83: 255 | G83: 200 | H83: 1583 | I83: 692 | J83: 349 | K83: 362 | L83: 1325
B84: WRVi 255/1.65 | C84: 2395 | D84: 2874 | F84: 255 | G84: 200 | H84: 1633 | I84: 692 | J84: 349 | K84: 362 | L84: 1422
B85: WRVi 255/1.93 | C85: 2630 | D85: 3156 | F85: 255 | G85: 200 | H85: 1705 | I85: 692 | J85: 349 | K85: 362 | L85: 1540
B86: WRV 255/2.20 | C86: 3190 | D86: 3828 | F86: 255 | G86: 200 | H86: 1815 | I86: 692 | J86: 349 | K86: 362 | L86: 1650
B87: WRVi 321/1.32 | C87: 3830 | D87: 4596 | F87: 255 | G87: 200 | H87: 2005 | I87: 940 | J87: 471 | K87: 500 | L87: 2925
B88: WRVi 321/1.65 | C88: 4790 | D88: 5748 | F88: 300 | G88: 255 | H88: 2110 | I88: 940 | J88: 471 | K88: 500 | L88: 3150
B89: WRVi 321/1.93 | C89: 5260 | D89: 6312 | F89: 300 | G89: 255 | H89: 2200 | I89: 940 | J89: 471 | K89: 500 | L89: 3260
B90: WRV 321/2.20 | C90: 6385 | D90: 7662 | F90: 350 | G90: 300 | H90: 2345 | I90: 940 | J90: 471 | K90: 500 | L90: 3500
B91: WRVi 365/165 | C91: 6771 | D91: 8125.2 | F91: 350 | G91: 300 | H91: 2418 | I91: 1125 | J91: 565 | K91: 590 | L91: 5500
B92: WRVi 365/193 | C92: 7920 | D92: 9504 | F92: 350 | G92: 300 | H92: 2520 | I92: 1125 | J92: 565 | K92: 590 | L92: 6100
B93: WRV 510/1.32 | C93: 7660 | D93: 9192 | F93: 350 | G93: 255 | H93: 2920 | I93: 1560 | J93: 750 | K93: 750 | L93: 10800
B94: WRV 510/1.65 | C94: 9575 | D94: 11490 | F94: 400 | G94: 300 | H94: 3090 | I94: 1560 | J94: 750 | K94: 750 | L94: 11500
B95: WRV 510/1.93 | C95: 10510 | D95: =C95*60/50 -> 12612 | F95: 400 | G95: 300 | H95: 3233 | I95: 1560 | J95: 750 | K95: 750 | L95: 11800
B97: XRV 127
B98: XRV 127-R1 | C98: 293 | D98: 352 | F98: 100 | G98: 50 | H98: 850 | I98: 390 | J98: 299 | K98: 201 | L98: 250
B99: XRV 127-R3 | C99: 397 | D99: 476 | F99: 100 | G99: 50 | H99: 900 | I99: 390 | J99: 209 | K99: 291 | L99: 250
B100: XRV 127-R4 | C100: 489 | D100: 586 | F100: 100 | G100: 50 | H100: 900 | I100: 390 | J100: 209 | K100: 291 | L100: 250
B101: XRV 127-R5 | C101: 576 | D101: - | F101: 100 | G101: 50 | H101: 900 | I101: 390 | J101: 209 | K101: 291 | L101: 250
B102: XRV 163 & XRV 204 Compressors
B103: XRV 163/1.65 | C103: 593 | D103: 712 | F103: 125 | G103: 76 | H103: 1070 | I103: 430 | J103: 200 | K103: 250 | L103: 364
B104: XRV 163/1.93 | C104: 710 | D104: 852 | F104: 125 | G104: 76 | H104: 1116 | I104: 430 | J104: 200 | K104: 250 | L104: 388
B105: XRV 204/1.10 | C105: 812 | D105: 974 | F105: 150 | G105: 100 | H105: 1178 | I105: 516 | J105: 240 | K105: 305 | L105: 636
B106: XRV 204/1.45 | C106: 1070 | D106: 1284 | F106: 150 | G106: 100 | H106: 1249 | I106: 516 | J106: 240 | K106: 305 | L106: 660
B107: XRV 204/1.65 | C107: 1219 | D107: 1463 | F107: 150 | G107: 100 | H107: 1255 | I107: 516 | J107: 240 | K107: 305 | L107: 690
B108: XRV 204/1.93 | C108: 1348 | D108: 1618 | F108: 150 | G108: 100 | H108: 1312 | I108: 516 | J108: 240 | K108: 305 | L108: 736
B111: The company operates a policy of continuous product development and reserves the right to alter the data provided without notice.
B112: *Swept volume at 3000 rpm except WRV510 range which is measured at 1500rpm **Swept volume at 3600 rpm except WRV510 which is measured at 1800 rpm.
B114: L/D : Lentgh over diameter is around 1,4 to 2,1
K159: WRV 255 | L159: 6 L/D ratios
C160: WLVi 321/220 22 | F160: 1 | G160: atm | K160: WRV 321 | L160: 4 L/D ratios
F161: 3.3 | G161: atm | K161: WRV 365 | L161: 2 L/D ratios
K162: WRV 510 | L162: 3 L/D ratios
D179: Volumetric eff. | E179: =extrapol_(E178,Vol_ratio,Vol_LPL_MP)/100 -> 0.84 | F179: =extrapol_(F178,Vol_ratio,Vol_MP_HP)/100 -> 0
D180: Isotherm eff. | E180: =extrapol_(E178,IsoT_ratio,IsoT_LPL_MP)/100 ->  | F180: =extrapol_(F178,IsoT_ratio,IsoT_MP_HP)/100 -> 

Sheet Aerzen
C3: air molar mass | D3: 28.95860066
C4: air density | D4: 1.275816215
C5: gamma | D5: 1
D7: =D8/60 -> 49.16666667 | E7: Hz
D8: 2950 | E8: RPm
D10: Displacement @ 2950 RPM m3/h | E10: Rotation | F10: Tin | G10: Pin | H10: Pout | J10: Rho_in | L10: Pr | M10: Vi_ideal | O10: Vol_% | P10: Iso_% | Q10: Nm3/h | R10: A_m3/h
B12: 1 | C12: VMY236H (DP<20 b) | D12: 699 | E12: 2950 | F12: 298 | G12: 1.05 | H12: 4 | J12: =1.27581621531631*G12*273.15/(F12)*4/28.958600656 -> 0.1696073923 | L12: =H12/G12 -> 3.80952381 | M12: =L12^1/($D$5) -> 3.80952381 | O12: =IF(G12>3,extrapol_(L12,Vol_ratio,Vol_MP_HP)/100,extrapol_(L12,Vol_ratio,Vol_LPL_MP)/100) -> 0.8705238095 | P12: =IF(G12>3,extrapol_(L12,IsoT_ratio,IsoT_MP_HP)/100,extrapol_(L12,IsoT_ratio,IsoT_LPL_MP)/100) ->  | Q12: =T12*3600/1000/0.17625 -> 585.5628028 | R12: =E12/$D$8*O12*D12 -> 608.4961429 | T12: =R12*J12*1000/3600*B12 -> 28.66817889 | V12: =T12*8.314*F12/4*LN(H12/G12)/P12/1000 -> 
B13: 1 | C13: VMY236M (DP<16 b) | D13: 920 | E13: 2950 | F13: 298 | G13: 1.05 | H13: 4 | J13: =$D$4*G13*273.15/(F13)*4/$D$3 -> 0.1696073923 | L13: =H13/G13 -> 3.80952381 | M13: =L13^1/($D$5) -> 3.80952381 | O13: =IF(G13>3,extrapol_(L13,Vol_ratio,Vol_MP_HP)/100,extrapol_(L13,Vol_ratio,Vol_LPL_MP)/100) -> 0.8705238095 | P13: =IF(G13>3,extrapol_(L13,IsoT_ratio,IsoT_MP_HP)/100,extrapol_(L13,IsoT_ratio,IsoT_LPL_MP)/100) ->  | Q13: =T13*3600/1000/0.17625 -> 770.6978234 | R13: =E13/$D$8*O13*D13 -> 800.8819048 | T13: 37.73208094
B14: 1 | C14: VMY236B (DP<8 b) | D14: 1221 | E14: 2950 | F14: 298 | G14: 1.05 | H14: 4 | J14: 0.1696073923 | L14: 3.80952381 | M14: 3.80952381 | O14: =IF(G14>3,extrapol_(L14,Vol_ratio,Vol_MP_HP)/100,extrapol_(L14,Vol_ratio,Vol_LPL_MP)/100) -> 0.8705238095 | P14: =IF(G14>3,extrapol_(L14,IsoT_ratio,IsoT_MP_HP)/100,extrapol_(L14,IsoT_ratio,IsoT_LPL_MP)/100) ->  | Q14: 1022.850046 | R14: 1062.909571 | T14: 50.0770335 | Z14: 1.05 | AA14: 1.05 | AB14: 1.05 | AD14: =Z24 -> 2.5122676 | AE14: =AD14 -> 2.5122676 | AF14: =AE14 -> 2.5122676 | AH14: =AA24 -> 3.38207876 | AI14: =AH14 -> 3.38207876 | AJ14: =AI14 -> 3.38207876 | AL14: =AB21 -> 5.755581746 | AM14: =AL14 -> 5.755581746 | AN14: =AM14 -> 5.755581746
B15: 1 | C15: VMY336H (DP<20 b) | D15: 1381 | E15: 2950 | F15: 298 | G15: 1.05 | H15: 4 | J15: 0.1696073923 | L15: 3.80952381 | M15: 3.80952381 | O15: =IF(G15>3,extrapol_(L15,Vol_ratio,Vol_MP_HP)/100,extrapol_(L15,Vol_ratio,Vol_LPL_MP)/100) -> 0.8705238095 | P15: =IF(G15>3,extrapol_(L15,IsoT_ratio,IsoT_MP_HP)/100,extrapol_(L15,IsoT_ratio,IsoT_LPL_MP)/100) ->  | Q15: 1156.88445 | R15: 1202.193381 | T15: 56.63913454 | Z15: 30 | AA15: 30 | AB15: 30 | AD15: 30 | AE15: 30 | AF15: 30 | AH15: 30 | AI15: 30 | AJ15: 30 | AL15: 30 | AM15: 30 | AN15: 30
B16: 1 | C16: VMY336M (DP<16 b) | D16: 1809 | E16: 2950 | F16: 298 | G16: 1.05 | H16: 4 | J16: 0.1696073923 | L16: 3.80952381 | M16: 3.80952381 | O16: =IF(G16>3,extrapol_(L16,Vol_ratio,Vol_MP_HP)/100,extrapol_(L16,Vol_ratio,Vol_LPL_MP)/100) -> 0.8705238095 | P16: =IF(G16>3,extrapol_(L16,IsoT_ratio,IsoT_MP_HP)/100,extrapol_(L16,IsoT_ratio,IsoT_LPL_MP)/100) ->  | Q16: 1515.426481 | R16: 1574.777571 | T16: 74.1927548 | Z16: =1.27581621531631*Z14*273.15/(273.15+Z15)*4/28.958600656 -> 0.1667260528 | AA16: =1.27581621531631*AA14*273.15/(273.15+AA15)*4/28.958600656 -> 0.1667260528 | AB16: 0.1667260528 | AD16: =1.27581621531631*AD14*273.15/(273.15+AD15)*4/28.958600656 -> 0.3989147243 | AE16: 0.3989147243 | AF16: 0.3989147243 | AH16: =1.27581621531631*AH14*273.15/(273.15+AH15)*4/28.958600656 -> 0.5370291826 | AI16: 0.5370291826 | AJ16: 0.5370291826 | AL16: =1.27581621531631*AL14*273.15/(273.15+AL15)*4/28.958600656 -> 0.9139099293 | AM16: 0.9139099293 | AN16: 0.9139099293
B17: 1 | C17: VMY336B (DP<8 b) | D17: 2411 | E17: 2950 | F17: 298 | G17: 1.05 | H17: 4 | J17: 0.1696073923 | L17: 3.80952381 | M17: 3.80952381 | O17: =IF(G17>3,extrapol_(L17,Vol_ratio,Vol_MP_HP)/100,extrapol_(L17,Vol_ratio,Vol_LPL_MP)/100) -> 0.8705238095 | P17: =IF(G17>3,extrapol_(L17,IsoT_ratio,IsoT_MP_HP)/100,extrapol_(L17,IsoT_ratio,IsoT_LPL_MP)/100) ->  | Q17: 2019.730926 | R17: 2098.832905 | T17: 98.88265993 | Z17: 25 | AA17: 25 | AB17: 25 | AD17: 25 | AE17: 25 | AF17: 25 | AH17: 25 | AI17: 25 | AJ17: 25 | AL17: 25 | AM17: 25 | AN17: 25
B18: 1 | C18: VMY436H (DP<20 b) | D18: 2708 | E18: 2950 | F18: 298 | G18: 1.05 | H18: 4 | J18: 0.1696073923 | L18: 3.80952381 | M18: 3.80952381 | O18: =IF(G18>3,extrapol_(L18,Vol_ratio,Vol_MP_HP)/100,extrapol_(L18,Vol_ratio,Vol_LPL_MP)/100) -> 0.8705238095 | P18: =IF(G18>3,extrapol_(L18,IsoT_ratio,IsoT_MP_HP)/100,extrapol_(L18,IsoT_ratio,IsoT_LPL_MP)/100) ->  | Q18: 2268.532289 | R18: 2357.378476 | T18: 111.06356 | Z18: =Z14-Z17/1000 -> 1.025 | AA18: =AA14-AA17/1000 -> 1.025 | AB18: =AB14-AB17/1000 -> 1.025 | AD18: =AD14-AD17/1000 -> 2.4872676 | AE18: =AE14-AE17/1000 -> 2.4872676 | AF18: =AF14-AF17/1000 -> 2.4872676 | AH18: =AH14-AH17/1000 -> 3.35707876 | AI18: =AI14-AI17/1000 -> 3.35707876 | AJ18: =AJ14-AJ17/1000 -> 3.35707876 | AL18: =AL14-AL17/1000 -> 5.730581746 | AM18: =AM14-AM17/1000 -> 5.730581746 | AN18: =AN14-AN17/1000 -> 5.730581746
B19: 1 | C19: VMY436M (DP<16 b) | D19: 3558 | E19: 2950 | F19: 298 | G19: 1.05 | H19: 4 | J19: 0.1696073923 | L19: 3.80952381 | M19: 3.80952381 | O19: =IF(G19>3,extrapol_(L19,Vol_ratio,Vol_MP_HP)/100,extrapol_(L19,Vol_ratio,Vol_LPL_MP)/100) -> 0.8705238095 | P19: =IF(G19>3,extrapol_(L19,IsoT_ratio,IsoT_MP_HP)/100,extrapol_(L19,IsoT_ratio,IsoT_LPL_MP)/100) ->  | Q19: 2980.59006 | R19: 3097.323714 | T19: 145.9247217 | Z19: 1.1 | AA19: 1.1 | AB19: 1.1 | AD19: 1.1 | AE19: 1.1 | AF19: 1.1 | AH19: 1.1 | AI19: 1.1 | AJ19: 1.1 | AL19: 1.1 | AM19: 1.1 | AN19: 1.1
B20: 1 | C20: VMY436B (DP<8 b) | D20: 4733 | E20: 2950 | F20: 298 | G20: 1.05 | H20: 4 | J20: 0.1696073923 | L20: 3.80952381 | M20: 3.80952381 | O20: =IF(G20>3,extrapol_(L20,Vol_ratio,Vol_MP_HP)/100,extrapol_(L20,Vol_ratio,Vol_LPL_MP)/100) -> 0.8705238095 | P20: =IF(G20>3,extrapol_(L20,IsoT_ratio,IsoT_MP_HP)/100,extrapol_(L20,IsoT_ratio,IsoT_LPL_MP)/100) ->  | Q20: 3964.905215 | R20: 4120.18919 | T20: 194.1151512 | Z20: 2.3 | AA20: 3 | AB20: 4.8 | AD20: 2.3 | AE20: 3 | AF20: 4.8 | AH20: 2.3 | AI20: 3 | AJ20: 4.8 | AL20: 2.3 | AM20: 3 | AN20: 4.8
B21: 1 | C21: VMY536H (DP<20 b) | D21: 5699 | E21: 2950 | F21: 298 | G21: 1.05 | H21: 4 | J21: 0.1696073923 | L21: 3.80952381 | M21: 3.80952381 | O21: =IF(G21>3,extrapol_(L21,Vol_ratio,Vol_MP_HP)/100,extrapol_(L21,Vol_ratio,Vol_LPL_MP)/100) -> 0.8705238095 | P21: =IF(G21>3,extrapol_(L21,IsoT_ratio,IsoT_MP_HP)/100,extrapol_(L21,IsoT_ratio,IsoT_LPL_MP)/100) ->  | Q21: 4774.13793 | R21: 4961.11519 | T21: 233.7338361 | Z21: =Z18*Z20^Z19 -> 2.5622676 | AA21: =AA18*AA20^AA19 -> 3.43207876 | AB21: 5.755581746 | AD21: =AD18*AD20^AD19 -> 6.217605059 | AE21: =AE18*AE20^AE19 -> 8.328291026 | AF21: =AF18*AF20^AF19 -> 13.96650927 | AH21: =AH18*AH20^AH19 -> 8.391935745 | AI21: =AI18*AI20^AI19 -> 11.2407402 | AJ21: =AJ18*AJ20^AJ19 -> 18.85067437 | AL21: =AL18*AL20^AL19 -> 14.32515506 | AM21: =AM18*AM20^AM19 -> 19.18810526 | AN21: =AN18*AN20^AN19 -> 32.17837238
A22: =D22/D21 -> 1.30882611 | B22: 1 | C22: VMY536M (DP<16 b) | D22: 7459 | E22: 2950 | F22: 298 | G22: 1.05 | H22: 4 | J22: 0.1696073923 | L22: 3.80952381 | M22: 3.80952381 | O22: =IF(G22>3,extrapol_(L22,Vol_ratio,Vol_MP_HP)/100,extrapol_(L22,Vol_ratio,Vol_LPL_MP)/100) -> 0.8705238095 | P22: =IF(G22>3,extrapol_(L22,IsoT_ratio,IsoT_MP_HP)/100,extrapol_(L22,IsoT_ratio,IsoT_LPL_MP)/100) ->  | Q22: 6248.516375 | R22: 6493.237095 | T22: 305.9169475 | Z22: =Z21/Z14 -> 2.440254858 | AA22: =AA21/AA14 -> 3.268646438 | AB22: 5.481506424 | AD22: =AD21/AD14 -> 2.474897602 | AE22: 3.31504933 | AF22: 5.559323881 | AH22: =AH21/AH14 -> 2.481295186 | AI22: 3.323618698 | AJ22: 5.573694674 | AL22: =AL21/AL14 -> 2.48891523 | AM22: 3.333825512 | AN22: 5.590811459
B23: 1 | C23: VMY536B (DP<8 b) | D23: 9937 | E23: 2950 | F23: 298 | G23: 1.05 | H23: 4 | J23: 0.1696073923 | L23: 3.80952381 | M23: 3.80952381 | O23: =IF(G23>3,extrapol_(L23,Vol_ratio,Vol_MP_HP)/100,extrapol_(L23,Vol_ratio,Vol_LPL_MP)/100) -> 0.8705238095 | P23: =IF(G23>3,extrapol_(L23,IsoT_ratio,IsoT_MP_HP)/100,extrapol_(L23,IsoT_ratio,IsoT_LPL_MP)/100) ->  | Q23: 8324.374208 | R23: 8650.395095 | T23: 407.5474872 | Z23: 50 | AA23: 50 | AB23: 50 | AD23: 50 | AE23: 50 | AF23: 50 | AH23: 50 | AI23: 50 | AJ23: 50 | AL23: 50 | AM23: 50 | AN23: 50
Z24: =Z21-Z23/1000 -> 2.5122676 | AA24: =AA21-AA23/1000 -> 3.38207876 | AB24: 5.705581746 | AD24: =AD21-AD23/1000 -> 6.167605059 | AE24: =AE21-AE23/1000 -> 8.278291026 | AF24: 13.91650927 | AH24: =AH21-AH23/1000 -> 8.341935745 | AI24: =AI21-AI23/1000 -> 11.1907402 | AJ24: 18.80067437 | AL24: =AL21-AL23/1000 -> 14.27515506 | AM24: =AM21-AM23/1000 -> 19.13810526 | AN24: 32.12837238
Z25: =IF(Z14>3,extrapol_(Z22,Vol_ratio,Vol_MP_HP)/100,extrapol_(Z22,Vol_ratio,Vol_LPL_MP)/100) -> 0.8724025486 | AA25: =IF(AA14>3,extrapol_(AA22,Vol_ratio,Vol_MP_HP)/100,extrapol_(AA22,Vol_ratio,Vol_LPL_MP)/100) -> 0.8734627071 | AB25: =IF(AB14>3,extrapol_(AB22,Vol_ratio,Vol_MP_HP)/100,extrapol_(AB22,Vol_ratio,Vol_LPL_MP)/100) -> 0.8492589101 | AD25: =IF(AD14>3,extrapol_(AD22,Vol_ratio,Vol_MP_HP)/100,extrapol_(AD22,Vol_ratio,Vol_LPL_MP)/100) -> 0.872748976 | AE25: =IF(AE14>3,extrapol_(AE22,Vol_ratio,Vol_MP_HP)/100,extrapol_(AE22,Vol_ratio,Vol_LPL_MP)/100) -> 0.8733699013 | AF25: =IF(AF14>3,extrapol_(AF22,Vol_ratio,Vol_MP_HP)/100,extrapol_(AF22,Vol_ratio,Vol_LPL_MP)/100) -> 0.8481694657 | AH25: =IF(AH14>3,extrapol_(AH22,Vol_ratio,Vol_MP_HP)/100,extrapol_(AH22,Vol_ratio,Vol_LPL_MP)/100) -> 0.7575586224 | AI25: =IF(AI14>3,extrapol_(AI22,Vol_ratio,Vol_MP_HP)/100,extrapol_(AI22,Vol_ratio,Vol_LPL_MP)/100) -> 0.79 | AJ25: =IF(AJ14>3,extrapol_(AJ22,Vol_ratio,Vol_MP_HP)/100,extrapol_(AJ22,Vol_ratio,Vol_LPL_MP)/100) -> 0.7724104426 | AL25: =IF(AL14>3,extrapol_(AL22,Vol_ratio,Vol_MP_HP)/100,extrapol_(AL22,Vol_ratio,Vol_LPL_MP)/100) -> 0.7695525713 | AM25: =IF(AM14>3,extrapol_(AM22,Vol_ratio,Vol_MP_HP)/100,extrapol_(AM22,Vol_ratio,Vol_LPL_MP)/100) -> 0.79 | AN25: =IF(AN14>3,extrapol_(AN22,Vol_ratio,Vol_MP_HP)/100,extrapol_(AN22,Vol_ratio,Vol_LPL_MP)/100) -> 0.7722735083
C26: 5kW@4,5K | E26: Rotation | F26: Tin | G26: Pin | H26: Pout | J26: Rho_in | L26: Pr | M26: Vi_ideal | O26: Vol_% | P26: Iso_% | Q26: Nm3/h | R26: A_m3/h | Z26: =IF(Z14>3,extrapol_(Z22,IsoT_ratio,IsoT_MP_HP)/100,extrapol_(Z22,IsoT_ratio,IsoT_LPL_MP)/100) ->  | AA26: =IF(AA14>3,extrapol_(AA22,IsoT_ratio,IsoT_MP_HP)/100,extrapol_(AA22,IsoT_ratio,IsoT_LPL_MP)/100) ->  | AB26: =IF(AB14>3,extrapol_(AB22,IsoT_ratio,IsoT_MP_HP)/100,extrapol_(AB22,IsoT_ratio,IsoT_LPL_MP)/100) ->  | AD26: =IF(AD14>3,extrapol_(AD22,IsoT_ratio,IsoT_MP_HP)/100,extrapol_(AD22,IsoT_ratio,IsoT_LPL_MP)/100) ->  | AE26: =IF(AE14>3,extrapol_(AE22,IsoT_ratio,IsoT_MP_HP)/100,extrapol_(AE22,IsoT_ratio,IsoT_LPL_MP)/100) ->  | AF26: =IF(AF14>3,extrapol_(AF22,IsoT_ratio,IsoT_MP_HP)/100,extrapol_(AF22,IsoT_ratio,IsoT_LPL_MP)/100) ->  | AH26: =IF(AH14>3,extrapol_(AH22,IsoT_ratio,IsoT_MP_HP)/100,extrapol_(AH22,IsoT_ratio,IsoT_LPL_MP)/100) ->  | AI26: =IF(AI14>3,extrapol_(AI22,IsoT_ratio,IsoT_MP_HP)/100,extrapol_(AI22,IsoT_ratio,IsoT_LPL_MP)/100) ->  | AJ26: =IF(AJ14>3,extrapol_(AJ22,IsoT_ratio,IsoT_MP_HP)/100,extrapol_(AJ22,IsoT_ratio,IsoT_LPL_MP)/100) ->  | AL26: =IF(AL14>3,extrapol_(AL22,IsoT_ratio,IsoT_MP_HP)/100,extrapol_(AL22,IsoT_ratio,IsoT_LPL_MP)/100) ->  | AM26: =IF(AM14>3,extrapol_(AM22,IsoT_ratio,IsoT_MP_HP)/100,extrapol_(AM22,IsoT_ratio,IsoT_LPL_MP)/100) ->  | AN26: =IF(AN14>3,extrapol_(AN22,IsoT_ratio,IsoT_MP_HP)/100,extrapol_(AN22,IsoT_ratio,IsoT_LPL_MP)/100) -> 
C27: LP STAGE (298 g/s)
B28: 1 | C28: VMY536M (DP<16 b) | D28: 7459 | E28: 2790 | F28: 298 | G28: 1.05 | H28: 5 | J28: =$D$4*G28*273.15/(F28)*4/$D$3 -> 0.1696073923 | L28: =H28/G28 -> 4.761904762 | M28: =L28^1/($D$5) -> 4.761904762 | O28: =IF(G28>3,extrapol_(L28,Vol_ratio,Vol_MP_HP)/100,extrapol_(L28,Vol_ratio,Vol_LPL_MP)/100) -> 0.8598095238 | P28: =IF(G28>3,extrapol_(L28,IsoT_ratio,IsoT_MP_HP)/100,extrapol_(L28,IsoT_ratio,IsoT_LPL_MP)/100) ->  | Q28: =T28*3600/1000/0.17625 -> 5836.879089 | R28: =E28/$D$8*O28*D28 -> 6065.478195 | T28: =R28*J28*1000/3600*B28 -> 285.763872 | V28: =T28*8.314*F28/4*LN(H28/G28)/P28/1000 -> 
B29: 1 | C29: VMY536M (DP<16 b) | D29: 7459 | E29: 3600 | F29: 298 | G29: 1.05 | H29: 5 | J29: 0.1696073923 | L29: 4.761904762 | M29: =L29^1/($D$5) -> 4.761904762 | O29: =IF(G29>3,extrapol_(L29,Vol_ratio,Vol_MP_HP)/100,extrapol_(L29,Vol_ratio,Vol_LPL_MP)/100) -> 0.8598095238 | P29: =IF(G29>3,extrapol_(L29,IsoT_ratio,IsoT_MP_HP)/100,extrapol_(L29,IsoT_ratio,IsoT_LPL_MP)/100) ->  | Q29: 7531.456889 | R29: 7826.423477 | T29: =R29*J29*1000/3600*B29 -> 368.7275768 | V29: =T29*8.314*F29/4*LN(H29/G29)/P29/1000 -> 
B30: 1 | C30: VMY536M (DP<16 b) | D30: 7459 | E30: 2950 | F30: 298 | G30: 1.05 | H30: 5 | J30: 0.1696073923 | L30: 4.761904762 | M30: =L30^1/($D$5) -> 4.761904762 | O30: =IF(G30>3,extrapol_(L30,Vol_ratio,Vol_MP_HP)/100,extrapol_(L30,Vol_ratio,Vol_LPL_MP)/100) -> 0.8598095238 | P30: =IF(G30>3,extrapol_(L30,IsoT_ratio,IsoT_MP_HP)/100,extrapol_(L30,IsoT_ratio,IsoT_LPL_MP)/100) ->  | Q30: 6171.610506 | R30: 6413.319238 | T30: =R30*J30*1000/3600*B30 -> 302.1517644 | V30: =T30*8.314*F30/4*LN(H30/G30)/P30/1000 -> 
B31: 1 | C31: VMY536H (DP<20 b) | D31: 5699 | E31: 3600 | F31: 298 | G31: 1.05 | H31: 5 | J31: 0.1696073923 | L31: =H31/G31 -> 4.761904762 | M31: =L31^1/($D$5) -> 4.761904762 | O31: =IF(G31>3,extrapol_(L31,Vol_ratio,Vol_MP_HP)/100,extrapol_(L31,Vol_ratio,Vol_LPL_MP)/100) -> 0.8598095238 | P31: =IF(G31>3,extrapol_(L31,IsoT_ratio,IsoT_MP_HP)/100,extrapol_(L31,IsoT_ratio,IsoT_LPL_MP)/100) ->  | Q31: 5754.36021 | R31: =E31/$D$8*O31*D31 -> 5979.727496 | T31: =R31*J31*1000/3600*B31 -> 281.7238853 | V31: =T31*8.314*F31/4*LN(H31/G31)/P31/1000 ->  | AA31: =Z14 -> 1.05 | AB31: =AD14 -> 2.5122676 | AC31: =AH14 -> 3.38207876 | AD31: =AL14 -> 5.755581746 | AF31: =AA14 -> 1.05 | AG31: =AE14 -> 2.5122676 | AH31: =AI14 -> 3.38207876 | AI31: =AM14 -> 5.755581746 | AK31: =AB14 -> 1.05 | AL31: =AF14 -> 2.5122676 | AM31: =AJ14 -> 3.38207876 | AN31: =AN14 -> 5.755581746
C32: HP STAGE (568 g/s) | AA32: =Z15 -> 30 | AB32: =AD15 -> 30 | AC32: =AH15 -> 30 | AD32: =AL15 -> 30 | AF32: =AA15 -> 30 | AG32: =AE15 -> 30 | AH32: =AI15 -> 30 | AI32: =AM15 -> 30 | AK32: =AB15 -> 30 | AL32: =AF15 -> 30 | AM32: =AJ15 -> 30 | AN32: =AN15 -> 30
B33: 1 | C33: VMY536H (DP<20 b) | D33: 5699 | E33: 1650 | F33: 298 | G33: 5 | H33: 20 | J33: =$D$4*G33*273.15/(F33)*4/$D$3 -> 0.8076542488 | L33: =H33/G33 -> 4 | M33: =L33^1/($D$5) -> 4 | O33: =IF(G33>3,extrapol_(L33,Vol_ratio,Vol_MP_HP)/100,extrapol_(L33,Vol_ratio,Vol_LPL_MP)/100) -> 0.787 | P33: =IF(G33>3,extrapol_(L33,IsoT_ratio,IsoT_MP_HP)/100,extrapol_(L33,IsoT_ratio,IsoT_LPL_MP)/100) ->  | Q33: =T33*3600/1000/0.17625 -> 11495.6008 | R33: =E33/$D$8*O33*D33 -> 2508.622525 | T33: =R33*J33*1000/3600*B33 -> 562.8054559 | V33: =T33*8.314*F33/4*LN(H33/G33)/P33/1000 ->  | AA33: 0.1667260528 | AB33: 0.3989147243 | AC33: 0.5370291826 | AD33: 0.9139099293 | AF33: 0.1667260528 | AG33: 0.3989147243 | AH33: 0.5370291826 | AI33: 0.9139099293 | AK33: 0.1667260528 | AL33: 0.3989147243 | AM33: 0.5370291826 | AN33: 0.9139099293
B34: 1 | C34: VMY436H (DP<20 b) | D34: 2708 | E34: 3260 | F34: 298 | G34: 5 | H34: 20 | J34: 0.8076542488 | L34: 4 | M34: =L34^1/($D$5) -> 4 | O34: =IF(G34>3,extrapol_(L34,Vol_ratio,Vol_MP_HP)/100,extrapol_(L34,Vol_ratio,Vol_LPL_MP)/100) -> 0.787 | P34: =IF(G34>3,extrapol_(L34,IsoT_ratio,IsoT_MP_HP)/100,extrapol_(L34,IsoT_ratio,IsoT_LPL_MP)/100) ->  | Q34: 10792.3329 | R34: 2355.15219 | T34: =R34*J34*1000/3600*B34 -> 528.3746313 | V34: =T34*8.314*F34/4*LN(H34/G34)/P34/1000 ->  | AA34: 25 | AB34: 25 | AC34: 25 | AD34: 25 | AF34: 25 | AG34: 25 | AH34: 25 | AI34: 25 | AK34: 25 | AL34: 25 | AM34: 25 | AN34: 25
AA35: 1.025 | AB35: 2.4872676 | AC35: 3.35707876 | AD35: 5.730581746 | AF35: 1.025 | AG35: 2.4872676 | AH35: 3.35707876 | AI35: 5.730581746 | AK35: 1.025 | AL35: 2.4872676 | AM35: 3.35707876 | AN35: 5.730581746
B36: 1 | C36: VMY436H (DP<20 b) | D36: 2708 | E36: 2950 | F36: 298 | G36: 5.58 | H36: 20 | J36: =$D$4*G36*273.15/(F36)*4/$D$3 -> 0.9013421417 | L36: =H36/G36 -> 3.584229391 | M36: 3.584229391 | O36: =IF(G36>3,extrapol_(L36,Vol_ratio,Vol_MP_HP)/100,extrapol_(L36,Vol_ratio,Vol_LPL_MP)/100) -> 0.7894946237 | P36: =IF(G36>3,extrapol_(L36,IsoT_ratio,IsoT_MP_HP)/100,extrapol_(L36,IsoT_ratio,IsoT_LPL_MP)/100) ->  | Q36: =T36*3600/1000/0.17625 -> 10933.47932 | R36: =E36/$D$8*O36*D36 -> 2137.951441 | T36: =R36*J36*1000/3600*B36 -> 535.2849252 | V36: =T36*8.314*F36/4*LN(H36/G36)/P36/1000 ->  | AA36: 1.1 | AB36: 1.1 | AC36: 1.1 | AD36: 1.1 | AF36: 1.1 | AG36: 1.1 | AH36: 1.1 | AI36: 1.1 | AK36: 1.1 | AL36: 1.1 | AM36: 1.1 | AN36: 1.1
AA37: 2.3 | AB37: 2.3 | AC37: 2.3 | AD37: 2.3 | AF37: 3 | AG37: 3 | AH37: 3 | AI37: 3 | AK37: 4.8 | AL37: 4.8 | AM37: 4.8 | AN37: 4.8
C38: 10kW@4,5K | E38: Rotation | F38: Tin | G38: Pin | H38: Pout | J38: Rho_in | L38: Pr | M38: Vi_ideal | O38: Vol_% | P38: Iso_% | Q38: Nm3/h | R38: A_m3/h | AA38: 2.5622676 | AB38: 6.217605059 | AC38: 8.391935745 | AD38: 14.32515506 | AF38: 3.43207876 | AG38: 8.328291026 | AH38: 11.2407402 | AI38: 19.18810526 | AK38: 5.755581746 | AL38: 13.96650927 | AM38: 18.85067437 | AN38: 32.17837238
C39: LP STAGE (509 g/s) | AA39: 2.440254858 | AB39: 2.474897602 | AC39: 2.481295186 | AD39: 2.48891523 | AF39: 3.268646438 | AG39: 3.31504933 | AH39: 3.323618698 | AI39: 3.333825512 | AK39: 5.481506424 | AL39: 5.559323881 | AM39: 5.573694674 | AN39: 5.590811459
B40: 1 | C40: VMY536B (DP<8 b) | D40: 9937 | E40: 3600 | F40: 298 | G40: 1.05 | H40: 5 | J40: =$D$4*G40*273.15/(F40)*4/$D$3 -> 0.1696073923 | L40: =H40/G40 -> 4.761904762 | M40: =L40^1/($D$5) -> 4.761904762 | O40: =IF(G40>3,extrapol_(L40,Vol_ratio,Vol_MP_HP)/100,extrapol_(L40,Vol_ratio,Vol_LPL_MP)/100) -> 0.8598095238 | P40: =IF(G40>3,extrapol_(L40,IsoT_ratio,IsoT_MP_HP)/100,extrapol_(L40,IsoT_ratio,IsoT_LPL_MP)/100) ->  | Q40: =T40*3600/1000/0.17625 -> 10033.52823 | R40: =E40/$D$8*O40*D40 -> 10426.48748 | T40: =R40*J40*1000/3600*B40 -> 491.2248198 | V40: =T40*8.314*F40/4*LN(H40/G40)/P40/1000 ->  | AA40: 50 | AB40: 50 | AC40: 50 | AD40: 50 | AF40: 50 | AG40: 50 | AH40: 50 | AI40: 50 | AK40: 50 | AL40: 50 | AM40: 50 | AN40: 50
B41: 1 | C41: VMY536B (DP<8 b) | D41: 9937 | E41: 2950 | F41: 298 | G41: 1.05 | H41: 5 | J41: =$D$4*G41*273.15/(F41)*4/$D$3 -> 0.1696073923 | L41: =H41/G41 -> 4.761904762 | M41: 4.761904762 | O41: =IF(G41>3,extrapol_(L41,Vol_ratio,Vol_MP_HP)/100,extrapol_(L41,Vol_ratio,Vol_LPL_MP)/100) -> 0.8598095238 | P41: =IF(G41>3,extrapol_(L41,IsoT_ratio,IsoT_MP_HP)/100,extrapol_(L41,IsoT_ratio,IsoT_LPL_MP)/100) ->  | Q41: =T41*3600/1000/0.17625 -> 8221.91897 | R41: =E41/$D$8*O41*D41 -> 8543.927238 | T41: =R41*J41*1000/3600*B41 -> 402.5314496 | V41: =T41*8.314*F41/4*LN(H41/G41)/P41/1000 ->  | AA41: 2.5122676 | AB41: 6.167605059 | AC41: 8.341935745 | AD41: 14.27515506 | AF41: 3.38207876 | AG41: 8.278291026 | AH41: 11.1907402 | AI41: 19.13810526 | AK41: 5.705581746 | AL41: 13.91650927 | AM41: 18.80067437 | AN41: 32.12837238
AA42: 0.8724025486 | AB42: 0.872748976 | AC42: 0.7575586224 | AD42: 0.7695525713 | AF42: 0.8734627071 | AG42: 0.8733699013 | AH42: 0.79 | AI42: 0.79 | AK42: 0.8492589101 | AL42: 0.8481694657 | AM42: 0.7724104426 | AN42: 0.7722735083
B43: 2 | C43: VMY536H (DP<20 b) | D43: 5699 | E43: 3100 | F43: 298 | G43: 1.05 | H43: 5 | J43: =$D$4*G43*273.15/(F43)*4/$D$3 -> 0.1696073923 | L43: =H43/G43 -> 4.761904762 | M43: =L43^1/($D$5) -> 4.761904762 | O43: =IF(G43>3,extrapol_(L43,Vol_ratio,Vol_MP_HP)/100,extrapol_(L43,Vol_ratio,Vol_LPL_MP)/100) -> 0.8598095238 | P43: =IF(G43>3,extrapol_(L43,IsoT_ratio,IsoT_MP_HP)/100,extrapol_(L43,IsoT_ratio,IsoT_LPL_MP)/100) ->  | Q43: =T43*3600/1000/0.17625 -> 9910.287029 | R43: =E43/$D$8*O43*D43 -> 5149.209789 | T43: =R43*J43*1000/3600*B43 -> 485.1911358 | V43: =T43*8.314*F43/4*LN(H43/G43)/P43/1000 ->  | W43: =V43/B43 ->  | X43: each | AK43: =AB26 ->  | AL43: =AF26 ->  | AM43: =AJ26 -> 
B45: 2 | C45: VMY536H (DP<20 b) | D45: 5699 | E45: 2950 | F45: 298 | G45: 1.05 | H45: 5 | J45: 0.1696073923 | L45: 4.761904762 | M45: =L45^1/($D$5) -> 4.761904762 | O45: =IF(G45>3,extrapol_(L45,Vol_ratio,Vol_MP_HP)/100,extrapol_(L45,Vol_ratio,Vol_LPL_MP)/100) -> 0.8598095238 | P45: =IF(G45>3,extrapol_(L45,IsoT_ratio,IsoT_MP_HP)/100,extrapol_(L45,IsoT_ratio,IsoT_LPL_MP)/100) ->  | Q45: 9430.757011 | R45: 4900.054476 | T45: =R45*J45*1000/3600*B45 -> 461.7141453 | V45: =T45*8.314*F45/4*LN(H45/G45)/P45/1000 ->  | W45: =V45/B45 ->  | X45: each
C47: HP STAGE (969 g/s)
B48: 1 | C48: VMY536H (DP<20 b) | D48: 5699 | E48: 2710 | F48: 298 | G48: 5 | H48: 20 | J48: =$D$4*G48*273.15/(F48)*4/$D$3 -> 0.8076542488 | L48: =H48/G48 -> 4 | M48: =L48^1/($D$5) -> 4 | O48: =IF(G48>3,extrapol_(L48,Vol_ratio,Vol_MP_HP)/100,extrapol_(L48,Vol_ratio,Vol_LPL_MP)/100) -> 0.787 | P48: =IF(G48>3,extrapol_(L48,IsoT_ratio,IsoT_MP_HP)/100,extrapol_(L48,IsoT_ratio,IsoT_LPL_MP)/100) ->  | Q48: =T48*3600/1000/0.17625 -> 18880.65344 | R48: =E48/$D$8*O48*D48 -> 4120.222451 | T48: =R48*J48*1000/3600 -> 924.3653246 | V48: =T48*8.314*F48/4*LN(H48/G48)/P48/1000 -> 
B49: 1 | C49: VMY536H (DP<20 b) | D49: 5699 | E49: 2950 | F49: 298 | G49: 5 | H49: 20 | J49: =$D$4*G49*273.15/(F49)*4/$D$3 -> 0.8076542488 | L49: =H49/G49 -> 4 | M49: =L49^1/($D$5) -> 4 | O49: =IF(G49>3,extrapol_(L49,Vol_ratio,Vol_MP_HP)/100,extrapol_(L49,Vol_ratio,Vol_LPL_MP)/100) -> 0.787 | P49: =IF(G49>3,extrapol_(L49,IsoT_ratio,IsoT_MP_HP)/100,extrapol_(L49,IsoT_ratio,IsoT_LPL_MP)/100) ->  | Q49: =T49*3600/1000/0.17625 -> 20552.74083 | R49: =E49/$D$8*O49*D49 -> 4485.113 | T49: =R49*J49*1000/3600 -> 1006.227936 | V49: =T49*8.314*F49/4*LN(H49/G49)/P49/1000 -> 
B51: 1 | C51: VMY536H (DP<20 b) | D51: 5699 | E51: 2950 | F51: 298 | G51: 4.6 | H51: 20 | J51: =$D$4*G51*273.15/(F51)*4/$D$3 -> 0.7430419089 | L51: =H51/G51 -> 4.347826087 | M51: =L51^1/($D$5) -> 4.347826087 | O51: =IF(G51>3,extrapol_(L51,Vol_ratio,Vol_MP_HP)/100,extrapol_(L51,Vol_ratio,Vol_LPL_MP)/100) -> 0.7842173913 | P51: =IF(G51>3,extrapol_(L51,IsoT_ratio,IsoT_MP_HP)/100,extrapol_(L51,IsoT_ratio,IsoT_LPL_MP)/100) ->  | Q51: =T51*3600/1000/0.17625 -> 18841.66639 | R51: =E51/$D$8*O51*D51 -> 4469.254913 | T51: =R51*J51*1000/3600 -> 922.4565839 | V51: =T51*8.314*F51/4*LN(H51/G51)/P51/1000 -> 
AA54: Vi | AB54: 2.3 | AC54: 3 | AD54: 4.8
C55: 25kW@4,5K | E55: Rotation | F55: Tin | G55: Pin | H55: Pout | J55: Rho_in | L55: Pr | M55: Vi_ideal | O55: Vol_% | P55: Iso_% | Q55: Nm3/h | R55: A_m3/h
B56: NB UNIT | C56: LP STAGE (1030 g/s)
B57: 3 | C57: VMY536M (DP<16 b) | D57: 7459 | E57: 3200 | F57: 298 | G57: 1.05 | H57: 5 | J57: =$D$4*G57*273.15/(F57)*4/$D$3 -> 0.1696073923 | L57: =H57/G57 -> 4.761904762 | M57: =L57^1/($D$5) -> 4.761904762 | O57: =IF(G57>3,extrapol_(L57,Vol_ratio,Vol_MP_HP)/100,extrapol_(L57,Vol_ratio,Vol_LPL_MP)/100) -> 0.8598095238 | P57: =IF(G57>3,extrapol_(L57,IsoT_ratio,IsoT_MP_HP)/100,extrapol_(L57,IsoT_ratio,IsoT_LPL_MP)/100) ->  | Q57: =T57*3600/1000/0.17625 -> 20083.88504 | R57: =E57/$D$8*O57*D57 -> 6956.820868 | T57: =R57*J57*1000/3600*B57 -> 983.2735382 | V57: =T57*8.314*F57/4*LN(H57/G57)/P57/1000 ->  | W57: =V57/B57 ->  | X57: each
B58: 2 | C58: VMY536B (DP<8 b) | D58: 9937 | E58: 3600 | F58: 298 | G58: 1.05 | H58: 5 | J58: =$D$4*G58*273.15/(F58)*4/$D$3 -> 0.1696073923 | L58: =H58/G58 -> 4.761904762 | M58: =L58^1/($D$5) -> 4.761904762 | O58: =IF(G58>3,extrapol_(L58,Vol_ratio,Vol_MP_HP)/100,extrapol_(L58,Vol_ratio,Vol_LPL_MP)/100) -> 0.8598095238 | P58: =IF(G58>3,extrapol_(L58,IsoT_ratio,IsoT_MP_HP)/100,extrapol_(L58,IsoT_ratio,IsoT_LPL_MP)/100) ->  | Q58: =T58*3600/1000/0.17625 -> 20067.05647 | R58: =E58/$D$8*O58*D58 -> 10426.48748 | T58: =R58*J58*1000/3600*B58 -> 982.4496396 | V58: =T58*8.314*F58/4*LN(H58/G58)/P58/1000 ->  | W58: =V58/B58 ->  | X58: each
C60: HP STAGE (1962 g/s)
B61: 2 | C61: VMY536H (DP<20 b) | D61: 5699 | E61: 2740 | F61: 298 | G61: 5 | H61: 20 | J61: =$D$4*G61*273.15/(F61)*4/$D$3 -> 0.8076542488 | L61: =H61/G61 -> 4 | M61: =L61^1/($D$5) -> 4 | O61: =IF(G61>3,extrapol_(L61,Vol_ratio,Vol_MP_HP)/100,extrapol_(L61,Vol_ratio,Vol_LPL_MP)/100) -> 0.787 | P61: =IF(G61>3,extrapol_(L61,IsoT_ratio,IsoT_MP_HP)/100,extrapol_(L61,IsoT_ratio,IsoT_LPL_MP)/100) ->  | Q61: =T61*3600/1000/0.17625 -> 38179.32872 | R61: =E61/$D$8*O61*D61 -> 4165.833769 | T61: =R61*J61*1000/3600*B61 -> 1869.196302 | V61: =T61*8.314*F61/4*LN(H61/G61)/P61/1000 ->  | W61: =V61/B61 ->  | X61: each
B62: 1 | C62: VMY536H (DP<20 b) | D62: 5699 | E62: 3600 | F62: 298 | G62: 5 | H62: 20 | J62: 0.8076542488 | L62: 4 | M62: =L62^1/($D$5) -> 4 | O62: =IF(G62>3,extrapol_(L62,Vol_ratio,Vol_MP_HP)/100,extrapol_(L62,Vol_ratio,Vol_LPL_MP)/100) -> 0.787 | P62: =IF(G62>3,extrapol_(L62,IsoT_ratio,IsoT_MP_HP)/100,extrapol_(L62,IsoT_ratio,IsoT_LPL_MP)/100) ->  | Q62: 25081.31084 | R62: 5473.358237 | T62: =R62*J62*1000/3600*B62 -> 1227.939177 | V62: =T62*8.314*F62/4*LN(H62/G62)/P62/1000 -> 
B64: 2 | C64: VMY536H (DP<20 b) | D64: 5699 | E64: 2950 | F64: 298 | G64: 4.65 | H64: 20 | J64: =$D$4*G64*273.15/(F64)*4/$D$3 -> 0.7511184514 | L64: =H64/G64 -> 4.301075269 | M64: =L64^1/($D$5) -> 4.301075269 | O64: =IF(G64>3,extrapol_(L64,Vol_ratio,Vol_MP_HP)/100,extrapol_(L64,Vol_ratio,Vol_LPL_MP)/100) -> 0.7845913978 | P64: =IF(G64>3,extrapol_(L64,IsoT_ratio,IsoT_MP_HP)/100,extrapol_(L64,IsoT_ratio,IsoT_LPL_MP)/100) ->  | Q64: =T64*3600/1000/0.17625 -> 38111.1014 | R64: =E64/$D$8*O64*D64 -> 4471.386376 | T64: =R64*J64*1000/3600*B64 -> 1865.856006 | V64: =T64*8.314*F64/4*LN(H64/G64)/P64/1000 ->  | W64: =V64/B64 ->  | X64: each
C66: 35kW at 15K | E66: Rotation | F66: Tin | G66: Pin | H66: Pout | J66: Rho_in | L66: Pr | M66: Vi_ideal | O66: Vol_% | P66: Iso_% | Q66: Nm3/h | R66: dislpa m3/h
C67: LP STAGE (1158 g/s) | F67: 298 | G67: 3.4 | H67: 20 | J67: =$D$4*G67*273.15/(F67)*4/$D$3 -> 0.5492048892 | Q67: =T67*3600/1000/0.17615495053003 -> 23665.52849 | T67: 1158 | U67: =T67*8.314*F67/4*LN(H67/G67)/1000 -> 1270.948615
B68: OFF DESIGN | C68: LP STAGE (1158 g/s) | F68: 298 | G68: 2 | H68: 8.000000011 | J68: =$D$4*G68*273.15/(F68)*4/$D$3 -> 0.3230616995 | Q68: =T68*3600/1000/0.17625 -> 30232.88678 | T68: 1480.151749 | U68: =T68*8.314*F68/4*LN(H68/G68)/1000 -> 1270.948616 | V68: =U67-U68 -> -1.309100526e-06
B69: OFF DESIGN | C69: LP STAGE (1158 g/s) | F69: 298 | G69: 2 | H69: 8.000000011 | J69: =$D$4*G69*273.15/(F69)*4/$D$3 -> 0.3230616995 | T69: 1480.151749 | U69: =T69*8.314*F69/4*LN(H69/G69)/1000 -> 1270.948616 | V69: =U68-U69 -> 0 | AA69: 11681 | AB69: =AA69*2 -> 23362 | AC69: =AA69*J69*1000/3600*B70 -> 2096.490951
B70: 2 | C70: VMY536H (DP<20 b) | D70: 5699 | E70: 2280 | F70: 298 | G70: 3.4 | H70: 20 | J70: 0.5492048892 | L70: =H70/G70 -> 5.882352941 | M70: =L70^1/($D$5) -> 5.882352941 | O70: 0.8627244546 | P70: 0.5847977742 | Q70: 23682.02643 | R70: =E70/$D$8*O70*D70 -> 3800 | T70: =R70*J70*1000/3600*B70 -> 1159.432544 | U70: =T70*8.314*F70/4*LN(H70/G70)/1000 -> 1272.520886 | V70: =T70*8.314*F70/4*LN(H70/G70)/P70/1000 -> 2176.001589 | W70: =V70/B70 -> 1088.000795 | X70: each | Y70: =H70-G70 -> 16.6
A71: 4.8 | B71: 2 | C71: VMY536H (DP<20 b) | D71: 5699 | E71: 2950 | F71: 298 | G71: 2.698581788 | H71: =G71*A71^1.1 -> 15.15308105 | J71: =$D$4*G71*273.15/(F71)*4/$D$3 -> 0.4359042093 | L71: =H71/G71 -> 5.615201703 | M71: =L71^1/($D$5) -> 5.615201703 | O71: 0.8627244546 | P71: 0.5847977742 | Q71: =T71*3600/1000/0.17625 -> 24319.95116 | R71: =E71/$D$8*O71*D71 -> 4916.666667 | T71: =R71*J71*1000/3600*B71 -> 1190.664275 | U71: =T71*8.314*F71/4*LN(H71/G71)/1000 -> 1272.520886 | V71: =T71*8.314*F71/4*LN(H71/G71)/P71/1000 -> 2176.001589 | W71: =V71/B71 -> 1088.000795 | X71: each | Y71: =H71-G71 -> 12.45449926 | AA71: =U70-U71 -> 0
A72: 4.8
A73: 3 | B73: 1 | C73: VMY536M (DP<16 b) | D73: 7459 | E73: 3600 | F73: 298 | G73: 3.185612883 | H73: =G73*A73^$D$5 -> 9.55683865 | J73: =$D$4*G73*273.15/(F73)*4/$D$3 -> 0.5145747561 | K73: 1.666 | L73: =H73/G73 -> 3 | M73: =L73^1/($D$5) -> 3 | O73: 0.8627244546 | P73: 0.5847977742 | Q73: =T73*3600/1000/0.17625 -> 22927.28089 | R73: =E73/$D$8*O73*D73 -> 7852.956659 | T73: =R73*J73*1000/3600*B73 -> 1122.48146 | U73: =T73*8.314*F73/4*LN(H73/G73)/1000 -> 763.8180588 | V73: =T73*8.314*F73/4*LN(H73/G73)/P73/1000 -> 1306.123403 | W73: =V73/B73 -> 1306.123403 | X73: each | Y73: =H73-G73 -> 6.371225766 | AA73: =U70-U73 -> 508.7028272
B78: =H70-G70 -> 16.6 | C78: Vi = 2.3 --> Pout = 4,2 bar abs: 4788 Nm³/h 854 kg/h 443 kW
B79: =H71-G71 -> 12.45449926 | C79: Vi = 3,0 --> Pout = 4,2 bar abs: 4832Nm³/h 861 kg/h 417 kW
C80: Vi = 4,8 --> Pout = 4,2 bar abs: 4913Nm³/h 877 kg/h 423 kW
D81: Displ @ 2950rpm | E81: Rotation | F81: Tin | G81: Pin | H81: Pout | I81: Pout | J81: Rho_in | K81: gamma | L81: Pr | M81: Vi | N81: Vi ideal | O81: Vol_% | P81: Iso_% | Q81: Nm3/h | R81: A_m3/h | S81: kg/h | T81: g/s
B82: 1 | C82: VMY536H (DP<20 b) | D82: 5699 | E82: 2950 | F82: 298 | G82: 1.05 | H82: =M82^K82*G82 -> 3.100526773 | I82: =M82^K82*G82 -> 3.100526773 | J82: =$D$4*G82*273.15/(F82)*4/$D$3 -> 0.1696073923 | K82: 1.3 | L82: =H82/G82 -> 2.952882641 | M82: 2.3 | N82: =L82^1/(K82) -> 2.271448186 | O82: =R82/(B82*E82/$D$8*D82) -> 0.8835160369 | P82: =(T82*8.314*F82/4*LN(H82/G82)/1000)/V82 -> 0.3591359724 | Q82: =T82*3600/1000/0.17625 -> 4845.390071 | R82: =T82/J82*3.6 -> 5035.157894 | S82: 854 | T82: =S82/3.6 -> 237.2222222 | U82: =T82*8.314*F82/4*LN(H82/G82)/1000 -> 159.0972358 | V82: =W82*B82 -> 443 | W82: 443 | X82: each | Y82: =H82-G82 -> 2.050526773
B83: 1 | C83: VMY536H (DP<20 b) | D83: 5699 | E83: 2950 | F83: 298 | G83: 1.05 | H83: =M83^K83*G83 -> 4.379725886 | I83: 4.379725886 | J83: =$D$4*G83*273.15/(F83)*4/$D$3 -> 0.1696073923 | K83: 1.3 | L83: =H83/G83 -> 4.171167511 | M83: 3 | N83: =L83^1/(K83) -> 3.208590393 | O83: 0.8669630432 | P83: =(T83*8.314*F83/4*LN(H83/G83)/1000)/V83 -> 0.3778323273 | Q83: =T83*3600/1000/0.17625 -> 4754.609929 | R83: =T83/J83*3.6 -> 4940.822383 | S83: 838 | T83: =S83/3.6 -> 232.7777778 | U83: =T83*8.314*F83/4*LN(H83/G83)/1000 -> 205.9186184 | V83: =W83*B83 -> 545 | W83: 545 | X83: each | Y83: =H83-G83 -> 3.329725886
B84: 1 | C84: VMY536H (DP<20 b) | D84: 5699 | E84: 2950 | F84: 298 | G84: 1.05 | H84: 8.068687724 | I84: 8.068687724 | J84: 0.1696073923 | K84: 1.3 | L84: 7.684464499 | M84: 4.8 | N84: 5.911126538 | O84: 0.8524791737 | P84: =(T84*8.314*F84/4*LN(H84/G84)/1000)/V84 -> 0.3774176484 | Q84: =T84*3600/1000/0.17625 -> 4675.177305 | R84: =T84/J84*3.6 -> 4858.278811 | S84: 824 | T84: =S84/3.6 -> 228.8888889 | U84: =T84*8.314*F84/4*LN(H84/G84)/1000 -> 289.1019187 | V84: =W84*B84 -> 766 | W84: 766 | X84: each | Y84: =H84-G84 -> 7.018687724
A85: <
A86: =+H86/I86 -> 1 | B86: 1 | C86: VMY536H (DP<20 b) | D86: 5699 | E86: 2950 | F86: 298 | G86: 1.05 | H86: =+H82 -> 3.100526773 | I86: =M86^K86*G86 -> 3.100526773 | J86: =$D$4*G86*273.15/(F86)*4/$D$3 -> 0.1696073923 | K86: 1.3 | L86: =H86/G86 -> 2.952882641 | M86: 2.3 | N86: =L86^1/(K86) -> 2.271448186 | O86: =R86/(B86*E86/$D$8*D86) -> 0.8835160369 | P86: =(T86*8.314*F86/4*LN(H86/G86)/1000)/V86 -> 0.3591359724 | Q86: =T86*3600/1000/0.17625 -> 4845.390071 | R86: =T86/J86*3.6 -> 5035.157894 | S86: 854 | T86: =S86/3.6 -> 237.2222222 | U86: =T86*8.314*F86/4*LN(H86/G86)/1000 -> 159.0972358 | V86: =W86*B86 -> 443 | W86: 443 | X86: each | Y86: =H86-G86 -> 2.050526773
A87: =+H87/I87 -> 1 | B87: 1 | C87: VMY536H (DP<20 b) | D87: 5699 | E87: 2950 | F87: 298 | G87: 1.05 | H87: =+H83 -> 4.379725886 | I87: =M87^K87*G87 -> 4.379725886 | J87: 0.1696073923 | K87: 1.3 | L87: 4.171167511 | M87: 3 | N87: =L87^1/(K87) -> 3.208590393 | O87: 0.8669630432 | P87: =(T87*8.314*F87/4*LN(H87/G87)/1000)/V87 -> 0.3778323273 | Q87: =T87*3600/1000/0.17625 -> 4754.609929 | R87: =T87/J87*3.6 -> 4940.822383 | S87: 838 | T87: =S87/3.6 -> 232.7777778 | U87: =T87*8.314*F87/4*LN(H87/G87)/1000 -> 205.9186184 | V87: =W87*B87 -> 545 | W87: 545 | X87: each | Y87: =H87-G87 -> 3.329725886
A88: 1 | B88: 1 | C88: VMY536H (DP<20 b) | D88: 5699 | E88: 2950 | F88: 298 | G88: 1.05 | H88: 8.068687724 | I88: 8.068687724 | J88: 0.1696073923 | K88: 1.3 | L88: 7.684464499 | M88: 4.8 | N88: 5.911126538 | O88: 0.8524791737 | P88: =(T88*8.314*F88/4*LN(H88/G88)/1000)/V88 -> 0.3774176484 | Q88: =T88*3600/1000/0.17625 -> 4675.177305 | R88: =T88/J88*3.6 -> 4858.278811 | S88: 824 | T88: =S88/3.6 -> 228.8888889 | U88: =T88*8.314*F88/4*LN(H88/G88)/1000 -> 289.1019187 | V88: =W88*B88 -> 766 | W88: 766 | X88: each | Y88: =H88-G88 -> 7.018687724
A89: <
A90: =+H90/I90 -> 0.9920634921 | B90: 1 | C90: VMY536H (DP<20 b) | D90: 5699 | E90: 2950 | F90: 298 | G90: 1.05 | H90: 5 | I90: =M90^K90*G90 -> 5.04 | J90: =$D$4*G90*273.15/(F90)*4/$D$3 -> 0.1696073923 | K90: 1 | L90: =H90/G90 -> 4.761904762 | M90: 4.8 | N90: =L90^1/(K90) -> 4.761904762 | O90: =R90/(B90*E90/$D$8*D90) -> 0.9031727168 | P90: =(T90*8.314*F90/4*LN(H90/G90)/1000)/V90 -> 0.5220794332 | Q90: =T90*3600/1000/0.17625 -> 4953.191489 | R90: =T90/J90*3.6 -> 5147.181313 | S90: 873 | T90: =S90/3.6 -> 242.5 | U90: =T90*8.314*F90/4*LN(H90/G90)/1000 -> 234.4136655 | V90: =W90*B90 -> 449 | W90: 449 | X90: each | Y90: =H90-G90 -> 3.95
A91: =+H91/I91 -> 1.739130435 | B91: 1 | C91: VMY536H (DP<20 b) | D91: 5699 | E91: 2950 | F91: 298 | G91: 1.05 | H91: 4.2 | I91: =M91^K91*G91 -> 2.415 | J91: 0.1696073923 | K91: 1 | L91: 4 | M91: 2.3 | N91: =L91^1/(K91) -> 4 | O91: 0.8835160369 | P91: =(T91*8.314*F91/4*LN(H91/G91)/1000)/V91 -> 0.4598046864 | Q91: =T91*3600/1000/0.17625 -> 4845.390071 | R91: =T91/J91*3.6 -> 5035.157894 | S91: 854 | T91: =S91/3.6 -> 237.2222222 | U91: =T91*8.314*F91/4*LN(H91/G91)/1000 -> 203.6934761 | V91: =W91*B91 -> 443 | W91: 443 | X91: each | Y91: =H91-G91 -> 3.15
A92: <
B93: 1 | C93: VMY536H (DP<20 b) | D93: 5699 | E93: 2950 | F93: 298 | G93: 1.05 | H93: 4.2 | J93: =$D$4*G93*273.15/(F93)*4/$D$3 -> 0.1696073923 | K93: 1.3 | L93: =H93/G93 -> 4 | M93: 2.3 | N93: 3.076923077 | O93: =R93/(B93*E93/$D$8*D93) -> 0.8835160369 | P93: =(T93*8.314*F93/4*LN(H93/G93)/1000)/V93 -> 0.4598046864 | Q93: =T93*3600/1000/0.17625 -> 4845.390071 | R93: =T93/J93*3.6 -> 5035.157894 | S93: 854 | T93: =S93/3.6 -> 237.2222222 | U93: =T93*8.314*F93/4*LN(H93/G93)/1000 -> 203.6934761 | V93: =W93*B93 -> 443 | W93: 443 | X93: each | Y93: =H93-G93 -> 3.15
B94: 1 | C94: VMY536H (DP<20 b) | D94: 5699 | E94: 2950 | F94: 298 | G94: 1.05 | H94: 6.55 | J94: 0.1696073923 | K94: 1.3 | L94: 6.238095238 | M94: 2.3 | N94: 4.798534799 | O94: =R94/(B94*E94/$D$8*D94) -> 0.8566174222 | P94: =(T94*8.314*F94/4*LN(H94/G94)/1000)/V94 -> 0.4254464244 | Q94: =T94*3600/1000/0.17625 -> 4697.87234 | R94: =T94/J94*3.6 -> 4881.862689 | S94: 828 | T94: =S94/3.6 -> 230 | U94: =T94*8.314*F94/4*LN(H94/G94)/1000 -> 260.7986581 | V94: =W94*B94 -> 613 | W94: 613 | X94: each | Y94: =H94-G94 -> 5.5
B95: 1 | C95: VMY536H (DP<20 b) | D95: 5699 | E95: 2950 | F95: 298 | G95: 1.05 | H95: 14.31 | J95: 0.1696073923 | K95: 1.3 | L95: 13.62857143 | M95: 2.3 | N95: 10.48351648 | O95: =R95/(B95*E95/$D$8*D95) -> 0.765575957 | P95: =(T95*8.314*F95/4*LN(H95/G95)/1000)/V95 -> 0.2828064866 | Q95: =T95*3600/1000/0.17625 -> 4198.58156 | R95: =T95/J95*3.6 -> 4363.017379 | S95: 740 | T95: =S95/3.6 -> 205.5555556 | U95: =T95*8.314*F95/4*LN(H95/G95)/1000 -> 332.5804282 | V95: =W95*B95 -> 1176 | W95: 1176 | X95: each | Y95: =H95-G95 -> 13.26
B97: 1 | C97: VMY536H (DP<20 b) | D97: 5699 | E97: 2950 | F97: 298 | G97: 1.05 | H97: 4.2 | J97: =$D$4*G97*273.15/(F97)*4/$D$3 -> 0.1696073923 | K97: 1.3 | L97: =H97/G97 -> 4 | M97: 3 | N97: 3.076923077 | O97: =R97/(B97*E97/$D$8*D97) -> 0.8907579716 | P97: =(T97*8.314*F97/4*LN(H97/G97)/1000)/V97 -> 0.4924774454 | Q97: =T97*3600/1000/0.17625 -> 4885.106383 | R97: =T97/J97*3.6 -> 5076.42968 | S97: 861 | T97: =S97/3.6 -> 239.1666667 | U97: =T97*8.314*F97/4*LN(H97/G97)/1000 -> 205.3630947 | V97: =W97*B97 -> 417 | W97: 417 | X97: each | Y97: =H97-G97 -> 3.15
B98: 1 | C98: VMY536H (DP<20 b) | D98: 5699 | E98: 2950 | F98: 298 | G98: 1.05 | H98: 6.55 | J98: 0.1696073923 | K98: 1.3 | L98: 6.238095238 | M98: 3 | N98: 4.798534799 | O98: 0.8669630432 | P98: =(T98*8.314*F98/4*LN(H98/G98)/1000)/V98 -> 0.4843089916 | Q98: =T98*3600/1000/0.17625 -> 4754.609929 | R98: =T98/J98*3.6 -> 4940.822383 | S98: 838 | T98: =S98/3.6 -> 232.7777778 | U98: =T98*8.314*F98/4*LN(H98/G98)/1000 -> 263.9484004 | V98: =W98*B98 -> 545 | W98: 545 | X98: each | Y98: =H98-G98 -> 5.5
B99: 1 | C99: VMY536H (DP<20 b) | D99: 5699 | E99: 2950 | F99: 298 | G99: 1.05 | H99: 14.31 | J99: 0.1696073923 | K99: 1.3 | L99: 13.62857143 | M99: 3 | N99: 10.48351648 | O99: 0.7893708854 | P99: =(T99*8.314*F99/4*LN(H99/G99)/1000)/V99 -> 0.3513497822 | Q99: =T99*3600/1000/0.17625 -> 4329.078014 | R99: =T99/J99*3.6 -> 4498.624676 | S99: 763 | T99: =S99/3.6 -> 211.9444444 | U99: =T99*8.314*F99/4*LN(H99/G99)/1000 -> 342.9173875 | V99: =W99*B99 -> 976 | W99: 976 | X99: each | Y99: =H99-G99 -> 13.26
B101: 1 | C101: VMY536H (DP<20 b) | D101: 5699 | E101: 2950 | F101: 298 | G101: 1.05 | H101: 4.2 | J101: =$D$4*G101*273.15/(F101)*4/$D$3 -> 0.1696073923 | K101: 1.3 | L101: =H101/G101 -> 4 | M101: 4.8 | N101: 3.076923077 | O101: =R101/(B101*E101/$D$8*D101) -> 0.9073109653 | P101: =(T101*8.314*F101/4*LN(H101/G101)/1000)/V101 -> 0.4945138675 | Q101: =T101*3600/1000/0.17625 -> 4975.886525 | R101: =T101/J101*3.6 -> 5170.765191 | S101: 877 | T101: =S101/3.6 -> 243.6111111 | U101: =T101*8.314*F101/4*LN(H101/G101)/1000 -> 209.1793659 | V101: =W101*B101 -> 423 | W101: 423 | X101: each | Y101: =H101-G101 -> 3.15
B102: 1 | C102: VMY536H (DP<20 b) | D102: 5699 | E102: 2950 | F102: 298 | G102: 1.05 | H102: 6.55 | J102: 0.1696073923 | K102: 1.3 | L102: 6.238095238 | M102: 4.8 | N102: 4.798534799 | O102: 0.89489622 | P102: =(T102*8.314*F102/4*LN(H102/G102)/1000)/V102 -> 0.5438177734 | Q102: =T102*3600/1000/0.17625 -> 4907.801418 | R102: =T102/J102*3.6 -> 5100.013558 | S102: 865 | T102: =S102/3.6 -> 240.2777778 | U102: =T102*8.314*F102/4*LN(H102/G102)/1000 -> 272.4527045 | V102: =W102*B102 -> 501 | W102: 501 | X102: each | Y102: =H102-G102 -> 5.5
B103: 1 | C103: VMY536H (DP<20 b) | D103: 5699 | E103: 2950 | F103: 298 | G103: 1.05 | H103: 14.31 | J103: 0.1696073923 | K103: 1.3 | L103: 13.62857143 | M103: 4.8 | N103: 10.48351648 | O103: 0.8524791737 | P103: =(T103*8.314*F103/4*LN(H103/G103)/1000)/V103 -> 0.4834631869 | Q103: =T103*3600/1000/0.17625 -> 4675.177305 | R103: =T103/J103*3.6 -> 4858.278811 | S103: 824 | T103: =S103/3.6 -> 228.8888889 | U103: =T103*8.314*F103/4*LN(H103/G103)/1000 -> 370.3328012 | V103: =W103*B103 -> 766 | W103: 766 | X103: each | Y103: =H103-G103 -> 13.26
B106: 1 | C106: VMY536H (DP<20 b) | D106: 5699 | E106: 2950 | F106: 298 | G106: 1.05 | H106: =M106^K106*G106 -> 4.205599127 | J106: =$D$4*G106*273.15/(F106)*4/$D$3 -> 0.1696073923 | K106: 1.666 | L106: =H106/G106 -> 4.005332502 | M106: 2.3 | N106: =L106^1/(K106) -> 2.404161166 | O106: =R106/(B106*E106/$D$8*D106) -> 0.8835160369 | P106: =(T106*8.314*F106/4*LN(H106/G106)/1000)/V106 -> 0.4602465616 | Q106: =T106*3600/1000/0.17625 -> 4845.390071 | R106: =T106/J106*3.6 -> 5035.157894 | S106: 854 | T106: =S106/3.6 -> 237.2222222 | U106: =T106*8.314*F106/4*LN(H106/G106)/1000 -> 203.8892268 | V106: =W106*B106 -> 443 | W106: 443 | X106: each | Y106: =H106-G106 -> 3.155599127
B107: 1 | C107: VMY536H (DP<20 b) | D107: 5699 | E107: 2950 | F107: 298 | G107: 1.05 | H107: 4.2 | J107: 0.1696073923 | K107: 1.666 | L107: 4 | M107: 3 | N107: 2.400960384 | O107: 0.8907579716 | P107: =(T107*8.314*F107/4*LN(H107/G107)/1000)/V107 -> 0.4924774454 | Q107: =T107*3600/1000/0.17625 -> 4885.106383 | R107: =T107/J107*3.6 -> 5076.42968 | S107: 861 | T107: =S107/3.6 -> 239.1666667 | U107: =T107*8.314*F107/4*LN(H107/G107)/1000 -> 205.3630947 | V107: =W107*B107 -> 417 | W107: 417 | X107: each | Y107: =H107-G107 -> 3.15
B108: 1 | C108: VMY536H (DP<20 b) | D108: 5699 | E108: 2950 | F108: 298 | G108: 1.05 | H108: 4.2 | J108: 0.1696073923 | K108: 1.666 | L108: 4 | M108: 4.8 | N108: 2.400960384 | O108: 0.9073109653 | P108: =(T108*8.314*F108/4*LN(H108/G108)/1000)/V108 -> 0.4945138675 | Q108: =T108*3600/1000/0.17625 -> 4975.886525 | R108: =T108/J108*3.6 -> 5170.765191 | S108: 877 | T108: =S108/3.6 -> 243.6111111 | U108: =T108*8.314*F108/4*LN(H108/G108)/1000 -> 209.1793659 | V108: =W108*B108 -> 423 | W108: 423 | X108: each | Y108: =H108-G108 -> 3.15
B110: 1 | C110: VMY536H (DP<20 b) | D110: 5699 | E110: 2950 | F110: 298 | G110: 1.05 | H110: 6.55 | J110: =$D$4*G110*273.15/(F110)*4/$D$3 -> 0.1696073923 | K110: 1.666 | L110: =H110/G110 -> 6.238095238 | M110: 2.3 | N110: 3.744354885 | O110: =R110/(B110*E110/$D$8*D110) -> 0.8566174222 | P110: =(T110*8.314*F110/4*LN(H110/G110)/1000)/V110 -> 0.4254464244 | Q110: =T110*3600/1000/0.17625 -> 4697.87234 | R110: =T110/J110*3.6 -> 4881.862689 | S110: 828 | T110: =S110/3.6 -> 230 | U110: =T110*8.314*F110/4*LN(H110/G110)/1000 -> 260.7986581 | V110: =W110*B110 -> 613 | W110: 613 | X110: each | Y110: =H110-G110 -> 5.5
B111: 1 | C111: VMY536H (DP<20 b) | D111: 5699 | E111: 2950 | F111: 298 | G111: 1.05 | H111: =M111^K111*G111 -> 6.547466868 | J111: 0.1696073923 | K111: 1.666 | L111: 6.235682731 | M111: 3 | N111: 3.742906801 | O111: 0.8669630432 | P111: =(T111*8.314*F111/4*LN(H111/G111)/1000)/V111 -> 0.4842066595 | Q111: =T111*3600/1000/0.17625 -> 4754.609929 | R111: =T111/J111*3.6 -> 4940.822383 | S111: 838 | T111: =S111/3.6 -> 232.7777778 | U111: =T111*8.314*F111/4*LN(H111/G111)/1000 -> 263.8926294 | V111: =W111*B111 -> 545 | W111: 545 | X111: each | Y111: =H111-G111 -> 5.497466868 | AA111: =[3]!h_(11,H111,F111)-[3]!h_(11,G111,F111) -> 
B112: 1 | C112: VMY536H (DP<20 b) | D112: 5699 | E112: 2950 | F112: 298 | G112: 1.05 | H112: 6.55 | J112: 0.1696073923 | K112: 1.666 | L112: 6.238095238 | M112: 4.8 | N112: 3.744354885 | O112: 0.8524791737 | P112: =(T112*8.314*F112/4*LN(H112/G112)/1000)/V112 -> 0.3388234481 | Q112: =T112*3600/1000/0.17625 -> 4675.177305 | R112: =T112/J112*3.6 -> 4858.278811 | S112: 824 | T112: =S112/3.6 -> 228.8888889 | U112: =T112*8.314*F112/4*LN(H112/G112)/1000 -> 259.5387612 | V112: =W112*B112 -> 766 | W112: 766 | X112: each | Y112: =H112-G112 -> 5.5
B114: 1 | C114: VMY536H (DP<20 b) | D114: 5699 | E114: 2950 | F114: 298 | G114: 1.05 | H114: 14.31 | J114: =$D$4*G114*273.15/(F114)*4/$D$3 -> 0.1696073923 | K114: 1.666 | L114: =H114/G114 -> 13.62857143 | M114: 2.3 | N114: =L114^1/(K114) -> 8.180415023 | O114: =R114/(B114*E114/$D$8*D114) -> 0.765575957 | P114: =(T114*8.314*F114/4*LN(H114/G114)/1000)/V114 -> 0.2828064866 | Q114: =T114*3600/1000/0.17625 -> 4198.58156 | R114: =T114/J114*3.6 -> 4363.017379 | S114: 740 | T114: =S114/3.6 -> 205.5555556 | U114: =T114*8.314*F114/4*LN(H114/G114)/1000 -> 332.5804282 | V114: =W114*B114 -> 1176 | W114: 1176 | X114: each | Y114: =H114-G114 -> 13.26
B115: 1 | C115: VMY536H (DP<20 b) | D115: 5699 | E115: 2950 | F115: 298 | G115: 1.05 | H115: 14.31 | J115: 0.1696073923 | K115: 1.666 | L115: 13.62857143 | M115: 3 | N115: 8.180415023 | O115: 0.7893708854 | P115: =(T115*8.314*F115/4*LN(H115/G115)/1000)/V115 -> 0.3513497822 | Q115: =T115*3600/1000/0.17625 -> 4329.078014 | R115: =T115/J115*3.6 -> 4498.624676 | S115: 763 | T115: =S115/3.6 -> 211.9444444 | U115: =T115*8.314*F115/4*LN(H115/G115)/1000 -> 342.9173875 | V115: =W115*B115 -> 976 | W115: 976 | X115: each | Y115: =H115-G115 -> 13.26
B116: 1 | C116: VMY536H (DP<20 b) | D116: 5699 | E116: 2950 | F116: 298 | G116: 1.05 | H116: =M116^K116*G116 -> 14.32640422 | J116: 0.1696073923 | K116: 1.666 | L116: 13.64419449 | M116: 4.8 | N116: 8.189792612 | O116: 0.8524791737 | P116: =(T116*8.314*F116/4*LN(H116/G116)/1000)/V116 -> 0.4836752325 | Q116: =T116*3600/1000/0.17625 -> 4675.177305 | R116: =T116/J116*3.6 -> 4858.278811 | S116: 824 | T116: =S116/3.6 -> 228.8888889 | U116: =T116*8.314*F116/4*LN(H116/G116)/1000 -> 370.4952281 | V116: =W116*B116 -> 766 | W116: 766 | X116: each | Y116: =H116-G116 -> 13.27640422
C118: TMCP
B120: 2 | C120: VMY536H (DP<20 b) | D120: 5699 | E120: 2280 | F120: 298 | G120: 3.4 | H120: 20 | J120: =$D$4*G120*273.15/(F120)*4/$D$3 -> 0.5492048892 | K120: 1.666 | L120: =H120/G120 -> 5.882352941 | M120: 4.8 | N120: =L120^1/(K120) -> 3.530824094 | O120: =R120/(B120*E120/$D$8*D120) -> 0.8619065408 | P120: =(T120*8.314*F120/4*LN(H120/G120)/1000)/V120 -> 0.584243778 | Q120: =T120*3600/1000/0.17625 -> 23659.57447 | R120: =T120/J120*3.6 -> 7592.794751 | S120: =2*2085 -> 4170 | T120: =S120/3.6 -> 1158.333333 | U120: =T120*8.314*F120/4*LN(H120/G120)/1000 -> 1271.314461 | V120: =W120*B120 -> 2176 | W120: 1088 | X120: each | Y120: =H120-G120 -> 16.6
B121: 2 | C121: VMY536H (DP<20 b) | D121: 5699 | E121: 2950 | F121: 298 | G121: 2.5 | H121: =M121^K121*G121 -> 15.58920683 | J121: 0.4038271244 | K121: 1.666 | L121: 6.235682731 | M121: 3 | N121: 3.742906801 | O121: 0.8294912038 | P121: =(T121*8.314*F121/4*LN(H121/G121)/1000)/V121 -> 0.5138108944 | Q121: =T121*3600/1000/0.17625 -> 21662.41135 | R121: =T121/J121*3.6 -> 9454.540741 | S121: =2*1909 -> 3818 | T121: =S121/3.6 -> 1060.555556 | U121: =T121*8.314*F121/4*LN(H121/G121)/1000 -> 1202.317493 | V121: =W121*B121 -> 2340 | W121: =1170 -> 1170 | X121: each | Y121: =H121-G121 -> 13.08920683
C123: LPcompressor (1,05 - 4,2bara, Vi=2,3,t1=25°C)
B124: 1 | C124: VMY536B (DP<8 b) | D124: 9937 | E124: 3600 | F124: 298 | G124: 1.05 | H124: =M124^K124*G124 -> 4.205599127 | J124: =$D$4*G124*273.15/(F124)*4/$D$3 -> 0.1696073923 | K124: 1.666 | L124: =H124/G124 -> 4.005332502 | M124: 2.3 | N124: =L124^1/(K124) -> 2.404161166 | O124: =R124/(B124*E124/$D$8*D124) -> 0.8756552612 | P124: =(T124*8.314*F124/4*LN(H124/G124)/1000)/V124 -> 0.4507147245 | Q124: =T124*3600/1000/0.17625 -> 10218.43972 | R124: =T124/J124*3.6 -> 10618.64095 | S124: 1801 | T124: =S124/3.6 -> 500.2777778 | U124: =T124*8.314*F124/4*LN(H124/G124)/1000 -> 429.9818471 | V124: =W124*B124 -> 954 | W124: 954 | X124: each | Y124: =H124-G124 -> 3.155599127
B125: 1 | C125: VMY536B (DP<8 b) | D125: 9937 | E125: 2950 | F125: 298 | G125: 1.05 | H125: 4.205599127 | J125: 0.1696073923 | K125: 1.666 | L125: 4.005332502 | M125: 2.3 | N125: 2.404161166 | O125: 0.8751690561 | P125: =(T125*8.314*F125/4*LN(H125/G125)/1000)/V125 -> 0.4491716794 | Q125: =T125*3600/1000/0.17625 -> 8368.794326 | R125: =T125/J125*3.6 -> 8696.554911 | S125: 1475 | T125: =S125/3.6 -> 409.7222222 | U125: =T125*8.314*F125/4*LN(H125/G125)/1000 -> 352.1505966 | V125: =W125*B125 -> 784 | W125: 784 | X125: each | Y125: =H125-G125 -> 3.155599127
B127: 2 | C127: VMY536H (DP<20 b) | D127: 5699 | E127: 3600 | F127: 298 | G127: 1.05 | H127: =M127^K127*G127 -> 4.205599127 | J127: =$D$4*G127*273.15/(F127)*4/$D$3 -> 0.1696073923 | K127: 1.666 | L127: =H127/G127 -> 4.005332502 | M127: 2.3 | N127: =L127^1/(K127) -> 2.404161166 | O127: =R127/(B127*E127/$D$8*D127) -> 0.8893067109 | P127: =(T127*8.314*F127/4*LN(H127/G127)/1000)/V127 -> 0.4620751465 | Q127: =T127*3600/1000/0.17625 -> 11903.5461 | R127: =T127/J127*3.6 -> 12369.74387 | S127: =2*1049 -> 2098 | T127: =S127/3.6 -> 582.7777778 | U127: =T127*8.314*F127/4*LN(H127/G127)/1000 -> 500.8894588 | V127: =W127*B127 -> 1084 | W127: 542 | X127: each | Y127: =H127-G127 -> 3.155599127
B128: 2 | C128: VMY536H (DP<20 b) | D128: 5699 | E128: 2950 | F128: 298 | G128: 1.05 | H128: 4.205599127 | J128: 0.1696073923 | K128: 1.666 | L128: 4.005332502 | M128: 2.3 | N128: 2.404161166 | O128: =R128/(B128*E128/$D$8*D128) -> 0.8835160369 | P128: =(T128*8.314*F128/4*LN(H128/G128)/1000)/V128 -> 0.4602465616 | Q128: =T128*3600/1000/0.17625 -> 9690.780142 | R128: =T128/J128*3.6 -> 10070.31579 | S128: =2*854 -> 1708 | T128: =S128/3.6 -> 474.4444444 | U128: =T128*8.314*F128/4*LN(H128/G128)/1000 -> 407.7784536 | V128: =W128*B128 -> 886 | W128: 443 | X128: each | Y128: =H128-G128 -> 3.155599127
C130: HPcompressor (4,2 - 16,84bara, Vi=2,3,t1=30°C)
B131: 1 | C131: VMY536H (DP<20 b) | D131: 5699 | E131: 2950 | F131: =273+30 -> 303 | G131: 4.2 | H131: =M131^K131*G131 -> 16.82239651 | J131: =$D$4*G131*273.15/(F131)*4/$D$3 -> 0.6672343616 | K131: 1.666 | L131: =H131/G131 -> 4.005332502 | M131: 2.3 | N131: =L131^1/(K131) -> 2.404161166 | O131: =R131/(B131*E131/$D$8*D131) -> 0.3763245691 | P131: =(T131*8.314*F131/4*LN(H131/G131)/1000)/V131 -> 0.2427519754 | Q131: =T131*3600/1000/0.17625 -> 8119.148936 | R131: =T131/J131*3.6 -> 2144.673719 | S131: 1431 | T131: =S131/3.6 -> 397.5 | U131: =T131*8.314*F131/4*LN(H131/G131)/1000 -> 347.3780768 | V131: =W131*B131 -> 1431 | W131: 1431 | X131: each | Y131: =H131-G131 -> 12.62239651
B132: 1 | C132: VMY536M (DP<16 b) | D132: 7459 | E132: 2950 | F132: 298 | G132: 4.2 | H132: 16.82239651 | J132: 0.678429569 | K132: 1.666 | L132: 4.005332502 | M132: 2.3 | N132: 2.404161166 | O132: =R132/(B132*E132/$D$8*D132) -> 0.8242421403 | P132: =(T132*8.314*F132/4*LN(H132/G132)/1000)/V132 -> 0.5342329739 | Q132: =T132*3600/1000/0.17625 -> 23665.24823 | R132: =T132/J132*3.6 -> 6148.022124 | S132: 4171 | T132: =S132/3.6 -> 1158.611111 | U132: =T132*8.314*F132/4*LN(H132/G132)/1000 -> 995.8102634 | V132: =W132*B132 -> 1864 | W132: 1864 | X132: each | Y132: =H132-G132 -> 12.62239651
E136: Pin stage 1 | F136: bar abs | G136: 1.05 | H136: 1.05 | J136: Pin stage 1 | K136: bar abs | L136: 1.05 | M136: 1.05 | N136: 1.05 | Q136: 3.5
E137: Vi stage 1 | G137: 2.3 | H137: 3 | J137: Vi stage 1 | L137: 2.3 | M137: 3 | N137: 4.8 | Q137: 4.8
E138: Gamme | G138: 1.666 | H138: 1.666 | J138: Gamme | L138: 1 | M138: 1 | N138: 1 | Q138: 1.1
E139: Pint | F139: bar abs | G139: =G136*G137^G138 -> 4.205599127 | H139: 6.547466868 | J139: Pint | K139: bar abs | L139: =L136*L137^L138 -> 2.415 | M139: 3.15 | N139: 5.04 | Q139: =Q136*Q137^Q138 -> 19.65320596
E140: Vi stage 2 | G140: 2.3 | H140: 3 | J140: Vi stage 2 | L140: 2.3 | M140: 3 | N140: 3 | Q140: 3
E141: gamma | G141: 1.666 | H141: 1.666 | J141: gamma | L141: 1 | M141: 1 | N141: 1 | Q141: 1
E142: Pout stage 2 | F142: bar abs | G142: =G139*G140^G141 -> 16.84482287 | H142: 40.82792608 | J142: Pout stage 2 | K142: bar abs | L142: =L139*L140^L141 -> 5.5545 | M142: 9.45 | N142: 15.12 | Q142: =Q139*Q140^Q141 -> 58.95961788
L146: 1.05 | M146: 1.05 | N146: 1.05
L147: 2.3 | M147: 3 | N147: 4.8
L148: 1.1 | M148: 1.1 | N148: 1.1
L149: =L146*L147^L148 -> 2.624761932 | M149: 3.515787998 | N149: 5.895961788
L150: 2.3 | M150: 3 | N150: 3
L151: 1.1 | M151: 1.1 | N151: 1.1
L152: =L149*L150^L151 -> 6.561309714 | M152: 11.77215738 | N152: 19.74185875
L154: 1.05 | M154: 1.05 | N154: 1.05
L155: 2.3 | M155: 3 | N155: 4.8
L156: 1.2 | M156: 1.2 | N156: 1.2
L157: =L154*L155^L156 -> 2.852743354 | M157: 3.92405246 | N157: 6.897294723
L158: 2.3 | M158: 3 | N158: 3
L159: 1.2 | M159: 1.2 | N159: 1.2
L160: =L157*L158^L159 -> 7.750613947 | M160: 14.66494067 | N160: 25.77652031
D164: Displ @ 2950rpm | E164: Rotation | F164: Tin | G164: Pin | H164: Pout | I164: Pout | J164: Rho_in | K164: gamma | L164: Pr | M164: Vi | N164: Vi ideal | O164: Vol_% | P164: Iso_% | Q164: Nm3/h | R164: A_m3/h | S164: kg/h | T164: g/s
C166: LP STAGE (509 g/s)
B167: 2 | C167: VMY536H (DP<20 b) | D167: 5699 | E167: 3100 | F167: 298 | G167: 1.05 | H167: 5 | J167: =$D$4*G167*273.15/(F167)*4/$D$3 -> 0.1696073923 | K167: 1.3 | L167: =H167/G167 -> 4.761904762 | M167: 4.8 | N167: =L167^1/(K167) -> 3.663003663 | O167: =R167/(B167*E167/$D$8*D167) -> 0.4523789665 | P167: =(T167*8.314*F167/4*LN(H167/G167)/1000)/V167 -> 0.2608513311 | Q167: =T167*3600/1000/0.17625 -> 5214.184397 | R167: =T167/J167*3.6 -> 5418.395907 | S167: 919 | T167: =S167/3.6 -> 255.2777778 | U167: =T167*8.314*F167/4*LN(H167/G167)/1000 -> 246.7653592 | V167: =W167*B167 -> 946 | W167: 473 | X167: each | Y167: =H167-G167 -> 3.95
B168: 2 | C168: VMY536H (DP<20 b) | D168: 5699 | E168: 3600 | F168: 298 | G168: 1.05 | H168: 4.2 | J168: 0.1696073923 | K168: 1.3 | L168: 4 | M168: 2.3 | N168: 3.076923077 | O168: 0.4446533554 | P168: =(T168*8.314*F168/4*LN(H168/G168)/1000)/V168 -> 0.2308157578 | Q168: =T168*3600/1000/0.17625 -> 5951.77305 | R168: =T168/J168*3.6 -> 6184.871933 | S168: 1049 | T168: =S168/3.6 -> 291.3888889 | U168: =T168*8.314*F168/4*LN(H168/G168)/1000 -> 250.2042815 | V168: =W168*B168 -> 1084 | W168: 542 | X168: each | Y168: =H168-G168 -> 3.15
B169: 2 | C169: VMY536H (DP<20 b) | D169: 5699 | E169: 2950 | F169: 298 | G169: 1.05 | H169: 5 | J169: =$D$4*G169*273.15/(F169)*4/$D$3 -> 0.1696073923 | K169: 1.3 | L169: =H169/G169 -> 4.761904762 | M169: 4.8 | N169: =L169^1/(K169) -> 3.663003663 | O169: =R169/(B169*E169/$D$8*D169) -> 0.4515863584 | P169: =(T169*8.314*F169/4*LN(H169/G169)/1000)/V169 -> 0.2610397166 | Q169: =T169*3600/1000/0.17625 -> 4953.191489 | R169: =T169/J169*3.6 -> 5147.181313 | S169: 873 | T169: =S169/3.6 -> 242.5 | U169: =T169*8.314*F169/4*LN(H169/G169)/1000 -> 234.4136655 | V169: =W169*B169 -> 898 | W169: 449 | X169: each | Y169: =H169-G169 -> 3.95
B170: 2 | C170: VMY536H (DP<20 b) | D170: 5699 | E170: 2950 | F170: 298 | G170: 1.05 | H170: 4.2 | J170: 0.1696073923 | K170: 1.3 | L170: 4 | M170: 2.3 | N170: 3.076923077 | O170: 0.4417580184 | P170: =(T170*8.314*F170/4*LN(H170/G170)/1000)/V170 -> 0.2299023432 | Q170: =T170*3600/1000/0.17625 -> 4845.390071 | R170: =T170/J170*3.6 -> 5035.157894 | S170: 854 | T170: =S170/3.6 -> 237.2222222 | U170: =T170*8.314*F170/4*LN(H170/G170)/1000 -> 203.6934761 | V170: =W170*B170 -> 886 | W170: 443 | X170: each | Y170: =H170-G170 -> 3.15
C172: HP STAGE (969 g/s)
B173: 1 | C173: VMY536H (DP<20 b) | D173: 5699 | E173: 2950 | F173: 298 | G173: 5 | H173: 20 | J173: =$D$4*G173*273.15/(F173)*4/$D$3 -> 0.8076542488 | K173: 1.3 | L173: =H173/G173 -> 4 | M173: 3 | N173: =L173^1/(K173) -> 3.076923077 | O173: =R173/(B173*E173/$D$8*D173) -> 0.8310120101 | P173: =(T173*8.314*F173/4*LN(H173/G173)/1000)/V173 -> 0.561777917 | Q173: =T173*3600/1000/0.17625 -> 21702.12766 | R173: =T173/J173*3.6 -> 4735.937445 | S173: 3825 | T173: =S173/3.6 -> 1062.5 | U173: =T173*8.314*F173/4*LN(H173/G173)/1000 -> 912.3273372 | V173: =W173*B173 -> 1624 | W173: 1624 | X173: each | Y173: =H173-G173 -> 15
B174: 1 | C174: VMY536H (DP<20 b) | D174: 5699 | E174: 2950 | F174: 298 | G174: 4.6 | H174: 20 | J174: 0.7430419089 | K174: 1.3 | L174: 4.347826087 | M174: 3 | N174: 3.344481605 | O174: 0.8239275087 | P174: =(T174*8.314*F174/4*LN(H174/G174)/1000)/V174 -> 0.5576733304 | Q174: =T174*3600/1000/0.17625 -> 19795.74468 | R174: =T174/J174*3.6 -> 4695.562872 | S174: 3489 | T174: =S174/3.6 -> 969.1666667 | U174: =T174*8.314*F174/4*LN(H174/G174)/1000 -> 882.2392087 | V174: =W174*B174 -> 1582 | W174: 1582 | X174: each | Y174: =H174-G174 -> 15.4
B175: 1 | C175: VMY536H (DP<20 b) | D175: 5699 | E175: 2950 | F175: 298 | G175: 4.2 | H175: 16.84 | J175: 0.678429569 | K175: 1.3 | L175: 4.00952381 | M175: 2.3 | N175: 3.084249084 | O175: 0.8242873564 | P175: =(T175*8.314*F175/4*LN(H175/G175)/1000)/V175 -> 0.5321156743 | Q175: =T175*3600/1000/0.17625 -> 18082.2695 | R175: =T175/J175*3.6 -> 4697.613644 | S175: 3187 | T175: =S175/3.6 -> 885.2777778 | U175: =T175*8.314*F175/4*LN(H175/G175)/1000 -> 761.4575299 | V175: =W175*B175 -> 1431 | W175: 1431 | X175: each | Y175: =H175-G175 -> 12.64
B178: 1 | C178: VMY536H (DP<20 b) | D178: 5699 | E178: 2950 | F178: 298 | G178: 1.03 | H178: 3.97 | J178: =$D$4*G178*273.15/(F178)*4/$D$3 -> 0.1663767753 | K178: 1.3 | L178: =H178/G178 -> 3.854368932 | M178: 3 | N178: =L178^1/(K178) -> 2.964899178 | O178: =R178/(B178*E178/$D$8*D178) -> 3.361171745 | P178: =(T178*8.314*F178/4*LN(H178/G178)/1000)/V178 -> 0.5169932844 | Q178: =T178*3600/1000/0.17625 -> 18082.2695 | R178: =T178/J178*3.6 -> 19155.31777 | S178: 3187 | T178: =S178/3.6 -> 885.2777778 | U178: =T178*8.314*F178/4*LN(H178/G178)/1000 -> 739.8173899 | V178: =W178*B178 -> 1431 | W178: 1431 | X178: each | Y178: =H178-G178 -> 2.94
G184: 0.5 | H184: m3/day NTP

Sheet Sheet3
G5: L = 2.63
C6: M for Pin =1,05 and 2 | G6: M = 3.65
C7: M for Pin =4
C8: 320MUD
D9: Vol eff pi=1.05 | F9: Vol eff pi=2 | H9: Vol eff pi=4 | J9: Iso eff pi=1.05 | L9: Iso eff pi=2 | N9: Iso eff pi=4
C10: 1.988868157 | D10: 0.918398093 | E10: 1.988868157 | F10: 0.9415812475 | G10: 1.988868157 | H10: 0.9434946365 | I10: 1.986970684 | J10: 0.3140564164 | K10: 3.008970832 | L10: 0.566579261 | M10: 1.997723032 | N10: 0.5904568931
C11: 3.004395813 | D11: 0.9165292014 | E11: 3.003067582 | F11: 0.9385220501 | G11: 3.013250688 | H11: 0.9137258641 | I11: 2.997902238 | J11: 0.4314183552 | K11: 1.986970684 | L11: 0.4373420739 | M11: 2.997902238 | N11: 0.6372189114
C12: 5.008696752 | D12: 0.9143265793 | E12: 4.001454729 | F12: 0.9161620977 | G12: 4.005882167 | H12: 0.8761144219 | I12: 4.005144261 | J12: 0.4839809297 | K12: 4.008833792 | L12: 0.5936114422 | M12: 4.005144261 | N12: 0.5955025824
C13: 5.996015306 | D13: 0.9084862932 | E13: 4.997628159 | F13: 0.8919666269 | G13: 5.008696752 | H13: 0.8362336114 | I13: 4.997628159 | J13: 0.5026698451 | K13: 4.99541444 | L13: 0.5800953516 | M13: 4.997628159 | N13: 0.5373778308
C14: 7.005471048 | D14: 0.8956376639 | E14: 5.993801588 | F14: 0.8750019865 | G14: 5.991587869 | H14: 0.7936829559 | I14: 5.993801588 | J14: 0.5035041716 | K14: 5.988488663 | L14: 0.5605053635 | M14: 5.997491119 | N14: 0.4781406436
C15: 7.997217039 | D15: 0.8797298371 | E15: 7.008422673 | F15: 0.8566468017 | I15: 7.005471048 | J15: 0.4926579261 | K15: 7.003257329 | L15: 0.534340882
C16: 8.993390468 | D16: 0.8633214144 | E16: 8.008285633 | F16: 0.8374572904 | I16: 7.997217039 | J16: 0.4761382598 | K16: 8.004596102 | L16: 0.5065077473
C17: 9.99694296 | D17: 0.848303536 | E17: 8.993390468 | F17: 0.8191021057 | I17: 9.004459062 | J17: 0.4591179976 | K17: 8.99708 | L17: 0.4761938816
C18: 11.00418498 | D18: 0.8316170044 | E18: 10.00063249 | F18: 0.7962971792 | I18: 9.993991335 | J18: 0.439761621 | K18: 9.99694296 | L18: 0.4467143425
C19: 12.00404794 | D19: 0.8152085816 | I19: 11.00123336 | J19: 0.4204052443
I20: 11.99519307 | J20: 0.401215733

Sheet MYCOM
C3: air molar mass | D3: 28.95860066
C4: air density | D4: 1.275816215
C5: gamma | D5: =1.66 -> 1.66 | AF5: JCI | AG5: JCI
AC6: P1 | AD6: 1 | AE6: 4.88 | AF6: 1.01 | AG6: 4.88
D7: =D8/60 -> 49.16666667 | E7: Hz | AC7: P2 | AD7: 5.48 | AE7: 22.5 | AF7: 5 | AG7: 22.5
D8: 2950 | E8: RPm | AC8: Vi | AD8: 3.65 | AE8: 2.63 | AF8: 4.04 | AG8: 3.43
AC9: gamma | AD9: =LN(AD7/AD6)/LN(AD8) -> 1.313871481 | AE9: =LN(AE7/AE6)/LN(AE8) -> 1.5805539 | AF9: =LN(AF7/AF6)/LN(AF8) -> 1.145563948 | AG9: =LN(AG7/AG6)/LN(AG8) -> 1.23999624
D10: Displacement @ 2950 RPM m3/h | E10: Rotation | F10: Tin | G10: Pin | H10: Pout | I10: Rho_in | J10: Pr | M10: Vi_ideal | N10: Vol_% | O10: Iso_% | P10: Nm3/h | Q10: A_m3/h
B12: 1 | C12: 320 SUD | D12: 3170 | E12: 2950 | F12: 298 | G12: 1.05 | H12: 4 | I12: =1.27581621531631*G12*273.15/(F12)*4/28.958600656 -> 0.1696073923 | J12: =H12/G12 -> 3.80952381 | M12: =J12^1/($D$5) -> 2.294893861 | N12: =IF(G12>3,extrapol_(J12,Vol_ratio,Vol_MP_HP)/100,extrapol_(J12,Vol_ratio,Vol_LPL_MP)/100) -> 0.8705238095 | O12: =IF(G12>3,extrapol_(J12,IsoT_ratio,IsoT_MP_HP)/100,extrapol_(J12,IsoT_ratio,IsoT_LPL_MP)/100) ->  | P12: =R12*3600/1000/0.17625 -> 2655.556631 | Q12: =E12/$D$8*N12*D12 -> 2759.560476 | R12: =Q12*I12*1000/3600*B12 -> 130.0116267 | T12: =R12*8.314*F12/4*LN(H12/G12)/O12/1000 ->  | W12: 320 VSD | X12: 3168.574648
B13: 1 | C13: 320 MUD | D13: 3960 | E13: 2950 | F13: 298 | G13: 1.05 | H13: 4 | I13: =1.27581621531631*G13*273.15/(F13)*4/28.958600656 -> 0.1696073923 | J13: =H13/G13 -> 3.80952381 | M13: =J13^1/($D$5) -> 2.294893861 | N13: =IF(G13>3,extrapol_(J13,Vol_ratio,Vol_MP_HP)/100,extrapol_(J13,Vol_ratio,Vol_LPL_MP)/100) -> 0.8705238095 | O13: =IF(G13>3,extrapol_(J13,IsoT_ratio,IsoT_MP_HP)/100,extrapol_(J13,IsoT_ratio,IsoT_LPL_MP)/100) ->  | P13: =R13*3600/1000/0.17625 -> 3317.351501 | Q13: =E13/$D$8*N13*D13 -> 3447.274286 | R13: 162.4120006 | W13: 320 MUD | X13: 4000 | Z13: Y | AA13: 2.41
B14: 1 | C14: 320 L | D14: 4740 | E14: 2950 | F14: 298 | G14: 1.05 | H14: 4 | I14: 0.1696073923 | J14: 3.80952381 | M14: 2.294893861 | N14: =IF(G14>3,extrapol_(J14,Vol_ratio,Vol_MP_HP)/100,extrapol_(J14,Vol_ratio,Vol_LPL_MP)/100) -> 0.8705238095 | O14: =IF(G14>3,extrapol_(J14,IsoT_ratio,IsoT_MP_HP)/100,extrapol_(J14,IsoT_ratio,IsoT_LPL_MP)/100) ->  | P14: 3970.76922 | Q14: 4126.282857 | R14: 194.4022431 | W14: 320 L | X14: 4740 | Z14: N | AA14: 2.45
B15: 1 | C15: 320 VLD | D15: 4717.250704 | E15: 2950 | F15: 298 | G15: 1.05 | H15: 4 | I15: 0.1696073923 | J15: 3.80952381 | M15: 2.294893861 | N15: =IF(G15>3,extrapol_(J15,Vol_ratio,Vol_MP_HP)/100,extrapol_(J15,Vol_ratio,Vol_LPL_MP)/100) -> 0.8705238095 | O15: =IF(G15>3,extrapol_(J15,IsoT_ratio,IsoT_MP_HP)/100,extrapol_(J15,IsoT_ratio,IsoT_LPL_MP)/100) ->  | P15: 3951.711794 | Q15: 4106.479054 | R15: 193.4692232 | W15: 320 VLD | X15: 4717.250704 | Z15: K | AA15: 2.22
B16: 1 | C16: 320 LLUD | D16: 5600 | E16: 2950 | F16: 298 | G16: 1.05 | H16: 4 | I16: 0.1696073923 | J16: 3.80952381 | M16: 2.294893861 | N16: =IF(G16>3,extrapol_(J16,Vol_ratio,Vol_MP_HP)/100,extrapol_(J16,Vol_ratio,Vol_LPL_MP)/100) -> 0.8705238095 | O16: =IF(G16>3,extrapol_(J16,IsoT_ratio,IsoT_MP_HP)/100,extrapol_(J16,IsoT_ratio,IsoT_LPL_MP)/100) ->  | P16: 4691.204142 | Q16: 4874.933333 | R16: 229.6735361 | W16: 320 LLUD | X16: 5600 | Z16: L | AA16: 2.63
B17: 1 | C17: 400SUD | D17: 6480 | E17: 2950 | F17: 298 | G17: 1.05 | H17: 4 | I17: 0.1696073923 | J17: 3.80952381 | M17: 2.294893861 | N17: =IF(G17>3,extrapol_(J17,Vol_ratio,Vol_MP_HP)/100,extrapol_(J17,Vol_ratio,Vol_LPL_MP)/100) -> 0.8705238095 | O17: =IF(G17>3,extrapol_(J17,IsoT_ratio,IsoT_MP_HP)/100,extrapol_(J17,IsoT_ratio,IsoT_LPL_MP)/100) ->  | P17: 5428.393365 | Q17: 5640.994286 | R17: 265.7650918 | W17: 400SUD | X17: 6463.030986 | Z17: M | AA17: 3.65
B18: 1 | C18: 400MUD | D18: 8026.614085 | E18: 2950 | F18: 298 | G18: 1.05 | H18: 4 | I18: 0.1696073923 | J18: 3.80952381 | M18: 2.294893861 | N18: =IF(G18>3,extrapol_(J18,Vol_ratio,Vol_MP_HP)/100,extrapol_(J18,Vol_ratio,Vol_LPL_MP)/100) -> 0.8705238095 | O18: =IF(G18>3,extrapol_(J18,IsoT_ratio,IsoT_MP_HP)/100,extrapol_(J18,IsoT_ratio,IsoT_LPL_MP)/100) ->  | P18: 6724.015222 | Q18: 6987.35867 | R18: 329.1965786 | W18: 400MUD | X18: 8026.614085 | Z18: H | AA18: 5.8
B19: 1 | C19: 400LUD | D19: 9702 | E19: 2950 | F19: 298 | G19: 1.05 | H19: 4 | I19: 0.1696073923 | J19: 3.80952381 | M19: 2.294893861 | N19: =IF(G19>3,extrapol_(J19,Vol_ratio,Vol_MP_HP)/100,extrapol_(J19,Vol_ratio,Vol_LPL_MP)/100) -> 0.8705238095 | O19: =IF(G19>3,extrapol_(J19,IsoT_ratio,IsoT_MP_HP)/100,extrapol_(J19,IsoT_ratio,IsoT_LPL_MP)/100) ->  | P19: 8127.511177 | Q19: 8445.822 | R19: 397.9094014 | W19: 400LUD | X19: 9702
B20: 1 | C20: 400LLUD | D20: 11434.52958 | E20: 2950 | F20: 298 | G20: 1.05 | H20: 4 | I20: 0.1696073923 | J20: 3.80952381 | M20: 2.294893861 | N20: =IF(G20>3,extrapol_(J20,Vol_ratio,Vol_MP_HP)/100,extrapol_(J20,Vol_ratio,Vol_LPL_MP)/100) -> 0.8705238095 | O20: =IF(G20>3,extrapol_(J20,IsoT_ratio,IsoT_MP_HP)/100,extrapol_(J20,IsoT_ratio,IsoT_LPL_MP)/100) ->  | P20: 9578.877236 | Q20: 9954.030248 | R20: 468.9658647 | W20: 400LLUD | X20: 11434.52958
C23: 5kW@4,5K | E23: Rotation | F23: Tin | G23: Pin | H23: Pout | I23: Rho_in | J23: Pr | K23: gamma | L23: Vi | M23: Vi_ideal | N23: Vol_% | O23: Iso_% | P23: Nm3/h | Q23: A_m3/h
C24: LP STAGE (298 g/s)
B25: 2 | C25: 320 MUD | D25: 4000 | E25: 2950 | F25: =273+40 -> 313 | G25: 1.04 | H25: 5.33 | I25: =$D$4*G25*273.15/(F25)*4/$D$3 -> 0.1599413449 | J25: =H25/G25 -> 5.125 | K25: =LN(J25)/LN(L25) -> 1.67033312 | L25: 2.66 | M25: =J25^1/(1.66) -> 3.087349398 | N25: 0.913 | O25: 0.53 | P25: =R25*3600/1000/0.17625 -> 6628.150827 | Q25: =E25/$D$8*N25*D25 -> 3652 | R25: =Q25*I25*1000/3600*B25 -> 324.5032176 | S25: =R25*3.6 -> 1168.211583 | T25: =R25*8.314*F25/4*LN(H25/G25)/O25/1000 -> 650.9149505 | U25: =T25/B25 -> 325.4574752 | V25: each
C26: HP STAGE (568 g/s)
B27: 1 | C27: 320 SUD | D27: 3170 | E27: 2950 | F27: =273+40 -> 313 | G27: 5.29 | H27: 20.03 | I27: =$D$4*G27*273.15/(F27)*4/$D$3 -> 0.8135478025 | J27: 3.786389414 | K27: =LN(J27)/LN(L27) -> 1.669468201 | L27: 2.22 | M27: =J27^1/(1.66) -> 2.280957478 | N27: =IF(G27>3,extrapol_(J27,Vol_ratio,Vol_MP_HP)/100,extrapol_(J27,Vol_ratio,Vol_LPL_MP)/100) -> 0.7882816635 | O27: =IF(G27>3,extrapol_(J27,IsoT_ratio,IsoT_MP_HP)/100,extrapol_(J27,IsoT_ratio,IsoT_LPL_MP)/100) ->  | P27: 11534.39015 | Q27: =E27/$D$8*N27*D27 -> 2498.852873 | R27: =Q27*I27*1000/3600*B27 -> 564.7045178 | T27: =R27*8.314*F27/4*LN(H27/G27)/O27/1000 ->  | U27: =T27/B27 ->  | V27: each
C28: 10kW@4,5K | E28: Rotation | F28: Tin | G28: Pin | H28: Pout | I28: Rho_in | J28: Pr | M28: Vi_ideal | N28: Vol_% | O28: Iso_% | P28: Nm3/h | Q28: A_m3/h
C29: LP STAGE (509 g/s)
B30: 2 | C30: 400SUD | D30: 6480 | E30: 2950 | F30: =273+40 -> 313 | G30: 1.04 | H30: 4.53 | I30: =$D$4*G30*273.15/(F30)*4/$D$3 -> 0.1599413449 | J30: =H30/G30 -> 4.355769231 | K30: =LN(J30)/LN(L30) -> 1.504100925 | L30: 2.66 | M30: =J30^1/(1.66) -> 2.623957368 | N30: =IF(G30>3,extrapol_(J30,Vol_ratio,Vol_MP_HP)/100,extrapol_(J30,Vol_ratio,Vol_LPL_MP)/100) -> 0.8654423077 | O30: =IF(G30>3,extrapol_(J30,IsoT_ratio,IsoT_MP_HP)/100,extrapol_(J30,IsoT_ratio,IsoT_LPL_MP)/100) ->  | P30: =R30*3600/1000/0.17625 -> 10178.28815 | Q30: =E30/$D$8*N30*D30 -> 5608.066154 | R30: =Q30*I30*1000/3600*B30 -> 498.3120239 | S30: =R30*3.6 -> 1793.923286 | T30: =R30*8.314*F30/4*LN(H30/G30)/O30/1000 ->  | U30: =T30/B30 ->  | V30: each
C31: HP STAGE (969 g/s)
B32: 1 | C32: 400SUD | D32: 6480 | E32: 2950 | F32: =273+40 -> 313 | G32: 4.49 | H32: 20.03 | I32: =$D$4*G32*273.15/(F32)*4/$D$3 -> 0.6905159987 | J32: =H32/G32 -> 4.461024499 | K32: =LN(J32)/LN(L32) -> 1.875065775 | L32: 2.22 | M32: =J32^1/($D$13) -> 0.001126521338 | N32: =IF(G32>3,extrapol_(J32,Vol_ratio,Vol_MP_HP)/100,extrapol_(J32,Vol_ratio,Vol_LPL_MP)/100) -> 0.783311804 | O32: =IF(G32>3,extrapol_(J32,IsoT_ratio,IsoT_MP_HP)/100,extrapol_(J32,IsoT_ratio,IsoT_LPL_MP)/100) ->  | P32: =R32*3600/1000/0.17625 -> 19886.31419 | Q32: =E32/$D$8*N32*D32 -> 5075.86049 | R32: =Q32*I32*1000/3600*B32 -> 973.6007988 | T32: =R32*8.314*F32/4*LN(H32/G32)/O32/1000 ->  | U32: =T32/B32 ->  | V32: each
C33: 25kW @4,5K | E33: Rotation | F33: Tin | G33: Pin | H33: Pout | I33: Rho_in | J33: Pr | M33: Vi_ideal | N33: Vol_% | O33: Iso_% | P33: Nm3/h | Q33: A_m3/h
C34: LP STAGE (1030 g/s)
B35: 4 | C35: 400SUD | D35: 6480 | E35: 2950 | F35: =273+40 -> 313 | G35: 1.04 | H35: 4.53 | I35: =$D$4*G35*273.15/(F35)*4/$D$3 -> 0.1599413449 | J35: =H35/G35 -> 4.355769231 | M35: =J35^1/(1.66) -> 2.623957368 | N35: =IF(G35>3,extrapol_(J35,Vol_ratio,Vol_MP_HP)/100,extrapol_(J35,Vol_ratio,Vol_LPL_MP)/100) -> 0.8654423077 | O35: =IF(G35>3,extrapol_(J35,IsoT_ratio,IsoT_MP_HP)/100,extrapol_(J35,IsoT_ratio,IsoT_LPL_MP)/100) ->  | P35: =R35*3600/1000/0.17625 -> 20356.5763 | Q35: =E35/$D$8*N35*D35 -> 5608.066154 | R35: =Q35*I35*1000/3600*B35 -> 996.6240478 | S35: =R35*3.6 -> 3587.846572 | T35: =R35*8.314*F35/4*LN(H35/G35)/O35/1000 ->  | U35: =T35/B35 ->  | V35: each
C36: HP STAGE (1962 g/s)
B37: 2 | C37: 400SUD | D37: 6480 | E37: 2950 | F37: =273+40 -> 313 | G37: 4.49 | H37: 20.03 | I37: =$D$4*G37*273.15/(F37)*4/$D$3 -> 0.6905159987 | J37: =H37/G37 -> 4.461024499 | M37: =J37^1/($D$13) -> 0.001126521338 | N37: =IF(G37>3,extrapol_(J37,Vol_ratio,Vol_MP_HP)/100,extrapol_(J37,Vol_ratio,Vol_LPL_MP)/100) -> 0.783311804 | O37: =IF(G37>3,extrapol_(J37,IsoT_ratio,IsoT_MP_HP)/100,extrapol_(J37,IsoT_ratio,IsoT_LPL_MP)/100) ->  | P37: =R37*3600/1000/0.17625 -> 39772.62838 | Q37: =E37/$D$8*N37*D37 -> 5075.86049 | R37: =Q37*I37*1000/3600*B37 -> 1947.201598 | T37: =R37*8.314*F37/4*LN(H37/G37)/O37/1000 ->  | U37: =T37/B37 ->  | V37: each
C38: 35kW @15K | E38: Rotation | F38: Tin | G38: Pin | H38: Pout | I38: Rho_in | J38: Pr | M38: Vi_ideal | N38: Vol_% | O38: Iso_% | P38: Nm3/h | Q38: A_m3/h
C39: LP STAGE (1158 g/s)
B40: 2 | C40: 400SUD | D40: 6480 | E40: 2950 | F40: =273+40 -> 313 | G40: 1.04 | H40: 4.53 | I40: =$D$4*G40*273.15/(F40)*4/$D$3 -> 0.1599413449 | J40: =H40/G40 -> 4.355769231 | M40: =J40^1/(1.66) -> 2.623957368 | N40: =IF(G40>3,extrapol_(J40,Vol_ratio,Vol_MP_HP)/100,extrapol_(J40,Vol_ratio,Vol_LPL_MP)/100) -> 0.8654423077 | O40: =IF(G40>3,extrapol_(J40,IsoT_ratio,IsoT_MP_HP)/100,extrapol_(J40,IsoT_ratio,IsoT_LPL_MP)/100) ->  | P40: =R40*3600/1000/0.17625 -> 10178.28815 | Q40: =E40/$D$8*N40*D40 -> 5608.066154 | R40: =Q40*I40*1000/3600*B40 -> 498.3120239 | S40: =R40*3.6 -> 1793.923286 | T40: =R40*8.314*F40/4*LN(H40/G40)/O40/1000 -> 
Y89: Case 1 | Z89: Case 2 | AA89: Case 3
W90: Stage 1 : | Y90: L | Z90: L | AA90: Y
W91: Pin stage 1 | X91: bar abs | Y91: 1.05 | Z91: 1.05 | AA91: 1.05 | AB91: 1.05 | AC91: 1.05
W92: Vi stage 1 | Y92: 2.66 | Z92: 2.66 | AA92: 2.41 | AB92: 2.6 | AC92: 2.6
W93: Gamme | Y93: 1.666 | Z93: 1.666 | AA93: 1.666 | AB93: 1.666 | AC93: 1.666
W94: Pint | X94: bar abs | Y94: =Y91*Y92^Y93 -> 5.358486066 | Z94: =Z91*Z92^Z93 -> 5.358486066 | AA94: =AA91*AA92^AA93 -> 4.546002728 | AB94: =AB91*AB92^AB93 -> 5.158636145 | AC94: =AC91*AC92^AC93 -> 5.158636145
W95: Stage 2:
W96: Vi stage 2 | Y96: 2.22 | Z96: 2.66 | AA96: 2.22 | AB96: 2.6 | AC96: 2.2
W97: gamma | Y97: 1.666 | Z97: 1.666 | AA97: 1.666 | AB97: 1.666 | AC97: 1.666
W98: Pout stage 2 | X98: bar abs | Y98: =Y94*Y96^Y97 -> 20.23327392 | Z98: =Z94*Z96^Z97 -> 27.34606944 | AA98: =AA94*AA96^AA97 -> 17.16539286 | AB98: =AB94*AB96^AB97 -> 25.34431131 | AC98: =AC94*AC96^AC97 -> 19.18717705

Sheet Data 320MUD-LM
A2: Compressor 320 M with L or M port | O2: Compressor 400 S with L or M port
A3: Volumetric Efficiency | G3: Isothermal Efficiency | O3: Volumetric Efficiency | U3: Isothermal Efficiency
A4: Pin = 1,05 | C4: Pin = 2 | E4: Pin = 4 | G4: Pin = 1,05 | I4: Pin = 2 | K4: Pin = 4 | O4: Pin = 1,05 | Q4: Pin = 2 | S4: Pin = 4 | U4: Pin = 1,05 | W4: Pin = 2 | Y4: Pin = 4
A5: Pr | B5: Vol eff pi=1.05 | C5: Pr | D5: Vol eff pi=2 | E5: Pr | F5: Vol eff pi=4 | G5: Pr | H5: Iso eff pi=1.05 | I5: Pr | J5: Iso eff pi=2 | K5: Pr | L5: Iso eff pi=4 | P5: Vol eff pi=1.05 | R5: Vol eff pi=2 | T5: Vol eff pi=4
A6: 1.988868157 | B6: 0.918398093 | C6: 1.988868157 | D6: 0.9415812475 | E6: 1.988868157 | F6: 0.9434946365 | G6: 1.986970684 | H6: 0.3140564164 | I6: 1.986970684 | J6: 0.4373420739 | K6: 1.997723032 | L6: 0.5904568931 | O6: 2.002856391 | P6: 0.8989026572 | Q6: 2.001353027 | R6: 0.9228728872 | S6: 3.002367798 | T6: 0.8945123344 | V6: Iso eff pi=1.05 | X6: Iso eff pi=2 | Z6: Iso eff pi=4
A7: 3.004395813 | B7: 0.9165292014 | C7: 3.003067582 | D7: 0.9385220501 | E7: 3.013250688 | F7: 0.9137258641 | G7: 2.997902238 | H7: 0.4314183552 | I7: 3.008970832 | J7: 0.566579261 | K7: 2.997902238 | L7: 0.6372189114 | O7: 3.000875172 | P7: 0.8971667047 | Q7: 3.00146578 | R7: 0.9199748744 | S7: 2.004735596 | T7: 0.9244118319 | U7: 2.999774495 | V7: 0.4071765075 | W7: 2.00248055 | X7: 0.4109639105 | Y7: 2.001514102 | Z7: 0.5559387848
A8: 5.008696752 | B8: 0.9143265793 | C8: 4.001454729 | D8: 0.9161620977 | E8: 4.005882167 | F8: 0.8761144219 | G8: 4.005144261 | H8: 0.4839809297 | I8: 4.008833792 | J8: 0.5936114422 | K8: 4.005144261 | L8: 0.5955025824 | O8: 4.003404045 | P8: 0.8980803639 | Q8: 4.005766474 | R8: 0.8971476702 | S8: 4.008569174 | T8: 0.8587368661 | U8: 4.003269816 | V8: 0.4549437529 | W8: 3.000112752 | X8: 0.5331201462 | Y8: 2.998244286 | Z8: 0.5989093193
A9: 5.996015306 | B9: 0.9084862932 | C9: 4.997628159 | D9: 0.8919666269 | E9: 5.008696752 | F9: 0.8362336114 | G9: 4.997628159 | H9: 0.5026698451 | I9: 4.99541444 | J9: 0.5800953516 | K9: 4.997628159 | L9: 0.5373778308 | O9: 4.996655016 | P9: 0.89570485 | Q9: 5.004171834 | R9: 0.8739864093 | S9: 5.003044312 | T9: 0.8195637277 | U9: 5 | V9: 0.4720177593 | W9: 5.001691284 | X9: 0.5472304705 | Y9: 4.001739607 | Z9: 0.5601359068
A10: 7.005471048 | B10: 0.8956376639 | C10: 5.993801588 | D10: 0.8750019865 | E10: 5.991587869 | F10: 0.7936829559 | G10: 5.993801588 | H10: 0.5035041716 | I10: 5.988488663 | J10: 0.5605053635 | K10: 5.997491119 | L10: 0.4781406436 | O10: 6.002405382 | P10: 0.8893891808 | Q10: 6.004059082 | R10: 0.8569181133 | S10: 5.999774495 | T10: 0.7765931932 | U10: 6.001240275 | V10: 0.474050651 | W10: 6.002029541 | X10: 0.5268844221 | Y10: 4.99846979 | Z10: 0.5041742805
A11: 7.997217039 | B11: 0.8797298371 | C11: 7.008422673 | D11: 0.8566468017 | G11: 7.005471048 | H11: 0.4926579261 | I11: 7.003257329 | J11: 0.534340882 | O11: 7.001841621 | P11: 0.8771575681 | Q11: 7.003044312 | R11: 0.8399297624 | U11: 6.999903355 | V11: 0.4629953746 | W11: 7.001916789 | X11: 0.5030607583 | Y11: 6.001965111 | Z11: 0.4492119689
A12: 8.993390468 | B12: 0.8633214144 | C12: 8.008285633 | D12: 0.8374572904 | G12: 7.997217039 | H12: 0.4761382598 | I12: 8.004596102 | J12: 0.5065077473 | O12: 8.003532905 | P12: 0.8616482031 | Q12: 8.004284587 | R12: 0.821142645 | U12: 8.005524862 | V12: 0.4478286318 | W12: 8.006163791 | X12: 0.4756129131
A13: 9.99694296 | B13: 0.848303536 | C13: 8.993390468 | D13: 0.8191021057 | G13: 9.004459062 | H13: 0.4591179976 | I13: 8.99708 | J13: 0.4761938816 | O13: 9.003645657 | P13: 0.8460588929 | Q13: 9.003269816 | R13: 0.800956487 | U13: 9.001353027 | V13: 0.4307203632 | W13: 9.002142293 | X13: 0.4485381453
A14: 11.00418498 | B14: 0.8316170044 | C14: 10.00063249 | D14: 0.7962971792 | G14: 9.993991335 | H14: 0.439761621 | I14: 9.99694296 | J14: 0.4467143425 | O14: 10.00150336 | P14: 0.8307693772 | Q14: 10 | R14: 0.7799708771 | U14: 9.998985229 | V14: 0.4140917656 | W14: 10.00338257 | X14: 0.421836455
A15: 12.00404794 | B15: 0.8152085816 | G15: 11.00123336 | H15: 0.4204052443 | O15: 11.00725373 | P15: 0.8146804096 | U15: 11.00202954 | V15: 0.3958642645
G16: 11.99519307 | H16: 0.401215733
B19: Equation volumetric Effiency Pin=1,05 | E19: =[3]!f_reg_("0",$A$6:$A$15,$B$6:$B$15,7,"form") -> 7.66E-07* x^7 -38.046E-6*x^6 + 76.790E-5*x^5 -80.700E-4*x^4 + 47.040E-3*x^3 -15.129E-2*x^2 + 24.705E-2*x + 0.760
B20: Equation volumetric Effiency Pin=2 | E20: =[3]!f_reg_("0",$C$6:$C$14,$D$6:$D$14,7,"form") -> -3.60E-06* x^7 + 14.269E-5*x^6 -22.853E-4*x^5 + 18.815E-3*x^4 -83.254E-3*x^3 + 18.504E-2*x^2 -17.471E-2*x + 0.980
B21: Equation volumetric Effiency Pin=4 | E21: =[3]!f_reg_("0",$E$6:$E$10,$F$6:$F$10,7,"form") -> 6.05E-06* x^7 -11.902E-5*x^6 + 82.507E-5*x^5 -20.995E-4*x^4 + 0.957
B28: EXTRAPOLATION LINEAIRE | F28: Regression linaire X^6
B30: Volumetric Efficiency | F30: Isothermal Efficiency
B31: 1.05 | C31: 2 | D31: 4 | F31: 1.05 | G31: 2 | H31: 4 | J31: Pout | K31: PR | L31: 1.05 | M31: 1.5 | N31: 1.8 | O31: 2 | P31: 2.2 | Q31: 3.9 | R31: 3.95 | S31: 4
A32: 2 | B32: =extrapol_(A32,$A$6:$A$15,$B$6:$B$15) -> 0.9183776069 | C32: =extrapol_(A32,$C$6:$C$15,$D$6:$D$15) -> 0.9415476698 | D32: =extrapol_(A32,$E$6:$E$15,$F$6:$F$15) -> 0.9431711428 | E32: 2 | F32: =[3]!f_reg_(A32,$G$6:$G$16,$H$6:$H$16,7,"value") -> 0.3162076423 | G32: =[3]!f_reg_(A32,$I$6:$I$14,$J$6:$J$14,7,"value") -> 0.4399353601 | H32: =[3]!f_reg_(A32,$K$6:$K$10,$L$6:$L$10,7,"value") -> 0.5906131636 | J32: =L31*K32 -> 2.1 | K32: 2 | L32: =[3]!BILINTERP($E$31:$H$39,L$31,$K32) -> 0.3162076423 | M32: =[3]!BILINTERP($E$31:$H$39,M$31,$K32) -> 0.3748155086 | N32: =[3]!BILINTERP($E$31:$H$39,N$31,$K32) -> 0.4138874195 | O32: =[3]!BILINTERP($E$31:$H$39,O$31,$K32) -> 0.4399353601 | P32: =[3]!BILINTERP($E$31:$H$39,P$31,$K32) -> 0.4550031404 | Q32: =[3]!BILINTERP($E$31:$H$39,Q$31,$K32) -> 0.5830792734 | R32: =[3]!BILINTERP($E$31:$H$39,R$31,$K32) -> 0.5868462185 | S32: =[3]!BILINTERP($E$31:$H$39,S$31,$K32) -> 0.5906131636
A33: 2.5 | B33: =extrapol_(A33,$A$6:$A$15,$B$6:$B$15) -> 0.917457449 | C33: =extrapol_(A33,$C$6:$C$15,$D$6:$D$15) -> 0.9400394864 | D33: =extrapol_(A33,$E$6:$E$15,$F$6:$F$15) -> 0.9286410373 | E33: 2.5 | F33: =[3]!f_reg_(A33,$G$6:$G$16,$H$6:$H$16,7,"value") -> 0.3847332042 | G33: =[3]!f_reg_(A33,$I$6:$I$14,$J$6:$J$14,7,"value") -> 0.5198016069 | H33: =[3]!f_reg_(A33,$K$6:$K$10,$L$6:$L$10,7,"value") -> 0.6218905186 | J33: =L32*K33 -> 0.7905191057 | K33: 2.5 | L33: =[3]!BILINTERP($E$31:$H$39,L$31,$K33) -> 0.3847332042 | M33: =[3]!BILINTERP($E$31:$H$39,M$31,$K33) -> 0.4487129739 | N33: =[3]!BILINTERP($E$31:$H$39,N$31,$K33) -> 0.4913661537 | O33: =[3]!BILINTERP($E$31:$H$39,O$31,$K33) -> 0.5198016069 | P33: =[3]!BILINTERP($E$31:$H$39,P$31,$K33) -> 0.5300104981 | Q33: =[3]!BILINTERP($E$31:$H$39,Q$31,$K33) -> 0.616786073 | R33: =[3]!BILINTERP($E$31:$H$39,R$31,$K33) -> 0.6193382958 | S33: =[3]!BILINTERP($E$31:$H$39,S$31,$K33) -> 0.6218905186
A34: =A33+0.5 -> 3 | B34: =extrapol_(A34,$A$6:$A$15,$B$6:$B$15) -> 0.9165372911 | C34: =extrapol_(A34,$C$6:$C$15,$D$6:$D$15) -> 0.938531303 | D34: =extrapol_(A34,$E$6:$E$15,$F$6:$F$15) -> 0.9141109319 | E34: =E33+0.5 -> 3 | F34: =[3]!f_reg_(A34,$G$6:$G$16,$H$6:$H$16,7,"value") -> 0.4315884935 | G34: =[3]!f_reg_(A34,$I$6:$I$14,$J$6:$J$14,7,"value") -> 0.5661030706 | H34: =[3]!f_reg_(A34,$K$6:$K$10,$L$6:$L$10,7,"value") -> 0.6372335299 | J34: 1.154199613 | K34: =K33+0.5 -> 3 | L34: =[3]!BILINTERP($E$31:$H$39,L$31,$K34) -> 0.4315884935 | M34: =[3]!BILINTERP($E$31:$H$39,M$31,$K34) -> 0.4953059248 | N34: =[3]!BILINTERP($E$31:$H$39,N$31,$K34) -> 0.5377842123 | O34: =[3]!BILINTERP($E$31:$H$39,O$31,$K34) -> 0.5661030706 | P34: =[3]!BILINTERP($E$31:$H$39,P$31,$K34) -> 0.5732161165 | Q34: =[3]!BILINTERP($E$31:$H$39,Q$31,$K34) -> 0.633677007 | R34: =[3]!BILINTERP($E$31:$H$39,R$31,$K34) -> 0.6354552685 | S34: =[3]!BILINTERP($E$31:$H$39,S$31,$K34) -> 0.6372335299
A35: =A34+0.5 -> 3.5 | B35: =extrapol_(A35,$A$6:$A$15,$B$6:$B$15) -> 0.9159845583 | C35: =extrapol_(A35,$C$6:$C$15,$D$6:$D$15) -> 0.9273927149 | D35: =extrapol_(A35,$E$6:$E$15,$F$6:$F$15) -> 0.8952826211 | E35: =E34+0.5 -> 3.5 | F35: =[3]!f_reg_(A35,$G$6:$G$16,$H$6:$H$16,7,"value") -> 0.4631417127 | G35: =[3]!f_reg_(A35,$I$6:$I$14,$J$6:$J$14,7,"value") -> 0.5877872015 | H35: =[3]!f_reg_(A35,$K$6:$K$10,$L$6:$L$10,7,"value") -> 0.6274617445 | J35: 1.510559727 | K35: =K34+0.5 -> 3.5 | L35: =[3]!BILINTERP($E$31:$H$39,L$31,$K35) -> 0.4631417127 | M35: =[3]!BILINTERP($E$31:$H$39,M$31,$K35) -> 0.5221843127 | N35: =[3]!BILINTERP($E$31:$H$39,N$31,$K35) -> 0.561546046 | O35: =[3]!BILINTERP($E$31:$H$39,O$31,$K35) -> 0.5877872015 | P35: =[3]!BILINTERP($E$31:$H$39,P$31,$K35) -> 0.5917546558 | Q35: =[3]!BILINTERP($E$31:$H$39,Q$31,$K35) -> 0.6254780173 | R35: =[3]!BILINTERP($E$31:$H$39,R$31,$K35) -> 0.6264698809 | S35: =[3]!BILINTERP($E$31:$H$39,S$31,$K35) -> 0.6274617445
A36: 4 | B36: =extrapol_(A36,$A$6:$A$15,$B$6:$B$15) -> 0.9154350844 | C36: =extrapol_(A36,$C$6:$C$15,$D$6:$D$15) -> 0.916194678 | D36: =extrapol_(A36,$E$6:$E$15,$F$6:$F$15) -> 0.876337301 | E36: 4 | F36: =[3]!f_reg_(A36,$G$6:$G$16,$H$6:$H$16,7,"value") -> 0.483740492 | G36: =[3]!f_reg_(A36,$I$6:$I$14,$J$6:$J$14,7,"value") -> 0.5932480703 | H36: =[3]!f_reg_(A36,$K$6:$K$10,$L$6:$L$10,7,"value") -> 0.5958916974 | J36: 1.852566851 | K36: 4 | L36: =[3]!BILINTERP($E$31:$H$39,L$31,$K36) -> 0.483740492 | M36: =[3]!BILINTERP($E$31:$H$39,M$31,$K36) -> 0.5356125028 | N36: =[3]!BILINTERP($E$31:$H$39,N$31,$K36) -> 0.5701938433 | O36: =[3]!BILINTERP($E$31:$H$39,O$31,$K36) -> 0.5932480703 | P36: =[3]!BILINTERP($E$31:$H$39,P$31,$K36) -> 0.593512433 | Q36: =[3]!BILINTERP($E$31:$H$39,Q$31,$K36) -> 0.595759516 | R36: =[3]!BILINTERP($E$31:$H$39,R$31,$K36) -> 0.5958256067 | S36: =[3]!BILINTERP($E$31:$H$39,S$31,$K36) -> 0.5958916974
A37: 4.5 | B37: =extrapol_(A37,$A$6:$A$15,$B$6:$B$15) -> 0.9148856105 | C37: =extrapol_(A37,$C$6:$C$15,$D$6:$D$15) -> 0.9040532247 | D37: =extrapol_(A37,$E$6:$E$15,$F$6:$F$15) -> 0.8564639103 | E37: 4.5 | F37: =[3]!f_reg_(A37,$G$6:$G$16,$H$6:$H$16,7,"value") -> 0.4963236121 | G37: =[3]!f_reg_(A37,$I$6:$I$14,$J$6:$J$14,7,"value") -> 0.5893001397 | H37: =[3]!f_reg_(A37,$K$6:$K$10,$L$6:$L$10,7,"value") -> 0.5590747491 | J37: 2.176832214 | K37: 4.5 | L37: =[3]!BILINTERP($E$31:$H$39,L$31,$K37) -> 0.4963236121 | M37: =[3]!BILINTERP($E$31:$H$39,M$31,$K37) -> 0.5403651252 | N37: =[3]!BILINTERP($E$31:$H$39,N$31,$K37) -> 0.5697261339 | O37: =[3]!BILINTERP($E$31:$H$39,O$31,$K37) -> 0.5893001397 | P37: =[3]!BILINTERP($E$31:$H$39,P$31,$K37) -> 0.5862776007 | Q37: =[3]!BILINTERP($E$31:$H$39,Q$31,$K37) -> 0.5605860186 | R37: =[3]!BILINTERP($E$31:$H$39,R$31,$K37) -> 0.5598303839 | S37: =[3]!BILINTERP($E$31:$H$39,S$31,$K37) -> 0.5590747491
A38: 5 | B38: =extrapol_(A38,$A$6:$A$15,$B$6:$B$15) -> 0.9143361365 | C38: =extrapol_(A38,$C$6:$C$15,$D$6:$D$15) -> 0.8919262349 | D38: =extrapol_(A38,$E$6:$E$15,$F$6:$F$15) -> 0.8365794715 | E38: 5 | F38: =[3]!f_reg_(A38,$G$6:$G$16,$H$6:$H$16,7,"value") -> 0.5028908783 | G38: =[3]!f_reg_(A38,$I$6:$I$14,$J$6:$J$14,7,"value") -> 0.5807404542 | H38: =[3]!f_reg_(A38,$K$6:$K$10,$L$6:$L$10,7,"value") -> 0.5373268888 | J38: 2.481618061 | K38: 5 | L38: =[3]!BILINTERP($E$31:$H$39,L$31,$K38) -> 0.5028908783 | M38: =[3]!BILINTERP($E$31:$H$39,M$31,$K38) -> 0.5397669932 | N38: =[3]!BILINTERP($E$31:$H$39,N$31,$K38) -> 0.5643510698 | O38: =[3]!BILINTERP($E$31:$H$39,O$31,$K38) -> 0.5807404542 | P38: =[3]!BILINTERP($E$31:$H$39,P$31,$K38) -> 0.5763990977 | Q38: =[3]!BILINTERP($E$31:$H$39,Q$31,$K38) -> 0.5394975671 | R38: =[3]!BILINTERP($E$31:$H$39,R$31,$K38) -> 0.5384122279 | S38: =[3]!BILINTERP($E$31:$H$39,S$31,$K38) -> 0.5373268888
A39: 5.5 | B39: =extrapol_(A39,$A$6:$A$15,$B$6:$B$15) -> 0.9114203729 | C39: =extrapol_(A39,$C$6:$C$15,$D$6:$D$15) -> 0.8834113318 | D39: =extrapol_(A39,$E$6:$E$15,$F$6:$F$15) -> 0.8149644445 | E39: 5.5 | F39: =[3]!f_reg_(A39,$G$6:$G$16,$H$6:$H$16,7,"value") -> 0.5048488924 | G39: =[3]!f_reg_(A39,$I$6:$I$14,$J$6:$J$14,7,"value") -> 0.5703701955 | H39: =[3]!f_reg_(A39,$K$6:$K$10,$L$6:$L$10,7,"value") -> 0.5308837879 | J39: 2.765899831 | K39: 5.5 | L39: =[3]!BILINTERP($E$31:$H$39,L$31,$K39) -> 0.5048488924 | M39: =[3]!BILINTERP($E$31:$H$39,M$31,$K39) -> 0.5358852991 | N39: =[3]!BILINTERP($E$31:$H$39,N$31,$K39) -> 0.556576237 | O39: =[3]!BILINTERP($E$31:$H$39,O$31,$K39) -> 0.5703701955 | P39: =[3]!BILINTERP($E$31:$H$39,P$31,$K39) -> 0.5664215548 | Q39: =[3]!BILINTERP($E$31:$H$39,Q$31,$K39) -> 0.5328581083 | R39: =[3]!BILINTERP($E$31:$H$39,R$31,$K39) -> 0.5318709481 | S39: =[3]!BILINTERP($E$31:$H$39,S$31,$K39) -> 0.5308837879
A40: 6 | B40: =extrapol_(A40,$A$6:$A$15,$B$6:$B$15) -> 0.9084355749 | C40: =extrapol_(A40,$C$6:$C$15,$D$6:$D$15) -> 0.874889853 | E40: 6 | F40: =[3]!f_reg_(A40,$G$6:$G$16,$H$6:$H$16,7,"value") -> 0.5032504656 | G40: =[3]!f_reg_(A40,$I$6:$I$14,$J$6:$J$14,7,"value") -> 0.5593465563 | H40: =[3]!f_reg_(A40,$K$6:$K$10,$L$6:$L$10,7,"value") -> 0.4775143869
A41: 6.5 | B41: =extrapol_(A41,$A$6:$A$15,$B$6:$B$15) -> 0.9020714379 | C41: =extrapol_(A41,$C$6:$C$15,$D$6:$D$15) -> 0.8658445133 | E41: 6.5 | F41: =[3]!f_reg_(A41,$G$6:$G$16,$H$6:$H$16,7,"value") -> 0.4989454194 | G41: =[3]!f_reg_(A41,$I$6:$I$14,$J$6:$J$14,7,"value") -> 0.54773588
A42: 7 | B42: =extrapol_(A42,$A$6:$A$15,$B$6:$B$15) -> 0.8957073009 | C42: =extrapol_(A42,$C$6:$C$15,$D$6:$D$15) -> 0.8567991736 | E42: 7 | F42: =[3]!f_reg_(A42,$G$6:$G$16,$H$6:$H$16,7,"value") -> 0.4926605177 | G42: =[3]!f_reg_(A42,$I$6:$I$14,$J$6:$J$14,7,"value") -> 0.5351390183 | L42: =L$31*$K32 -> 2.1 | M42: =M$31*$K32 -> 3 | N42: 3.6 | O42: 4 | P42: 4.4 | Q42: 7.8 | R42: 7.9 | S42: 8
A43: 7.5 | B43: =extrapol_(A43,$A$6:$A$15,$B$6:$B$15) -> 0.8877053093 | C43: =extrapol_(A43,$C$6:$C$15,$D$6:$D$15) -> 0.8472123802 | E43: 7.5 | F43: =[3]!f_reg_(A43,$G$6:$G$16,$H$6:$H$16,7,"value") -> 0.4850262763 | G43: =[3]!f_reg_(A43,$I$6:$I$14,$J$6:$J$14,7,"value") -> 0.5212598548 | L43: =L$31*$K33 -> 2.625 | M43: 3.75 | N43: 4.5 | O43: 5 | P43: 5.5 | Q43: 9.75 | R43: 9.875 | S43: 10
L44: =L$31*$K34 -> 3.15 | M44: 4.5 | N44: 5.4 | O44: 6 | P44: 6.6 | Q44: 11.7 | R44: 11.85 | S44: 12
L45: =L$31*$K35 -> 3.675 | M45: 5.25 | N45: 6.3 | O45: 7 | P45: 7.7 | Q45: 13.65 | R45: 13.825 | S45: 14
L46: =L$31*$K36 -> 4.2 | M46: 6 | N46: 7.2 | O46: 8 | P46: 8.8 | Q46: 15.6 | R46: 15.8 | S46: 16
L47: =L$31*$K37 -> 4.725 | M47: 6.75 | N47: 8.1 | O47: 9 | P47: 9.9 | Q47: 17.55 | R47: 17.775 | S47: 18
L48: =L$31*$K38 -> 5.25 | M48: 7.5 | N48: 9 | O48: 10 | P48: 11 | Q48: 19.5 | R48: 19.75 | S48: 20
L49: =L$31*$K39 -> 5.775 | M49: 8.25 | N49: 9.9 | O49: 11 | P49: 12.1 | Q49: 21.45 | R49: 21.725 | S49: 22
B90: 1.05

Sheet Kobelco_
D1: Displ @ | E1: Rotation | F1: Tin | G1: Pin | H1: Pout | I1: Pout | J1: Rho_in | K1: gamma | L1: Pr | M1: Vi | N1: Vi ideal | P1: Vol_% | Q1: Iso_% | R1: Nm3/h | S1: A_m3/h | T1: kg/h | U1: g/s
A2: CASE A | B2: 1 | C2: KS50LX | D2: 18643.68094 | E2: 2052 | F2: =50+273 -> 323 | G2: 4.02 | H2: 21 | J2: =1.27581621531631*G2*273.15/(F2)*4/28.958600656 -> 0.5990944173 | K2: 1.667 | L2: =H2/G2 -> 5.223880597 | M2: 2.9 | N2: =L2^1/(K2) -> 3.133701618 | O2: =M2-N2 -> -0.2337016179 | P2: =S2/(B2*E2/2950*D2) -> 0.8449758442 | Q2: =(U2*8.314*F2/4*LN(H2/G2)/1000)/W2 -> 0.4856070172 | R2: =U2*3600/1000/0.17625 -> 37247.52695 | S2: =U2/J2*3.6 -> 10958 | T2: 6564.876625 | U2: =T2/3.6 -> 1823.57684 | V2: =U2*8.314*F2/4*LN(H2/G2)/1000 -> 2024.010048 | W2: =X2*B2 -> 4168 | X2: 4168 | Y2: each | Z2: =H2-G2 -> 16.98
A3: CASE D | B3: 1 | C3: 321/220 22 | D3: 7662 | E3: 3550 | F3: =34.85+273 -> 307.85 | G3: =1.5*1.013 -> 1.5195 | H3: =4.8*1.013 -> 4.8624 | J3: 0.2375928069 | K3: 1.667 | L3: =H3/G3 -> 3.2 | M3: 2.2 | N3: =L3^1/(K3) -> 1.919616077 | O3: =M3-N3 -> 0.2803839232 | P3: =S3/(B3*E3/3600*D3) -> 0.9018733637 | Q3: 0.5849539914 | R3: 9185.815603 | S3: 6814.179356 | T3: 1619 | U3: 449.7222222 | V3: 334.7106739 | W3: 572.2 | X3: 572.2 | Y3: each | Z3: 3.3429
A4: CASE C | B4: 1 | C4: 321/220 28 | D4: 7662 | E4: 3550 | F4: 307.85 | G4: =1.5*1.013 -> 1.5195 | H4: 6.1 | J4: 0.2375928069 | K4: 1.667 | L4: =H4/G4 -> 4.014478447 | M4: 2.8 | N4: =L4^1/(K4) -> 2.408205427 | O4: 0.391794573 | P4: 0.597720889 | Q4: 0.3861283999 | R4: 6087.943262 | S4: 4516.129987 | T4: 1073 | U4: 298.0555556 | V4: 265.0771465 | W4: 686.5 | X4: 686.5 | Y4: each | Z4: 4.5805
A5: CASE B | B5: 1 | C5: 321/220 26 | D5: 7662 | E5: 3550 | F5: 307.85 | G5: 1.013 | H5: =4.8*1.013 -> 4.8624 | J5: 0.1583952046 | K5: 1.667 | L5: 4.8 | M5: 2.6 | N5: 2.879424115 | O5: -0.2794241152 | P5: 0.8673359032 | Q5: 0.5149491454 | R5: 5889.361702 | S5: 6553.228695 | T5: 1038 | U5: 288.3333333 | V5: 289.4014197 | W5: 562 | X5: 562 | Y5: each | Z5: 3.8494
C7: air molar mass | D7: 28.95860066
C8: air density | D8: 1.275816215
C9: gamma | D9: 1
D11: =D12/60 -> 49.16666667 | E11: Hz
D12: 2950 | E12: RPm
D14: Displ @ 2950rpm | E14: Rotation | F14: Tin | G14: Pin | H14: Pout | I14: Pout | J14: Rho_in | K14: gamma | L14: Pr | M14: Vi | N14: Vi ideal | O14: Vol_% | P14: Iso_% | Q14: Nm3/h | R14: A_m3/h | S14: kg/h | T14: g/s
B15: 2 | C15: KS50STX | D15: 10812 | E15: 2950 | F15: =273+25 -> 298 | G15: 1.05 | H15: =M15^K15*G15 -> 4.209103468 | I15: =M15^K15*G15 -> 4.209103468 | J15: =$D$8*G15*273.15/(F15)*4/$D$7 -> 0.1696073923 | K15: 1.667 | L15: =H15/G15 -> 4.00866997 | M15: 2.3 | N15: =L15^1/(K15) -> 2.404721038 | O15: =R15/(B15*E15/$D$12*D15) -> 0.4995105437 | P15: =(T15*8.314*F15/4*LN(H15/G15)/1000)/V15 -> 0.2089997675 | Q15: =T15*3600/1000/0.17625 -> 10394.32624 | R15: =T15/J15*3.6 -> 10801.416 | S15: 1832 | T15: =S15/3.6 -> 508.8888889 | U15: =T15*8.314*F15/4*LN(H15/G15)/1000 -> 437.6455131 | V15: =W15*B15 -> 2094 | W15: 1047 | X15: each | Y15: =H15-G15 -> 3.159103468
B16: 1 | C16: VMY536H (DP<20 b) | D16: 5699 | E16: 2950 | F16: 298 | G16: 1.05 | H16: =M16^K16*G16 -> 6.554663948 | I16: 6.554663948 | J16: 0.1696073923 | K16: 1.667 | L16: 6.242537093 | M16: 3 | N16: =L16^1/(K16) -> 3.744773301 | O16: 0.8669630432 | P16: =(T16*8.314*F16/4*LN(H16/G16)/1000)/V16 -> 0.4844972997 | Q16: =T16*3600/1000/0.17625 -> 4754.609929 | R16: =T16/J16*3.6 -> 4940.822383 | S16: 838 | T16: =S16/3.6 -> 232.7777778 | U16: =T16*8.314*F16/4*LN(H16/G16)/1000 -> 264.0510283 | V16: =W16*B16 -> 545 | W16: 545 | X16: each | Y16: =H16-G16 -> 5.504663948
B17: 1 | C17: VMY536H (DP<20 b) | D17: 5699 | E17: 2950 | F17: 298 | G17: 1.05 | H17: 14.34889448 | I17: 14.34889448 | J17: 0.1696073923 | K17: 1.667 | L17: 13.66561379 | M17: 4.8 | N17: 8.197728727 | O17: 0.8524791737 | P17: =(T17*8.314*F17/4*LN(H17/G17)/1000)/V17 -> 0.4839655538 | Q17: =T17*3600/1000/0.17625 -> 4675.177305 | R17: =T17/J17*3.6 -> 4858.278811 | S17: 824 | T17: =S17/3.6 -> 228.8888889 | U17: =T17*8.314*F17/4*LN(H17/G17)/1000 -> 370.7176142 | V17: =W17*B17 -> 766 | W17: 766 | X17: each | Y17: =H17-G17 -> 13.29889448
A18: <
A19: =+H19/I19 -> 1.357544629 | B19: 1 | C19: VMY536H (DP<20 b) | D19: 5699 | E19: 2950 | F19: 298 | G19: 1.05 | H19: =+H15 -> 4.209103468 | I19: =M19^K19*G19 -> 3.100526773 | J19: =$D$8*G19*273.15/(F19)*4/$D$7 -> 0.1696073923 | K19: 1.3 | L19: =H19/G19 -> 4.00866997 | M19: 2.3 | N19: =L19^1/(K19) -> 3.083592284 | O19: =R19/(B19*E19/$D$12*D19) -> 0.8835160369 | P19: =(T19*8.314*F19/4*LN(H19/G19)/1000)/V19 -> 0.46052282 | Q19: =T19*3600/1000/0.17625 -> 4845.390071 | R19: =T19/J19*3.6 -> 5035.157894 | S19: 854 | T19: =S19/3.6 -> 237.2222222 | U19: =T19*8.314*F19/4*LN(H19/G19)/1000 -> 204.0116093 | V19: =W19*B19 -> 443 | W19: 443 | X19: each | Y19: =H19-G19 -> 3.159103468
A20: =+H20/I20 -> 1.496592279 | B20: 1 | C20: VMY536H (DP<20 b) | D20: 5699 | E20: 2950 | F20: 298 | G20: 1.05 | H20: =+H16 -> 6.554663948 | I20: =M20^K20*G20 -> 4.379725886 | J20: 0.1696073923 | K20: 1.3 | L20: 6.242537093 | M20: 3 | N20: =L20^1/(K20) -> 4.80195161 | O20: 0.8669630432 | P20: =(T20*8.314*F20/4*LN(H20/G20)/1000)/V20 -> 0.4844972997 | Q20: =T20*3600/1000/0.17625 -> 4754.609929 | R20: =T20/J20*3.6 -> 4940.822383 | S20: 838 | T20: =S20/3.6 -> 232.7777778 | U20: =T20*8.314*F20/4*LN(H20/G20)/1000 -> 264.0510283 | V20: =W20*B20 -> 545 | W20: 545 | X20: each | Y20: =H20-G20 -> 5.504663948
A21: 1.778343018 | B21: 1 | C21: VMY536H (DP<20 b) | D21: 5699 | E21: 2950 | F21: 298 | G21: 1.05 | H21: 14.34889448 | I21: 8.068687724 | J21: 0.1696073923 | K21: 1.3 | L21: 13.66561379 | M21: 4.8 | N21: 10.51201061 | O21: 0.8524791737 | P21: =(T21*8.314*F21/4*LN(H21/G21)/1000)/V21 -> 0.4839655538 | Q21: =T21*3600/1000/0.17625 -> 4675.177305 | R21: =T21/J21*3.6 -> 4858.278811 | S21: 824 | T21: =S21/3.6 -> 228.8888889 | U21: =T21*8.314*F21/4*LN(H21/G21)/1000 -> 370.7176142 | V21: =W21*B21 -> 766 | W21: 766 | X21: each | Y21: =H21-G21 -> 13.29889448
A22: <
B23: 1 | C23: VMY536H (DP<20 b) | D23: 5699 | E23: 2950 | F23: 298 | G23: 1.05 | H23: 4.2 | J23: =$D$8*G23*273.15/(F23)*4/$D$7 -> 0.1696073923 | K23: 1.3 | L23: =H23/G23 -> 4 | M23: 2.3 | N23: 3.076923077 | O23: =R23/(B23*E23/$D$12*D23) -> 0.8835160369 | P23: =(T23*8.314*F23/4*LN(H23/G23)/1000)/V23 -> 0.4598046864 | Q23: =T23*3600/1000/0.17625 -> 4845.390071 | R23: =T23/J23*3.6 -> 5035.157894 | S23: 854 | T23: =S23/3.6 -> 237.2222222 | U23: =T23*8.314*F23/4*LN(H23/G23)/1000 -> 203.6934761 | V23: =W23*B23 -> 443 | W23: 443 | X23: each | Y23: =H23-G23 -> 3.15
B24: 1 | C24: VMY536H (DP<20 b) | D24: 5699 | E24: 2950 | F24: 298 | G24: 1.05 | H24: 6.55 | J24: 0.1696073923 | K24: 1.3 | L24: 6.238095238 | M24: 2.3 | N24: 4.798534799 | O24: 0.8566174222 | P24: =(T24*8.314*F24/4*LN(H24/G24)/1000)/V24 -> 0.4254464244 | Q24: =T24*3600/1000/0.17625 -> 4697.87234 | R24: =T24/J24*3.6 -> 4881.862689 | S24: 828 | T24: =S24/3.6 -> 230 | U24: =T24*8.314*F24/4*LN(H24/G24)/1000 -> 260.7986581 | V24: =W24*B24 -> 613 | W24: 613 | X24: each | Y24: =H24-G24 -> 5.5
B25: 1 | C25: VMY536H (DP<20 b) | D25: 5699 | E25: 2950 | F25: 298 | G25: 1.05 | H25: 14.31 | J25: 0.1696073923 | K25: 1.3 | L25: 13.62857143 | M25: 2.3 | N25: 10.48351648 | O25: 0.765575957 | P25: =(T25*8.314*F25/4*LN(H25/G25)/1000)/V25 -> 0.2828064866 | Q25: =T25*3600/1000/0.17625 -> 4198.58156 | R25: =T25/J25*3.6 -> 4363.017379 | S25: 740 | T25: =S25/3.6 -> 205.5555556 | U25: =T25*8.314*F25/4*LN(H25/G25)/1000 -> 332.5804282 | V25: =W25*B25 -> 1176 | W25: 1176 | X25: each | Y25: =H25-G25 -> 13.26
B27: 1 | C27: VMY536H (DP<20 b) | D27: 5699 | E27: 2950 | F27: 298 | G27: 1.05 | H27: 4.2 | J27: =$D$8*G27*273.15/(F27)*4/$D$7 -> 0.1696073923 | K27: 1.3 | L27: =H27/G27 -> 4 | M27: 3 | N27: 3.076923077 | O27: =R27/(B27*E27/$D$12*D27) -> 0.8907579716 | P27: =(T27*8.314*F27/4*LN(H27/G27)/1000)/V27 -> 0.4924774454 | Q27: =T27*3600/1000/0.17625 -> 4885.106383 | R27: =T27/J27*3.6 -> 5076.42968 | S27: 861 | T27: =S27/3.6 -> 239.1666667 | U27: =T27*8.314*F27/4*LN(H27/G27)/1000 -> 205.3630947 | V27: =W27*B27 -> 417 | W27: 417 | X27: each | Y27: =H27-G27 -> 3.15
B28: 1 | C28: VMY536H (DP<20 b) | D28: 5699 | E28: 2950 | F28: 298 | G28: 1.05 | H28: 6.55 | J28: 0.1696073923 | K28: 1.3 | L28: 6.238095238 | M28: 3 | N28: 4.798534799 | O28: 0.8669630432 | P28: =(T28*8.314*F28/4*LN(H28/G28)/1000)/V28 -> 0.4843089916 | Q28: =T28*3600/1000/0.17625 -> 4754.609929 | R28: =T28/J28*3.6 -> 4940.822383 | S28: 838 | T28: =S28/3.6 -> 232.7777778 | U28: =T28*8.314*F28/4*LN(H28/G28)/1000 -> 263.9484004 | V28: =W28*B28 -> 545 | W28: 545 | X28: each | Y28: =H28-G28 -> 5.5
B29: 1 | C29: VMY536H (DP<20 b) | D29: 5699 | E29: 2950 | F29: 298 | G29: 1.05 | H29: 14.31 | J29: 0.1696073923 | K29: 1.3 | L29: 13.62857143 | M29: 3 | N29: 10.48351648 | O29: 0.7893708854 | P29: =(T29*8.314*F29/4*LN(H29/G29)/1000)/V29 -> 0.3513497822 | Q29: =T29*3600/1000/0.17625 -> 4329.078014 | R29: =T29/J29*3.6 -> 4498.624676 | S29: 763 | T29: =S29/3.6 -> 211.9444444 | U29: =T29*8.314*F29/4*LN(H29/G29)/1000 -> 342.9173875 | V29: =W29*B29 -> 976 | W29: 976 | X29: each | Y29: =H29-G29 -> 13.26
B31: 1 | C31: VMY536H (DP<20 b) | D31: 5699 | E31: 2950 | F31: 298 | G31: 1.05 | H31: 4.2 | J31: =$D$8*G31*273.15/(F31)*4/$D$7 -> 0.1696073923 | K31: 1.3 | L31: =H31/G31 -> 4 | M31: 4.8 | N31: 3.076923077 | O31: =R31/(B31*E31/$D$12*D31) -> 0.9073109653 | P31: =(T31*8.314*F31/4*LN(H31/G31)/1000)/V31 -> 0.4945138675 | Q31: =T31*3600/1000/0.17625 -> 4975.886525 | R31: =T31/J31*3.6 -> 5170.765191 | S31: 877 | T31: =S31/3.6 -> 243.6111111 | U31: =T31*8.314*F31/4*LN(H31/G31)/1000 -> 209.1793659 | V31: =W31*B31 -> 423 | W31: 423 | X31: each | Y31: =H31-G31 -> 3.15
B32: 1 | C32: VMY536H (DP<20 b) | D32: 5699 | E32: 2950 | F32: 298 | G32: 1.05 | H32: 6.55 | J32: 0.1696073923 | K32: 1.3 | L32: 6.238095238 | M32: 4.8 | N32: 4.798534799 | O32: 0.89489622 | P32: =(T32*8.314*F32/4*LN(H32/G32)/1000)/V32 -> 0.5438177734 | Q32: =T32*3600/1000/0.17625 -> 4907.801418 | R32: =T32/J32*3.6 -> 5100.013558 | S32: 865 | T32: =S32/3.6 -> 240.2777778 | U32: =T32*8.314*F32/4*LN(H32/G32)/1000 -> 272.4527045 | V32: =W32*B32 -> 501 | W32: 501 | X32: each | Y32: =H32-G32 -> 5.5
B33: 1 | C33: VMY536H (DP<20 b) | D33: 5699 | E33: 2950 | F33: 298 | G33: 1.05 | H33: 14.31 | J33: 0.1696073923 | K33: 1.3 | L33: 13.62857143 | M33: 4.8 | N33: 10.48351648 | O33: 0.8524791737 | P33: =(T33*8.314*F33/4*LN(H33/G33)/1000)/V33 -> 0.4834631869 | Q33: =T33*3600/1000/0.17625 -> 4675.177305 | R33: =T33/J33*3.6 -> 4858.278811 | S33: 824 | T33: =S33/3.6 -> 228.8888889 | U33: =T33*8.314*F33/4*LN(H33/G33)/1000 -> 370.3328012 | V33: =W33*B33 -> 766 | W33: 766 | X33: each | Y33: =H33-G33 -> 13.26
B36: 1 | C36: VMY536H (DP<20 b) | D36: 5699 | E36: 2950 | F36: 298 | G36: 1.05 | H36: =M36^K36*G36 -> 4.205599127 | J36: =$D$8*G36*273.15/(F36)*4/$D$7 -> 0.1696073923 | K36: 1.666 | L36: =H36/G36 -> 4.005332502 | M36: 2.3 | N36: =L36^1/(K36) -> 2.404161166 | O36: =R36/(B36*E36/$D$12*D36) -> 0.8835160369 | P36: =(T36*8.314*F36/4*LN(H36/G36)/1000)/V36 -> 0.4602465616 | Q36: =T36*3600/1000/0.17625 -> 4845.390071 | R36: =T36/J36*3.6 -> 5035.157894 | S36: 854 | T36: =S36/3.6 -> 237.2222222 | U36: =T36*8.314*F36/4*LN(H36/G36)/1000 -> 203.8892268 | V36: =W36*B36 -> 443 | W36: 443 | X36: each | Y36: =H36-G36 -> 3.155599127
B37: 1 | C37: VMY536H (DP<20 b) | D37: 5699 | E37: 2950 | F37: 298 | G37: 1.05 | H37: 4.2 | J37: 0.1696073923 | K37: 1.666 | L37: 4 | M37: 3 | N37: 2.400960384 | O37: 0.8907579716 | P37: =(T37*8.314*F37/4*LN(H37/G37)/1000)/V37 -> 0.4924774454 | Q37: =T37*3600/1000/0.17625 -> 4885.106383 | R37: =T37/J37*3.6 -> 5076.42968 | S37: 861 | T37: =S37/3.6 -> 239.1666667 | U37: =T37*8.314*F37/4*LN(H37/G37)/1000 -> 205.3630947 | V37: =W37*B37 -> 417 | W37: 417 | X37: each | Y37: =H37-G37 -> 3.15
B38: 1 | C38: VMY536H (DP<20 b) | D38: 5699 | E38: 2950 | F38: 298 | G38: 1.05 | H38: 4.2 | J38: 0.1696073923 | K38: 1.666 | L38: 4 | M38: 4.8 | N38: 2.400960384 | O38: 0.9073109653 | P38: =(T38*8.314*F38/4*LN(H38/G38)/1000)/V38 -> 0.4945138675 | Q38: =T38*3600/1000/0.17625 -> 4975.886525 | R38: =T38/J38*3.6 -> 5170.765191 | S38: 877 | T38: =S38/3.6 -> 243.6111111 | U38: =T38*8.314*F38/4*LN(H38/G38)/1000 -> 209.1793659 | V38: =W38*B38 -> 423 | W38: 423 | X38: each | Y38: =H38-G38 -> 3.15
B40: 1 | C40: VMY536H (DP<20 b) | D40: 5699 | E40: 2950 | F40: 298 | G40: 1.05 | H40: 6.55 | J40: =$D$8*G40*273.15/(F40)*4/$D$7 -> 0.1696073923 | K40: 1.666 | L40: =H40/G40 -> 6.238095238 | M40: 2.3 | N40: 3.744354885 | O40: =R40/(B40*E40/$D$12*D40) -> 0.8566174222 | P40: =(T40*8.314*F40/4*LN(H40/G40)/1000)/V40 -> 0.4254464244 | Q40: =T40*3600/1000/0.17625 -> 4697.87234 | R40: =T40/J40*3.6 -> 4881.862689 | S40: 828 | T40: =S40/3.6 -> 230 | U40: =T40*8.314*F40/4*LN(H40/G40)/1000 -> 260.7986581 | V40: =W40*B40 -> 613 | W40: 613 | X40: each | Y40: =H40-G40 -> 5.5
B41: 1 | C41: VMY536H (DP<20 b) | D41: 5699 | E41: 2950 | F41: 298 | G41: 1.05 | H41: =M41^K41*G41 -> 6.547466868 | J41: 0.1696073923 | K41: 1.666 | L41: 6.235682731 | M41: 3 | N41: 3.742906801 | O41: 0.8669630432 | P41: =(T41*8.314*F41/4*LN(H41/G41)/1000)/V41 -> 0.4842066595 | Q41: =T41*3600/1000/0.17625 -> 4754.609929 | R41: =T41/J41*3.6 -> 4940.822383 | S41: 838 | T41: =S41/3.6 -> 232.7777778 | U41: =T41*8.314*F41/4*LN(H41/G41)/1000 -> 263.8926294 | V41: =W41*B41 -> 545 | W41: 545 | X41: each | Y41: =H41-G41 -> 5.497466868 | AA41: =[3]!h_(11,H41,F41)-[3]!h_(11,G41,F41) -> 
B42: 1 | C42: VMY536H (DP<20 b) | D42: 5699 | E42: 2950 | F42: 298 | G42: 1.05 | H42: 6.55 | J42: 0.1696073923 | K42: 1.666 | L42: 6.238095238 | M42: 4.8 | N42: 3.744354885 | O42: 0.8524791737 | P42: =(T42*8.314*F42/4*LN(H42/G42)/1000)/V42 -> 0.3388234481 | Q42: =T42*3600/1000/0.17625 -> 4675.177305 | R42: =T42/J42*3.6 -> 4858.278811 | S42: 824 | T42: =S42/3.6 -> 228.8888889 | U42: =T42*8.314*F42/4*LN(H42/G42)/1000 -> 259.5387612 | V42: =W42*B42 -> 766 | W42: 766 | X42: each | Y42: =H42-G42 -> 5.5
B44: 1 | C44: VMY536H (DP<20 b) | D44: 5699 | E44: 2950 | F44: 298 | G44: 1.05 | H44: 14.31 | J44: =$D$8*G44*273.15/(F44)*4/$D$7 -> 0.1696073923 | K44: 1.666 | L44: =H44/G44 -> 13.62857143 | M44: 2.3 | N44: =L44^1/(K44) -> 8.180415023 | O44: =R44/(B44*E44/$D$12*D44) -> 0.765575957 | P44: =(T44*8.314*F44/4*LN(H44/G44)/1000)/V44 -> 0.2828064866 | Q44: =T44*3600/1000/0.17625 -> 4198.58156 | R44: =T44/J44*3.6 -> 4363.017379 | S44: 740 | T44: =S44/3.6 -> 205.5555556 | U44: =T44*8.314*F44/4*LN(H44/G44)/1000 -> 332.5804282 | V44: =W44*B44 -> 1176 | W44: 1176 | X44: each | Y44: =H44-G44 -> 13.26
B45: 1 | C45: VMY536H (DP<20 b) | D45: 5699 | E45: 2950 | F45: 298 | G45: 1.05 | H45: 14.31 | J45: 0.1696073923 | K45: 1.666 | L45: 13.62857143 | M45: 3 | N45: 8.180415023 | O45: 0.7893708854 | P45: =(T45*8.314*F45/4*LN(H45/G45)/1000)/V45 -> 0.3513497822 | Q45: =T45*3600/1000/0.17625 -> 4329.078014 | R45: =T45/J45*3.6 -> 4498.624676 | S45: 763 | T45: =S45/3.6 -> 211.9444444 | U45: =T45*8.314*F45/4*LN(H45/G45)/1000 -> 342.9173875 | V45: =W45*B45 -> 976 | W45: 976 | X45: each | Y45: =H45-G45 -> 13.26
B46: 1 | C46: VMY536H (DP<20 b) | D46: 5699 | E46: 2950 | F46: 298 | G46: 1.05 | H46: =M46^K46*G46 -> 14.32640422 | J46: 0.1696073923 | K46: 1.666 | L46: 13.64419449 | M46: 4.8 | N46: 8.189792612 | O46: 0.8524791737 | P46: =(T46*8.314*F46/4*LN(H46/G46)/1000)/V46 -> 0.4836752325 | Q46: =T46*3600/1000/0.17625 -> 4675.177305 | R46: =T46/J46*3.6 -> 4858.278811 | S46: 824 | T46: =S46/3.6 -> 228.8888889 | U46: =T46*8.314*F46/4*LN(H46/G46)/1000 -> 370.4952281 | V46: =W46*B46 -> 766 | W46: 766 | X46: each | Y46: =H46-G46 -> 13.27640422
C48: TMCP
B50: 2 | C50: VMY536H (DP<20 b) | D50: 5699 | E50: 2280 | F50: 298 | G50: 3.4 | H50: 20 | J50: =$D$8*G50*273.15/(F50)*4/$D$7 -> 0.5492048892 | K50: 1.666 | L50: =H50/G50 -> 5.882352941 | M50: 4.8 | N50: =L50^1/(K50) -> 3.530824094 | O50: =R50/(B50*E50/$D$12*D50) -> 0.8619065408 | P50: =(T50*8.314*F50/4*LN(H50/G50)/1000)/V50 -> 0.584243778 | Q50: =T50*3600/1000/0.17625 -> 23659.57447 | R50: =T50/J50*3.6 -> 7592.794751 | S50: =2*2085 -> 4170 | T50: =S50/3.6 -> 1158.333333 | U50: =T50*8.314*F50/4*LN(H50/G50)/1000 -> 1271.314461 | V50: =W50*B50 -> 2176 | W50: 1088 | X50: each | Y50: =H50-G50 -> 16.6
B51: 2 | C51: VMY536H (DP<20 b) | D51: 5699 | E51: 2950 | F51: 298 | G51: 2.5 | H51: =M51^K51*G51 -> 15.58920683 | J51: 0.4038271244 | K51: 1.666 | L51: 6.235682731 | M51: 3 | N51: 3.742906801 | O51: 0.8294912038 | P51: =(T51*8.314*F51/4*LN(H51/G51)/1000)/V51 -> 0.5138108944 | Q51: =T51*3600/1000/0.17625 -> 21662.41135 | R51: =T51/J51*3.6 -> 9454.540741 | S51: =2*1909 -> 3818 | T51: =S51/3.6 -> 1060.555556 | U51: =T51*8.314*F51/4*LN(H51/G51)/1000 -> 1202.317493 | V51: =W51*B51 -> 2340 | W51: =1170 -> 1170 | X51: each | Y51: =H51-G51 -> 13.08920683
C53: LPcompressor (1,05 - 4,2bara, Vi=2,3,t1=25°C)
B54: 1 | C54: VMY536B (DP<8 b) | D54: 9937 | E54: 3600 | F54: 298 | G54: 1.05 | H54: =M54^K54*G54 -> 4.205599127 | J54: =$D$8*G54*273.15/(F54)*4/$D$7 -> 0.1696073923 | K54: 1.666 | L54: =H54/G54 -> 4.005332502 | M54: 2.3 | N54: =L54^1/(K54) -> 2.404161166 | O54: =R54/(B54*E54/$D$12*D54) -> 0.8756552612 | P54: =(T54*8.314*F54/4*LN(H54/G54)/1000)/V54 -> 0.4507147245 | Q54: =T54*3600/1000/0.17625 -> 10218.43972 | R54: =T54/J54*3.6 -> 10618.64095 | S54: 1801 | T54: =S54/3.6 -> 500.2777778 | U54: =T54*8.314*F54/4*LN(H54/G54)/1000 -> 429.9818471 | V54: =W54*B54 -> 954 | W54: 954 | X54: each | Y54: =H54-G54 -> 3.155599127
B55: 1 | C55: VMY536B (DP<8 b) | D55: 9937 | E55: 2950 | F55: 298 | G55: 1.05 | H55: 4.205599127 | J55: 0.1696073923 | K55: 1.666 | L55: 4.005332502 | M55: 2.3 | N55: 2.404161166 | O55: 0.8751690561 | P55: =(T55*8.314*F55/4*LN(H55/G55)/1000)/V55 -> 0.4491716794 | Q55: =T55*3600/1000/0.17625 -> 8368.794326 | R55: =T55/J55*3.6 -> 8696.554911 | S55: 1475 | T55: =S55/3.6 -> 409.7222222 | U55: =T55*8.314*F55/4*LN(H55/G55)/1000 -> 352.1505966 | V55: =W55*B55 -> 784 | W55: 784 | X55: each | Y55: =H55-G55 -> 3.155599127
B57: 2 | C57: VMY536H (DP<20 b) | D57: 5699 | E57: 3600 | F57: 298 | G57: 1.05 | H57: =M57^K57*G57 -> 4.205599127 | J57: =$D$8*G57*273.15/(F57)*4/$D$7 -> 0.1696073923 | K57: 1.666 | L57: =H57/G57 -> 4.005332502 | M57: 2.3 | N57: =L57^1/(K57) -> 2.404161166 | O57: =R57/(B57*E57/$D$12*D57) -> 0.8893067109 | P57: =(T57*8.314*F57/4*LN(H57/G57)/1000)/V57 -> 0.4620751465 | Q57: =T57*3600/1000/0.17625 -> 11903.5461 | R57: =T57/J57*3.6 -> 12369.74387 | S57: =2*1049 -> 2098 | T57: =S57/3.6 -> 582.7777778 | U57: =T57*8.314*F57/4*LN(H57/G57)/1000 -> 500.8894588 | V57: =W57*B57 -> 1084 | W57: 542 | X57: each | Y57: =H57-G57 -> 3.155599127
B58: 2 | C58: VMY536H (DP<20 b) | D58: 5699 | E58: 2950 | F58: 298 | G58: 1.05 | H58: 4.205599127 | J58: 0.1696073923 | K58: 1.666 | L58: 4.005332502 | M58: 2.3 | N58: 2.404161166 | O58: =R58/(B58*E58/$D$12*D58) -> 0.8835160369 | P58: =(T58*8.314*F58/4*LN(H58/G58)/1000)/V58 -> 0.4602465616 | Q58: =T58*3600/1000/0.17625 -> 9690.780142 | R58: =T58/J58*3.6 -> 10070.31579 | S58: =2*854 -> 1708 | T58: =S58/3.6 -> 474.4444444 | U58: =T58*8.314*F58/4*LN(H58/G58)/1000 -> 407.7784536 | V58: =W58*B58 -> 886 | W58: 443 | X58: each | Y58: =H58-G58 -> 3.155599127
C60: HPcompressor (4,2 - 16,84bara, Vi=2,3,t1=30°C)
B61: 1 | C61: VMY536H (DP<20 b) | D61: 5699 | E61: 2950 | F61: =273+30 -> 303 | G61: 4.2 | H61: =M61^K61*G61 -> 16.82239651 | J61: =$D$8*G61*273.15/(F61)*4/$D$7 -> 0.6672343616 | K61: 1.666 | L61: =H61/G61 -> 4.005332502 | M61: 2.3 | N61: =L61^1/(K61) -> 2.404161166 | O61: =R61/(B61*E61/$D$12*D61) -> 0.3763245691 | P61: =(T61*8.314*F61/4*LN(H61/G61)/1000)/V61 -> 0.2427519754 | Q61: =T61*3600/1000/0.17625 -> 8119.148936 | R61: =T61/J61*3.6 -> 2144.673719 | S61: 1431 | T61: =S61/3.6 -> 397.5 | U61: =T61*8.314*F61/4*LN(H61/G61)/1000 -> 347.3780768 | V61: =W61*B61 -> 1431 | W61: 1431 | X61: each | Y61: =H61-G61 -> 12.62239651
B62: 1 | C62: VMY536M (DP<16 b) | D62: 7459 | E62: 2950 | F62: 298 | G62: 4.2 | H62: 16.82239651 | J62: 0.678429569 | K62: 1.666 | L62: 4.005332502 | M62: 2.3 | N62: 2.404161166 | O62: =R62/(B62*E62/$D$12*D62) -> 0.8242421403 | P62: =(T62*8.314*F62/4*LN(H62/G62)/1000)/V62 -> 0.5342329739 | Q62: =T62*3600/1000/0.17625 -> 23665.24823 | R62: =T62/J62*3.6 -> 6148.022124 | S62: 4171 | T62: =S62/3.6 -> 1158.611111 | U62: =T62*8.314*F62/4*LN(H62/G62)/1000 -> 995.8102634 | V62: =W62*B62 -> 1864 | W62: 1864 | X62: each | Y62: =H62-G62 -> 12.62239651
E66: Pin stage 1 | F66: bar abs | G66: 1.05 | H66: 1.05 | J66: Pin stage 1 | K66: bar abs | L66: 1.05 | M66: 1.05 | N66: 1.05 | Q66: 3.5
E67: Vi stage 1 | G67: 2.3 | H67: 3 | J67: Vi stage 1 | L67: 2.3 | M67: 3 | N67: 4.8 | Q67: 4.8
E68: Gamme | G68: 1.666 | H68: 1.666 | J68: Gamme | L68: 1 | M68: 1 | N68: 1 | Q68: 1.1
E69: Pint | F69: bar abs | G69: =G66*G67^G68 -> 4.205599127 | H69: 6.547466868 | J69: Pint | K69: bar abs | L69: =L66*L67^L68 -> 2.415 | M69: 3.15 | N69: 5.04 | Q69: =Q66*Q67^Q68 -> 19.65320596
E70: Vi stage 2 | G70: 2.3 | H70: 3 | J70: Vi stage 2 | L70: 2.3 | M70: 3 | N70: 3 | Q70: 3
E71: gamma | G71: 1.666 | H71: 1.666 | J71: gamma | L71: 1 | M71: 1 | N71: 1 | Q71: 1
E72: Pout stage 2 | F72: bar abs | G72: =G69*G70^G71 -> 16.84482287 | H72: 40.82792608 | J72: Pout stage 2 | K72: bar abs | L72: =L69*L70^L71 -> 5.5545 | M72: 9.45 | N72: 15.12 | Q72: =Q69*Q70^Q71 -> 58.95961788
L76: 1.05 | M76: 1.05 | N76: 1.05
L77: 2.3 | M77: 3 | N77: 4.8
F78: Vi^g=p2/p1 | L78: 1.1 | M78: 1.1 | N78: 1.1
F79: g | G79: 1.01 | L79: =L76*L77^L78 -> 2.624761932 | M79: 3.515787998 | N79: 5.895961788
F80: P1 | G80: 1.05 | L80: 2.3 | M80: 3 | N80: 3
F81: P2 | G81: 5 | L81: 1.1 | M81: 1.1 | N81: 1.1
F82: Vi | G82: =(G81/G80)^(1/G79) -> 4.688889577 | L82: =L79*L80^L81 -> 6.561309714 | M82: 11.77215738 | N82: 19.74185875
L84: 1.05 | M84: 1.05 | N84: 1.05
L85: 2.3 | M85: 3 | N85: 4.8
L86: 1.2 | M86: 1.2 | N86: 1.2
L87: =L84*L85^L86 -> 2.852743354 | M87: 3.92405246 | N87: 6.897294723
L88: 2.3 | M88: 3 | N88: 3
L89: 1.2 | M89: 1.2 | N89: 1.2
L90: =L87*L88^L89 -> 7.750613947 | M90: 14.66494067 | N90: 25.77652031

Sheet Kaeser
C3: air molar mass | D3: 28.95860066
C4: air density | D4: 1.275816215
C5: gamma | D5: 1
D7: =D8/60 -> 49.16666667 | E7: Hz
D8: 2950 | E8: RPm
D10: Displ @ 2950rpm | E10: Rotation | F10: Tin | G10: Pin | H10: Pout | I10: Pout | J10: Rho_in | K10: gamma | L10: Pr | M10: Vi | N10: Vi ideal | O10: Vol_% | P10: Iso_% | Q10: Nm3/h | R10: A_m3/h | S10: kg/h | T10: g/s
B11: 2 | C11: KS50STX | D11: 10812 | E11: 2950 | F11: =273+25 -> 298 | G11: 1.05 | H11: =M11^K11*G11 -> 4.209103468 | I11: =M11^K11*G11 -> 4.209103468 | J11: =$D$4*G11*273.15/(F11)*4/$D$3 -> 0.1696073923 | K11: 1.667 | L11: =H11/G11 -> 4.00866997 | M11: 2.3 | N11: =L11^1/(K11) -> 2.404721038 | O11: =R11/(B11*E11/$D$8*D11) -> 0.4995105437 | P11: =(T11*8.314*F11/4*LN(H11/G11)/1000)/V11 -> 0.2089997675 | Q11: =T11*3600/1000/0.17625 -> 10394.32624 | R11: =T11/J11*3.6 -> 10801.416 | S11: 1832 | T11: =S11/3.6 -> 508.8888889 | U11: =T11*8.314*F11/4*LN(H11/G11)/1000 -> 437.6455131 | V11: =W11*B11 -> 2094 | W11: 1047 | X11: each | Y11: =H11-G11 -> 3.159103468
B12: 1 | C12: VMY536H (DP<20 b) | D12: 5699 | E12: 2950 | F12: 298 | G12: 1.05 | H12: =M12^K12*G12 -> 6.554663948 | I12: 6.554663948 | J12: 0.1696073923 | K12: 1.667 | L12: 6.242537093 | M12: 3 | N12: =L12^1/(K12) -> 3.744773301 | O12: 0.8669630432 | P12: =(T12*8.314*F12/4*LN(H12/G12)/1000)/V12 -> 0.4844972997 | Q12: =T12*3600/1000/0.17625 -> 4754.609929 | R12: =T12/J12*3.6 -> 4940.822383 | S12: 838 | T12: =S12/3.6 -> 232.7777778 | U12: =T12*8.314*F12/4*LN(H12/G12)/1000 -> 264.0510283 | V12: =W12*B12 -> 545 | W12: 545 | X12: each | Y12: =H12-G12 -> 5.504663948
B13: 1 | C13: VMY536H (DP<20 b) | D13: 5699 | E13: 2950 | F13: 298 | G13: 1.05 | H13: 14.34889448 | I13: 14.34889448 | J13: 0.1696073923 | K13: 1.667 | L13: 13.66561379 | M13: 4.8 | N13: 8.197728727 | O13: 0.8524791737 | P13: =(T13*8.314*F13/4*LN(H13/G13)/1000)/V13 -> 0.4839655538 | Q13: =T13*3600/1000/0.17625 -> 4675.177305 | R13: =T13/J13*3.6 -> 4858.278811 | S13: 824 | T13: =S13/3.6 -> 228.8888889 | U13: =T13*8.314*F13/4*LN(H13/G13)/1000 -> 370.7176142 | V13: =W13*B13 -> 766 | W13: 766 | X13: each | Y13: =H13-G13 -> 13.29889448
A14: <
A15: =+H15/I15 -> 1.357544629 | B15: 1 | C15: VMY536H (DP<20 b) | D15: 5699 | E15: 2950 | F15: 298 | G15: 1.05 | H15: =+H11 -> 4.209103468 | I15: =M15^K15*G15 -> 3.100526773 | J15: =$D$4*G15*273.15/(F15)*4/$D$3 -> 0.1696073923 | K15: 1.3 | L15: =H15/G15 -> 4.00866997 | M15: 2.3 | N15: =L15^1/(K15) -> 3.083592284 | O15: =R15/(B15*E15/$D$8*D15) -> 0.8835160369 | P15: =(T15*8.314*F15/4*LN(H15/G15)/1000)/V15 -> 0.46052282 | Q15: =T15*3600/1000/0.17625 -> 4845.390071 | R15: =T15/J15*3.6 -> 5035.157894 | S15: 854 | T15: =S15/3.6 -> 237.2222222 | U15: =T15*8.314*F15/4*LN(H15/G15)/1000 -> 204.0116093 | V15: =W15*B15 -> 443 | W15: 443 | X15: each | Y15: =H15-G15 -> 3.159103468
A16: =+H16/I16 -> 1.496592279 | B16: 1 | C16: VMY536H (DP<20 b) | D16: 5699 | E16: 2950 | F16: 298 | G16: 1.05 | H16: =+H12 -> 6.554663948 | I16: =M16^K16*G16 -> 4.379725886 | J16: 0.1696073923 | K16: 1.3 | L16: 6.242537093 | M16: 3 | N16: =L16^1/(K16) -> 4.80195161 | O16: 0.8669630432 | P16: =(T16*8.314*F16/4*LN(H16/G16)/1000)/V16 -> 0.4844972997 | Q16: =T16*3600/1000/0.17625 -> 4754.609929 | R16: =T16/J16*3.6 -> 4940.822383 | S16: 838 | T16: =S16/3.6 -> 232.7777778 | U16: =T16*8.314*F16/4*LN(H16/G16)/1000 -> 264.0510283 | V16: =W16*B16 -> 545 | W16: 545 | X16: each | Y16: =H16-G16 -> 5.504663948
A17: 1.778343018 | B17: 1 | C17: VMY536H (DP<20 b) | D17: 5699 | E17: 2950 | F17: 298 | G17: 1.05 | H17: 14.34889448 | I17: 8.068687724 | J17: 0.1696073923 | K17: 1.3 | L17: 13.66561379 | M17: 4.8 | N17: 10.51201061 | O17: 0.8524791737 | P17: =(T17*8.314*F17/4*LN(H17/G17)/1000)/V17 -> 0.4839655538 | Q17: =T17*3600/1000/0.17625 -> 4675.177305 | R17: =T17/J17*3.6 -> 4858.278811 | S17: 824 | T17: =S17/3.6 -> 228.8888889 | U17: =T17*8.314*F17/4*LN(H17/G17)/1000 -> 370.7176142 | V17: =W17*B17 -> 766 | W17: 766 | X17: each | Y17: =H17-G17 -> 13.29889448
A18: <
B19: 1 | C19: VMY536H (DP<20 b) | D19: 5699 | E19: 2950 | F19: 298 | G19: 1.05 | H19: 4.2 | J19: =$D$4*G19*273.15/(F19)*4/$D$3 -> 0.1696073923 | K19: 1.3 | L19: =H19/G19 -> 4 | M19: 2.3 | N19: 3.076923077 | O19: =R19/(B19*E19/$D$8*D19) -> 0.8835160369 | P19: =(T19*8.314*F19/4*LN(H19/G19)/1000)/V19 -> 0.4598046864 | Q19: =T19*3600/1000/0.17625 -> 4845.390071 | R19: =T19/J19*3.6 -> 5035.157894 | S19: 854 | T19: =S19/3.6 -> 237.2222222 | U19: =T19*8.314*F19/4*LN(H19/G19)/1000 -> 203.6934761 | V19: =W19*B19 -> 443 | W19: 443 | X19: each | Y19: =H19-G19 -> 3.15
B20: 1 | C20: VMY536H (DP<20 b) | D20: 5699 | E20: 2950 | F20: 298 | G20: 1.05 | H20: 6.55 | J20: 0.1696073923 | K20: 1.3 | L20: 6.238095238 | M20: 2.3 | N20: 4.798534799 | O20: 0.8566174222 | P20: =(T20*8.314*F20/4*LN(H20/G20)/1000)/V20 -> 0.4254464244 | Q20: =T20*3600/1000/0.17625 -> 4697.87234 | R20: =T20/J20*3.6 -> 4881.862689 | S20: 828 | T20: =S20/3.6 -> 230 | U20: =T20*8.314*F20/4*LN(H20/G20)/1000 -> 260.7986581 | V20: =W20*B20 -> 613 | W20: 613 | X20: each | Y20: =H20-G20 -> 5.5
B21: 1 | C21: VMY536H (DP<20 b) | D21: 5699 | E21: 2950 | F21: 298 | G21: 1.05 | H21: 14.31 | J21: 0.1696073923 | K21: 1.3 | L21: 13.62857143 | M21: 2.3 | N21: 10.48351648 | O21: 0.765575957 | P21: =(T21*8.314*F21/4*LN(H21/G21)/1000)/V21 -> 0.2828064866 | Q21: =T21*3600/1000/0.17625 -> 4198.58156 | R21: =T21/J21*3.6 -> 4363.017379 | S21: 740 | T21: =S21/3.6 -> 205.5555556 | U21: =T21*8.314*F21/4*LN(H21/G21)/1000 -> 332.5804282 | V21: =W21*B21 -> 1176 | W21: 1176 | X21: each | Y21: =H21-G21 -> 13.26
B23: 1 | C23: VMY536H (DP<20 b) | D23: 5699 | E23: 2950 | F23: 298 | G23: 1.05 | H23: 4.2 | J23: =$D$4*G23*273.15/(F23)*4/$D$3 -> 0.1696073923 | K23: 1.3 | L23: =H23/G23 -> 4 | M23: 3 | N23: 3.076923077 | O23: =R23/(B23*E23/$D$8*D23) -> 0.8907579716 | P23: =(T23*8.314*F23/4*LN(H23/G23)/1000)/V23 -> 0.4924774454 | Q23: =T23*3600/1000/0.17625 -> 4885.106383 | R23: =T23/J23*3.6 -> 5076.42968 | S23: 861 | T23: =S23/3.6 -> 239.1666667 | U23: =T23*8.314*F23/4*LN(H23/G23)/1000 -> 205.3630947 | V23: =W23*B23 -> 417 | W23: 417 | X23: each | Y23: =H23-G23 -> 3.15
B24: 1 | C24: VMY536H (DP<20 b) | D24: 5699 | E24: 2950 | F24: 298 | G24: 1.05 | H24: 6.55 | J24: 0.1696073923 | K24: 1.3 | L24: 6.238095238 | M24: 3 | N24: 4.798534799 | O24: 0.8669630432 | P24: =(T24*8.314*F24/4*LN(H24/G24)/1000)/V24 -> 0.4843089916 | Q24: =T24*3600/1000/0.17625 -> 4754.609929 | R24: =T24/J24*3.6 -> 4940.822383 | S24: 838 | T24: =S24/3.6 -> 232.7777778 | U24: =T24*8.314*F24/4*LN(H24/G24)/1000 -> 263.9484004 | V24: =W24*B24 -> 545 | W24: 545 | X24: each | Y24: =H24-G24 -> 5.5
B25: 1 | C25: VMY536H (DP<20 b) | D25: 5699 | E25: 2950 | F25: 298 | G25: 1.05 | H25: 14.31 | J25: 0.1696073923 | K25: 1.3 | L25: 13.62857143 | M25: 3 | N25: 10.48351648 | O25: 0.7893708854 | P25: =(T25*8.314*F25/4*LN(H25/G25)/1000)/V25 -> 0.3513497822 | Q25: =T25*3600/1000/0.17625 -> 4329.078014 | R25: =T25/J25*3.6 -> 4498.624676 | S25: 763 | T25: =S25/3.6 -> 211.9444444 | U25: =T25*8.314*F25/4*LN(H25/G25)/1000 -> 342.9173875 | V25: =W25*B25 -> 976 | W25: 976 | X25: each | Y25: =H25-G25 -> 13.26
B27: 1 | C27: VMY536H (DP<20 b) | D27: 5699 | E27: 2950 | F27: 298 | G27: 1.05 | H27: 4.2 | J27: =$D$4*G27*273.15/(F27)*4/$D$3 -> 0.1696073923 | K27: 1.3 | L27: =H27/G27 -> 4 | M27: 4.8 | N27: 3.076923077 | O27: =R27/(B27*E27/$D$8*D27) -> 0.9073109653 | P27: =(T27*8.314*F27/4*LN(H27/G27)/1000)/V27 -> 0.4945138675 | Q27: =T27*3600/1000/0.17625 -> 4975.886525 | R27: =T27/J27*3.6 -> 5170.765191 | S27: 877 | T27: =S27/3.6 -> 243.6111111 | U27: =T27*8.314*F27/4*LN(H27/G27)/1000 -> 209.1793659 | V27: =W27*B27 -> 423 | W27: 423 | X27: each | Y27: =H27-G27 -> 3.15
B28: 1 | C28: VMY536H (DP<20 b) | D28: 5699 | E28: 2950 | F28: 298 | G28: 1.05 | H28: 6.55 | J28: 0.1696073923 | K28: 1.3 | L28: 6.238095238 | M28: 4.8 | N28: 4.798534799 | O28: 0.89489622 | P28: =(T28*8.314*F28/4*LN(H28/G28)/1000)/V28 -> 0.5438177734 | Q28: =T28*3600/1000/0.17625 -> 4907.801418 | R28: =T28/J28*3.6 -> 5100.013558 | S28: 865 | T28: =S28/3.6 -> 240.2777778 | U28: =T28*8.314*F28/4*LN(H28/G28)/1000 -> 272.4527045 | V28: =W28*B28 -> 501 | W28: 501 | X28: each | Y28: =H28-G28 -> 5.5
B29: 1 | C29: VMY536H (DP<20 b) | D29: 5699 | E29: 2950 | F29: 298 | G29: 1.05 | H29: 14.31 | J29: 0.1696073923 | K29: 1.3 | L29: 13.62857143 | M29: 4.8 | N29: 10.48351648 | O29: 0.8524791737 | P29: =(T29*8.314*F29/4*LN(H29/G29)/1000)/V29 -> 0.4834631869 | Q29: =T29*3600/1000/0.17625 -> 4675.177305 | R29: =T29/J29*3.6 -> 4858.278811 | S29: 824 | T29: =S29/3.6 -> 228.8888889 | U29: =T29*8.314*F29/4*LN(H29/G29)/1000 -> 370.3328012 | V29: =W29*B29 -> 766 | W29: 766 | X29: each | Y29: =H29-G29 -> 13.26
B32: 1 | C32: VMY536H (DP<20 b) | D32: 5699 | E32: 2950 | F32: 298 | G32: 1.05 | H32: =M32^K32*G32 -> 4.205599127 | J32: =$D$4*G32*273.15/(F32)*4/$D$3 -> 0.1696073923 | K32: 1.666 | L32: =H32/G32 -> 4.005332502 | M32: 2.3 | N32: =L32^1/(K32) -> 2.404161166 | O32: =R32/(B32*E32/$D$8*D32) -> 0.8835160369 | P32: =(T32*8.314*F32/4*LN(H32/G32)/1000)/V32 -> 0.4602465616 | Q32: =T32*3600/1000/0.17625 -> 4845.390071 | R32: =T32/J32*3.6 -> 5035.157894 | S32: 854 | T32: =S32/3.6 -> 237.2222222 | U32: =T32*8.314*F32/4*LN(H32/G32)/1000 -> 203.8892268 | V32: =W32*B32 -> 443 | W32: 443 | X32: each | Y32: =H32-G32 -> 3.155599127
B33: 1 | C33: VMY536H (DP<20 b) | D33: 5699 | E33: 2950 | F33: 298 | G33: 1.05 | H33: 4.2 | J33: 0.1696073923 | K33: 1.666 | L33: 4 | M33: 3 | N33: 2.400960384 | O33: 0.8907579716 | P33: =(T33*8.314*F33/4*LN(H33/G33)/1000)/V33 -> 0.4924774454 | Q33: =T33*3600/1000/0.17625 -> 4885.106383 | R33: =T33/J33*3.6 -> 5076.42968 | S33: 861 | T33: =S33/3.6 -> 239.1666667 | U33: =T33*8.314*F33/4*LN(H33/G33)/1000 -> 205.3630947 | V33: =W33*B33 -> 417 | W33: 417 | X33: each | Y33: =H33-G33 -> 3.15
B34: 1 | C34: VMY536H (DP<20 b) | D34: 5699 | E34: 2950 | F34: 298 | G34: 1.05 | H34: 4.2 | J34: 0.1696073923 | K34: 1.666 | L34: 4 | M34: 4.8 | N34: 2.400960384 | O34: 0.9073109653 | P34: =(T34*8.314*F34/4*LN(H34/G34)/1000)/V34 -> 0.4945138675 | Q34: =T34*3600/1000/0.17625 -> 4975.886525 | R34: =T34/J34*3.6 -> 5170.765191 | S34: 877 | T34: =S34/3.6 -> 243.6111111 | U34: =T34*8.314*F34/4*LN(H34/G34)/1000 -> 209.1793659 | V34: =W34*B34 -> 423 | W34: 423 | X34: each | Y34: =H34-G34 -> 3.15
B36: 1 | C36: VMY536H (DP<20 b) | D36: 5699 | E36: 2950 | F36: 298 | G36: 1.05 | H36: 6.55 | J36: =$D$4*G36*273.15/(F36)*4/$D$3 -> 0.1696073923 | K36: 1.666 | L36: =H36/G36 -> 6.238095238 | M36: 2.3 | N36: 3.744354885 | O36: =R36/(B36*E36/$D$8*D36) -> 0.8566174222 | P36: =(T36*8.314*F36/4*LN(H36/G36)/1000)/V36 -> 0.4254464244 | Q36: =T36*3600/1000/0.17625 -> 4697.87234 | R36: =T36/J36*3.6 -> 4881.862689 | S36: 828 | T36: =S36/3.6 -> 230 | U36: =T36*8.314*F36/4*LN(H36/G36)/1000 -> 260.7986581 | V36: =W36*B36 -> 613 | W36: 613 | X36: each | Y36: =H36-G36 -> 5.5
B37: 1 | C37: VMY536H (DP<20 b) | D37: 5699 | E37: 2950 | F37: 298 | G37: 1.05 | H37: =M37^K37*G37 -> 6.547466868 | J37: 0.1696073923 | K37: 1.666 | L37: 6.235682731 | M37: 3 | N37: 3.742906801 | O37: 0.8669630432 | P37: =(T37*8.314*F37/4*LN(H37/G37)/1000)/V37 -> 0.4842066595 | Q37: =T37*3600/1000/0.17625 -> 4754.609929 | R37: =T37/J37*3.6 -> 4940.822383 | S37: 838 | T37: =S37/3.6 -> 232.7777778 | U37: =T37*8.314*F37/4*LN(H37/G37)/1000 -> 263.8926294 | V37: =W37*B37 -> 545 | W37: 545 | X37: each | Y37: =H37-G37 -> 5.497466868 | AA37: =[3]!h_(11,H37,F37)-[3]!h_(11,G37,F37) -> 
B38: 1 | C38: VMY536H (DP<20 b) | D38: 5699 | E38: 2950 | F38: 298 | G38: 1.05 | H38: 6.55 | J38: 0.1696073923 | K38: 1.666 | L38: 6.238095238 | M38: 4.8 | N38: 3.744354885 | O38: 0.8524791737 | P38: =(T38*8.314*F38/4*LN(H38/G38)/1000)/V38 -> 0.3388234481 | Q38: =T38*3600/1000/0.17625 -> 4675.177305 | R38: =T38/J38*3.6 -> 4858.278811 | S38: 824 | T38: =S38/3.6 -> 228.8888889 | U38: =T38*8.314*F38/4*LN(H38/G38)/1000 -> 259.5387612 | V38: =W38*B38 -> 766 | W38: 766 | X38: each | Y38: =H38-G38 -> 5.5
B40: 1 | C40: VMY536H (DP<20 b) | D40: 5699 | E40: 2950 | F40: 298 | G40: 1.05 | H40: 14.31 | J40: =$D$4*G40*273.15/(F40)*4/$D$3 -> 0.1696073923 | K40: 1.666 | L40: =H40/G40 -> 13.62857143 | M40: 2.3 | N40: =L40^1/(K40) -> 8.180415023 | O40: =R40/(B40*E40/$D$8*D40) -> 0.765575957 | P40: =(T40*8.314*F40/4*LN(H40/G40)/1000)/V40 -> 0.2828064866 | Q40: =T40*3600/1000/0.17625 -> 4198.58156 | R40: =T40/J40*3.6 -> 4363.017379 | S40: 740 | T40: =S40/3.6 -> 205.5555556 | U40: =T40*8.314*F40/4*LN(H40/G40)/1000 -> 332.5804282 | V40: =W40*B40 -> 1176 | W40: 1176 | X40: each | Y40: =H40-G40 -> 13.26
B41: 1 | C41: VMY536H (DP<20 b) | D41: 5699 | E41: 2950 | F41: 298 | G41: 1.05 | H41: 14.31 | J41: 0.1696073923 | K41: 1.666 | L41: 13.62857143 | M41: 3 | N41: 8.180415023 | O41: 0.7893708854 | P41: =(T41*8.314*F41/4*LN(H41/G41)/1000)/V41 -> 0.3513497822 | Q41: =T41*3600/1000/0.17625 -> 4329.078014 | R41: =T41/J41*3.6 -> 4498.624676 | S41: 763 | T41: =S41/3.6 -> 211.9444444 | U41: =T41*8.314*F41/4*LN(H41/G41)/1000 -> 342.9173875 | V41: =W41*B41 -> 976 | W41: 976 | X41: each | Y41: =H41-G41 -> 13.26
B42: 1 | C42: VMY536H (DP<20 b) | D42: 5699 | E42: 2950 | F42: 298 | G42: 1.05 | H42: =M42^K42*G42 -> 14.32640422 | J42: 0.1696073923 | K42: 1.666 | L42: 13.64419449 | M42: 4.8 | N42: 8.189792612 | O42: 0.8524791737 | P42: =(T42*8.314*F42/4*LN(H42/G42)/1000)/V42 -> 0.4836752325 | Q42: =T42*3600/1000/0.17625 -> 4675.177305 | R42: =T42/J42*3.6 -> 4858.278811 | S42: 824 | T42: =S42/3.6 -> 228.8888889 | U42: =T42*8.314*F42/4*LN(H42/G42)/1000 -> 370.4952281 | V42: =W42*B42 -> 766 | W42: 766 | X42: each | Y42: =H42-G42 -> 13.27640422
C44: TMCP
B46: 2 | C46: VMY536H (DP<20 b) | D46: 5699 | E46: 2280 | F46: 298 | G46: 3.4 | H46: 20 | J46: =$D$4*G46*273.15/(F46)*4/$D$3 -> 0.5492048892 | K46: 1.666 | L46: =H46/G46 -> 5.882352941 | M46: 4.8 | N46: =L46^1/(K46) -> 3.530824094 | O46: =R46/(B46*E46/$D$8*D46) -> 0.8619065408 | P46: =(T46*8.314*F46/4*LN(H46/G46)/1000)/V46 -> 0.584243778 | Q46: =T46*3600/1000/0.17625 -> 23659.57447 | R46: =T46/J46*3.6 -> 7592.794751 | S46: =2*2085 -> 4170 | T46: =S46/3.6 -> 1158.333333 | U46: =T46*8.314*F46/4*LN(H46/G46)/1000 -> 1271.314461 | V46: =W46*B46 -> 2176 | W46: 1088 | X46: each | Y46: =H46-G46 -> 16.6
B47: 2 | C47: VMY536H (DP<20 b) | D47: 5699 | E47: 2950 | F47: 298 | G47: 2.5 | H47: =M47^K47*G47 -> 15.58920683 | J47: 0.4038271244 | K47: 1.666 | L47: 6.235682731 | M47: 3 | N47: 3.742906801 | O47: 0.8294912038 | P47: =(T47*8.314*F47/4*LN(H47/G47)/1000)/V47 -> 0.5138108944 | Q47: =T47*3600/1000/0.17625 -> 21662.41135 | R47: =T47/J47*3.6 -> 9454.540741 | S47: =2*1909 -> 3818 | T47: =S47/3.6 -> 1060.555556 | U47: =T47*8.314*F47/4*LN(H47/G47)/1000 -> 1202.317493 | V47: =W47*B47 -> 2340 | W47: =1170 -> 1170 | X47: each | Y47: =H47-G47 -> 13.08920683
C49: LPcompressor (1,05 - 4,2bara, Vi=2,3,t1=25°C)
B50: 1 | C50: VMY536B (DP<8 b) | D50: 9937 | E50: 3600 | F50: 298 | G50: 1.05 | H50: =M50^K50*G50 -> 4.205599127 | J50: =$D$4*G50*273.15/(F50)*4/$D$3 -> 0.1696073923 | K50: 1.666 | L50: =H50/G50 -> 4.005332502 | M50: 2.3 | N50: =L50^1/(K50) -> 2.404161166 | O50: =R50/(B50*E50/$D$8*D50) -> 0.8756552612 | P50: =(T50*8.314*F50/4*LN(H50/G50)/1000)/V50 -> 0.4507147245 | Q50: =T50*3600/1000/0.17625 -> 10218.43972 | R50: =T50/J50*3.6 -> 10618.64095 | S50: 1801 | T50: =S50/3.6 -> 500.2777778 | U50: =T50*8.314*F50/4*LN(H50/G50)/1000 -> 429.9818471 | V50: =W50*B50 -> 954 | W50: 954 | X50: each | Y50: =H50-G50 -> 3.155599127
B51: 1 | C51: VMY536B (DP<8 b) | D51: 9937 | E51: 2950 | F51: 298 | G51: 1.05 | H51: 4.205599127 | J51: 0.1696073923 | K51: 1.666 | L51: 4.005332502 | M51: 2.3 | N51: 2.404161166 | O51: 0.8751690561 | P51: =(T51*8.314*F51/4*LN(H51/G51)/1000)/V51 -> 0.4491716794 | Q51: =T51*3600/1000/0.17625 -> 8368.794326 | R51: =T51/J51*3.6 -> 8696.554911 | S51: 1475 | T51: =S51/3.6 -> 409.7222222 | U51: =T51*8.314*F51/4*LN(H51/G51)/1000 -> 352.1505966 | V51: =W51*B51 -> 784 | W51: 784 | X51: each | Y51: =H51-G51 -> 3.155599127
B53: 2 | C53: VMY536H (DP<20 b) | D53: 5699 | E53: 3600 | F53: 298 | G53: 1.05 | H53: =M53^K53*G53 -> 4.205599127 | J53: =$D$4*G53*273.15/(F53)*4/$D$3 -> 0.1696073923 | K53: 1.666 | L53: =H53/G53 -> 4.005332502 | M53: 2.3 | N53: =L53^1/(K53) -> 2.404161166 | O53: =R53/(B53*E53/$D$8*D53) -> 0.8893067109 | P53: =(T53*8.314*F53/4*LN(H53/G53)/1000)/V53 -> 0.4620751465 | Q53: =T53*3600/1000/0.17625 -> 11903.5461 | R53: =T53/J53*3.6 -> 12369.74387 | S53: =2*1049 -> 2098 | T53: =S53/3.6 -> 582.7777778 | U53: =T53*8.314*F53/4*LN(H53/G53)/1000 -> 500.8894588 | V53: =W53*B53 -> 1084 | W53: 542 | X53: each | Y53: =H53-G53 -> 3.155599127
B54: 2 | C54: VMY536H (DP<20 b) | D54: 5699 | E54: 2950 | F54: 298 | G54: 1.05 | H54: 4.205599127 | J54: 0.1696073923 | K54: 1.666 | L54: 4.005332502 | M54: 2.3 | N54: 2.404161166 | O54: =R54/(B54*E54/$D$8*D54) -> 0.8835160369 | P54: =(T54*8.314*F54/4*LN(H54/G54)/1000)/V54 -> 0.4602465616 | Q54: =T54*3600/1000/0.17625 -> 9690.780142 | R54: =T54/J54*3.6 -> 10070.31579 | S54: =2*854 -> 1708 | T54: =S54/3.6 -> 474.4444444 | U54: =T54*8.314*F54/4*LN(H54/G54)/1000 -> 407.7784536 | V54: =W54*B54 -> 886 | W54: 443 | X54: each | Y54: =H54-G54 -> 3.155599127
C56: HPcompressor (4,2 - 16,84bara, Vi=2,3,t1=30°C)
B57: 1 | C57: VMY536H (DP<20 b) | D57: 5699 | E57: 2950 | F57: =273+30 -> 303 | G57: 4.2 | H57: =M57^K57*G57 -> 16.82239651 | J57: =$D$4*G57*273.15/(F57)*4/$D$3 -> 0.6672343616 | K57: 1.666 | L57: =H57/G57 -> 4.005332502 | M57: 2.3 | N57: =L57^1/(K57) -> 2.404161166 | O57: =R57/(B57*E57/$D$8*D57) -> 0.3763245691 | P57: =(T57*8.314*F57/4*LN(H57/G57)/1000)/V57 -> 0.2427519754 | Q57: =T57*3600/1000/0.17625 -> 8119.148936 | R57: =T57/J57*3.6 -> 2144.673719 | S57: 1431 | T57: =S57/3.6 -> 397.5 | U57: =T57*8.314*F57/4*LN(H57/G57)/1000 -> 347.3780768 | V57: =W57*B57 -> 1431 | W57: 1431 | X57: each | Y57: =H57-G57 -> 12.62239651
B58: 1 | C58: VMY536M (DP<16 b) | D58: 7459 | E58: 2950 | F58: 298 | G58: 4.2 | H58: 16.82239651 | J58: 0.678429569 | K58: 1.666 | L58: 4.005332502 | M58: 2.3 | N58: 2.404161166 | O58: =R58/(B58*E58/$D$8*D58) -> 0.8242421403 | P58: =(T58*8.314*F58/4*LN(H58/G58)/1000)/V58 -> 0.5342329739 | Q58: =T58*3600/1000/0.17625 -> 23665.24823 | R58: =T58/J58*3.6 -> 6148.022124 | S58: 4171 | T58: =S58/3.6 -> 1158.611111 | U58: =T58*8.314*F58/4*LN(H58/G58)/1000 -> 995.8102634 | V58: =W58*B58 -> 1864 | W58: 1864 | X58: each | Y58: =H58-G58 -> 12.62239651
E62: Pin stage 1 | F62: bar abs | G62: 1.05 | H62: 1.05 | J62: Pin stage 1 | K62: bar abs | L62: 1.05 | M62: 1.05 | N62: 1.05 | Q62: 3.5
E63: Vi stage 1 | G63: 2.3 | H63: 3 | J63: Vi stage 1 | L63: 2.3 | M63: 3 | N63: 4.8 | Q63: 4.8
E64: Gamme | G64: 1.666 | H64: 1.666 | J64: Gamme | L64: 1 | M64: 1 | N64: 1 | Q64: 1.1
E65: Pint | F65: bar abs | G65: =G62*G63^G64 -> 4.205599127 | H65: 6.547466868 | J65: Pint | K65: bar abs | L65: =L62*L63^L64 -> 2.415 | M65: 3.15 | N65: 5.04 | Q65: =Q62*Q63^Q64 -> 19.65320596
E66: Vi stage 2 | G66: 2.3 | H66: 3 | J66: Vi stage 2 | L66: 2.3 | M66: 3 | N66: 3 | Q66: 3
E67: gamma | G67: 1.666 | H67: 1.666 | J67: gamma | L67: 1 | M67: 1 | N67: 1 | Q67: 1
E68: Pout stage 2 | F68: bar abs | G68: =G65*G66^G67 -> 16.84482287 | H68: 40.82792608 | J68: Pout stage 2 | K68: bar abs | L68: =L65*L66^L67 -> 5.5545 | M68: 9.45 | N68: 15.12 | Q68: =Q65*Q66^Q67 -> 58.95961788
L72: 1.05 | M72: 1.05 | N72: 1.05
L73: 2.3 | M73: 3 | N73: 4.8
L74: 1.1 | M74: 1.1 | N74: 1.1
L75: =L72*L73^L74 -> 2.624761932 | M75: 3.515787998 | N75: 5.895961788
L76: 2.3 | M76: 3 | N76: 3
L77: 1.1 | M77: 1.1 | N77: 1.1
L78: =L75*L76^L77 -> 6.561309714 | M78: 11.77215738 | N78: 19.74185875
L80: 1.05 | M80: 1.05 | N80: 1.05
L81: 2.3 | M81: 3 | N81: 4.8
L82: 1.2 | M82: 1.2 | N82: 1.2
L83: =L80*L81^L82 -> 2.852743354 | M83: 3.92405246 | N83: 6.897294723
L84: 2.3 | M84: 3 | N84: 3
L85: 1.2 | M85: 1.2 | N85: 1.2
L86: =L83*L84^L85 -> 7.750613947 | M86: 14.66494067 | N86: 25.77652031

Sheet Howden_results_JLAB
I1: Pressure Ratio | K1: P suction | L1: Pdischarge | M1: P ratio | N1: rdt isoT calc | O1: IsoT_ | P1: Vol_ | R1: IsoT_ | S1: Vol_ | AA1: rdt soT corrigé | AB1: rdt vol corrigé
F2: =F4 -> 1.05 | G2: 2.37 | J2: MP_HP | K2: =[1]ExergySLAC!D16 -> 6.06 | L2: =[1]ExergySLAC!E16 -> 19 | M2: =L2/K2 -> 3.135313531 | N2: =0.0012*M2^6 - 0.0429*M2^5 + 0.6099*M2^4 - 4.185*M2^3 + 13.77*M2^2 - 19.318*M2 + 60.184 -> 53.07157081 | O2: =((INDEX(LINEST(INDIRECT(O$1&$J2),INDIRECT("Pressure_ratio")^{1,2,3,4,5,6,7}),1)*$M2^7)+(INDEX(LINEST(INDIRECT(O$1&$J2),INDIRECT("Pressure_ratio")^{1,2,3,4,5,6,7}),1,2)*$M2^6)+(INDEX(LINEST(INDIRECT(O$1&$J2),INDIRECT("Pressure_ratio")^{1,2,3,4,5,6,7}),1,3)*$M2^5)+(INDEX(LINEST(INDIRECT(O$1&$J2),INDIRECT("Pressure_ratio")^{1,2,3,4,5,6,7}),1,4)*$M2^4)+(INDEX(LINEST(INDIRECT(O$1&$J2),INDIRECT("Pressure_ratio")^{1,2,3,4,5,6,7}),1,5)*$M2^3)+(INDEX(LINEST(INDIRECT(O$1&$J2),INDIRECT("Pressure_ratio")^{1,2,3,4,5,6,7}),1,6)*$M2^2)+(INDEX(LINEST(INDIRECT(O$1&$J2),INDIRECT("Pressure_ratio")^{1,2,3,4,5,6,7}),1,7)*$M2)+INDEX(LINEST(INDIRECT(O$1&$J2),INDIRECT("Pressure_ratio")^{1,2,3,4,5,6,7}),1,8)) -> 55.59438371 | P2: =((INDEX(LINEST(INDIRECT(P$1&$J2),INDIRECT("Pressure_ratio")^{1,2,3,4,5,6,7}),1)*$M2^7)+(INDEX(LINEST(INDIRECT(P$1&$J2),INDIRECT("Pressure_ratio")^{1,2,3,4,5,6,7}),1,2)*$M2^6)+(INDEX(LINEST(INDIRECT(P$1&$J2),INDIRECT("Pressure_ratio")^{1,2,3,4,5,6,7}),1,3)*$M2^5)+(INDEX(LINEST(INDIRECT(P$1&$J2),INDIRECT("Pressure_ratio")^{1,2,3,4,5,6,7}),1,4)*$M2^4)+(INDEX(LINEST(INDIRECT(P$1&$J2),INDIRECT("Pressure_ratio")^{1,2,3,4,5,6,7}),1,5)*$M2^3)+(INDEX(LINEST(INDIRECT(P$1&$J2),INDIRECT("Pressure_ratio")^{1,2,3,4,5,6,7}),1,6)*$M2^2)+(INDEX(LINEST(INDIRECT(P$1&$J2),INDIRECT("Pressure_ratio")^{1,2,3,4,5,6,7}),1,7)*$M2)+INDEX(LINEST(INDIRECT(P$1&$J2),INDIRECT("Pressure_ratio")^{1,2,3,4,5,6,7}),1,8)) -> 82.89170878 | R2: =extrapol_($M2,Pressure_ratio,INDIRECT(R$1&$J2))/100 -> 0.5292706271 | S2: =extrapol_($M2,Pressure_ratio,INDIRECT(S$1&$J2))/100 -> 0.79 | AA2: =N2 -> 53.07157081 | AB2: =P2 -> 82.89170878 | AD2: =extrapol_(AD1,Vol_ratio,Vol_MP_HP)/100 -> 0 | AH2: 7 Order Polynomial Trendline
B3: =13.92+24.23+12.63+7.26 -> 58.04 | G3: =G2/F2 -> 2.257142857 | J3: LPR_MP | K3: =[1]ExergySLAC!D17 -> 2.308 | L3: =[1]ExergySLAC!E17 -> 6.06 | M3: =L3/K3 -> 2.625649913 | N3: =0.1067*M3^6 - 2.0738*M3^5 + 16*M3^4 - 61.153*M3^3 + 115.21*M3^2 - 86.125*M3 + 57.983 -> 55.7734821 | O3: =((INDEX(LINEST(INDIRECT(O$1&$J3),INDIRECT("Pressure_ratio")^{1,2,3,4,5,6,7}),1)*$M3^7)+(INDEX(LINEST(INDIRECT(O$1&$J3),INDIRECT("Pressure_ratio")^{1,2,3,4,5,6,7}),1,2)*$M3^6)+(INDEX(LINEST(INDIRECT(O$1&$J3),INDIRECT("Pressure_ratio")^{1,2,3,4,5,6,7}),1,3)*$M3^5)+(INDEX(LINEST(INDIRECT(O$1&$J3),INDIRECT("Pressure_ratio")^{1,2,3,4,5,6,7}),1,4)*$M3^4)+(INDEX(LINEST(INDIRECT(O$1&$J3),INDIRECT("Pressure_ratio")^{1,2,3,4,5,6,7}),1,5)*$M3^3)+(INDEX(LINEST(INDIRECT(O$1&$J3),INDIRECT("Pressure_ratio")^{1,2,3,4,5,6,7}),1,6)*$M3^2)+(INDEX(LINEST(INDIRECT(O$1&$J3),INDIRECT("Pressure_ratio")^{1,2,3,4,5,6,7}),1,7)*$M3)+INDEX(LINEST(INDIRECT(O$1&$J3),INDIRECT("Pressure_ratio")^{1,2,3,4,5,6,7}),1,8)) -> 54.93781187 | P3: =((INDEX(LINEST(INDIRECT(P$1&$J3),INDIRECT("Pressure_ratio")^{1,2,3,4,5,6,7}),1)*$M3^7)+(INDEX(LINEST(INDIRECT(P$1&$J3),INDIRECT("Pressure_ratio")^{1,2,3,4,5,6,7}),1,2)*$M3^6)+(INDEX(LINEST(INDIRECT(P$1&$J3),INDIRECT("Pressure_ratio")^{1,2,3,4,5,6,7}),1,3)*$M3^5)+(INDEX(LINEST(INDIRECT(P$1&$J3),INDIRECT("Pressure_ratio")^{1,2,3,4,5,6,7}),1,4)*$M3^4)+(INDEX(LINEST(INDIRECT(P$1&$J3),INDIRECT("Pressure_ratio")^{1,2,3,4,5,6,7}),1,5)*$M3^3)+(INDEX(LINEST(INDIRECT(P$1&$J3),INDIRECT("Pressure_ratio")^{1,2,3,4,5,6,7}),1,6)*$M3^2)+(INDEX(LINEST(INDIRECT(P$1&$J3),INDIRECT("Pressure_ratio")^{1,2,3,4,5,6,7}),1,7)*$M3)+INDEX(LINEST(INDIRECT(P$1&$J3),INDIRECT("Pressure_ratio")^{1,2,3,4,5,6,7}),1,8)) -> 86.23192912 | R3: =extrapol_($M3,Pressure_ratio,INDIRECT(R$1&$J3))/100 -> 0.5562409012 | S3: =extrapol_($M3,Pressure_ratio,INDIRECT(S$1&$J3))/100 -> 0.875 | AA3: =N3 -> 55.7734821 | AB3: =P3 -> 86.23192912 | AC3: =extrapol_(AC1,IsoT_ratio,IsoT_LPL_MP)/100 ->  | AD3: =extrapol_(AD1,IsoT_ratio,IsoT_MP_HP)/100 ->  | AH3: Equation: y = (c3 * x^3) + (c2 * x^2) + (c1 * x^1) + b
E4: Patm | F4: 1.05 | G4: =K2 -> 6.06 | H4: =L2 -> 19 | J4: LPL_MP | K4: =[1]ExergySLAC!D18 -> 1.05 | L4: =[1]ExergySLAC!E18 -> 6.06 | M4: 5.771428571 | N4: =O4 -> 48.67129229 | O4: =((INDEX(LINEST(INDIRECT(O$1&$J4),INDIRECT("Pressure_ratio")^{1,2,3,4,5,6,7}),1)*$M4^7)+(INDEX(LINEST(INDIRECT(O$1&$J4),INDIRECT("Pressure_ratio")^{1,2,3,4,5,6,7}),1,2)*$M4^6)+(INDEX(LINEST(INDIRECT(O$1&$J4),INDIRECT("Pressure_ratio")^{1,2,3,4,5,6,7}),1,3)*$M4^5)+(INDEX(LINEST(INDIRECT(O$1&$J4),INDIRECT("Pressure_ratio")^{1,2,3,4,5,6,7}),1,4)*$M4^4)+(INDEX(LINEST(INDIRECT(O$1&$J4),INDIRECT("Pressure_ratio")^{1,2,3,4,5,6,7}),1,5)*$M4^3)+(INDEX(LINEST(INDIRECT(O$1&$J4),INDIRECT("Pressure_ratio")^{1,2,3,4,5,6,7}),1,6)*$M4^2)+(INDEX(LINEST(INDIRECT(O$1&$J4),INDIRECT("Pressure_ratio")^{1,2,3,4,5,6,7}),1,7)*$M4)+INDEX(LINEST(INDIRECT(O$1&$J4),INDIRECT("Pressure_ratio")^{1,2,3,4,5,6,7}),1,8)) -> 48.67129229 | P4: =((INDEX(LINEST(INDIRECT(P$1&$J4),INDIRECT("Pressure_ratio")^{1,2,3,4,5,6,7}),1)*$M4^7)+(INDEX(LINEST(INDIRECT(P$1&$J4),INDIRECT("Pressure_ratio")^{1,2,3,4,5,6,7}),1,2)*$M4^6)+(INDEX(LINEST(INDIRECT(P$1&$J4),INDIRECT("Pressure_ratio")^{1,2,3,4,5,6,7}),1,3)*$M4^5)+(INDEX(LINEST(INDIRECT(P$1&$J4),INDIRECT("Pressure_ratio")^{1,2,3,4,5,6,7}),1,4)*$M4^4)+(INDEX(LINEST(INDIRECT(P$1&$J4),INDIRECT("Pressure_ratio")^{1,2,3,4,5,6,7}),1,5)*$M4^3)+(INDEX(LINEST(INDIRECT(P$1&$J4),INDIRECT("Pressure_ratio")^{1,2,3,4,5,6,7}),1,6)*$M4^2)+(INDEX(LINEST(INDIRECT(P$1&$J4),INDIRECT("Pressure_ratio")^{1,2,3,4,5,6,7}),1,7)*$M4)+INDEX(LINEST(INDIRECT(P$1&$J4),INDIRECT("Pressure_ratio")^{1,2,3,4,5,6,7}),1,8)) -> 84.5258902 | R4: =extrapol_($M4,Pressure_ratio,INDIRECT(R$1&$J4))/100 -> 0.4862 | S4: =extrapol_($M4,Pressure_ratio,INDIRECT(S$1&$J4))/100 -> 0.8452 | AA4: =N4 -> 48.67129229 | AB4: =P4 -> 84.5258902 | AH4: Xs | AI4: Pressure_ratio
A5: 5.77 | B5: =extrapol_(A5,IsoT_ratio,IsoT_LPL_MP) ->  | C5: =extrapol_(A5,A9:A26,C9:C26) -> 0 | D5: =extrapol_(A5,A9:A26,C9:C26) -> 0 | G5: =G4/F4 -> 5.771428571 | H5: =H4/G4 -> 3.135313531 | M5: =INDIRECT(J4) ->  | AH5: Ys | AI5: IsoT_LPL_MP
AH6: Order | AI6: 7
B7: isoT efficiency | O7: =O1&J3 -> IsoT_LPR_MP | AH7: Round Significants Digits | AI7: 5 | AM7: X= | AN7: 2.5
A8: ratio pressure | B8: LPL to MP | C8: LPR to MP | D8: MP to HP
A9: 1.5 | B9: 30.4 | C9: 48.1 | D9: 0 | AH9: 1 | AI9: ="a"&8-AH9&"=" -> a7= | AJ9: =INDEX(LINEST(INDIRECT($AI$5),INDIRECT($AI$4)^{1,2,3,4,5,6,7}),1,AH9) -> 0.0005931281742 | AK9: 7 | AL9: ="a"&8-AH9&"="&AJ9 -> a7=0.000593128174231136 | AM9: =ROUND(AJ9,$AI$7-1-INT(LOG10(ABS(AJ9)))) -> 0.00059313 | AN9: =AM9*$AN$7^AK9 -> 0.3620178223
A10: =A9+0.5 -> 2 | B10: 43.7 | C10: 53.8 | D10: 0 | AH10: 2 | AI10: a6= | AJ10: =INDEX(LINEST(INDIRECT($AI$5),INDIRECT($AI$4)^{1,2,3,4,5,6,7}),1,AH10) -> -0.02763424617 | AK10: =AK9-1 -> 6 | AL10: a6=-0.0276342461724885 | AM10: -0.027634 | AN10: -6.746582031
A11: 2.5 | B11: 49.6 | C11: 55.8 | D11: 52.5 | AH11: 3 | AI11: a5= | AJ11: =INDEX(LINEST(INDIRECT($AI$5),INDIRECT($AI$4)^{1,2,3,4,5,6,7}),1,AH11) -> 0.5389144643 | AK11: =AK10-1 -> 5 | AL11: a5=0.538914464337901 | AM11: 0.53891 | AN11: 52.62792969
A12: =A11+0.5 -> 3 | B12: 50.9 | C12: 55.1 | D12: 52.9 | AH12: 4 | AI12: a4= | AJ12: =INDEX(LINEST(INDIRECT($AI$5),INDIRECT($AI$4)^{1,2,3,4,5,6,7}),1,AH12) -> -5.691772982 | AK12: 4 | AL12: a4=-5.6917729817718 | AM12: -5.6918 | AN12: -222.3359375
A13: 3.5 | B13: 50.8 | C13: 53.9 | D13: 53 | AH13: 5 | AI13: a3= | AJ13: =INDEX(LINEST(INDIRECT($AI$5),INDIRECT($AI$4)^{1,2,3,4,5,6,7}),1,AH13) -> 35.11250654 | AK13: 3 | AL13: a3=35.1125065434999 | AM13: 35.113 | AN13: 548.640625
A14: =A13+0.5 -> 4 | B14: 50.6 | C14: 52.3 | D14: 52.4 | AH14: 6 | AI14: a2= | AJ14: =INDEX(LINEST(INDIRECT($AI$5),INDIRECT($AI$4)^{1,2,3,4,5,6,7}),1,AH14) -> -126.554793 | AK14: 2 | AL14: a2=-126.554792978698 | AM14: -126.55 | AN14: -790.9375
A15: 4.5 | B15: 50.2 | C15: 50.8 | D15: 51.3 | AH15: 7 | AI15: a1= | AJ15: =INDEX(LINEST(INDIRECT($AI$5),INDIRECT($AI$4)^{1,2,3,4,5,6,7}),1,AH15) -> 246.1293068 | AK15: 1 | AL15: a1=246.129306813879 | AM15: 246.13 | AN15: 615.325
A16: =A15+0.5 -> 5 | B16: 49.6 | C16: 49.4 | D16: 50.1 | AH16: 8 | AI16: ="a"&8-AH16&"=" -> a0= | AJ16: =INDEX(LINEST(INDIRECT($AI$5),INDIRECT($AI$4)^{1,2,3,4,5,6,7}),1,AH16) -> -147.5574475 | AL16: a0=-147.557447540685 | AM16: -147.56 | AN16: -147.56
A17: 5.5 | B17: 49 | C17: 0 | D17: 48.7 | AN17: =SUM(AN9:AN16) -> 49.37555298 | AO17: %
A18: =A17+0.5 -> 6 | B18: 48.3 | C18: 0 | D18: 47.4 | AH18: variable | AI18: x | AN18: =SUM(($AM$11:$AM$16)*AN7^($AK$11:$AK$16)) -> 55.76011719
A19: 6.5 | B19: 47.5 | C19: 0 | D19: 46.2 | AH19: Equation | AI19: =TEXT(AM9,"#0.000E+0")&"*x^"&AK9&"+("&AM10&")*x^"&AK10&"+("&AM11&")*x^"&AK11&AK10&"+é"&AM11&")*x^"&AK12 -> 5.931E-4*x^7+(-0.027634)*x^6+(0.53891)*x^56+é0.53891)*x^4
A20: =A19+0.5 -> 7 | B20: 46.7 | C20: 0 | D20: 45.4 | AI20: Xs | AJ20: =CELL("address",A9)&":"&CELL("address",A26) -> $A$9:$A$26 | AK20: Pressure_ratio | AL20: Pressure_ratio | AM20: Pressure_ratio | AN20: Pressure_ratio
A21: 7.5 | B21: 45.8 | C21: 0 | D21: 44.5 | AI21: Ys | AJ21: =CELL("address",B9)&":"&CELL("address",B26) -> $B$9:$B$26 | AK21: IsoT_LPL_MP | AL21: IsoT_LPL_MP | AM21: IsoT_LPL_MP | AN21: IsoT_LPL_MP
A22: =A21+0.5 -> 8 | B22: 45 | C22: 0 | D22: 43.7 | AI22: Pressure Ratio | AJ22: 2.5 | AK22: 2.5 | AL22: 3.5 | AM22: 4.5 | AN22: 5.5
A23: 8.5 | B23: 44.1 | C23: 0 | D23: 42.9 | AI23: Iso_eff | AJ23: =((INDEX(LINEST(INDIRECT(AJ$21),INDIRECT(AJ$20)^{1,2,3,4,5,6,7}),1)*AJ22^7)+(INDEX(LINEST(INDIRECT(AJ$21),INDIRECT(AJ$20)^{1,2,3,4,5,6,7}),1,2)*AJ22^6)+(INDEX(LINEST(INDIRECT(AJ$21),INDIRECT(AJ$20)^{1,2,3,4,5,6,7}),1,3)*AJ22^5)+(INDEX(LINEST(INDIRECT(AJ$21),INDIRECT(AJ$20)^{1,2,3,4,5,6,7}),1,4)*AJ22^4)+(INDEX(LINEST(INDIRECT(AJ$21),INDIRECT(AJ$20)^{1,2,3,4,5,6,7}),1,5)*AJ22^3)+(INDEX(LINEST(INDIRECT(AJ$21),INDIRECT(AJ$20)^{1,2,3,4,5,6,7}),1,6)*AJ22^2)+(INDEX(LINEST(INDIRECT(AJ$21),INDIRECT(AJ$20)^{1,2,3,4,5,6,7}),1,7)*AJ22)+INDEX(LINEST(INDIRECT(AJ$21),INDIRECT(AJ$20)^{1,2,3,4,5,6,7}),1,8)) -> 49.34013625 | AK23: =((INDEX(LINEST(INDIRECT(AK$21),INDIRECT(AK$20)^{1,2,3,4,5,6,7}),1)*AK22^7)+(INDEX(LINEST(INDIRECT(AK$21),INDIRECT(AK$20)^{1,2,3,4,5,6,7}),1,2)*AK22^6)+(INDEX(LINEST(INDIRECT(AK$21),INDIRECT(AK$20)^{1,2,3,4,5,6,7}),1,3)*AK22^5)+(INDEX(LINEST(INDIRECT(AK$21),INDIRECT(AK$20)^{1,2,3,4,5,6,7}),1,4)*AK22^4)+(INDEX(LINEST(INDIRECT(AK$21),INDIRECT(AK$20)^{1,2,3,4,5,6,7}),1,5)*AK22^3)+(INDEX(LINEST(INDIRECT(AK$21),INDIRECT(AK$20)^{1,2,3,4,5,6,7}),1,6)*AK22^2)+(INDEX(LINEST(INDIRECT(AK$21),INDIRECT(AK$20)^{1,2,3,4,5,6,7}),1,7)*AK22)+INDEX(LINEST(INDIRECT(AK$21),INDIRECT(AK$20)^{1,2,3,4,5,6,7}),1,8)) -> 49.34013625 | AL23: =((INDEX(LINEST(INDIRECT(AL$21),INDIRECT("Pressure_ratio")^{1,2,3,4,5,6,7}),1)*AL22^7)+(INDEX(LINEST(INDIRECT(AL$21),INDIRECT("Pressure_ratio")^{1,2,3,4,5,6,7}),1,2)*AL22^6)+(INDEX(LINEST(INDIRECT(AL$21),INDIRECT("Pressure_ratio")^{1,2,3,4,5,6,7}),1,3)*AL22^5)+(INDEX(LINEST(INDIRECT(AL$21),INDIRECT("Pressure_ratio")^{1,2,3,4,5,6,7}),1,4)*AL22^4)+(INDEX(LINEST(INDIRECT(AL$21),INDIRECT("Pressure_ratio")^{1,2,3,4,5,6,7}),1,5)*AL22^3)+(INDEX(LINEST(INDIRECT(AL$21),INDIRECT("Pressure_ratio")^{1,2,3,4,5,6,7}),1,6)*AL22^2)+(INDEX(LINEST(INDIRECT(AL$21),INDIRECT("Pressure_ratio")^{1,2,3,4,5,6,7}),1,7)*AL22)+INDEX(LINEST(INDIRECT(AL$21),INDIRECT("Pressure_ratio")^{1,2,3,4,5,6,7}),1,8)) -> 50.99098877 | AM23: =((INDEX(LINEST(INDIRECT(AM$21),INDIRECT(AM$20)^{1,2,3,4,5,6,7}),1)*AM22^7)+(INDEX(LINEST(INDIRECT(AM$21),INDIRECT(AM$20)^{1,2,3,4,5,6,7}),1,2)*AM22^6)+(INDEX(LINEST(INDIRECT(AM$21),INDIRECT(AM$20)^{1,2,3,4,5,6,7}),1,3)*AM22^5)+(INDEX(LINEST(INDIRECT(AM$21),INDIRECT(AM$20)^{1,2,3,4,5,6,7}),1,4)*AM22^4)+(INDEX(LINEST(INDIRECT(AM$21),INDIRECT(AM$20)^{1,2,3,4,5,6,7}),1,5)*AM22^3)+(INDEX(LINEST(INDIRECT(AM$21),INDIRECT(AM$20)^{1,2,3,4,5,6,7}),1,6)*AM22^2)+(INDEX(LINEST(INDIRECT(AM$21),INDIRECT(AM$20)^{1,2,3,4,5,6,7}),1,7)*AM22)+INDEX(LINEST(INDIRECT(AM$21),INDIRECT(AM$20)^{1,2,3,4,5,6,7}),1,8)) -> 50.07821675 | AN23: =((INDEX(LINEST(INDIRECT(AN$21),INDIRECT(AN$20)^{1,2,3,4,5,6,7}),1)*AN22^7)+(INDEX(LINEST(INDIRECT(AN$21),INDIRECT(AN$20)^{1,2,3,4,5,6,7}),1,2)*AN22^6)+(INDEX(LINEST(INDIRECT(AN$21),INDIRECT(AN$20)^{1,2,3,4,5,6,7}),1,3)*AN22^5)+(INDEX(LINEST(INDIRECT(AN$21),INDIRECT(AN$20)^{1,2,3,4,5,6,7}),1,4)*AN22^4)+(INDEX(LINEST(INDIRECT(AN$21),INDIRECT(AN$20)^{1,2,3,4,5,6,7}),1,5)*AN22^3)+(INDEX(LINEST(INDIRECT(AN$21),INDIRECT(AN$20)^{1,2,3,4,5,6,7}),1,6)*AN22^2)+(INDEX(LINEST(INDIRECT(AN$21),INDIRECT(AN$20)^{1,2,3,4,5,6,7}),1,7)*AN22)+INDEX(LINEST(INDIRECT(AN$21),INDIRECT(AN$20)^{1,2,3,4,5,6,7}),1,8)) -> 49.02509385
A24: =A23+0.5 -> 9 | B24: 43.2 | C24: 0 | D24: 42.2
A25: 9.5 | B25: 42.4 | C25: 0 | D25: 41.5 | AH25: Nom des indirect($L$27): | AI25: IsoT_LPL_MP | AJ25: =CELL("address",AH31)&":"&CELL("address",R97) -> $AH$31:$R$97
A26: =A25+0.5 -> 10 | B26: 41.5 | C26: 0 | D26: 40.9 | AH26: Nom des indirect($L$28) | AI26: IsoT_ratio | AN26: b = =INDEX(LINEST(y,x^{1,2}),1,3)
B29: volumetric efficiency | AH29: X | AI29: Y | AK29: 1 | AL29: 1 | AM29: 1 | AN29: 1 | AO29: 1 | AP29: 1 | AQ29: 1 | AR29: 1 | AS29: 1 | AT29: 1
A30: ratio pressure | B30: LPL to MP | C30: LPR to MP | D30: MP to HP | AH30: T | AI30: ALU k | AK30: Linear | AL30: Log | AM30: Power | AN30: Exp | AO30: 2nd Order Poly | AP30: 3rd Order Poly | AQ30: 4th Order Poly | AR30: 5th Order Poly | AS30: 6th Order Poly | AT30: 7th Order Poly
A31: 1.5 | B31: 86.1 | C31: 86.7 | D31: 0 | AH31: 2.5 | AI31: 30.4 | AK31: =(AH31*SLOPE(INDIRECT($AJ$21),INDIRECT($AJ$20))+INTERCEPT(INDIRECT($AJ$21),INDIRECT($AJ$20)))*AK$29 -> 46.7369797 | AL31: =((INDEX(LINEST(INDIRECT($AJ$21),LN(INDIRECT($AJ$20))),1)*LN(AH31))+INDEX(LINEST(INDIRECT($AJ$21),LN(INDIRECT($AJ$20))),1,2)) -> 45.36165192 | AM31: =(EXP(INDEX(LINEST(LN(INDIRECT($AJ$21)),LN(INDIRECT($AJ$20)),,),1,2))*AH31^INDEX(LINEST(LN(INDIRECT($AJ$21)),LN(INDIRECT($AJ$20)),,),1)) -> 44.52526756 | AN31: =(EXP(INDEX(LINEST(LN(INDIRECT($AJ$21)),INDIRECT($AJ$20)),1,2))*EXP(1)^(AH31*INDEX(LINEST(LN(INDIRECT($AJ$21)),INDIRECT($AJ$20)),1) )) -> 46.03045892 | AO31: =((INDEX(LINEST(INDIRECT($AJ$21),INDIRECT($AJ$20)^{1,2}),1)*AH31^2)+(INDEX(LINEST(INDIRECT($AJ$21),INDIRECT($AJ$20)^{1,2}),1,2)*AH31)+INDEX(LINEST(INDIRECT($AJ$21),INDIRECT($AJ$20)^{1,2}),1,3)) -> 44.48168215 | AP31: =((INDEX(LINEST(INDIRECT($AJ$21),INDIRECT($AJ$20)^{1,2,3}),1)*AH31^3)+(INDEX(LINEST(INDIRECT($AJ$21),INDIRECT($AJ$20)^{1,2,3}),1,2)*AH31^2)+(INDEX(LINEST(INDIRECT($AJ$21),INDIRECT($AJ$20)^{1,2,3}),1,3)*AH31)+INDEX(LINEST(INDIRECT($AJ$21),INDIRECT($AJ$20)^{1,2,3}),1,4)) -> 45.40849673 | AQ31: =((INDEX(LINEST(INDIRECT($AJ$21),INDIRECT($AJ$20)^{1,2,3,4}),1)*AH31^4)+(INDEX(LINEST(INDIRECT($AJ$21),INDIRECT($AJ$20)^{1,2,3,4}),1,2)*AH31^3)+(INDEX(LINEST(INDIRECT($AJ$21),INDIRECT($AJ$20)^{1,2,3,4}),1,3)*AH31^2)+(INDEX(LINEST(INDIRECT($AJ$21),INDIRECT($AJ$20)^{1,2,3,4}),1,4)*AH31)+INDEX(LINEST(INDIRECT($AJ$21),INDIRECT($AJ$20)^{1,2,3,4}),1,5)) -> 47.41092426 | AR31: =((INDEX(LINEST(INDIRECT($AJ$21),INDIRECT($AJ$20)^{1,2,3,4,5}),1)*AH31^5)+(INDEX(LINEST(INDIRECT($AJ$21),INDIRECT($AJ$20)^{1,2,3,4,5}),1,2)*AH31^4)+(INDEX(LINEST(INDIRECT($AJ$21),INDIRECT($AJ$20)^{1,2,3,4,5}),1,3)*AH31^3)+(INDEX(LINEST(INDIRECT($AJ$21),INDIRECT($AJ$20)^{1,2,3,4,5}),1,4)*AH31^2)+(INDEX(LINEST(INDIRECT($AJ$21),INDIRECT($AJ$20)^{1,2,3,4,5}),1,5)*AH31)+INDEX(LINEST(INDIRECT($AJ$21),INDIRECT($AJ$20)^{1,2,3,4,5}),1,6)) -> 48.8528908 | AS31: =((INDEX(LINEST(INDIRECT($AJ$21),INDIRECT($AJ$20)^{1,2,3,4,5,6}),1)*AH31^6)+(INDEX(LINEST(INDIRECT($AJ$21),INDIRECT($AJ$20)^{1,2,3,4,5,6}),1,2)*AH31^5)+(INDEX(LINEST(INDIRECT($AJ$21),INDIRECT($AJ$20)^{1,2,3,4,5,6}),1,3)*AH31^4)+(INDEX(LINEST(INDIRECT($AJ$21),INDIRECT($AJ$20)^{1,2,3,4,5,6}),1,4)*AH31^3)+(INDEX(LINEST(INDIRECT($AJ$21),INDIRECT($AJ$20)^{1,2,3,4,5,6}),1,5)*AH31^2)+(INDEX(LINEST(INDIRECT($AJ$21),INDIRECT($AJ$20)^{1,2,3,4,5,6}),1,6)*AH31)+INDEX(LINEST(INDIRECT($AJ$21),INDIRECT($AJ$20)^{1,2,3,4,5,6}),1,7)) -> 49.33624385 | AT31: =((INDEX(LINEST(INDIRECT($AJ$21),INDIRECT($AJ$20)^{1,2,3,4,5,6,7}),1)*AH31^7)+(INDEX(LINEST(INDIRECT($AJ$21),INDIRECT($AJ$20)^{1,2,3,4,5,6,7}),1,2)*AH31^6)+(INDEX(LINEST(INDIRECT($AJ$21),INDIRECT($AJ$20)^{1,2,3,4,5,6,7}),1,3)*AH31^5)+(INDEX(LINEST(INDIRECT($AJ$21),INDIRECT($AJ$20)^{1,2,3,4,5,6,7}),1,4)*AH31^4)+(INDEX(LINEST(INDIRECT($AJ$21),INDIRECT($AJ$20)^{1,2,3,4,5,6,7}),1,5)*AH31^3)+(INDEX(LINEST(INDIRECT($AJ$21),INDIRECT($AJ$20)^{1,2,3,4,5,6,7}),1,6)*AH31^2)+(INDEX(LINEST(INDIRECT($AJ$21),INDIRECT($AJ$20)^{1,2,3,4,5,6,7}),1,7)*AH31)+INDEX(LINEST(INDIRECT($AJ$21),INDIRECT($AJ$20)^{1,2,3,4,5,6,7}),1,8)) -> 49.34013625
A32: =A31+0.5 -> 2 | B32: 86.8 | C32: 87.2 | D32: 0 | AH32: 2 | AI32: 43.7 | AK32: =(AH32*SLOPE(INDIRECT($AJ$21),INDIRECT($AJ$20))+INTERCEPT(INDIRECT($AJ$21),INDIRECT($AJ$20)))*AK$29 -> 46.83925009 | AL32: =((INDEX(LINEST(INDIRECT($AJ$21),LN(INDIRECT($AJ$20))),1)*LN(AH32))+INDEX(LINEST(INDIRECT($AJ$21),LN(INDIRECT($AJ$20))),1,2)) -> 45.13643624 | AM32: =(EXP(INDEX(LINEST(LN(INDIRECT($AJ$21)),LN(INDIRECT($AJ$20)),,),1,2))*AH32^INDEX(LINEST(LN(INDIRECT($AJ$21)),LN(INDIRECT($AJ$20)),,),1)) -> 44.13630884 | AN32: =(EXP(INDEX(LINEST(LN(INDIRECT($AJ$21)),INDIRECT($AJ$20)),1,2))*EXP(1)^(AH32*INDEX(LINEST(LN(INDIRECT($AJ$21)),INDIRECT($AJ$20)),1) )) -> 46.06987599 | AO32: =((INDEX(LINEST(INDIRECT($AJ$21),INDIRECT($AJ$20)^{1,2}),1)*AH32^2)+(INDEX(LINEST(INDIRECT($AJ$21),INDIRECT($AJ$20)^{1,2}),1,2)*AH32)+INDEX(LINEST(INDIRECT($AJ$21),INDIRECT($AJ$20)^{1,2}),1,3)) -> 42.5247678 | AP32: =((INDEX(LINEST(INDIRECT($AJ$21),INDIRECT($AJ$20)^{1,2,3}),1)*AH32^3)+(INDEX(LINEST(INDIRECT($AJ$21),INDIRECT($AJ$20)^{1,2,3}),1,2)*AH32^2)+(INDEX(LINEST(INDIRECT($AJ$21),INDIRECT($AJ$20)^{1,2,3}),1,3)*AH32)+INDEX(LINEST(INDIRECT($AJ$21),INDIRECT($AJ$20)^{1,2,3}),1,4)) -> 41.09889921 | AQ32: =((INDEX(LINEST(INDIRECT($AJ$21),INDIRECT($AJ$20)^{1,2,3,4}),1)*AH32^4)+(INDEX(LINEST(INDIRECT($AJ$21),INDIRECT($AJ$20)^{1,2,3,4}),1,2)*AH32^3)+(INDEX(LINEST(INDIRECT($AJ$21),INDIRECT($AJ$20)^{1,2,3,4}),1,3)*AH32^2)+(INDEX(LINEST(INDIRECT($AJ$21),INDIRECT($AJ$20)^{1,2,3,4}),1,4)*AH32)+INDEX(LINEST(INDIRECT($AJ$21),INDIRECT($AJ$20)^{1,2,3,4}),1,5)) -> 41.6101573 | AR32: =((INDEX(LINEST(INDIRECT($AJ$21),INDIRECT($AJ$20)^{1,2,3,4,5}),1)*AH32^5)+(INDEX(LINEST(INDIRECT($AJ$21),INDIRECT($AJ$20)^{1,2,3,4,5}),1,2)*AH32^4)+(INDEX(LINEST(INDIRECT($AJ$21),INDIRECT($AJ$20)^{1,2,3,4,5}),1,3)*AH32^3)+(INDEX(LINEST(INDIRECT($AJ$21),INDIRECT($AJ$20)^{1,2,3,4,5}),1,4)*AH32^2)+(INDEX(LINEST(INDIRECT($AJ$21),INDIRECT($AJ$20)^{1,2,3,4,5}),1,5)*AH32)+INDEX(LINEST(INDIRECT($AJ$21),INDIRECT($AJ$20)^{1,2,3,4,5}),1,6)) -> 42.72929551 | AS32: =((INDEX(LINEST(INDIRECT($AJ$21),INDIRECT($AJ$20)^{1,2,3,4,5,6}),1)*AH32^6)+(INDEX(LINEST(INDIRECT($AJ$21),INDIRECT($AJ$20)^{1,2,3,4,5,6}),1,2)*AH32^5)+(INDEX(LINEST(INDIRECT($AJ$21),INDIRECT($AJ$20)^{1,2,3,4,5,6}),1,3)*AH32^4)+(INDEX(LINEST(INDIRECT($AJ$21),INDIRECT($AJ$20)^{1,2,3,4,5,6}),1,4)*AH32^3)+(INDEX(LINEST(INDIRECT($AJ$21),INDIRECT($AJ$20)^{1,2,3,4,5,6}),1,5)*AH32^2)+(INDEX(LINEST(INDIRECT($AJ$21),INDIRECT($AJ$20)^{1,2,3,4,5,6}),1,6)*AH32)+INDEX(LINEST(INDIRECT($AJ$21),INDIRECT($AJ$20)^{1,2,3,4,5,6}),1,7)) -> 43.56266284 | AT32: =((INDEX(LINEST(INDIRECT($AJ$21),INDIRECT($AJ$20)^{1,2,3,4,5,6,7}),1)*AH32^7)+(INDEX(LINEST(INDIRECT($AJ$21),INDIRECT($AJ$20)^{1,2,3,4,5,6,7}),1,2)*AH32^6)+(INDEX(LINEST(INDIRECT($AJ$21),INDIRECT($AJ$20)^{1,2,3,4,5,6,7}),1,3)*AH32^5)+(INDEX(LINEST(INDIRECT($AJ$21),INDIRECT($AJ$20)^{1,2,3,4,5,6,7}),1,4)*AH32^4)+(INDEX(LINEST(INDIRECT($AJ$21),INDIRECT($AJ$20)^{1,2,3,4,5,6,7}),1,5)*AH32^3)+(INDEX(LINEST(INDIRECT($AJ$21),INDIRECT($AJ$20)^{1,2,3,4,5,6,7}),1,6)*AH32^2)+(INDEX(LINEST(INDIRECT($AJ$21),INDIRECT($AJ$20)^{1,2,3,4,5,6,7}),1,7)*AH32)+INDEX(LINEST(INDIRECT($AJ$21),INDIRECT($AJ$20)^{1,2,3,4,5,6,7}),1,8)) -> 43.86627032
A33: 2.5 | B33: 87.3 | C33: 87.5 | D33: 78.7
A34: =A33+0.5 -> 3 | B34: 87.4 | C34: 87.5 | D34: 79
A35: 3.5 | B35: 87.3 | C35: 87.1 | D35: 79
A36: =A35+0.5 -> 4 | B36: 86.9 | C36: 86.5 | D36: 78.7
A37: 4.5 | B37: 86.4 | C37: 85.6 | D37: 78.3
A38: =A37+0.5 -> 5 | B38: 85.6 | C38: 84.4 | D38: 77.8
A39: 5.5 | B39: 84.9 | C39: 0 | D39: 77.3 | AI39: =tex ->  | AJ39: 2.5 | AK39: =[3]!f_reg_(AJ39,Pressure_ratio,IsoT_LPL_MP,6,"form") -> -3.76E-03* x^6 + 14.564E-2*x^5 -22.783E-1*x^4 + 18.388E+0*x^3 -80.719E+0*x^2 + 18.168E+1*x - 111.988
A40: =A39+0.5 -> 6 | B40: 84.2 | C40: 0 | D40: 76.9 | AI40: =TEXT(AM9,"0.0") -> 0.0 | AJ40: 2.5 | AK40: =[3]!f_reg_(AJ40,Pressure_ratio,IsoT_LPL_MP,6,"value") -> 49.33624385
A41: 6.5 | B41: 83.5 | C41: 0 | D41: 76.6
A42: =A41+0.5 -> 7 | B42: 82.9 | C42: 0 | D42: 76.3 | AJ42: 2.5 | AK42: =[3]!f_reg_(AJ42,Pressure_ratio,IsoT_LPL_MP,7,"form") -> 5.93E-04* x^7 -27.634E-3*x^6 + 53.891E-2*x^5 -56.918E-1*x^4 + 35.113E+0*x^3 -12.655E+1*x^2 + 24.613E+1*x - 147.557
A43: 7.5 | B43: 82.3 | C43: 0 | D43: 76 | AJ43: 2.5 | AK43: =[3]!f_reg_(AJ43,Pressure_ratio,IsoT_LPL_MP,6,"value") -> 49.33624385
A44: =A43+0.5 -> 8 | B44: 81.7 | C44: 0 | D44: 75.8
A45: 8.5 | B45: 81.1 | C45: 0 | D45: 75.7
A46: =A45+0.5 -> 9 | B46: 80.6 | C46: 0 | D46: 75.5
A47: 9.5 | B47: 80.1 | C47: 0 | D47: 75.4
A48: =A47+0.5 -> 10 | B48: 79.6 | C48: 0 | D48: 75.3
B52: volumetric efficiency
A53: ratio pressure | B53: LP to MP | C53: MP to HP
A54: 2.5 | B54: 87.3 | C54: 78.7
A55: =A54+0.5 -> 3 | B55: 87.4 | C55: 79
A56: 3.5 | B56: 87.3 | C56: 79
A57: =A56+0.5 -> 4 | B57: 86.9 | C57: 78.7
A58: 4.5 | B58: 86.4 | C58: 78.3
A59: =A58+0.5 -> 5 | B59: 85.6 | C59: 77.8
A60: 5.5 | B60: 84.9 | C60: 77.3
A61: =A60+0.5 -> 6 | B61: 84.2 | C61: 76.9
A62: 6.5 | B62: 83.5 | C62: 76.6
A63: =A62+0.5 -> 7 | B63: 82.9 | C63: 76.3
A64: 7.5 | B64: 82.3 | C64: 76
A65: =A64+0.5 -> 8 | B65: 81.7 | C65: 75.8
A66: 8.5 | B66: 81.1 | C66: 75.7
A67: =A66+0.5 -> 9 | B67: 80.6 | C67: 75.5
A68: 9.5 | B68: 80.1 | C68: 75.4
A69: =A68+0.5 -> 10 | B69: 79.6 | C69: 75.3
B76: isoT efficiency
A77: ratio pressure | B77: LP to MP | C77: LPR to MP | D77: MP to HP
A78: 1.5 | B78: 30.4 | C78: 48.1
A79: =A78+0.5 -> 2 | B79: 43.7 | C79: 53.8
A80: 2.5 | B80: 49.6 | C80: 55.8 | D80: 52.5
A81: =A80+0.5 -> 3 | B81: 50.9 | C81: 55.1 | D81: 52.9
A82: 3.5 | B82: 50.8 | C82: 53.9 | D82: 53
A83: =A82+0.5 -> 4 | B83: 50.6 | C83: 52.3 | D83: 52.4
A84: 4.5 | B84: 50.2 | C84: 50.8 | D84: 51.3
A85: =A84+0.5 -> 5 | B85: 49.6 | C85: 49.4 | D85: 50.1
A86: 5.5 | B86: 49 | D86: 48.7
A87: =A86+0.5 -> 6 | B87: 48.3 | D87: 47.4
A88: 6.5 | B88: 47.5 | D88: 46.2
A89: =A88+0.5 -> 7 | B89: 46.7 | D89: 45.4
A90: 7.5 | B90: 45.8 | D90: 44.5
A91: =A90+0.5 -> 8 | B91: 45 | D91: 43.7
A92: 8.5 | B92: 44.1 | D92: 42.9
A93: =A92+0.5 -> 9 | B93: 43.2 | D93: 42.2
A94: 9.5 | B94: 42.4 | D94: 41.5
A95: =A94+0.5 -> 10 | B95: 41.5 | D95: 40.9
N100: Isothermal Power m.R.T.ln(P2/P1)
N101: Isothermal Power P.Qv.ln(P2/P1)
M108: WRVI321/132 | Q108: WRVI321/165 | U108: WRVI321/193
M109: 4541 | Q109: 5676 | U109: 6386
D110: Tin | E110: P suction | F110: Pdischarge | G110: P ratio | H110: rdt isoT calc | I110: rdt vol calc | L110: Rho | M110: Am3/h | N110: g/s | O110: Power /unit | P110: nb unit | Q110: Am3/h | R110: g/s | S110: Power /unit | T110: nb unit | U110: Am3/h | V110: g/s | W110: Power /unit | X110: nb unit
B111: MP_HP | C111: 1321.4 | D111: 300 | E111: 6.06 | F111: 19 | G111: =F111/E111 -> 3.135313531 | H111: =0.0012*G111^6 - 0.0429*G111^5 + 0.6099*G111^4 - 4.185*G111^3 + 13.77*G111^2 - 19.318*G111 + 60.184 -> 53.07157081 | I111: =0.00006*G111^6 - 0.0012*G111^5 - 0.0081*G111^4 + 0.3679*G111^3 - 3.3791*G111^2 + 11.852*G111 + 64.85 -> 79.04218673 | L111: =1.27581621531631*E111*273.15/(D111)*4/28.958600656 -> 0.9723511033 | M111: =M$109*$I111/100 -> 3589.305699 | N111: =M111*$L111/3600*1000 -> 969.4625991 | O111: =$E111*10^5*M111/3600*LN($F111/$E111)/($H111/100)/1000 -> 1300.954019 | P111: =$C111/N111 -> 1.363023185 | Q111: =Q$109*$I111/100 -> 4486.434519 | R111: =Q111*$L111/3600*1000 -> 1211.774876 | S111: =$E111*10^5*Q111/3600*LN($F111/$E111)/($H111/100)/1000 -> 1626.120901 | T111: =$C111/R111 -> 1.090466576 | U111: =U$109*$I111/100 -> 5047.634045 | V111: =U111*$L111/3600*1000 -> 1363.353481 | W111: =$E111*10^5*U111/3600*LN($F111/$E111)/($H111/100)/1000 -> 1829.529258 | X111: =$C111/V111 -> 0.9692277302 | Y111: =ROUND(X111,0) -> 1 | Z111: =Y111*W111 -> 1829.529258
B112: LPR_MP | C112: 562.7 | D112: 297 | E112: 2.31 | F112: 6.06 | G112: =F112/E112 -> 2.623376623 | H112: =0.1067*G112^6 - 2.0738*G112^5 + 16*G112^4 - 61.153*G112^3 + 115.21*G112^2 - 86.125*G112 + 57.983 -> 55.77422268 | I112: =0.0044*G112^6 - 0.1103*G112^5 + 1.0778*G112^4 - 5.3213*G112^3 + 13.394*G112^2 - 15.328*G112 + 92.846 -> 87.5186371 | L112: =1.27581621531631*E112*273.15/(D112)*4/28.958600656 -> 0.374392614 | M112: =M$109*$I112/100 -> 3974.221311 | N112: =M112*$L112/3600*1000 -> 413.3108626 | O112: 440.9742657 | P112: =$C112/N112 -> 1.361444982 | Q112: =Q$109*$I112/100 -> 4967.557842 | R112: =Q112*$L112/3600*1000 -> 516.6158238 | S112: 551.1935548 | T112: =$C112/R112 -> 1.089203958 | U112: =U$109*$I112/100 -> 5588.940165 | V112: =U112*$L112/3600*1000 -> 581.2383106 | W112: =$E112*10^5*U112/3600*LN($F112/$E112)/($H112/100)/1000 -> 620.1413039 | X112: =$C112/V112 -> 0.9681054909 | Y112: =ROUND(X112,0) -> 1 | Z112: =Y112*W112 -> 620.1413039
B113: LPL_MP | C113: 748.6 | D113: 297 | E113: 1.05 | F113: 6.06 | G113: =F113/E113 -> 5.771428571 | H113: =-0.0037608*G113^6 + 0.14564*G113^5 - 2.2783*G113^4 + 18.388*G113^3 - 80.719*G113^2 + 181.68*G113 - 111.99 -> 48.62878744 | I113: =0.0003*G113^6 - 0.0107*G113^5 + 0.1444*G113^4 - 0.8896*G113^3 + 2.1316*G113^2 - 0.4678*G113 + 84.351 -> 84.41813256 | L113: =1.27581621531631*E113*273.15/(D113)*4/28.958600656 -> 0.1701784609 | M113: =M$109*$I113/100 -> 3833.4274 | N113: =M113*$L113/3600*1000 -> 181.212993 | O113: 403.0348552 | P113: =$C113/N113 -> 4.13105036 | Q113: =Q$109*$I113/100 -> 4791.573204 | R113: =Q113*$L113/3600*1000 -> 226.5062648 | S113: 503.7713803 | T113: =$C113/R113 -> 3.30498585 | U113: =U$109*$I113/100 -> 5390.941945 | V113: =U113*$L113/3600*1000 -> 254.8395009 | W113: =$E113*10^5*U113/3600*LN($F113/$E113)/($H113/100)/1000 -> 566.7871802 | X113: =$C113/V113 -> 2.937535184 | Y113: 3 | Z113: =Y113*W113 -> 1700.36154
Z114: =SUM(Z111:Z113) -> 4150.032103
D116: Tin | E116: P suction | F116: Pdischarge | G116: P ratio | H116: rdt isoT calc | I116: rdt vol calc | L116: Rho | M116: Am3/h | N116: g/s | O116: Power /unit | P116: nb unit | Q116: Am3/h | R116: g/s | S116: Power /unit | T116: nb unit | U116: Am3/h | V116: g/s | W116: Power /unit | X116: nb unit
B117: MP_HP | C117: 1321.4 | D117: 310 | E117: 6.06 | F117: 19 | G117: =F117/E117 -> 3.135313531 | H117: =0.0012*G117^6 - 0.0429*G117^5 + 0.6099*G117^4 - 4.185*G117^3 + 13.77*G117^2 - 19.318*G117 + 60.184 -> 53.07157081 | I117: =0.00006*G117^6 - 0.0012*G117^5 - 0.0081*G117^4 + 0.3679*G117^3 - 3.3791*G117^2 + 11.852*G117 + 64.85 -> 79.04218673 | L117: =1.27581621531631*E117*273.15/(D117)*4/28.958600656 -> 0.9409849386 | M117: =M$109*$I117/100 -> 3589.305699 | N117: =M117*$L117/3600*1000 -> 938.189612 | O117: =$E117*10^5*M117/3600*LN($F117/$E117)/($H117/100)/1000 -> 1300.954019 | P117: =$C117/N117 -> 1.408457292 | Q117: =Q$109*$I117/100 -> 4486.434519 | R117: =Q117*$L117/3600*1000 -> 1172.685364 | S117: =$E117*10^5*Q117/3600*LN($F117/$E117)/($H117/100)/1000 -> 1626.120901 | T117: =$C117/R117 -> 1.126815462 | U117: =U$109*$I117/100 -> 5047.634045 | V117: =U117*$L117/3600*1000 -> 1319.374337 | W117: =$E117*10^5*U117/3600*LN($F117/$E117)/($H117/100)/1000 -> 1829.529258 | X117: =$C117/V117 -> 1.001535321 | Y117: =ROUND(X117,0) -> 1 | Z117: =Y117*W117 -> 1829.529258
B118: LPR_MP | C118: 562.7 | D118: 305.4 | E118: 2.308 | F118: 6.06 | G118: =F118/E118 -> 2.625649913 | H118: =0.1067*G118^6 - 2.0738*G118^5 + 16*G118^4 - 61.153*G118^3 + 115.21*G118^2 - 86.125*G118 + 57.983 -> 55.7734821 | I118: =0.0044*G118^6 - 0.1103*G118^5 + 1.0778*G118^4 - 5.3213*G118^3 + 13.394*G118^2 - 15.328*G118 + 92.846 -> 87.51880831 | L118: =1.27581621531631*E118*273.15/(D118)*4/28.958600656 -> 0.3637797445 | M118: =M$109*$I118/100 -> 3974.229085 | N118: =M118*$L118/3600*1000 -> 401.595567 | O118: 440.9948808 | P118: =$C118/N118 -> 1.401160885 | Q118: =Q$109*$I118/100 -> 4967.56756 | R118: =Q118*$L118/3600*1000 -> 501.9723494 | S118: 551.2193224 | T118: =$C118/R118 -> 1.120978079 | U118: =U$109*$I118/100 -> 5588.951099 | V118: =U118*$L118/3600*1000 -> 564.7631119 | W118: =$E118*10^5*U118/3600*LN($F118/$E118)/($H118/100)/1000 -> 620.1702948 | X118: =$C118/V118 -> 0.9963469429 | Y118: =ROUND(X118,0) -> 1 | Z118: =Y118*W118 -> 620.1702948
B119: LPL_MP | C119: 748.6 | D119: 305.27 | E119: 1.05 | F119: 6.06 | G119: =F119/E119 -> 5.771428571 | H119: =-0.0037608*G119^6 + 0.14564*G119^5 - 2.2783*G119^4 + 18.388*G119^3 - 80.719*G119^2 + 181.68*G119 - 111.99 -> 48.62878744 | I119: =0.0003*G119^6 - 0.0107*G119^5 + 0.1444*G119^4 - 0.8896*G119^3 + 2.1316*G119^2 - 0.4678*G119 + 84.351 -> 84.41813256 | L119: =1.27581621531631*E119*273.15/(D119)*4/28.958600656 -> 0.165568195 | M119: =M$109*$I119/100 -> 3833.4274 | N119: =M119*$L119/3600*1000 -> 176.3037931 | O119: 403.0348552 | P119: =$C119/N119 -> 4.246079944 | Q119: =Q$109*$I119/100 -> 4791.573204 | R119: =Q119*$L119/3600*1000 -> 220.3700352 | S119: 503.7713803 | T119: =$C119/R119 -> 3.39701357 | U119: =U$109*$I119/100 -> 5390.941945 | V119: =U119*$L119/3600*1000 -> 247.935702 | W119: =$E119*10^5*U119/3600*LN($F119/$E119)/($H119/100)/1000 -> 566.7871802 | X119: =$C119/V119 -> 3.019331197 | Y119: 3 | Z119: =Y119*W119 -> 1700.36154
Z120: =SUM(Z117:Z119) -> 4150.061094
B121: MP_HP | C121: 403.1 | D121: 300 | E121: 4.27 | F121: 13.8 | G121: =F121/E121 -> 3.231850117 | H121: =0.0012*G121^6 - 0.0429*G121^5 + 0.6099*G121^4 - 4.185*G121^3 + 13.77*G121^2 - 19.318*G121 + 60.184 -> 53.08584373 | I121: =0.00006*G121^6 - 0.0012*G121^5 - 0.0081*G121^4 + 0.3679*G121^3 - 3.3791*G121^2 + 11.852*G121 + 64.85 -> 79.04019076 | L121: =1.27581621531631*E121*273.15/(D121)*4/28.958600656 -> 0.6851384836 | M121: =M$109*$I121/100 -> 3589.215063 | N121: =M121*$L121/3600*1000 -> 683.0859348 | O121: =$E121*10^5*M121/3600*LN($F121/$E121)/($H121/100)/1000 -> 940.7287559 | P121: =$C121/N121 -> 0.5901160885 | Q121: =Q$109*$I121/100 -> 4486.321228 | R121: =Q121*$L121/3600*1000 -> 853.819812 | S121: =$E121*10^5*Q121/3600*LN($F121/$E121)/($H121/100)/1000 -> 1175.859154 | T121: =$C121/R121 -> 0.4721136642 | U121: =U$109*$I121/100 -> 5047.506582 | V121: =U121*$L121/3600*1000 -> 960.6225016 | W121: =$E121*10^5*U121/3600*LN($F121/$E121)/($H121/100)/1000 -> 1322.94513 | X121: =$C121/V121 -> 0.4196237329
B122: LPR_MP | C122: 172.2 | D122: 297 | E122: 2.31 | F122: 4.27 | G122: =F122/E122 -> 1.848484848 | H122: =0.1067*G122^6 - 2.0738*G122^5 + 16*G122^4 - 61.153*G122^3 + 115.21*G122^2 - 86.125*G122 + 57.983 -> 52.49951637 | I122: =0.0044*G122^6 - 0.1103*G122^5 + 1.0778*G122^4 - 5.3213*G122^3 + 13.394*G122^2 - 15.328*G122 + 92.846 -> 87.0471809 | L122: =1.27581621531631*E122*273.15/(D122)*4/28.958600656 -> 0.374392614 | M122: =M$109*$I122/100 -> 3952.812485 | N122: =M122*$L122/3600*1000 -> 411.0843886 | O122: 296.8163199 | P122: =$C122/N122 -> 0.4188920932 | Q122: =Q$109*$I122/100 -> 4940.797988 | R122: =Q122*$L122/3600*1000 -> 513.8328539 | S122: 371.004059 | T122: =$C122/R122 -> 0.3351284347 | U122: =U$109*$I122/100 -> 5558.832972 | V122: =U122*$L122/3600*1000 -> 578.1072243 | W122: 417.4122482 | X122: =$C122/V122 -> 0.2978686181
B123: LPL_MP | C123: 220.8 | D123: 297 | E123: 1.05 | F123: 4.27 | G123: =F123/E123 -> 4.066666667 | H123: =-0.0037608*G123^6 + 0.14564*G123^5 - 2.2783*G123^4 + 18.388*G123^3 - 80.719*G123^2 + 181.68*G123 - 111.99 -> 50.45239465 | I123: =0.0003*G123^6 - 0.0107*G123^5 + 0.1444*G123^4 - 0.8896*G123^3 + 2.1316*G123^2 - 0.4678*G123 + 84.351 -> 86.82093776 | L123: =1.27581621531631*E123*273.15/(D123)*4/28.958600656 -> 0.1701784609 | M123: =M$109*$I123/100 -> 3942.538784 | N123: =M123*$L123/3600*1000 -> 186.370884 | O123: 319.7305033 | P123: =$C123/N123 -> 1.184734414 | Q123: =Q$109*$I123/100 -> 4927.956427 | R123: =Q123*$L123/3600*1000 -> 232.9533445 | S123: 399.6455268 | T123: =$C123/R123 -> 0.9478292765 | U123: =U$109*$I123/100 -> 5544.385085 | V123: =U123*$L123/3600*1000 -> 262.0930335 | W123: 449.6364225 | X123: =$C123/V123 -> 0.8424489467

Sheet GEA

Sheet Frick
T8: JCI | U8: JCI | V8: JCI | W8: JCI | X8: JCI | AD8: JCI
S9: P1 | T9: 1.05 | U9: 3.6 | V9: 4.88 | W9: 1.01 | X9: 4.88 | AD9: 1.25
S10: P2 | T10: 7.243347251 | U10: 13.45370292 | V10: 22.5 | W10: 5 | X10: 22.5 | AD10: 5
S11: Vi | T11: 5 | U11: 3 | V11: 3.77 | W11: 4.46 | X11: 3.77 | AD11: 3.61
S12: gamma | T12: =LN(T10/T9)/LN(T11) -> 1.199979973 | U12: =LN(U10/U9)/LN(U11) -> 1.199987062 | V12: =LN(V10/V9)/LN(V11) -> 1.151683279 | W12: =LN(W10/W9)/LN(W11) -> 1.069784906 | X12: =LN(X10/X9)/LN(X11) -> 1.151683279 | AD12: =LN(AD10/AD9)/LN(AD11) -> 1.079914285
AQ14: 1.05 | AR14: 5 | AS14: =AR14/AQ14 -> 4.761904762
R20: =1.27581621531631*1.013*273.15/(273.15+15)*4/28.958600656 -> 0.1692242365
D21: Displ @ 2950rpm | E21: Rotation | F21: Tin | G21: Pin | H21: Pout | I21: Pout ideal | J21: Rho_in | K21: gamma | L21: Pr | M21: Vi | N21: Vi ideal | O21: Vol_% | P21: Iso_% | Q21: Nm3/h | R21: Sm3/h | S21: A_m3/h | T21: kg/h | U21: g/s | AA21: Tout | AB21: Main flow lpm | AC21: Bearing lpm | AD21: oil total flow m3/h | AE21: kg/h | AF21: Rho_in | AH21: %he volume | AI21: %he mass | AJ21: gamma | AL21: Vi Ideal
C22: FIXED Vi=2,2
B23: 1 | C23: SGCB3511 | D23: 4120 | E23: 2950 | F23: 298 | G23: 1.05 | H23: 2.5 | I23: =M23^K23*G23 -> 3.609900468 | J23: =1.27581621531631*G23*273.15/(F23)*4/28.958600656 -> 0.1696073923 | K23: =LN(H23/G23)/LN(N23) -> 1.566210297 | L23: =H23/G23 -> 2.380952381 | M23: 2.2 | N23: 1.74 | O23: =S23/(B23*E23/2950*D23) -> 0.9263007377 | P23: =(U23*8.314*F23/4*LN(H23/G23)/1000)/W23 -> 0.5620198904 | Q23: =U23*3600/1000/0.17625 -> 3672.525983 | R23: 3825 | S23: =R23*$R$20/J23 -> 3816.359039 | T23: =S23*J23 -> 647.2827045 | U23: =T23/3.6 -> 179.8007513 | V23: =U23*8.314*F23/4*LN(H23/G23)/1000 -> 96.61121916 | W23: =X23*B23 -> 171.9 | X23: 171.9 | Y23: each | Z23: =H23-G23 -> 1.45 | AF23: =1.27581621531631*AB23*273.15/(Z23)*4/28.958600656 -> 0
B24: 1 | C24: SGCB3511 | D24: 4120 | E24: 2950 | F24: 298 | G24: 1.05 | H24: 3 | I24: =M24^K24*G24 -> 2.715030302 | J24: 0.1696073923 | K24: 1.204900858 | L24: =H24/G24 -> 2.857142857 | M24: 2.2 | N24: 2.39 | O24: 0.9277537584 | P24: 0.5872581796 | Q24: 3678.286808 | R24: 3831 | S24: 3822.345485 | T24: 648.29805 | U24: 180.0827917 | V24: 117.099281 | W24: 199.4 | X24: 199.4 | Y24: each | Z24: 1.95 | AF24: 0
B25: 1 | C25: SGCB3511 | D25: 4120 | E25: 2950 | F25: 298 | G25: 1.05 | H25: 4 | I25: =M25^K25*G25 -> 2.496015004 | J25: 0.1696073923 | K25: 1.098227173 | L25: =H25/G25 -> 3.80952381 | M25: 2.2 | N25: 3.38 | O25: 0.9248477169 | P25: 0.5277523533 | Q25: 3666.765158 | R25: 3819 | S25: 3810.372594 | T25: 646.2673591 | U25: 179.5187109 | V25: 148.7206131 | W25: 281.8 | X25: 281.8 | Y25: each | Z25: 2.95 | AF25: 0
B26: 1 | C26: SGCB3511 | D26: 4120 | E26: 2950 | F26: 298 | G26: 1.05 | H26: 5 | I26: =M26^K26*G26 -> 2.45768729 | J26: 0.1696073923 | K26: 1.078600645 | L26: =H26/G26 -> 4.761904762 | M26: 2.2 | N26: 4.25 | O26: 0.9209729949 | P26: 0.4507185811 | Q26: 3651.402958 | R26: 3803 | S26: 3794.408739 | T26: 643.5597713 | U26: 178.7666032 | V26: 172.805504 | W26: 383.4 | X26: 383.4 | Y26: each | Z26: 3.95 | AF26: 0
B27: 1 | C27: SGCB3511 | D27: 4120 | E27: 2950 | F27: 298 | G27: 1.05 | H27: 6 | I27: =M27^K27*G27 -> 2.438230764 | J27: 0.1696073923 | K27: 1.068520072 | L27: =H27/G27 -> 5.714285714 | M27: 2.2 | N27: 5.11 | O27: 0.9115283599 | P27: 0.3753472672 | Q27: 3613.957595 | R27: 3764 | S27: 3755.496843 | T27: =S27*J27 -> 636.9600261 | U27: 176.9333406 | V27: 191.0142243 | W27: 508.9 | X27: 508.9 | Y27: each | Z27: 4.95 | AF27: 0
B28: 1 | C28: SGCB3511 | D28: 4120 | E28: 2950 | F28: 298 | G28: 1.05 | H28: 7 | I28: =M28^K28*G28 -> 2.427202285 | J28: 0.1696073923 | K28: 1.062770353 | L28: =H28/G28 -> 6.666666667 | M28: 2.2 | N28: 5.96 | O28: 0.9115283599 | P28: 0.3231894815 | Q28: 3613.957595 | R28: 3764 | S28: 3755.496843 | T28: =S28*J28 -> 636.9600261 | U28: 176.9333406 | V28: 207.9077935 | W28: 643.3 | X28: 643.3 | Y28: each | Z28: 5.95 | AF28: 0
C29: FIXED Vi=2,8
B30: 1 | C30: SGCB3511 | D30: 4120 | E30: 2950 | F30: 298 | G30: 1.05 | H30: 3 | I30: =M30^K30*G30 -> 3.630533052 | J30: =1.27581621531631*G30*273.15/(F30)*4/28.958600656 -> 0.1696073923 | K30: =LN(H30/G30)/LN(N30) -> 1.204900858 | L30: =H30/G30 -> 2.857142857 | M30: 2.8 | N30: 2.39 | O30: =S30/(B30*E30/2950*D30) -> 0.9255742273 | P30: =(U30*8.314*F30/4*LN(H30/G30)/1000)/W30 -> 0.567383122 | Q30: =U30*3600/1000/0.17625 -> 3669.645571 | R30: 3822 | S30: =R30*$R$20/J30 -> 3813.365816 | T30: =S30*J30 -> 646.7750318 | U30: =T30/3.6 -> 179.6597311 | V30: =U30*8.314*F30/4*LN(H30/G30)/1000 -> 116.8241848 | W30: =X30*B30 -> 205.9 | X30: 205.9 | Y30: each | Z30: =H30-G30 -> 1.95 | AF30: =1.27581621531631*AB30*273.15/(Z30)*4/28.958600656 -> 0
B31: 1 | C31: SGCB3511 | D31: 4120 | E31: 2950 | F31: 298 | G31: 1.05 | H31: 4 | I31: 3.252897656 | J31: =1.27581621531631*G31*273.15/(F31)*4/28.958600656 -> 0.1696073923 | K31: =LN(H31/G31)/LN(N31) -> 1.098227173 | L31: 3.80952381 | M31: 2.8 | N31: 3.38 | O31: =S31/(B31*E31/2950*D31) -> 0.9241212065 | P31: =(U31*8.314*F31/4*LN(H31/G31)/1000)/W31 -> 0.5782248493 | Q31: =U31*3600/1000/0.17625 -> 3663.884746 | R31: 3816 | S31: 3807.379371 | T31: 645.7596864 | U31: =T31/3.6 -> 179.3776907 | V31: =U31*8.314*F31/4*LN(H31/G31)/1000 -> 148.6037863 | W31: =X31*B31 -> 257 | X31: 257 | Y31: each | Z31: =H31-G31 -> 2.95 | AF31: =1.27581621531631*AB31*273.15/(Z31)*4/28.958600656 -> 0
B32: 1 | C32: SGCB3511 | D32: 4120 | E32: 2950 | F32: 298 | G32: 1.05 | H32: 5 | I32: 3.187823296 | J32: =1.27581621531631*G32*273.15/(F32)*4/28.958600656 -> 0.1696073923 | K32: =LN(H32/G32)/LN(N32) -> 1.078600645 | L32: 4.761904762 | M32: 2.8 | N32: 4.25 | O32: =S32/(B32*E32/2950*D32) -> 0.9209729949 | P32: =(U32*8.314*F32/4*LN(H32/G32)/1000)/W32 -> 0.5274893284 | Q32: =U32*3600/1000/0.17625 -> 3651.402958 | R32: 3803 | S32: 3794.408739 | T32: 643.5597713 | U32: =T32/3.6 -> 178.7666032 | V32: =U32*8.314*F32/4*LN(H32/G32)/1000 -> 172.805504 | W32: =X32*B32 -> 327.6 | X32: 327.6 | Y32: each | Z32: =H32-G32 -> 3.95 | AF32: =1.27581621531631*AB32*273.15/(Z32)*4/28.958600656 -> 0
B33: 1 | C33: SGCB3511 | D33: 4120 | E33: 2950 | F33: 298 | G33: 1.05 | H33: 6 | I33: 3.154907503 | J33: =1.27581621531631*G33*273.15/(F33)*4/28.958600656 -> 0.1696073923 | K33: =LN(H33/G33)/LN(N33) -> 1.068520072 | L33: 5.714285714 | M33: 2.8 | N33: 5.11 | O33: =S33/(B33*E33/2950*D33) -> 0.9120127001 | P33: =(U33*8.314*F33/4*LN(H33/G33)/1000)/W33 -> 0.4580913702 | Q33: =U33*3600/1000/0.17625 -> 3615.87787 | R33: 3766 | S33: 3757.492325 | T33: =S33*J33 -> 637.2984746 | U33: =T33/3.6 -> 177.0273541 | V33: =U33*8.314*F33/4*LN(H33/G33)/1000 -> 191.1157196 | W33: =X33*B33 -> 417.2 | X33: 417.2 | Y33: each | Z33: =H33-G33 -> 4.95 | AF33: =1.27581621531631*AB33*273.15/(Z33)*4/28.958600656 -> 0
B34: 1 | C34: SGCB3511 | D34: 4120 | E34: 2950 | F34: 298 | G34: 1.05 | H34: 7 | I34: 3.136285555 | J34: =1.27581621531631*G34*273.15/(F34)*4/28.958600656 -> 0.1696073923 | K34: =LN(H34/G34)/LN(N34) -> 1.062770353 | L34: 6.666666667 | M34: 2.8 | N34: 5.96 | O34: =S34/(B34*E34/2950*D34) -> 0.9115283599 | P34: =(U34*8.314*F34/4*LN(H34/G34)/1000)/W34 -> 0.4048048938 | Q34: =U34*3600/1000/0.17625 -> 3613.957595 | R34: 3764 | S34: 3755.496843 | T34: =S34*J34 -> 636.9600261 | U34: =T34/3.6 -> 176.9333406 | V34: =U34*8.314*F34/4*LN(H34/G34)/1000 -> 207.9077935 | W34: =X34*B34 -> 513.6 | X34: 513.6 | Y34: each | Z34: =H34-G34 -> 5.95 | AF34: =1.27581621531631*AB34*273.15/(Z34)*4/28.958600656 -> 0
C35: FIXED Vi=5
B36: 1 | C36: SGCB3511 | D36: 4120 | E36: 2950 | F36: 298 | G36: 1.05 | H36: 3 | I36: =M36^K36*G36 -> 7.300941309 | J36: =1.27581621531631*G36*273.15/(F36)*4/28.958600656 -> 0.1696073923 | K36: =LN(H36/G36)/LN(N36) -> 1.204900858 | L36: =H36/G36 -> 2.857142857 | M36: 5 | N36: 2.39 | O36: =S36/(B36*E36/2950*D36) -> 0.9170982728 | P36: =(U36*8.314*F36/4*LN(H36/G36)/1000)/W36 -> 0.4376346551 | Q36: =U36*3600/1000/0.17625 -> 3636.040758 | R36: 3787 | S36: =R36*$R$20/J36 -> 3778.444884 | T36: =S36*J36 -> 640.8521836 | U36: =T36/3.6 -> 178.0144954 | V36: =U36*8.314*F36/4*LN(H36/G36)/1000 -> 115.7543663 | W36: =X36*B36 -> 264.5 | X36: 264.5 | Y36: each | Z36: =H36-G36 -> 1.95 | AF36: =1.27581621531631*AB36*273.15/(Z36)*4/28.958600656 -> 0
B37: 1 | C37: SGCB3511 | D37: 4120 | E37: 2950 | F37: 298 | G37: 1.05 | H37: 4 | I37: 6.149179216 | J37: 0.1696073923 | K37: 1.098227173 | L37: 3.80952381 | M37: 5 | N37: 3.38 | O37: 0.9216995052 | P37: 0.535456515 | Q37: 3654.28337 | R37: 3806 | S37: =R37*$R$20/J37 -> 3797.401962 | T37: =S37*J37 -> 644.067444 | U37: 178.9076233 | V37: 148.2143634 | W37: 276.8 | X37: 276.8 | Y37: each | Z37: 2.95 | AF37: 0
B38: 1 | C38: SGCB3511 | D38: 4120 | E38: 2950 | F38: 298 | G38: 1.05 | H38: 5 | I38: 5.957976647 | J38: 0.1696073923 | K38: 1.078600645 | L38: 4.761904762 | M38: 5 | N38: 4.25 | O38: 0.9209729949 | P38: 0.5649084798 | Q38: 3651.402958 | R38: 3803 | S38: 3794.408739 | T38: 643.5597713 | U38: 178.7666032 | V38: 172.805504 | W38: 305.9 | X38: 305.9 | Y38: each | Z38: 3.95 | AF38: 0
B39: 1 | C39: SGCB3511 | D39: 4120 | E39: 2950 | F39: 298 | G39: 1.05 | H39: 6 | I39: 5.862094005 | J39: 0.1696073923 | K39: 1.068520072 | L39: 5.714285714 | M39: 5 | N39: 5.11 | O39: 0.9132235508 | P39: 0.5489657429 | Q39: 3620.678558 | R39: 3771 | S39: 3762.481029 | T39: =S39*J39 -> 638.1445958 | U39: 177.2623877 | V39: 191.369458 | W39: 348.6 | X39: 348.6 | Y39: each | Z39: 4.95 | AF39: 0
B40: 1 | C40: SGCB3511 | D40: 4120 | E40: 2950 | F40: 298 | G40: 1.05 | H40: 7 | I40: 5.808097486 | J40: 0.1696073923 | K40: 1.062770353 | L40: 6.666666667 | M40: 5 | N40: 5.96 | O40: 0.9057162768 | P40: 0.5224636639 | Q40: 3590.914295 | R40: 3740 | S40: 3731.551061 | T40: =S40*J40 -> 632.8986444 | U40: 175.805179 | V40: 206.5821327 | W40: 395.4 | X40: 395.4 | Y40: each | Z40: 5.95 | AF40: 0
B41: 1 | C41: SGCB3511 | D41: 4120 | E41: 2950 | F41: 298 | G41: 1.05 | H41: 8 | I41: =M41^K41*G41 -> 5.776015795 | J41: 0.1696073923 | K41: 1.059328825 | L41: =H41/G41 -> 7.619047619 | M41: 5 | N41: 6.8 | O41: 0.8999041938 | P41: 0.5009204978 | Q41: 3567.870994 | R41: 3716 | S41: 3707.605278 | T41: =S41*J41 -> 628.8372628 | U41: 174.6770174 | V41: 219.7037303 | W41: 438.6 | X41: 438.6 | Y41: each | Z41: 6.95 | AF41: 0
C43: VARIABLE Vi
B44: 1 | C44: SGCB3511 | D44: 4120 | E44: 2950 | F44: 298 | G44: 1.05 | H44: 3 | I44: =M44^K44*G44 -> 3 | J44: =1.27581621531631*G44*273.15/(F44)*4/28.958600656 -> 0.1696073923 | K44: =LN(H44/G44)/LN(N44) -> 1.204900858 | L44: =H44/G44 -> 2.857142857 | M44: 2.39 | N44: 2.39 | O44: =S44/(B44*E44/2950*D44) -> 0.9270272481 | P44: =(U44*8.314*F44/4*LN(H44/G44)/1000)/W44 -> 0.587092736 | Q44: =U44*3600/1000/0.17625 -> 3675.406396 | R44: 3828 | S44: =R44*$R$20/J44 -> 3819.352262 | T44: =S44*J44 -> 647.7903773 | U44: =T44/3.6 -> 179.9417715 | V44: =U44*8.314*F44/4*LN(H44/G44)/1000 -> 117.0075823 | W44: =X44*B44 -> 199.3 | X44: 199.3 | Y44: each | Z44: =H44-G44 -> 1.95 | AA44: 82.5 | AB44: 107.7 | AC44: 36.6 | AD44: =(AB44+AC44)*60/1000 -> 8.658 | AE44: =AD44*835.2 -> 7231.1616 | AF44: =1.27581621531631*Z44*273.15/(AA44)*4/28.958600656 -> 1.137764567 | AG44: =R44*$R$20/AF44 -> 569.3536219 | AH44: =AD44/AG44 -> 0.01520671805 | AI44: =T44/AE44 -> 0.08958316977 | AJ44: =1.667*AI44+(1-AI44)*1 -> 1.059751974 | AK44: =(H44/G44)^(1/AJ44) -> 2.692930551 | AL44: =AK44*(1-AH44) -> 2.651979915
B45: 1 | C45: SGCB3511 | D45: 4120 | E45: 2950 | F45: 298 | G45: 1.05 | H45: 4 | I45: 4 | J45: 0.1696073923 | K45: 1.098227173 | L45: 3.80952381 | M45: 3.38 | N45: 3.38 | O45: 0.9233946961 | P45: 0.5864413878 | Q45: 3661.004333 | R45: 3813 | S45: =R45*$R$20/J45 -> 3804.386148 | T45: =S45*J45 -> 645.2520137 | U45: 179.2366705 | V45: 148.4869594 | W45: 253.2 | X45: 253.2 | Y45: each | Z45: 2.95 | AA45: 82.5 | AB45: 138.8 | AC45: 61.5 | AD45: =(AB45+AC45)*60/1000 -> 12.018 | AE45: =AD45*835.2 -> 10037.4336 | AF45: =1.27581621531631*Z45*273.15/(AA45)*4/28.958600656 -> 1.721233576 | AG45: =R45*$R$20/AF45 -> 374.8776591 | AH45: =AD45/AG45 -> 0.03205845883 | AI45: =T45/AE45 -> 0.06428456112 | AJ45: =1.667*AI45+(1-AI45)*1 -> 1.042877802 | AK45: =(H45/G45)^(1/AJ45) -> 3.605688957 | AL45: =AK45*(1-AH45) -> 3.490096126
B46: 1 | C46: SGCB3511 | D46: 4120 | E46: 2950 | F46: 298 | G46: 1.05 | H46: 5 | I46: 5 | J46: 0.1696073923 | K46: 1.078600645 | L46: 4.761904762 | M46: 4.25 | N46: 4.25 | O46: 0.9209729949 | P46: 0.5756345902 | Q46: 3651.402958 | R46: 3803 | S46: 3794.408739 | T46: 643.5597713 | U46: 178.7666032 | V46: 172.805504 | W46: 300.2 | X46: 300.2 | Y46: each | Z46: 3.95 | AF46: =1.27581621531631*AB46*273.15/(Z46)*4/28.958600656 -> 0
B47: 1 | C47: SGCB3511 | D47: 4120 | E47: 2950 | F47: 298 | G47: 1.05 | H47: 6 | I47: 5.862094005 | J47: 0.1696073923 | K47: 1.068520072 | L47: 5.714285714 | M47: 5 | N47: 5.11 | O47: 0.9132235508 | P47: 0.5489657429 | Q47: 3620.678558 | R47: 3771 | S47: 3762.481029 | T47: 638.1445958 | U47: 177.2623877 | V47: 191.369458 | W47: 348.6 | X47: 348.6 | Y47: each | Z47: 4.95 | AF47: =1.27581621531631*AB47*273.15/(Z47)*4/28.958600656 -> 0
B48: 1 | C48: SGCB3511 | D48: 4120 | E48: 2950 | F48: 298 | G48: 1.05 | H48: 7 | I48: 5.808097486 | J48: 0.1696073923 | K48: 1.062770353 | L48: 6.666666667 | M48: 5 | N48: 5.96 | O48: 0.9057162768 | P48: 0.5224636639 | Q48: 3590.914295 | R48: 3740 | S48: 3731.551061 | T48: =S48*J48 -> 632.8986444 | U48: 175.805179 | V48: 206.5821327 | W48: 395.4 | X48: 395.4 | Y48: each | Z48: 5.95 | AF48: =1.27581621531631*AB48*273.15/(Z48)*4/28.958600656 -> 0
B49: 1 | C49: SGCB3511 | D49: 4120 | E49: 2950 | F49: 298 | G49: 1.05 | H49: 8 | I49: 5.776015795 | J49: 0.1696073923 | K49: 1.059328825 | L49: 7.619047619 | M49: 5 | N49: 6.8 | O49: 0.8999041938 | P49: 0.5009204978 | Q49: 3567.870994 | R49: 3716 | S49: 3707.605278 | T49: =S49*J49 -> 628.8372628 | U49: 174.6770174 | V49: 219.7037303 | W49: 438.6 | X49: 438.6 | Y49: each | Z49: 6.95 | AF49: =1.27581621531631*AB49*273.15/(Z49)*4/28.958600656 -> 0
C50: VARIABLE Vi
B51: 1 | C51: SGCB3511 | D51: 4120 | E51: 2950 | F51: 298 | G51: 4.7 | H51: 15 | I51: =M51^K51*G51 -> 15 | J51: =1.27581621531631*G51*273.15/(F51)*4/28.958600656 -> 0.7591949939 | K51: =LN(H51/G51)/LN(N51) -> 1.164039602 | L51: =H51/G51 -> 3.191489362 | M51: 2.71 | N51: 2.71 | O51: =S51/(B51*E51/2950*D51) -> 0.9314713275 | P51: =(U51*8.314*F51/4*LN(H51/G51)/1000)/W51 -> 0.6399712888 | Q51: =U51*3600/1000/0.17625 -> 16530.68754 | R51: 17217 | S51: =R51*$R$20/J51 -> 3837.661869 | T51: =S51*J51 -> 2913.53368 | U51: =T51/3.6 -> 809.314911 | V51: =U51*8.314*F51/4*LN(H51/G51)/1000 -> 581.7339015 | W51: =X51*B51 -> 909 | X51: 909 | Y51: each | Z51: =H51-G51 -> 10.3
B52: 1 | C52: SGCB3511 | D52: 4120 | E52: 2950 | F52: 298 | G52: 4.7 | H52: 16 | I52: 16 | J52: 0.7591949939 | K52: 1.158099314 | L52: 3.404255319 | M52: 2.88 | N52: 2.88 | O52: 0.9307139018 | P52: 0.6321074328 | Q52: 16517.24562 | R52: 17203 | S52: =R52*$R$20/J52 -> 3834.541275 | T52: 2911.16454 | U52: 808.6568167 | V52: 613.586685 | W52: 970.7 | X52: 970.7 | Y52: each | Z52: 11.3
B53: 1 | C53: SGCB3511 | D53: 4120 | E53: 2950 | F53: 298 | G53: 4.7 | H53: 17 | I53: 17 | J53: 0.7591949939 | K53: 1.152903673 | L53: 3.617021277 | M53: 3.05 | N53: 3.05 | O53: 0.9301187816 | P53: 0.6243115712 | Q53: 16506.68411 | R53: 17192 | S53: 3832.08938 | T53: 2909.303074 | U53: 808.1397427 | V53: 643.5403676 | W53: 1030.8 | X53: 1030.8 | Y53: each | Z53: 12.3
B54: 1 | C54: SGCB3511 | D54: 4120 | E54: 2950 | F54: 298 | G54: 4.7 | H54: 18 | I54: 18 | J54: 0.7591949939 | K54: 1.151369897 | L54: 3.829787234 | M54: 3.21 | N54: 3.21 | O54: 0.9297400687 | P54: 0.6160059439 | Q54: 16499.96314 | R54: 17185 | S54: 3830.529083 | T54: 2908.118504 | U54: 807.8106955 | V54: 671.8776831 | W54: 1090.7 | X54: 1090.7 | Y54: each | Z54: 13.3
B55: 1 | C55: SGCB3511 | D55: 4120 | E55: 2950 | F55: 298 | G55: 4.7 | H55: 19 | I55: 19 | J55: 0.7591949939 | K55: 1.146977856 | L55: 4.042553191 | M55: 3.38 | N55: 3.38 | O55: 0.9280088099 | P55: 0.6070561003 | Q55: 16469.23874 | R55: 17153 | S55: 3823.396297 | T55: 2902.703328 | U55: 806.3064801 | V55: 697.6288705 | W55: 1149.2 | X55: 1149.2 | Y55: each | Z55: 14.3
B56: 1 | C56: SGCB3511 | D56: 4120 | E56: 2950 | F56: 298 | G56: 4.7 | H56: 20 | I56: 20 | J56: 0.7591949939 | K56: 1.145589072 | L56: 4.255319149 | M56: 3.54 | N56: 3.54 | O56: 0.9259529401 | P56: 0.5972387246 | Q56: 16432.75352 | R56: 17115 | S56: =R56*$R$20/J56 -> 3814.926113 | T56: 2896.272807 | U56: 804.5202243 | V56: 721.643551 | W56: 1208.3 | X56: 1208.3 | Y56: each | Z56: 15.3
B58: 1 | C58: SGCB3511 | D58: 4120 | E58: 2950 | F58: 298 | G58: 1 | H58: 4 | I58: =M58^K58*G58 -> 4 | J58: =1.27581621531631*G58*273.15/(F58)*4/28.958600656 -> 0.1615308498 | K58: =LN(H58/G58)/LN(N58) -> 1.091776215 | L58: =H58/G58 -> 4 | M58: 3.56 | N58: 3.56 | O58: =S58/(B58*E58/2950*D58) -> 0.9217600478 | P58: =(U58*8.314*F58/4*LN(H58/G58)/1000)/W58 -> 0.5778646417 | Q58: =U58*3600/1000/0.17625 -> 3480.498481 | R58: 3625 | S58: =R58*$R$20/J58 -> 3797.651397 | T58: =S58*J58 -> 613.4378572 | U58: =T58/3.6 -> 170.3994048 | V58: =U58*8.314*F58/4*LN(H58/G58)/1000 -> 146.3153273 | W58: =X58*B58 -> 253.2 | X58: 253.2 | Y58: each | Z58: =H58-G58 -> 3
B59: 1 | C59: SGCB3511 | D59: 4120 | E59: 2950 | F59: 298 | G59: 1.14 | H59: 4 | I59: 4 | J59: =1.27581621531631*G59*273.15/(F59)*4/28.958600656 -> 0.1841451687 | K59: =LN(H59/G59)/LN(N59) -> 1.109478307 | L59: 3.50877193 | M59: 3.1 | N59: 3.1 | O59: =S59/(B59*E59/2950*D59) -> 0.9261095507 | P59: =(U59*8.314*F59/4*LN(H59/G59)/1000)/W59 -> 0.6012154736 | Q59: =U59*3600/1000/0.17625 -> 3986.49095 | R59: 4152 | S59: =R59*$R$20/J59 -> 3815.571349 | T59: =S59*J59 -> 702.6190299 | U59: =T59/3.6 -> 195.1719527 | V59: =U59*8.314*F59/4*LN(H59/G59)/1000 -> 151.7467855 | W59: =X59*B59 -> 252.4 | X59: 252.4 | Y59: each | Z59: =H59-G59 -> 2.86
B60: 1 | C60: SGCB3511 | D60: 4120 | E60: 2950 | F60: 298 | G60: 1.33 | H60: 4 | I60: 4 | J60: =1.27581621531631*G60*273.15/(F60)*4/28.958600656 -> 0.2148360302 | K60: =LN(H60/G60)/LN(N60) -> 1.138711286 | L60: 3.007518797 | M60: 2.63 | N60: 2.63 | O60: =S60/(B60*E60/2950*D60) -> 0.931845159 | P60: =(U60*8.314*F60/4*LN(H60/G60)/1000)/W60 -> 0.6203211044 | Q60: =U60*3600/1000/0.17625 -> 4679.710233 | R60: 4874 | S60: 3839.202055 | T60: =S60*J60 -> 824.7989286 | U60: =T60/3.6 -> 229.1108135 | V60: =U60*8.314*F60/4*LN(H60/G60)/1000 -> 156.2588862 | W60: =X60*B60 -> 251.9 | X60: 251.9 | Y60: each | Z60: =H60-G60 -> 2.67
B61: 1 | C61: SGCB3511 | D61: 4120 | E61: 2950 | F61: 298 | G61: 1.6 | H61: 4 | I61: 4.236538151 | J61: =1.27581621531631*G61*273.15/(F61)*4/28.958600656 -> 0.2584493596 | K61: =LN(H61/G61)/LN(N61) -> 1.234997454 | L61: 2.5 | M61: 2.2 | N61: 2.1 | O61: =S61/(B61*E61/2950*D61) -> 0.9373346141 | P61: =(U61*8.314*F61/4*LN(H61/G61)/1000)/W61 -> 0.6326865938 | Q61: =U61*3600/1000/0.17625 -> 5662.891046 | R61: 5898 | S61: 3861.81861 | T61: =S61*J61 -> 998.0845468 | U61: =T61/3.6 -> 277.2457074 | V61: =U61*8.314*F61/4*LN(H61/G61)/1000 -> 157.3491559 | W61: =X61*B61 -> 248.7 | X61: 248.7 | Y61: each | Z61: =H61-G61 -> 2.4
B62: 1 | C62: SGCB3511 | D62: 4120 | E62: 2950 | F62: 298 | G62: 2 | H62: 4 | I62: 6.959983238 | J62: =1.27581621531631*G62*273.15/(F62)*4/28.958600656 -> 0.3230616995 | K62: =LN(H62/G62)/LN(N62) -> 1.58160726 | L62: 2 | M62: 2.2 | N62: 1.55 | O62: =S62/(B62*E62/2950*D62) -> 0.9432465923 | P62: =(U62*8.314*F62/4*LN(H62/G62)/1000)/W62 -> 0.6126267922 | Q62: =U62*3600/1000/0.17625 -> 7123.260201 | R62: 7419 | S62: 3886.17596 | T62: =S62*J62 -> 1255.47461 | U62: =T62/3.6 -> 348.7429473 | V62: =U62*8.314*F62/4*LN(H62/G62)/1000 -> 149.725988 | W62: =X62*B62 -> 244.4 | X62: 244.4 | Y62: each | Z62: =H62-G62 -> 2
B64: 1 | C64: SGCB3511 | D64: 4120 | E64: 2950 | F64: 298 | G64: 1 | H64: 4 | I64: =M64^K64*G64 -> 2.365096897 | J64: =1.27581621531631*G64*273.15/(F64)*4/28.958600656 -> 0.1615308498 | K64: =LN(H64/G64)/LN(N64) -> 1.091776215 | L64: =H64/G64 -> 4 | M64: 2.2 | N64: 3.56 | O64: =S64/(B64*E64/2950*D64) -> 0.9227771623 | P64: =(U64*8.314*F64/4*LN(H64/G64)/1000)/W64 -> 0.5056153906 | Q64: =U64*3600/1000/0.17625 -> 3484.339031 | R64: 3629 | S64: =R64*$R$20/J64 -> 3801.841909 | T64: =S64*J64 -> 614.1147542 | U64: =T64/3.6 -> 170.5874317 | V64: =U64*8.314*F64/4*LN(H64/G64)/1000 -> 146.4767787 | W64: =X64*B64 -> 289.7 | X64: 289.7 | Y64: each | Z64: =H64-G64 -> 3
B65: 1 | C65: SGCB3511 | D65: 4120 | E65: 2950 | F65: 298 | G65: 1.14 | H65: 4 | I65: 2.734106248 | J65: =1.27581621531631*G65*273.15/(F65)*4/28.958600656 -> 0.1841451687 | K65: =LN(H65/G65)/LN(N65) -> 1.109478307 | L65: 3.50877193 | M65: 2.2 | N65: 3.1 | O65: =S65/(B65*E65/2950*D65) -> 0.9276709108 | P65: =(U65*8.314*F65/4*LN(H65/G65)/1000)/W65 -> 0.5631812548 | Q65: =U65*3600/1000/0.17625 -> 3993.211912 | R65: 4159 | S65: 3822.004152 | T65: =S65*J65 -> 703.8035995 | U65: =T65/3.6 -> 195.5009999 | V65: =U65*8.314*F65/4*LN(H65/G65)/1000 -> 152.0026207 | W65: =X65*B65 -> 269.9 | X65: 269.9 | Y65: each | Z65: =H65-G65 -> 2.86
B66: 1 | C66: SGCB3511 | D66: 4120 | E66: 2950 | F66: 298 | G66: 1.33 | H66: 4 | I66: 3.264165815 | J66: =1.27581621531631*G66*273.15/(F66)*4/28.958600656 -> 0.2148360302 | K66: =LN(H66/G66)/LN(N66) -> 1.138711286 | L66: 3.007518797 | M66: 2.2 | N66: 2.63 | O66: =S66/(B66*E66/2950*D66) -> 0.931845159 | P66: =(U66*8.314*F66/4*LN(H66/G66)/1000)/W66 -> 0.6120598755 | Q66: =U66*3600/1000/0.17625 -> 4679.710233 | R66: 4874 | S66: 3839.202055 | T66: =S66*J66 -> 824.7989286 | U66: =T66/3.6 -> 229.1108135 | V66: =U66*8.314*F66/4*LN(H66/G66)/1000 -> 156.2588862 | W66: =X66*B66 -> 255.3 | X66: 255.3 | Y66: each | Z66: =H66-G66 -> 2.67
B67: 1 | C67: SGCB3511 | D67: 4120 | E67: 2950 | F67: 298 | G67: 1.6 | H67: 4 | I67: 4.236538151 | J67: =1.27581621531631*G67*273.15/(F67)*4/28.958600656 -> 0.2584493596 | K67: =LN(H67/G67)/LN(N67) -> 1.234997454 | L67: 2.5 | M67: 2.2 | N67: 2.1 | O67: =S67/(B67*E67/2950*D67) -> 0.9373346141 | P67: =(U67*8.314*F67/4*LN(H67/G67)/1000)/W67 -> 0.6326865938 | Q67: =U67*3600/1000/0.17625 -> 5662.891046 | R67: 5898 | S67: 3861.81861 | T67: =S67*J67 -> 998.0845468 | U67: =T67/3.6 -> 277.2457074 | V67: =U67*8.314*F67/4*LN(H67/G67)/1000 -> 157.3491559 | W67: =X67*B67 -> 248.7 | X67: 248.7 | Y67: each | Z67: =H67-G67 -> 2.4
B68: 1 | C68: SGCB3511 | D68: 4120 | E68: 2950 | F68: 298 | G68: 2 | H68: 4 | I68: 6.959983238 | J68: =1.27581621531631*G68*273.15/(F68)*4/28.958600656 -> 0.3230616995 | K68: =LN(H68/G68)/LN(N68) -> 1.58160726 | L68: 2 | M68: 2.2 | N68: 1.55 | O68: =S68/(B68*E68/2950*D68) -> 0.9432465923 | P68: =(U68*8.314*F68/4*LN(H68/G68)/1000)/W68 -> 0.6126267922 | Q68: =U68*3600/1000/0.17625 -> 7123.260201 | R68: 7419 | S68: 3886.17596 | T68: =S68*J68 -> 1255.47461 | U68: =T68/3.6 -> 348.7429473 | V68: =U68*8.314*F68/4*LN(H68/G68)/1000 -> 149.725988 | W68: =X68*B68 -> 244.4 | X68: 244.4 | Y68: each | Z68: =H68-G68 -> 2
B70: 1 | C70: SGCB3511 | D70: 4120 | E70: 2950 | F70: 298 | G70: =H70/L64 -> 1.25 | H70: 5 | I70: =M70^K70*G70 -> 2.962026841 | J70: =1.27581621531631*G70*273.15/(F70)*4/28.958600656 -> 0.2019135622 | K70: =LN(H70/G70)/LN(N70) -> 1.094200232 | L70: =H70/G70 -> 4 | M70: 2.2 | N70: 3.55 | O70: =S70/(B70*E70/2950*D70) -> 0.9278118793 | P70: =(U70*8.314*F70/4*LN(H70/G70)/1000)/W70 -> 0.5328363353 | Q70: =U70*3600/1000/0.17625 -> 4379.187192 | R70: 4561 | S70: =R70*$R$20/J70 -> 3822.584943 | T70: =S70*J70 -> 771.8317426 | U70: =T70/3.6 -> 214.3977063 | V70: =U70*8.314*F70/4*LN(H70/G70)/1000 -> 184.0949538 | W70: =X70*B70 -> 345.5 | X70: 345.5 | Y70: each | Z70: =H70-G70 -> 3.75
B71: 1 | C71: SGCB3511 | D71: 4120 | E71: 2950 | F71: 298 | G71: =H71/L65 -> 1.425 | H71: 5 | I71: 3.426205781 | J71: =1.27581621531631*G71*273.15/(F71)*4/28.958600656 -> 0.2301814609 | K71: =LN(H71/G71)/LN(N71) -> 1.112655792 | L71: 3.50877193 | M71: 2.2 | N71: 3.09 | O71: =S71/(B71*E71/2950*D71) -> 0.9357453726 | P71: =(U71*8.314*F71/4*LN(H71/G71)/1000)/W71 -> 0.5968765721 | Q71: =U71*3600/1000/0.17625 -> 5034.961113 | R71: 5244 | S71: 3855.270935 | T71: =S71*J71 -> 887.4118961 | U71: =T71/3.6 -> 246.5033045 | V71: =U71*8.314*F71/4*LN(H71/G71)/1000 -> 191.6570673 | W71: =X71*B71 -> 321.1 | X71: 321.1 | Y71: each | Z71: =H71-G71 -> 3.575
B72: 1 | C72: SGCB3511 | D72: 4120 | E72: 2950 | F72: 298 | G72: 1.6625 | H72: 5 | I72: 4.080207268 | J72: =1.27581621531631*G72*273.15/(F72)*4/28.958600656 -> 0.2685450377 | K72: =LN(H72/G72)/LN(N72) -> 1.138711286 | L72: 3.007518797 | M72: 2.2 | N72: 2.63 | O72: =S72/(B72*E72/2950*D72) -> 0.9363571709 | P72: =(U72*8.314*F72/4*LN(H72/G72)/1000)/W72 -> 0.6409842206 | Q72: =U72*3600/1000/0.17625 -> 5877.961848 | R72: 6122 | S72: 3857.791544 | T72: =S72*J72 -> 1035.990776 | U72: =T72/3.6 -> 287.7752155 | V72: =U72*8.314*F72/4*LN(H72/G72)/1000 -> 196.2693684 | W72: =X72*B72 -> 306.2 | X72: 306.2 | Y72: each | Z72: =H72-G72 -> 3.3375
B73: 1 | C73: SGCB3511 | D73: 4120 | E73: 2950 | F73: 298 | G73: 2 | H73: 5 | I73: 5.295672689 | J73: =1.27581621531631*G73*273.15/(F73)*4/28.958600656 -> 0.3230616995 | K73: =LN(H73/G73)/LN(N73) -> 1.234997454 | L73: 2.5 | M73: 2.2 | N73: 2.1 | O73: =S73/(B73*E73/2950*D73) -> 0.9423566171 | P73: =(U73*8.314*F73/4*LN(H73/G73)/1000)/W73 -> 0.6644497357 | Q73: =U73*3600/1000/0.17625 -> 7116.539239 | R73: 7412 | S73: 3882.509263 | T73: =S73*J73 -> 1254.290041 | U73: =T73/3.6 -> 348.4139002 | V73: =U73*8.314*F73/4*LN(H73/G73)/1000 -> 197.7402413 | W73: =X73*B73 -> 297.6 | X73: 297.6 | Y73: each | Z73: =H73-G73 -> 3
B74: 1 | C74: SGCB3511 | D74: 4120 | E74: 2950 | F74: 298 | G74: 2.5 | H74: 5 | I74: 8.699979048 | J74: =1.27581621531631*G74*273.15/(F74)*4/28.958600656 -> 0.4038271244 | K74: =LN(H74/G74)/LN(N74) -> 1.58160726 | L74: 2 | M74: 2.2 | N74: 1.55 | O74: =S74/(B74*E74/2950*D74) -> 0.9472387669 | P74: =(U74*8.314*F74/4*LN(H74/G74)/1000)/W74 -> 0.6447670872 | Q74: =U74*3600/1000/0.17625 -> 8941.760649 | R74: 9313 | S74: 3902.62372 | T74: =S74*J74 -> 1575.985314 | U74: =T74/3.6 -> 437.7736984 | V74: =U74*8.314*F74/4*LN(H74/G74)/1000 -> 187.9496059 | W74: =X74*B74 -> 291.5 | X74: 291.5 | Y74: each | Z74: =H74-G74 -> 2.5
C79: Volumetric efficiency ~90%
S83: 25.1 | T83: kg/min
S84: =S83*60*1000/3600 -> 418.3333333 | T84: g/s
Q115: GEOMETRICAL SWEPT VOLUME
Q116: Compressor Model | T116: Rotor Diameter mm | W116: Rotor L/D | Y116: Max Speed RPM | Z116: Geometrical Swept Volume Drive Shaft End | AD116: CFM 3550 RPM | AF116: m³/h 2950 RPM | AG116: Rotor
Z117: ft³/ Rev | AB117: m³/Rev | AG117: L
Q118: SGC1913 | T118: 193 | W118: 1.35 | Y118: .4,500. | Z118: 0.16653 | AB118: 0.004713 | AD118: 591 | AF118: 834 | AG118: =T118*W118 -> 260.55
B119: HOUSING: Cast Iron | Q119: SGC.1918 | T119: 193 | W119: 1.8 | Y119: .4,500. | Z119: 0.22204 | AB119: 0.006284 | AD119: 788 | AF119: 1112 | AG119: =T119*W119 -> 347.4
B120: ROTORS: Asymmetric 4+6 | Q120: SGC.2313 | T120: 233 | W120: 1.35 | Y120: .4,500. | Z120: 0.29301 | AB120: 0.008292 | AD120: 1040 | AF120: 1468 | AG120: 314.55
B121: BEARINGS: Antifriction | Q121: SGC.2317 | T121: 233 | W121: 1.7 | Y121: .4,500. | Z121: 0.36897 | AB121: 0.010442 | AD121: 1310 | AF121: 1848 | AG121: 396.1
B122: SHAFT SEAL: Stationary carbon | Q122: SGC.2321 | T122: 233 | W122: 2.1 | Y122: .4,500. | Z122: 0.4558 | AB122: 0.012899 | AD122: 1618 | AF122: 2283 | AG122: 489.3
B123: VOLUME RATIO CONTROL: Variable 2.2 – 5.0 | Q123: SGC.2813 | T123: 283 | W123: 1.35 | Y123: .4,200. | Z123: 0.52501 | AB123: 0.014858 | AD123: 1864 | AF123: 2630 | AG123: 382.05
B124: CAPACITY CONTROL: Variable 12% - 100% | Q124: SGC.2817 | T124: 283 | W124: 1.7 | Y124: .4,200. | Z124: 0.66115 | AB124: 0.018711 | AD124: 2347 | AF124: 3312 | AG124: 481.1
B125: LUBRICATION SYSTEM: No Oil Pump | Q125: SGC.2821 | T125: 283 | W125: 2.1 | Y125: .4,200. | Z125: 0.79546 | AB125: 0.022512 | AD125: 2824 | AF125: 3985 | AG125: 594.3
B126: OIL SEPARATOR/RESERVOIR: ASME 300 psi DWP | Q126: SGC.2824 | T126: 283 | W126: 2.4 | Y126: .4,200. | Z126: 0.89858 | AB126: 0.02543 | AD126: 3190 | AF126: 4501 | AG126: 679.2
B127: OIL FILTERS: 5 Micron Absolute | Q127: SGCH/B.3511 | T127: 355 | W127: 1.1 | Y127: .4,200. | Z127: 0.82248 | AB127: 0.023276 | AD127: 2920 | AF127: 4120 | AG127: 390.5
Q128: SGCH/B.3515 | T128: 355 | W128: 1.5 | Y128: .4,200. | Z128: 1.12154 | AB128: 0.031739 | AD128: 3981 | AF128: 5618 | AG128: 532.5
Q129: SGCH/B.3519 | T129: 355 | W129: 1.9 | Y129: .4,200. | Z129: 1.42748 | AB129: 0.040398 | AD129: 5068 | AF129: 7150 | AG129: 674.5
Q130: SGCB.3524 | T130: 355 | W130: 2.4 | Y130: .4,200. | Z130: 1.80328 | AB130: 0.051033 | AD130: 6402 | AF130: 9033 | AG130: 852

Sheet Frick_calc
AY37: 63.4
AY40: =AY37/19.8 -> 3.202020202

Sheet Kobelco
B3: LP Compressor - KS50LVS
D4: Helium : | E4: Hydrogen : | F4: Methane :
D5: 1 | E5: 1 | F5: 1
B6: Molecular Weight | D6: 4.003 | E6: 2.016 | F6: 16.043
B7: Specific Heat Ratio (k) | D7: 1.665 | E7: 1.402 | F7: 1.292
B8: Specific Heat (Cp) | C8: kcal/kmol/C | D8: 4.971 | E8: 6.929 | F8: 8.849
B9: Compressibility | D9: 1.0005 | E9: 1.0005 | F9: 0.9986
B10: Suction Pressure | C10: barA | D10: 1.05 | E10: --> | F10: -->
B11: Suction Temperature | C11: deg.C | D11: 50 | E11: --> | F11: -->
B12: Suction Volume Flow | C12: m3/h | D12: 10360 | E12: --> | F12: -->
B13: Discharge Pressure | C13: barA | D13: 4.10 | E13: --> | F13: -->
B14: Discharge Temperature | C14: deg.C | D14: 85 | E14: --> | F14: -->
B15: Speed | C15: rpm | D15: 1637 | E15: 1658 | F15: 1633
B16: Volumetric Efficiency (*) | C16: % | D16: 86.9 | E16: 85.8 | F16: 87.1
B17: Shaft Power (*) | C17: kW | D17: 875 | E17: 836 | F17: 803
B18: Lube Oil Temperature | C18: deg.C | D18: 50 | E18: --> | F18: -->
B19: Lube Oil Flow | C19: litter/min | D19: 738 | E19: 670 | F19: 608
C21: (*) The figure indicated includes design margin.
K39: L | L39: =1.65*510 -> 841.5

Sheet Sheet1

Sheet Sheet2
A1: air molar mass | B1: 28.95860066
A2: air density | B2: 1.275816215 | R2: Actual flow (process need) | Y2: NEED (screw displacement)
E3: Power @4,5K | F3: Tmoy | G3: Rdt W/W | H3: Rdt % | I3: Rdt expected (Green) | J3: Power WCS (kW) | K3: T (K) | L3: LP (bar abs) | M3: MP (bar abs) | N3: HP (bar abs) | O3: m_LP | P3: m_HP | Q3: LP/HP | R3: LP (Am3/h) | S3: HP (Am3/h) | U3: %vol LP | V3: %vol HP | W3: Nb_LP | X3: Nb_HP | Y3: LP (Am3/h) | Z3: HP (Am3/h) | AB3: Screw LP | AC3: Screw HP | AD3: RPM | AE3: RPM | AF3: LP Am3/h | AG3: HP Am3/h
C4: KSTAR | D4: 4,5K | E4: 9.6 | F4: 28 | G4: 268 | H4: 0.245 | I4: =15.5*(E4)^0.23/100 -> 0.2607678713 | J4: =(300-4.5)/4.5/H4*E4 -> 2573.061224 | K4: 312 | L4: 1.03 | M4: 5.2 | N4: 22 | O4: 496.3 | P4: 996.3 | Q4: =O4/P4 -> 0.4981431296 | R4: =O4/1000*3600/($B$2*L4*273.15/(K4)*4/$B$1) -> 11243.26387 | S4: =P4/1000*3600/($B$2*M4*273.15/(K4)*4/$B$1) -> 4470.665118 | U4: 0.8 | V4: 0.75 | W4: 2 | X4: 2 | Y4: =R4/W4/U4 -> 7027.039921 | Z4: =S4/X4/V4 -> 2980.443412 | AB4: 400SUD-MB | AC4: 320SUD-L
C5: Qatar 1 | K5: 318 | L5: 1.071 | M5: 3.957 | N5: 20.62 | O5: 463.1 | P5: 1547 | Q5: =O5/P5 -> 0.2993535876 | R5: =O5/1000*3600/($B$2*L5*273.15/(K5)*4/$B$1) -> 10283.55296 | S5: =P5/1000*3600/($B$2*M5*273.15/(K5)*4/$B$1) -> 9297.841582 | U5: 0.8 | V5: 0.75 | W5: 2 | X5: 2 | Y5: =R5/W5/U5 -> 6427.220601 | Z5: =S5/X5/V5 -> 6198.561055 | AB5: 400MUD-LB | AC5: 400SUD-L | AD5: 2985 | AE5: 2975 | AF5: 8027 | AG5: 6463 | AH5: =AF5/Y5 -> 1.248906876 | AI5: =AG5/Z5 -> 1.042661344
C6: Qatar 2 | K6: 320.5 | L6: 1.05 | M6: 4.825 | N6: 21 | O6: 886.5 | P6: 4067 | Q6: =O6/P6 -> 0.2179739366 | R6: =O6/1000*3600/($B$2*L6*273.15/(K6)*4/$B$1) -> 20237.09795 | S6: =P6/1000*3600/($B$2*M6*273.15/(K6)*4/$B$1) -> 20203.92034 | U6: 0.8 | V6: 0.75 | W6: 2 | X6: 2 | Y6: =R6/W6/U6 -> 12648.18622 | Z6: =S6/X6/V6 -> 13469.28023
C7: Qatar 3 | K7: 320 | L7: 1.05 | M7: 4.825 | N7: 21 | O7: 254.3 | P7: 1243 | Q7: =O7/P7 -> 0.2045856798 | R7: =O7/1000*3600/($B$2*L7*273.15/(K7)*4/$B$1) -> 5796.125739 | S7: =P7/1000*3600/($B$2*M7*273.15/(K7)*4/$B$1) -> 6165.304745 | U7: 0.8 | V7: 0.75 | W7: 2 | X7: 2 | Y7: =R7/W7/U7 -> 3622.578587 | Z7: =S7/X7/V7 -> 4110.203163
C8: ESS | K8: 311 | L8: 1.05 | M8: 4 | N8: 16 | O8: 424.2 | P8: 1034 | Q8: =O8/P8 -> 0.4102514507 | R8: =O8/1000*3600/($B$2*L8*273.15/(K8)*4/$B$1) -> 9396.638364 | S8: =P8/1000*3600/($B$2*M8*273.15/(K8)*4/$B$1) -> 6012.453013 | U8: 0.8 | V8: 0.75 | W8: 2 | X8: 2 | Y8: =R8/W8/U8 -> 5872.898977 | Z8: =S8/X8/V8 -> 4008.302008
C10: TMCP | D10: 20K | K10: 297 | L10: 3.4 | M10: 20 | O10: 1196 | R10: =O10/1000*3600/($B$2*L10*273.15/(K10)*4/$B$1) -> 7813.389433 | S10: =P10/1000*3600/($B$2*M10*273.15/(K10)*4/$B$1) -> 0 | U10: 0.8 | V10: 0.75 | W10: 2 | X10: 2 | Y10: =R10/W10/U10 -> 4883.368396 | Z10: =S10/X10/V10 -> 0 | AI10: L | AJ10: 2.63
C11: LEP 12kW | K11: 307.8 | L11: 1.04 | M11: 4.3 | N11: 17.6 | O11: 570.7 | P11: 977.7 | Q11: =O11/P11 -> 0.5837168866 | R11: =O11/1000*3600/($B$2*L11*273.15/(K11)*4/$B$1) -> 12632.05208 | S11: =P11/1000*3600/($B$2*M11*273.15/(K11)*4/$B$1) -> 5234.033934 | U11: 0.8 | V11: 0.75 | W11: 2 | X11: 2 | Y11: =R11/W11/U11 -> 7895.032552 | Z11: =S11/X11/V11 -> 3489.355956 | AI11: M | AJ11: 3.65
C12: ITER | E12: 25 | K12: 307.8 | L12: 1.04 | M12: 4.3 | N12: 17.6 | O12: 570.7 | P12: 977.7 | Q12: =O12/P12 -> 0.5837168866 | R12: =O12/1000*3600/($B$2*L12*273.15/(K12)*4/$B$1) -> 12632.05208 | S12: =P12/1000*3600/($B$2*M12*273.15/(K12)*4/$B$1) -> 5234.033934 | U12: 0.8 | V12: 0.75 | W12: 2 | X12: 2 | Y12: =R12/W12/U12 -> 7895.032552 | Z12: =S12/X12/V12 -> 3489.355956 | AI12: M | AJ12: 3.65
C15: SNS20K

Sheet SSLC-SULL
P14: Pin stage 1 | Q14: bar abs | R14: 1.05 | S14: 1.05
P15: Vi stage 1 | R15: 2.3 | S15: 3
L16: Vi^g=Pr | P16: Gamme | R16: 1.4 | S16: 1.4
K17: Pr | L17: 3 | M17: 3.5 | P17: Pint | Q17: bar abs | R17: =R14*R15^R16 -> 3.369832151 | S17: 4.888313558
K18: Vi | L18: 2.2 | M18: 2.6 | P18: Vi stage 2 | R18: 2.6 | S18: 3
K19: gamma | L19: =LN(L17)/LN(L18) -> 1.393369311 | M19: =LN(M17)/LN(M18) -> 1.311091536 | P19: gamma | R19: 1.4 | S19: 1.4
P20: Pout stage 2 | Q20: bar abs | R20: =R17*R18^R19 -> 12.84017541 | S20: 22.75772328
L26: Pin | M26: =M27/M28 -> 2 | N26: =N27/N28 -> 1.6 | O26: 1.333333333 | P26: 1.142857143 | Q26: 1
L27: Pout | M27: 4 | N27: 4 | O27: 4 | P27: 4 | Q27: 4
M28: 2 | N28: 2.5 | O28: 3 | P28: 3.5 | Q28: 4

Sheet JLAB-HOWDEN
J20: Vi^g=Pr
I21: Pr | J21: 7.24
I22: Vi | J22: 3.5
I23: gamma | J23: =LN(J21)/LN(J22) -> 1.580204122

Sheet SNS
C57: Vi^g=Pr
B58: Pr | C58: 3 | D58: 3.5 | J58: Pin stage 1 | K58: bar abs | L58: 1.05 | M58: 1.05
B59: Vi | C59: 2.2 | D59: 2.6 | J59: Vi stage 1 | L59: 2.3 | M59: 3
B60: gamma | C60: =LN(C58)/LN(C59) -> 1.393369311 | D60: =LN(D58)/LN(D59) -> 1.311091536 | J60: Gamme | L60: 1.35 | M60: 1.4
J61: Pint | K61: bar abs | L61: =L58*L59^L60 -> 3.232376031 | M61: 4.888313558
J62: Pr | L62: =L61/L58 -> 3.078453363
C63: Vi^g=Pr | J63: Vi stage 2 | L63: 3.2 | M63: 3
B64: Pr | C64: 3 | D64: 3.7 | J64: gamma | L64: 1.35 | M64: 1.4
B65: gamma | C65: 1.666 | D65: 1.666 | J65: Pout stage 2 | K65: bar abs | L65: =L61*L63^L64 -> 15.54083496 | M65: =M61*M63^M64 -> 22.75772328
B66: Vi | C66: =C64^(1/C65) -> 1.933692032 | D66: =D64^(1/D65) -> 2.193095064 | J66: Pr | L66: =L65/L62 -> 5.048260646

Sheet EAST
C8: Pin | D8: 0.105 | E8: 0.51
C9: Pout | D9: 0.51 | E9: 2
C10: Pr | D10: =D9/D8 -> 4.857142857 | E10: =E9/E8 -> 3.921568627
C11: Vi | E11: 3.5
C12: g | E12: =LN(E10)/LN(E11) -> 1.090782349
